{"text_format":"1","workbook":"xlsx","n_sheets":12,"sheets":["INICIO","Instructivo","Matriz_Riesgos_Gestión_Fiscal","Matriz_Riesgos_Corrupción","Matriz_RiesgosSPI","Matriz_RiesgosAmbientales","Tabla probabilidad","Hoja3","Tabla Valoración controles","Hoja1","Tabla Impacto","Opciones Tratamiento (Listas)"],"not_rendered":{"charts":0,"images":4,"macros":0,"external_links":8,"defined_names":52,"comments":8,"pivot_tables":1},"unopened":[],"bounds":{"document_bytes":16777216,"sheet_cells":100000,"rows_first":2000,"rows_last":500,"rows_between":2000,"halvings":0,"cell_chars":16384,"cell_head_chars":4096},"cells_cut":0,"cells_raw":0,"read":"whole","date_system":"1900"}

{"sheet":"INICIO","index":0,"n_rows":0,"n_cols":0,"rows_kept":0,"cut":false,"hidden":true,"merged":[]}

{"sheet":"Instructivo","index":1,"n_rows":45,"n_cols":5,"rows_kept":45,"cut":false,"hidden":true,"merged":[[1,1,1,7],[3,1,4,7],[5,1,5,7],[8,1,9,7],[11,2,11,3],[11,4,11,5],[6,1,6,7],[12,2,12,3],[12,4,12,5],[16,2,16,3],[16,4,16,5],[20,2,20,3],[17,2,17,3],[18,2,18,3],[19,2,19,3],[17,4,17,5],[18,4,18,5],[19,4,19,5],[20,4,20,5],[15,2,15,3],[15,4,15,5],[13,2,13,3],[13,4,13,5],[43,1,43,7],[44,1,44,7],[22,4,22,5],[22,2,22,3],[23,2,23,3],[23,4,23,5],[25,2,25,3],[25,4,25,5],[33,4,33,5],[31,2,31,3],[30,2,30,3],[30,4,30,5],[31,4,31,5],[26,2,26,3],[26,4,26,5],[35,2,35,3],[42,1,42,7],[41,1,41,7],[37,2,37,3],[37,4,37,5],[39,1,39,7],[27,4,27,5],[27,2,27,3],[32,2,32,3],[40,1,40,7],[28,2,28,3],[28,4,28,5],[29,2,29,3],[29,4,29,5],[32,4,32,5],[33,2,33,3],[34,2,34,3],[34,4,34,5],[35,4,35,5],[36,4,36,5],[36,2,36,3],[14,2,14,3],[14,4,14,5],[21,4,21,5],[21,2,21,3],[24,2,24,3],[24,4,24,5]]}
[]
[null,"Matriz Mapa de Riesgos"]
[]
[null,"Teniendo en cuenta que con la expedición del Decreto 1499 de 2017 “Por medio del cual se modifica el Decreto 1083 de 2015, Decreto Único Reglamentario del Sector Función Pública, en lo relacionado con el Sistema de Gestión establecido en el artículo 133 de la Ley 1753 de 2015”, se crea un solo Sistema de Gestión y se alinea con el Sistema de Control Interno, hoy todas las entidades públicas requieren actualizar y/o implementar el Modelo Integrado de Planeación y Gestión MIPG, modelo que incorpora el Modelo Estándar de Control Interno MECI a través de la 7a dimensión del mismo.  En este marco general, el proceso de administración del riesgo es un esfuerzo conjunto entre la Alta Dirección y los servidores en todos sus niveles, ejercicio que inicia con la formulación de la política de Administración del Riesgo, la cual incluye los niveles de responsabilidad frente al seguimiento y evaluación, aspectos que deberán definirse acorde con el Esquema de Líneas de Defensa vinculado a la Dimensión 7.\n\nTeniendo en cuenta lo anterior y dada la necesidad de las entidades frente a la estructuración de los mapas de riesgos, como herramienta fundamental frente a la gestión del riesgo, el presente formato desarrolla un esquema completo acorde con los contenidos metodológicos de la Guía para la Administración del Riesgo y el diseño de controles V5. El formato cuenta con celdas parametrizadas y permite contar con los respectivos mapas de calor para riesgo inherente y riesgo residual."]
[]
[null,"Orientaciones Generales"]
[null,"Antes de iniciar con el diligenciamiento de la información en la matriz, se requiere haber avanzado en el análisis del proceso, su objetivo, alcance, actividades clave, considere los lineamientos establecidos en el Paso 2: identificación del riesgo, donde se explica ampliamente las bases para adelanter este análisis.\nAsí mismo, considere en el Paso 3: valoración del riesgo los lineamientos para definir el No. de veces que se hace la actividad con la cual se relaciona el riesgo y su impacto en términos económicos o reputacionales. En este mismo paso se analizan los controles que deben responder a los atributos de eficiencia e informativos.\nNOTA: Si lo considera pertinente, es posible agregar hojas de trabajo adicionales al presente formato que permitan incluir la traza de estos análisis."]
[]
[null,"El archivo contiene las siguientes hojas:\n\n-   Hoja 1 Instructivo\n -  Hoja 2 Mapa Riesgos: Encontrará la totalidad de la estructura para la identificación y valoración de los riesgos por proceso, programa o proyecto, acorde con el nivel de desagregación que la entidad considere necesaria."]
[]
[]
[null,null,"Columna",null,"Descripción - Lineamientos para el diligenciamiento"]
[null,null,"Proceso",null,"Diligencie el nombre del proceso al cual se le identificarán y valorarán los riesgos."]
[null,null,"Objetivo",null,"Diligencie el objetivo del proceso."]
[null,null,"Alcance",null,"Diligencie el alcance del proceso."]
[null,null,"Referencia",null,"Permite definir unl consecutivo de riesgos.\nUna entidad puede ir en el riesgo 150, pero tener 70 riesgos, lo que permite llevar una traza de los riesgos. Esta información la debe administrar la oficina asesora de planeación o gerencia de riesgos.  Cuando un el riesgo salga del mapa no existirá otro riesgo con el mismo número. "]
[null,null,"Impacto",null,"Analice las consecuencias que puede ocasionar a la organización la materialización del riesgo, redacte de la forma más concreta posible."]
[null,null,"Causa Inmediata",null,"Circunstancias bajo las cuales se presenta el riesgo, es la situación más evidente frente al riesgo, redacte de la forma más concreta posible."]
[null,null,"Causa Raíz",null,"Causa  principal  o básica, corresponde a las razones por la cuales se puede presentar  el riesgo, redacte de la forma más concreta posible."]
[null,null,"Descripción del Riesgo",null,"Consolida o resume los análisis sobre impacto + causa inmediata + causa raíz, permitiendo contar con una redacción clara y concreta del riesgo indentificado. Tenga en cuenta la estructura de alto nivel establecida en al guía, inicia con POSIBILIDAD DE + Impacto para la entidad (Qué) + Causa Inmediata (Cómo) + Causa Raíz (Por qué)"]
[null,null,"Clasificación del Riesgo",null,"Utilice la lista de despligue que se encuentra parametrizada, le aparecerán las opciones: i)Daños Activos Fisicos, ii)Ejecucion y Administracion de procesos, iii)Fallas Tecnologicas, iv)Fraude Externo, v)Fraude Interno, vi)Relaciones Laborales, vii)Usuarios, productos y practicas organizacionales."]
[null,null,"Frecuencia con la cual se lleva a cabo la actividad",null,"Defina el # de veces que se ejecuta la actividad durante el año, (Recuerde la probabilidad e ocurrencia del riesgo se defien como el No. de veces que se pasa por el punto de riesgo en el periodo de 1 año). La matriz automáticamente hará el cálculo para el nivel de probabilidad inherente (Columnas H-I)"]
[null,null,"Criterios de Impacto",null,"Utilice la lista de despligue que se encuentra parametrizada, le aparecerán las opciones de la tabla de Impacto en la tabla Impacto del presente documento. La matriz automáticamente hará el cálculo para el nivel de impacto inherente (Columnas K)"]
[null,null,"Zona de Riesgo Inherente",null,"Teniendo en cuenta que ingresó la información de PROBABILIDAD e IMPACTO, la matriz automáticamente hará el cálculo para la zona de riesgo inherente (Columna O)"]
[null,null,"Descripción del Control",null,"Recuerde que el control se define como la medida que permite reducir o mitigar un riesgo. Defina el control (es) que atacan la causa raíz del riesgo, considere la estructura explicada en la guía: Responsable de ejecutar el control + Acción + Complemento"]
[null,null,"Afectación",null,"Esta casilla no se diligencia, depende de la selección en la columna S."]
[null,null,"ATRIBUTOS EFICIENCIA\nTipo",null,"Utilice la lista de despligue que se encuentra parametrizada, le aparecerán las opciones: i)Preventivo, ii)Detectivo, iii)Correctivo."]
[null,null,"ATRIBUTOS EFICIENCIA\nImplementación",null,"Utilice la lista de despligue que se encuentra parametrizada, le aparecerán las opciones: i)Automático, ii)Manual."]
[null,null,"ATRIBUTOS EFICIENCIA\nImplementación",null,"Utilice la lista de despligue que se encuentra parametrizada, le aparecerán las opciones: i)Automático, ii)Manual."]
[null,null,"ATRIBUTOS EFICIENCIA\nCalificación",null,"La matriz automáticamente hará el cálculo para el control analizado (Columna T) "]
[null,null,"ATRIBUTOS INFORMATIVOS\nDocumentación",null,"Utilice la lista de despligue que se encuentra parametrizada, le aparecerán las opciones: i)Documentado, ii)Sin documentar."]
[null,null,"ATRIBUTOS INFORMATIVOS\nFrecuencia",null,"Utilice la lista de despligue que se encuentra parametrizada, le aparecerán las opciones: i)Continua, ii)Aleatoria."]
[null,null,"ATRIBUTOS INFORMATIVOS\nEvidencia",null,"Utilice la lista de despligue que se encuentra parametrizada, le aparecerán las opciones: i)Con Registro, ii) Sin Registro."]
[null,null,"Evaluación del Nivel de Riesgo - Nivel de Riesgo Residual",null,"La matriz automáticamente hará el cálculo, acorde con el control o controles definidos con sus atributos analizados, lo que permitirá establecer el nivel de riesgo inherente (Columnas Y- Z- AA -AB- AC-AD)."]
[null,null,"Tratamiento",null,"Utilice la lista de despligue que se encuentra parametrizada, le aparecerán las opciones: i)Aceptar, ii)Evitar, iii)Reducir (compartir), iv)Reducir (mitigar)."]
[null,null,"Plan de Acción\nResponsable, fecha implementación, fecha seguimiento, seguimiento. ",null,"Esta casilla dependerá del tratamiento establecido, si es Aceptar no se requieren acciones adicionales, en caso de escoger Reducir (mitigar) se deben diligenciar las acciones que se adelantarán como complemento a los controles establecidos, no necesariamente son controles adicionales. Para Reducir (compartir), es viable diligenciar la acción que deriva de esta (ejemplo póliza seguros, terceración), indicando información relevante. "]
[null,null,"Estado",null,"Utilice la lista de despligue que se encuentra parametrizada, le aparecerán las opciones: i)Finalizado, ii)En curso, la selección en este caso dependerá de las acciones del plan que se hayan establecido en cada caso."]
[]
[]
[null," -  Hoja 3 Mapa Riesgos de Corrupción:  Encontrará la totalidad de la estructura para la identificación y valoración de los riesgos por proceso, programa o proyecto, acorde con el nivel de desagregación que la entidad considere necesaria."]
[null," -  Hoja 4 Matriz de Calor Inherente:  En esta hoja, en la medida en que ese diligencia el Mapa Final, se verán reflejados los riesgos en su zona correspondiente. Esta hoja no se diligencia se genera de manera automática."]
[null," -  Hoja 5 Matriz de Calor Residual: En esta hoja, en la medida en que ese diligencia el Mapa Final, se verán reflejados los riesgos en su zona correspondiente. Esta hoja no se diligencia se genera de manera automática."]
[null," -  Hoja 6 Tabla de probabilidad: Tabla referente para todos los cálculos (no se diligencia)"]
[null," -  Hoja 7 Tabla de Impacto: Tabla referente para todos los cálculos (no se diligencia)"]
[null," -  Hoja 8 Tabla de Valoración de Controles: Tabla referente para todos los cálculos (no se diligencia)"]

{"sheet":"Matriz_Riesgos_Gestión_Fiscal","index":2,"n_rows":75,"n_cols":56,"rows_kept":75,"cut":false,"hidden":false,"merged":[[47,0,48,0],[47,1,48,1],[1,0,3,1],[1,2,3,4],[5,39,5,43],[5,35,5,38],[4,2,4,43],[5,0,5,8],[5,9,5,15],[4,0,4,1],[5,22,5,27],[5,16,5,21],[1,5,1,6],[2,5,2,6],[5,28,5,34],[47,2,48,2],[47,3,48,3],[47,4,48,4],[47,12,48,12],[47,13,48,13],[47,5,48,5],[47,14,48,14],[47,15,48,15],[47,6,48,6],[47,7,48,7],[47,8,48,8],[47,9,48,9],[47,10,48,10],[47,11,48,11]]}
[]
[null,null,"FORMATO PARA LA FORMULACIÓN Y TRATAMIENTOS DE RIESGOS"]
[null,null,null,null,null,"E-ME-F-08"]
[null,null,null,null,null,"2025-12-30","V-3"]
["PROCESO",null,"TODOS LOS PROCESOS"]
["Identificación del riesgo",null,null,null,null,null,null,null,null,"Análisis del riesgo inherente",null,null,null,null,null,null,"Evaluación del riesgo - Valoración de los controles",null,null,null,null,null,"Atributos",null,null,null,null,null,"Evaluación del riesgo - Nivel del riesgo residual",null,null,null,null,null,null,"Plan de acción",null,null,null,"Responsable de Tratamiento"]
["Referencia ","Proceso","Tipo de Riesgo","Descripción del Riesgo ","Impacto","Causa o circunstancia Inmediata ¿Cómo?","Causa Raíz ¿Por a que?","Clasificación del Riesgo","Frecuencia con la cual se realiza la actividad anual","Probabilidad Inherente","%","Impacto","Observación de criterio","Impacto \nInherente","%","Zona de Riesgo Inherente","No. Control","Descripción del Control","Cargo del responsable del control ","Acción que realiza","Evidencia esperada del control","Afectación","Tipo","Implementación","Calificación","Documentación","Frecuencia","Evidencia","Probabilidad Residual","Probabilidad Residual Final","%","Impacto Residual Final","%","Zona de Riesgo Final","Tratamiento","Acción a realizar","Cargo del Responsable","Fecha de implementación","Fecha de seguimiento","Cargo del responsable","Área del Responsable","Jefe del Área del Responsable","Fecha Implementación\n(Inicio)","Fecha de Implementación\n(Fin)","Reporte primer Trimestre","¿se materializó?\nSi/No","Seguimiento segunda línea de defensa","Reporte segundo Trimestre","¿se materializó?\nSi/No","Seguimiento segunda línea de defensa","Reporte tercer Trimestre","¿se materializó?\nSi/No","Seguimiento segunda línea de defensa","Reporte cuarto Trimestre","¿se materializó?\nSi/No","Seguimiento segunda línea de defensa"]
[1,"DIRECCIONAMIENTO ESTRATÉGICO","Gestión",{"$f":"IF(C8=\"Fiscal\",_xlfn.CONCAT(\"Posibilidad de efectos dañosos sobre bienes públicos \",\" por o para \",F8,\" debido a \",G8),IF(C8=\"Gestión\",_xlfn.CONCAT(\"Posibilidad de afectacion \",E8,\" por \",F8,\" debido a \",G8),\"\"))","v":"Posibilidad de afectacion reputacional por Brindar inadecuada información a la ciudadanía sobre el cumplimiento de las metas y toma de decisiones imprecisas por parte de la alta dirección en temas estratégicos  debido a Ineficiente seguimiento y evaluación por parte de los líderes/ ejecutores de la programación y seguimiento de las prioridades estratégicas y los compromisos adquiridos"},"reputacional","Brindar inadecuada información a la ciudadanía sobre el cumplimiento de las metas y toma de decisiones imprecisas por parte de la alta dirección en temas estratégicos ","Ineficiente seguimiento y evaluación por parte de los líderes/ ejecutores de la programación y seguimiento de las prioridades estratégicas y los compromisos adquiridos","Ejecucion y Administracion de procesos",24,{"$f":"IF(I8<=0,\"\",IF(I8<=2,\"Muy Baja\",IF(I8<=24,\"Baja\",IF(I8<=500,\"Media\",IF(I8<=5000,\"Alta\",\"Muy Alta\")))))","v":"Baja"},{"$f":"IF(J8=\"\",\"\",IF(J8=\"Muy Baja\",0.2,IF(J8=\"Baja\",0.4,IF(J8=\"Media\",0.6,IF(J8=\"Alta\",0.8,IF(J8=\"Muy Alta\",1,))))))","v":0.4},"     El riesgo afecta la imagen de la entidad a nivel nacional, con efecto publicitarios sostenible a nivel país",{"$f":"IF(NOT(ISERROR(MATCH(L8,'Tabla Impacto'!#REF!,0))),'Tabla Impacto'!$F$229&\"Por favor no seleccionar los criterios de impacto(Afectación Económica o presupuestal y Pérdida Reputacional)\",L8)","v":"     El riesgo afecta la imagen de la entidad a nivel nacional, con efecto publicitarios sostenible a nivel país"},{"$f":"IF(OR(M8='Tabla Impacto'!$C$11,M8='Tabla Impacto'!$D$11),\"Leve\",IF(OR(M8='Tabla Impacto'!$C$12,M8='Tabla Impacto'!$D$12),\"Menor\",IF(OR(M8='Tabla Impacto'!$C$13,M8='Tabla Impacto'!$D$13),\"Moderado\",IF(OR(M8='Tabla Impacto'!$C$14,M8='Tabla Impacto'!$D$14),\"Mayor\",IF(OR(M8='Tabla Impacto'!$C$15,M8='Tabla Impacto'!$D$15),\"Catastrófico\",\"\")))))","v":"Catastrófico"},{"$f":"IF(N8=\"\",\"\",IF(N8=\"Leve\",0.2,IF(N8=\"Menor\",0.4,IF(N8=\"Moderado\",0.6,IF(N8=\"Mayor\",0.8,IF(N8=\"Catastrófico\",1,))))))","v":1},{"$f":"IF(OR(AND(J8=\"Muy Baja\",N8=\"Leve\"),AND(J8=\"Muy Baja\",N8=\"Menor\"),AND(J8=\"Baja\",N8=\"Leve\")),\"Bajo\",IF(OR(AND(J8=\"Muy baja\",N8=\"Moderado\"),AND(J8=\"Baja\",N8=\"Menor\"),AND(J8=\"Baja\",N8=\"Moderado\"),AND(J8=\"Media\",N8=\"Leve\"),AND(J8=\"Media\",N8=\"Menor\"),AND(J8=\"Media\",N8=\"Moderado\"),AND(J8=\"Alta\",N8=\"Leve\"),AND(J8=\"Alta\",N8=\"Menor\")),\"Moderado\",IF(OR(AND(J8=\"Muy Baja\",N8=\"Mayor\"),AND(J8=\"Baja\",N8=\"Mayor\"),AND(J8=\"Media\",N8=\"Mayor\"),AND(J8=\"Alta\",N8=\"Moderado\"),AND(J8=\"Alta\",N8=\"Mayor\"),AND(J8=\"Muy Alta\",N8=\"Leve\"),AND(J8=\"Muy Alta\",N8=\"Menor\"),AND(J8=\"Muy Alta\",N8=\"Moderado\"),AND(J8=\"Muy Alta\",N8=\"Mayor\")),\"Alto\",IF(OR(AND(J8=\"Muy Baja\",N8=\"Catastrófico\"),AND(J8=\"Baja\",N8=\"Catastrófico\"),AND(J8=\"Media\",N8=\"Catastrófico\"),AND(J8=\"Alta\",N8=\"Catastrófico\"),AND(J8=\"Muy Alta\",N8=\"Catastrófico\")),\"Extremo\",\"\"))))","v":"Extremo"},1,"El profesional de la Oficina de Planeación y Gestión Internacional, del Grupo de Gestión y Cumplimiento, realiza un seguimiento de manera periódica de los avances cuantitativos/cualitativos del cronograma de actividades frente a las acciones estipuladas en el Plan de Acción Anual, los Planes Plurianuales de Inversiones y los compromisos CONPES y lo presenta de manera oportuna a la alta dirección para la toma de decisiones. En caso de encontrar desviaciones en la ejecución de las acciones solicita aclaraciones a la primera línea de defensa","Profesional de la Oficina de Planeación y Gestión Internacional del Grupo de Gestión y Cumplimiento","Formulación de un cronograma de actividades para cumplir con las acciones estipuladas en el Plan de Acción Anual, los Planes Plurianuales de Inversiones y los compromisos CONPES y realiza el seguimiento de manera periódica de los avances cuantitativos/cualitativos y lo presenta de manera oportuna a la alta dirección para la toma de decisiones.","Informes detallados \nCronograma de actividades",{"$f":"IF(OR(W8=\"Preventivo\",W8=\"Detectivo\"),\"Probabilidad\",IF(W8=\"Correctivo\",\"Impacto\",\"\"))","v":"Probabilidad"},"Detectivo","Automático",{"$f":"IF(AND(W8=\"Preventivo\",X8=\"Automático\"),\"50%\",IF(AND(W8=\"Preventivo\",X8=\"Manual\"),\"40%\",IF(AND(W8=\"Detectivo\",X8=\"Automático\"),\"40%\",IF(AND(W8=\"Detectivo\",X8=\"Manual\"),\"30%\",IF(AND(W8=\"Correctivo\",X8=\"Automático\"),\"35%\",IF(AND(W8=\"Correctivo\",X8=\"Manual\"),\"25%\",\"\"))))))","v":"40%"},"Documentado","Continua","Con Registro",{"$f":"IFERROR(IF(V8=\"Probabilidad\",(K8-(+K8*Y8)),IF(V8=\"Impacto\",K8,\"\")),\"\")","v":0.24},{"$f":"IFERROR(IF(AC8=\"\",\"\",IF(AC8<=0.2,\"Muy Baja\",IF(AC8<=0.4,\"Baja\",IF(AC8<=0.6,\"Media\",IF(AC8<=0.8,\"Alta\",\"Muy Alta\"))))),\"\")","v":"Baja"},{"$f":"+AC8","v":0.24},{"$f":"IFERROR(IF(AG8=\"\",\"\",IF(AG8<=0.2,\"Leve\",IF(AG8<=0.4,\"Menor\",IF(AG8<=0.6,\"Moderado\",IF(AG8<=0.8,\"Mayor\",\"Catastrófico\"))))),\"\")","v":"Catastrófico"},{"$f":"IFERROR(IF(V8=\"Impacto\",(O8-(+O8*Y8)),IF(V8=\"Probabilidad\",O8,\"\")),\"\")","v":1},{"$f":"IFERROR(IF(OR(AND(AD8=\"Muy Baja\",AF8=\"Leve\"),AND(AD8=\"Muy Baja\",AF8=\"Menor\"),AND(AD8=\"Baja\",AF8=\"Leve\")),\"Bajo\",IF(OR(AND(AD8=\"Muy baja\",AF8=\"Moderado\"),AND(AD8=\"Baja\",AF8=\"Menor\"),AND(AD8=\"Baja\",AF8=\"Moderado\"),AND(AD8=\"Media\",AF8=\"Leve\"),AND(AD8=\"Media\",AF8=\"Menor\"),AND(AD8=\"Media\",AF8=\"Moderado\"),AND(AD8=\"Alta\",AF8=\"Leve\"),AND(AD8=\"Alta\",AF8=\"Menor\")),\"Moderado\",IF(OR(AND(AD8=\"Muy Baja\",AF8=\"Mayor\"),AND(AD8=\"Baja\",AF8=\"Mayor\"),AND(AD8=\"Media\",AF8=\"Mayor\"),AND(AD8=\"Alta\",AF8=\"Moderado\"),AND(AD8=\"Alta\",AF8=\"Mayor\"),AND(AD8=\"Muy Alta\",AF8=\"Leve\"),AND(AD8=\"Muy Alta\",AF8=\"Menor\"),AND(AD8=\"Muy Alta\",AF8=\"Moderado\"),AND(AD8=\"Muy Alta\",AF8=\"Mayor\")),\"Alto\",IF(OR(AND(AD8=\"Muy Baja\",AF8=\"Catastrófico\"),AND(AD8=\"Baja\",AF8=\"Catastrófico\"),AND(AD8=\"Media\",AF8=\"Catastrófico\"),AND(AD8=\"Alta\",AF8=\"Catastrófico\"),AND(AD8=\"Muy Alta\",AF8=\"Catastrófico\")),\"Extremo\",\"\")))),\"\")","v":"Extremo"},"Evitar",null,null,null,null,"Laura Vivianne Bermúdez\nOficina de Planeación y Gestión Internacional Grupo de Gestión y Cumplimiento","Oficina de Planeación y Gestión Internacional","Jefe de la Oficina  de Planeación y Gestión Internacional","2025-02-01","2025-12-31"]
[2,"DIRECCIONAMIENTO ESTRATÉGICO","Gestión",{"$f":"IF(C9=\"Fiscal\",_xlfn.CONCAT(\"Posibilidad de efectos dañosos sobre bienes públicos \",\" por o para \",F9,\" debido a \",G9),IF(C9=\"Gestión\",_xlfn.CONCAT(\"Posibilidad de afectacion \",E9,\" por \",F9,\" debido a \",G9),\"\"))","v":"Posibilidad de afectacion reputacional por Incumplimiento de los tiempos para el registro o actualización de los proyectos de inversión en la PIIP, debido a devoluciones de los procesos y/o trámites presupuestales"},"reputacional","Incumplimiento de los tiempos para el registro o actualización de los proyectos de inversión en la PIIP,","devoluciones de los procesos y/o trámites presupuestales","Ejecucion y Administracion de procesos",172,"Media",0.6,"     El riesgo afecta la imagen de la entidad a nivel nacional, con efecto publicitarios sostenible a nivel país",{"$f":"IF(NOT(ISERROR(MATCH(L9,'Tabla Impacto'!#REF!,0))),'Tabla Impacto'!$F$229&\"Por favor no seleccionar los criterios de impacto(Afectación Económica o presupuestal y Pérdida Reputacional)\",L9)","v":"     El riesgo afecta la imagen de la entidad a nivel nacional, con efecto publicitarios sostenible a nivel país"},{"$f":"IF(OR(M9='Tabla Impacto'!$C$11,M9='Tabla Impacto'!$D$11),\"Leve\",IF(OR(M9='Tabla Impacto'!$C$12,M9='Tabla Impacto'!$D$12),\"Menor\",IF(OR(M9='Tabla Impacto'!$C$13,M9='Tabla Impacto'!$D$13),\"Moderado\",IF(OR(M9='Tabla Impacto'!$C$14,M9='Tabla Impacto'!$D$14),\"Mayor\",IF(OR(M9='Tabla Impacto'!$C$15,M9='Tabla Impacto'!$D$15),\"Catastrófico\",\"\")))))","v":"Catastrófico"},{"$f":"IF(N9=\"\",\"\",IF(N9=\"Leve\",0.2,IF(N9=\"Menor\",0.4,IF(N9=\"Moderado\",0.6,IF(N9=\"Mayor\",0.8,IF(N9=\"Catastrófico\",1,))))))","v":1},{"$f":"IF(OR(AND(J9=\"Muy Baja\",N9=\"Leve\"),AND(J9=\"Muy Baja\",N9=\"Menor\"),AND(J9=\"Baja\",N9=\"Leve\")),\"Bajo\",IF(OR(AND(J9=\"Muy baja\",N9=\"Moderado\"),AND(J9=\"Baja\",N9=\"Menor\"),AND(J9=\"Baja\",N9=\"Moderado\"),AND(J9=\"Media\",N9=\"Leve\"),AND(J9=\"Media\",N9=\"Menor\"),AND(J9=\"Media\",N9=\"Moderado\"),AND(J9=\"Alta\",N9=\"Leve\"),AND(J9=\"Alta\",N9=\"Menor\")),\"Moderado\",IF(OR(AND(J9=\"Muy Baja\",N9=\"Mayor\"),AND(J9=\"Baja\",N9=\"Mayor\"),AND(J9=\"Media\",N9=\"Mayor\"),AND(J9=\"Alta\",N9=\"Moderado\"),AND(J9=\"Alta\",N9=\"Mayor\"),AND(J9=\"Muy Alta\",N9=\"Leve\"),AND(J9=\"Muy Alta\",N9=\"Menor\"),AND(J9=\"Muy Alta\",N9=\"Moderado\"),AND(J9=\"Muy Alta\",N9=\"Mayor\")),\"Alto\",IF(OR(AND(J9=\"Muy Baja\",N9=\"Catastrófico\"),AND(J9=\"Baja\",N9=\"Catastrófico\"),AND(J9=\"Media\",N9=\"Catastrófico\"),AND(J9=\"Alta\",N9=\"Catastrófico\"),AND(J9=\"Muy Alta\",N9=\"Catastrófico\")),\"Extremo\",\"\"))))","v":"Extremo"},1,"El y/o la Coordinador(a) del Grupo de  Programación y Gestión Estrategica de Proyectos y profesional designado, dispone de un enlace  para asesorar a los gerentes de proyectos de inversión, presenta e informa el cronograma del ciclo de formulación y actualización de proyectos, Anteproyecto y MGMP, posteriormente realiza seguimiento al estado de avance de cada uno de los trámites para el registro y/o actualización de los mismos en la PIIP; en caso de encontrar desviaciones en los tiempos definidos establece acciones correctivas y/o  preventivas requeridas con el gerente del proyecto y de ser necesario con la alta dirección.","Coordinador(a)  y profesionales designados del Grupo de Programación y Gestión Estratégica de Proyectos ","Disponer de un enlace para asesorar los gerentes de proyectos de inversión\nPresentar e informar el cronograma del ciclo del proyecto de inversión\nRealizar el seguimiento al estado de avance de cada uno de los trámites para el registro y/o actualización de los proyectos de inversión en la PIIP\nEstablecer acciones correctivas y/o  preventivas requeridas con el gerente del proyecto y de ser necesario con la alta dirección","Instrumentos de control definidos para tal fin, cronograma ciclo de proyectos de inversión, formato de ajuste de ficha proyectos de inversión, matriz de proyectos, presentaciones  y reuniones de seguimiento",{"$f":"IF(OR(W9=\"Preventivo\",W9=\"Detectivo\"),\"Probabilidad\",IF(W9=\"Correctivo\",\"Impacto\",\"\"))","v":"Probabilidad"},"Preventivo","Manual",{"$f":"IF(AND(W9=\"Preventivo\",X9=\"Automático\"),\"50%\",IF(AND(W9=\"Preventivo\",X9=\"Manual\"),\"40%\",IF(AND(W9=\"Detectivo\",X9=\"Automático\"),\"40%\",IF(AND(W9=\"Detectivo\",X9=\"Manual\"),\"30%\",IF(AND(W9=\"Correctivo\",X9=\"Automático\"),\"35%\",IF(AND(W9=\"Correctivo\",X9=\"Manual\"),\"25%\",\"\"))))))","v":"40%"},"Sin Documentar","Continua","Con Registro",{"$f":"IFERROR(IF(V9=\"Probabilidad\",(K9-(+K9*Y9)),IF(V9=\"Impacto\",K9,\"\")),\"\")","v":0.36},{"$f":"IFERROR(IF(AC9=\"\",\"\",IF(AC9<=0.2,\"Muy Baja\",IF(AC9<=0.4,\"Baja\",IF(AC9<=0.6,\"Media\",IF(AC9<=0.8,\"Alta\",\"Muy Alta\"))))),\"\")","v":"Baja"},{"$f":"+AC9","v":0.36},{"$f":"IFERROR(IF(AG9=\"\",\"\",IF(AG9<=0.2,\"Leve\",IF(AG9<=0.4,\"Menor\",IF(AG9<=0.6,\"Moderado\",IF(AG9<=0.8,\"Mayor\",\"Catastrófico\"))))),\"\")","v":"Catastrófico"},{"$f":"IFERROR(IF(V9=\"Impacto\",(O9-(+O9*Y9)),IF(V9=\"Probabilidad\",O9,\"\")),\"\")","v":1},{"$f":"IFERROR(IF(OR(AND(AD9=\"Muy Baja\",AF9=\"Leve\"),AND(AD9=\"Muy Baja\",AF9=\"Menor\"),AND(AD9=\"Baja\",AF9=\"Leve\")),\"Bajo\",IF(OR(AND(AD9=\"Muy baja\",AF9=\"Moderado\"),AND(AD9=\"Baja\",AF9=\"Menor\"),AND(AD9=\"Baja\",AF9=\"Moderado\"),AND(AD9=\"Media\",AF9=\"Leve\"),AND(AD9=\"Media\",AF9=\"Menor\"),AND(AD9=\"Media\",AF9=\"Moderado\"),AND(AD9=\"Alta\",AF9=\"Leve\"),AND(AD9=\"Alta\",AF9=\"Menor\")),\"Moderado\",IF(OR(AND(AD9=\"Muy Baja\",AF9=\"Mayor\"),AND(AD9=\"Baja\",AF9=\"Mayor\"),AND(AD9=\"Media\",AF9=\"Mayor\"),AND(AD9=\"Alta\",AF9=\"Moderado\"),AND(AD9=\"Alta\",AF9=\"Mayor\"),AND(AD9=\"Muy Alta\",AF9=\"Leve\"),AND(AD9=\"Muy Alta\",AF9=\"Menor\"),AND(AD9=\"Muy Alta\",AF9=\"Moderado\"),AND(AD9=\"Muy Alta\",AF9=\"Mayor\")),\"Alto\",IF(OR(AND(AD9=\"Muy Baja\",AF9=\"Catastrófico\"),AND(AD9=\"Baja\",AF9=\"Catastrófico\"),AND(AD9=\"Media\",AF9=\"Catastrófico\"),AND(AD9=\"Alta\",AF9=\"Catastrófico\"),AND(AD9=\"Muy Alta\",AF9=\"Catastrófico\")),\"Extremo\",\"\")))),\"\")","v":"Extremo"},"Evitar",null,null,null,null,"Profesional Grupo de Programación y Gestión Estratégica de Proyectos","Oficina Asesora de Planeación y Gestión Internacional","Miguel Angel Cardozo Tovar","2025-01-15","2025-12-31"]
[3,"DIRECCIONAMIENTO ESTRATÉGICO","Gestión","Posibilidad de afectacion económico por falta de oportunidad en el reporte de alertas tempranas por rezagos en la ejecución presupuestal del rubro de inversión debido a incumplimiento al seguimiento de la ejecución presupuestal en el marco de los acuerdos de gestión","económico","falta de oportunidad en el reporte de alertas tempranas por rezagos en la ejecución presupuestal del rubro de inversión","incumplimiento al seguimiento de la ejecución presupuestal en el marco de los acuerdos de gestión","Usuarios, productos y practicas , organizacionales",88,"Media",0.6,"     El riesgo afecta la imagen de de la entidad con efecto publicitario sostenido a nivel de sector administrativo, nivel departamental o municipal",{"$f":"IF(NOT(ISERROR(MATCH(L10,'[5]Tabla Impacto'!#REF!,0))),'[5]Tabla Impacto'!$F$229&\"Por favor no seleccionar los criterios de impacto(Afectación Económica o presupuestal y Pérdida Reputacional)\",L10)","v":"     El riesgo afecta la imagen de de la entidad con efecto publicitario sostenido a nivel de sector administrativo, nivel departamental o municipal"},{"$f":"IF(OR(M10='[5]Tabla Impacto'!$C$11,M10='[5]Tabla Impacto'!$D$11),\"Leve\",IF(OR(M10='[5]Tabla Impacto'!$C$12,M10='[5]Tabla Impacto'!$D$12),\"Menor\",IF(OR(M10='[5]Tabla Impacto'!$C$13,M10='[5]Tabla Impacto'!$D$13),\"Moderado\",IF(OR(M10='[5]Tabla Impacto'!$C$14,M10='[5]Tabla Impacto'!$D$14),\"Mayor\",IF(OR(M10='[5]Tabla Impacto'!$C$15,M10='[5]Tabla Impacto'!$D$15),\"Catastrófico\",\"\")))))","v":"Mayor"},0.8,"Alto",1,"El y/o la Coordinador(a) del Grupo de Programación y Gestión Estrategica de Proyectos y profesionales designados, solicitan a los responsables de la ejecución de proyectos de inversión el diligenciamiento de la matriz de acuerdos de gestión, en cumplimiento de parámetros establecidos por el Ministerio y posteriormente realiza seguimiento periódico a la ejecución presupuestal; en caso de encontrar desviaciones, solicita la respectiva justificación a los gerentes de proyectos, con el fin de que establezcan un plan de choque para alcanzar las metas de ejecución presupuestal a través de acuerdos de gestión.","Coordinador(a)  y profesionales designados del Grupo de Programación y Gestión Estratégica de Proyectos ","Solicitar la formalización de los acuerdos de gestión y consolidar la información\nRealizar seguimiento periódico a la ejecución presupuestal en el marco de los acuerdos de gestión","Acuerdos de gestión, informes de ejecución, boletines ejecutivos, correo electrónico con informe de reuniones de seguimiento sobre PAE y reuniones de seguimiento con las áreas organizaciones y/o entidades adscritas.\nReportes de seguimiento a nivel de producto en la PIIP","Probabilidad","Preventivo","Manual",{"$f":"IF(AND(W10=\"Preventivo\",X10=\"Automático\"),\"50%\",IF(AND(W10=\"Preventivo\",X10=\"Manual\"),\"40%\",IF(AND(W10=\"Detectivo\",X10=\"Automático\"),\"40%\",IF(AND(W10=\"Detectivo\",X10=\"Manual\"),\"30%\",IF(AND(W10=\"Correctivo\",X10=\"Automático\"),\"35%\",IF(AND(W10=\"Correctivo\",X10=\"Manual\"),\"25%\",\"\"))))))","v":"40%"},"Sin Documentar","Continua","Con Registro",0.36,"Baja",0.36,"Mayor",0.8,"Alto","Reducir (compartir)",null,null,null,null,"Profesional Grupo de Grupo de Programación y Gestión Estratégica de Proyectos","Oficina Asesora de Planeación y Gestión Internacional","Miguel Angel Cardozo Tovar","2025-01-15","2025-12-31"]
[4,"DIRECCIONAMIENTO ESTRATÉGICO","Gestión","Posibilidad de afectacion económico y reputacional por demandas y quejas de los interesados en la gestión de los trámites  debido a incumplimiento normativo relacionado con los trámites y servicios del Ministerio.","económico y reputacional","demandas y quejas de los interesados en la gestión de los trámites ","incumplimiento normativo relacionado con los trámites y servicios del Ministerio.","Usuarios, productos y practicas , organizacionales",40,"Media",{"$f":"IF(J11=\"\",\"\",IF(J11=\"Muy Baja\",0.2,IF(J11=\"Baja\",0.4,IF(J11=\"Media\",0.6,IF(J11=\"Alta\",0.8,IF(J11=\"Muy Alta\",1,))))))","v":0.6},"     El riesgo afecta la imagen de la entidad a nivel nacional, con efecto publicitarios sostenible a nivel país",{"$f":"IF(NOT(ISERROR(MATCH(L11,'[5]Tabla Impacto'!#REF!,0))),'[5]Tabla Impacto'!$F$229&\"Por favor no seleccionar los criterios de impacto(Afectación Económica o presupuestal y Pérdida Reputacional)\",L11)","v":"     El riesgo afecta la imagen de la entidad a nivel nacional, con efecto publicitarios sostenible a nivel país"},{"$f":"IF(OR(M11='[5]Tabla Impacto'!$C$11,M11='[5]Tabla Impacto'!$D$11),\"Leve\",IF(OR(M11='[5]Tabla Impacto'!$C$12,M11='[5]Tabla Impacto'!$D$12),\"Menor\",IF(OR(M11='[5]Tabla Impacto'!$C$13,M11='[5]Tabla Impacto'!$D$13),\"Moderado\",IF(OR(M11='[5]Tabla Impacto'!$C$14,M11='[5]Tabla Impacto'!$D$14),\"Mayor\",IF(OR(M11='[5]Tabla Impacto'!$C$15,M11='[5]Tabla Impacto'!$D$15),\"Catastrófico\",\"\")))))","v":"Catastrófico"},{"$f":"IF(N11=\"\",\"\",IF(N11=\"Leve\",0.2,IF(N11=\"Menor\",0.4,IF(N11=\"Moderado\",0.6,IF(N11=\"Mayor\",0.8,IF(N11=\"Catastrófico\",1,))))))","v":1},{"$f":"IF(OR(AND(J11=\"Muy Baja\",N11=\"Leve\"),AND(J11=\"Muy Baja\",N11=\"Menor\"),AND(J11=\"Baja\",N11=\"Leve\")),\"Bajo\",IF(OR(AND(J11=\"Muy baja\",N11=\"Moderado\"),AND(J11=\"Baja\",N11=\"Menor\"),AND(J11=\"Baja\",N11=\"Moderado\"),AND(J11=\"Media\",N11=\"Leve\"),AND(J11=\"Media\",N11=\"Menor\"),AND(J11=\"Media\",N11=\"Moderado\"),AND(J11=\"Alta\",N11=\"Leve\"),AND(J11=\"Alta\",N11=\"Menor\")),\"Moderado\",IF(OR(AND(J11=\"Muy Baja\",N11=\"Mayor\"),AND(J11=\"Baja\",N11=\"Mayor\"),AND(J11=\"Media\",N11=\"Mayor\"),AND(J11=\"Alta\",N11=\"Moderado\"),AND(J11=\"Alta\",N11=\"Mayor\"),AND(J11=\"Muy Alta\",N11=\"Leve\"),AND(J11=\"Muy Alta\",N11=\"Menor\"),AND(J11=\"Muy Alta\",N11=\"Moderado\"),AND(J11=\"Muy Alta\",N11=\"Mayor\")),\"Alto\",IF(OR(AND(J11=\"Muy Baja\",N11=\"Catastrófico\"),AND(J11=\"Baja\",N11=\"Catastrófico\"),AND(J11=\"Media\",N11=\"Catastrófico\"),AND(J11=\"Alta\",N11=\"Catastrófico\"),AND(J11=\"Muy Alta\",N11=\"Catastrófico\")),\"Extremo\",\"\"))))","v":"Extremo"},1,"El  profesional de la Oficina de Planeación y Gestión Internacional, del Grupo de Gestión y Desempeño,  verifica que la información de los tramites publicados en el SUIT se encuentra actualizada y sea la correcta a través de una plantilla de validación de información de cada tramite y la revisa con los encargados misionales correspondientes","Profesional Grupo de Gestión y Desempeño que administra el SUIT "," Verifica que la información de los tramites publicados en el SUIT se encuentra actualizada y sea la correcta a través de una plantilla de validación de información de cada tramite y la revisa con los encargados misionales correspondientes","Plantilla de validación de información de cada tramite",{"$f":"IF(OR(W11=\"Preventivo\",W11=\"Detectivo\"),\"Probabilidad\",IF(W11=\"Correctivo\",\"Impacto\",\"\"))","v":"Probabilidad"},"Preventivo","Manual","40%","Sin Documentar","Continua","Con Registro",{"$f":"IFERROR(IF(V11=\"Probabilidad\",(K11-(+K11*Y11)),IF(V11=\"Impacto\",K11,\"\")),\"\")","v":0.36},{"$f":"IFERROR(IF(AC11=\"\",\"\",IF(AC11<=0.2,\"Muy Baja\",IF(AC11<=0.4,\"Baja\",IF(AC11<=0.6,\"Media\",IF(AC11<=0.8,\"Alta\",\"Muy Alta\"))))),\"\")","v":"Baja"},{"$f":"+AC11","v":0.36},{"$f":"IFERROR(IF(AG11=\"\",\"\",IF(AG11<=0.2,\"Leve\",IF(AG11<=0.4,\"Menor\",IF(AG11<=0.6,\"Moderado\",IF(AG11<=0.8,\"Mayor\",\"Catastrófico\"))))),\"\")","v":"Catastrófico"},{"$f":"IFERROR(IF(V11=\"Impacto\",(O11-(+O11*Y11)),IF(V11=\"Probabilidad\",O11,\"\")),\"\")","v":1},{"$f":"IFERROR(IF(OR(AND(AD11=\"Muy Baja\",AF11=\"Leve\"),AND(AD11=\"Muy Baja\",AF11=\"Menor\"),AND(AD11=\"Baja\",AF11=\"Leve\")),\"Bajo\",IF(OR(AND(AD11=\"Muy baja\",AF11=\"Moderado\"),AND(AD11=\"Baja\",AF11=\"Menor\"),AND(AD11=\"Baja\",AF11=\"Moderado\"),AND(AD11=\"Media\",AF11=\"Leve\"),AND(AD11=\"Media\",AF11=\"Menor\"),AND(AD11=\"Media\",AF11=\"Moderado\"),AND(AD11=\"Alta\",AF11=\"Leve\"),AND(AD11=\"Alta\",AF11=\"Menor\")),\"Moderado\",IF(OR(AND(AD11=\"Muy Baja\",AF11=\"Mayor\"),AND(AD11=\"Baja\",AF11=\"Mayor\"),AND(AD11=\"Media\",AF11=\"Mayor\"),AND(AD11=\"Alta\",AF11=\"Moderado\"),AND(AD11=\"Alta\",AF11=\"Mayor\"),AND(AD11=\"Muy Alta\",AF11=\"Leve\"),AND(AD11=\"Muy Alta\",AF11=\"Menor\"),AND(AD11=\"Muy Alta\",AF11=\"Moderado\"),AND(AD11=\"Muy Alta\",AF11=\"Mayor\")),\"Alto\",IF(OR(AND(AD11=\"Muy Baja\",AF11=\"Catastrófico\"),AND(AD11=\"Baja\",AF11=\"Catastrófico\"),AND(AD11=\"Media\",AF11=\"Catastrófico\"),AND(AD11=\"Alta\",AF11=\"Catastrófico\"),AND(AD11=\"Muy Alta\",AF11=\"Catastrófico\")),\"Extremo\",\"\")))),\"\")","v":"Extremo"},"Reducir (compartir)",null,null,null,null,"Profesional Grupo de Gestión y Desempeño que administra el SUIT","Oficina Asesora de Planeación y Gestión Internacional","Miguel Angel Cardozo Tovar","2025-01-15","2025-12-31"]
[5,"MEJORAMIENTO","Gestión","Posibilidad de afectacion reputacional por reprocesos y aumento de carga administrativa debido a documentos del Sistema Integrado de Gestión publicados sin el cumplimiento de los requerimientos de calidad establecidos","reputacional","reprocesos y aumento de carga administrativa","documentos del Sistema Integrado de Gestión publicados sin el cumplimiento de los requerimientos de calidad establecidos","Ejecucion y Administracion de procesos",51,"Media",{"$f":"IF(J12=\"\",\"\",IF(J12=\"Muy Baja\",0.2,IF(J12=\"Baja\",0.4,IF(J12=\"Media\",0.6,IF(J12=\"Alta\",0.8,IF(J12=\"Muy Alta\",1,))))))","v":0.6},"     El riesgo afecta la imagen de la entidad a nivel nacional, con efecto publicitarios sostenible a nivel país",{"$f":"IF(NOT(ISERROR(MATCH(L12,'[5]Tabla Impacto'!#REF!,0))),'[5]Tabla Impacto'!$F$229&\"Por favor no seleccionar los criterios de impacto(Afectación Económica o presupuestal y Pérdida Reputacional)\",L12)","v":"     El riesgo afecta la imagen de la entidad a nivel nacional, con efecto publicitarios sostenible a nivel país"},{"$f":"IF(OR(M12='[5]Tabla Impacto'!$C$11,M12='[5]Tabla Impacto'!$D$11),\"Leve\",IF(OR(M12='[5]Tabla Impacto'!$C$12,M12='[5]Tabla Impacto'!$D$12),\"Menor\",IF(OR(M12='[5]Tabla Impacto'!$C$13,M12='[5]Tabla Impacto'!$D$13),\"Moderado\",IF(OR(M12='[5]Tabla Impacto'!$C$14,M12='[5]Tabla Impacto'!$D$14),\"Mayor\",IF(OR(M12='[5]Tabla Impacto'!$C$15,M12='[5]Tabla Impacto'!$D$15),\"Catastrófico\",\"\")))))","v":"Catastrófico"},{"$f":"IF(N12=\"\",\"\",IF(N12=\"Leve\",0.2,IF(N12=\"Menor\",0.4,IF(N12=\"Moderado\",0.6,IF(N12=\"Mayor\",0.8,IF(N12=\"Catastrófico\",1,))))))","v":1},{"$f":"IF(OR(AND(J12=\"Muy Baja\",N12=\"Leve\"),AND(J12=\"Muy Baja\",N12=\"Menor\"),AND(J12=\"Baja\",N12=\"Leve\")),\"Bajo\",IF(OR(AND(J12=\"Muy baja\",N12=\"Moderado\"),AND(J12=\"Baja\",N12=\"Menor\"),AND(J12=\"Baja\",N12=\"Moderado\"),AND(J12=\"Media\",N12=\"Leve\"),AND(J12=\"Media\",N12=\"Menor\"),AND(J12=\"Media\",N12=\"Moderado\"),AND(J12=\"Alta\",N12=\"Leve\"),AND(J12=\"Alta\",N12=\"Menor\")),\"Moderado\",IF(OR(AND(J12=\"Muy Baja\",N12=\"Mayor\"),AND(J12=\"Baja\",N12=\"Mayor\"),AND(J12=\"Media\",N12=\"Mayor\"),AND(J12=\"Alta\",N12=\"Moderado\"),AND(J12=\"Alta\",N12=\"Mayor\"),AND(J12=\"Muy Alta\",N12=\"Leve\"),AND(J12=\"Muy Alta\",N12=\"Menor\"),AND(J12=\"Muy Alta\",N12=\"Moderado\"),AND(J12=\"Muy Alta\",N12=\"Mayor\")),\"Alto\",IF(OR(AND(J12=\"Muy Baja\",N12=\"Catastrófico\"),AND(J12=\"Baja\",N12=\"Catastrófico\"),AND(J12=\"Media\",N12=\"Catastrófico\"),AND(J12=\"Alta\",N12=\"Catastrófico\"),AND(J12=\"Muy Alta\",N12=\"Catastrófico\")),\"Extremo\",\"\"))))","v":"Extremo"},1,"El profesional de la Oficina de Planeación y Gestión Internacional del Grupo de Gestión y Desempeño realiza asesoría y revisión de las solicitudes de control documental en conjunto con los responsables de los procesos y posteriormente, valida los documentos que son remitidos para ser aprobados; en caso de encontrar inconsistencias en los documentos remite a los procesos para ajustes","Profesional Grupo de Gestión y Desempeño que administra el SIG","Realizar asesoría y revisión de las solicitudes de control documental en conjunto con los responsables de los procesos\nValidar los documentos antes de ser aprobados para evitar errores en forma y/o contenido, ","Listado de verificación de actualización de documentos\nCorreos Electrónicos",{"$f":"IF(OR(W12=\"Preventivo\",W12=\"Detectivo\"),\"Probabilidad\",IF(W12=\"Correctivo\",\"Impacto\",\"\"))","v":"Probabilidad"},"Preventivo","Manual",{"$f":"IF(AND(W12=\"Preventivo\",X12=\"Automático\"),\"50%\",IF(AND(W12=\"Preventivo\",X12=\"Manual\"),\"40%\",IF(AND(W12=\"Detectivo\",X12=\"Automático\"),\"40%\",IF(AND(W12=\"Detectivo\",X12=\"Manual\"),\"30%\",IF(AND(W12=\"Correctivo\",X12=\"Automático\"),\"35%\",IF(AND(W12=\"Correctivo\",X12=\"Manual\"),\"25%\",\"\"))))))","v":"40%"},"Documentado","Continua","Con Registro",{"$f":"IFERROR(IF(V12=\"Probabilidad\",(K12-(+K12*Y12)),IF(V12=\"Impacto\",K12,\"\")),\"\")","v":0.36},{"$f":"IFERROR(IF(AC12=\"\",\"\",IF(AC12<=0.2,\"Muy Baja\",IF(AC12<=0.4,\"Baja\",IF(AC12<=0.6,\"Media\",IF(AC12<=0.8,\"Alta\",\"Muy Alta\"))))),\"\")","v":"Baja"},{"$f":"+AC12","v":0.36},{"$f":"IFERROR(IF(AG12=\"\",\"\",IF(AG12<=0.2,\"Leve\",IF(AG12<=0.4,\"Menor\",IF(AG12<=0.6,\"Moderado\",IF(AG12<=0.8,\"Mayor\",\"Catastrófico\"))))),\"\")","v":"Catastrófico"},{"$f":"IFERROR(IF(V12=\"Impacto\",(O12-(+O12*Y12)),IF(V12=\"Probabilidad\",O12,\"\")),\"\")","v":1},{"$f":"IFERROR(IF(OR(AND(AD12=\"Muy Baja\",AF12=\"Leve\"),AND(AD12=\"Muy Baja\",AF12=\"Menor\"),AND(AD12=\"Baja\",AF12=\"Leve\")),\"Bajo\",IF(OR(AND(AD12=\"Muy baja\",AF12=\"Moderado\"),AND(AD12=\"Baja\",AF12=\"Menor\"),AND(AD12=\"Baja\",AF12=\"Moderado\"),AND(AD12=\"Media\",AF12=\"Leve\"),AND(AD12=\"Media\",AF12=\"Menor\"),AND(AD12=\"Media\",AF12=\"Moderado\"),AND(AD12=\"Alta\",AF12=\"Leve\"),AND(AD12=\"Alta\",AF12=\"Menor\")),\"Moderado\",IF(OR(AND(AD12=\"Muy Baja\",AF12=\"Mayor\"),AND(AD12=\"Baja\",AF12=\"Mayor\"),AND(AD12=\"Media\",AF12=\"Mayor\"),AND(AD12=\"Alta\",AF12=\"Moderado\"),AND(AD12=\"Alta\",AF12=\"Mayor\"),AND(AD12=\"Muy Alta\",AF12=\"Leve\"),AND(AD12=\"Muy Alta\",AF12=\"Menor\"),AND(AD12=\"Muy Alta\",AF12=\"Moderado\"),AND(AD12=\"Muy Alta\",AF12=\"Mayor\")),\"Alto\",IF(OR(AND(AD12=\"Muy Baja\",AF12=\"Catastrófico\"),AND(AD12=\"Baja\",AF12=\"Catastrófico\"),AND(AD12=\"Media\",AF12=\"Catastrófico\"),AND(AD12=\"Alta\",AF12=\"Catastrófico\"),AND(AD12=\"Muy Alta\",AF12=\"Catastrófico\")),\"Extremo\",\"\")))),\"\")","v":"Extremo"},"Evitar",null,null,null,null,"Profesional Grupo de Gestión y Desempeño que administra el SIG","Oficina de Planeación y Gestión Internacional","Jefe de la Oficina  de Planeación y Gestión Internacional","2025-01-15","2025-12-31"]
[6,"MEJORAMIENTO","Gestión","Posibilidad de afectacion económico y reputacional por sanciones, multas o demandas debido a incumplimiento u omisión de requisitos legales y otros aplicables al Sistema de Gestión Ambiental de la entidad.","económico y reputacional","sanciones, multas o demandas","incumplimiento u omisión de requisitos legales y otros aplicables al Sistema de Gestión Ambiental de la entidad.","Ejecucion y Administracion de procesos",24,"Baja",{"$f":"IF(J13=\"\",\"\",IF(J13=\"Muy Baja\",0.2,IF(J13=\"Baja\",0.4,IF(J13=\"Media\",0.6,IF(J13=\"Alta\",0.8,IF(J13=\"Muy Alta\",1,))))))","v":0.4},"     El riesgo afecta la imagen de la entidad con algunos usuarios de relevancia frente al logro de los objetivos",{"$f":"IF(NOT(ISERROR(MATCH(L13,'[5]Tabla Impacto'!#REF!,0))),'[5]Tabla Impacto'!$F$229&\"Por favor no seleccionar los criterios de impacto(Afectación Económica o presupuestal y Pérdida Reputacional)\",L13)","v":"     El riesgo afecta la imagen de la entidad con algunos usuarios de relevancia frente al logro de los objetivos"},{"$f":"IF(OR(M13='[5]Tabla Impacto'!$C$11,M13='[5]Tabla Impacto'!$D$11),\"Leve\",IF(OR(M13='[5]Tabla Impacto'!$C$12,M13='[5]Tabla Impacto'!$D$12),\"Menor\",IF(OR(M13='[5]Tabla Impacto'!$C$13,M13='[5]Tabla Impacto'!$D$13),\"Moderado\",IF(OR(M13='[5]Tabla Impacto'!$C$14,M13='[5]Tabla Impacto'!$D$14),\"Mayor\",IF(OR(M13='[5]Tabla Impacto'!$C$15,M13='[5]Tabla Impacto'!$D$15),\"Catastrófico\",\"\")))))","v":"Moderado"},{"$f":"IF(N13=\"\",\"\",IF(N13=\"Leve\",0.2,IF(N13=\"Menor\",0.4,IF(N13=\"Moderado\",0.6,IF(N13=\"Mayor\",0.8,IF(N13=\"Catastrófico\",1,))))))","v":0.6},{"$f":"IF(OR(AND(J13=\"Muy Baja\",N13=\"Leve\"),AND(J13=\"Muy Baja\",N13=\"Menor\"),AND(J13=\"Baja\",N13=\"Leve\")),\"Bajo\",IF(OR(AND(J13=\"Muy baja\",N13=\"Moderado\"),AND(J13=\"Baja\",N13=\"Menor\"),AND(J13=\"Baja\",N13=\"Moderado\"),AND(J13=\"Media\",N13=\"Leve\"),AND(J13=\"Media\",N13=\"Menor\"),AND(J13=\"Media\",N13=\"Moderado\"),AND(J13=\"Alta\",N13=\"Leve\"),AND(J13=\"Alta\",N13=\"Menor\")),\"Moderado\",IF(OR(AND(J13=\"Muy Baja\",N13=\"Mayor\"),AND(J13=\"Baja\",N13=\"Mayor\"),AND(J13=\"Media\",N13=\"Mayor\"),AND(J13=\"Alta\",N13=\"Moderado\"),AND(J13=\"Alta\",N13=\"Mayor\"),AND(J13=\"Muy Alta\",N13=\"Leve\"),AND(J13=\"Muy Alta\",N13=\"Menor\"),AND(J13=\"Muy Alta\",N13=\"Moderado\"),AND(J13=\"Muy Alta\",N13=\"Mayor\")),\"Alto\",IF(OR(AND(J13=\"Muy Baja\",N13=\"Catastrófico\"),AND(J13=\"Baja\",N13=\"Catastrófico\"),AND(J13=\"Media\",N13=\"Catastrófico\"),AND(J13=\"Alta\",N13=\"Catastrófico\"),AND(J13=\"Muy Alta\",N13=\"Catastrófico\")),\"Extremo\",\"\"))))","v":"Moderado"},1,"El profesional de la Oficina de Planeación y Gestión Internacional que brinda soporte al Sistema de Gestión Ambiental, realiza la revisión semestral a la implementación de los controles operacionales  y al cumplimiento de los requisitos legales y otros aplicables al Sistema de Gestión Ambiental ","El profesional de la Oficina de Planeación y Gestión Internacional que brinda soporte al Sistema de Gestión Ambiental"," Realizar la revisión semestral a la implementación de los controles operacionales  y al cumplimiento de los requisitos legales y otros aplicables al Sistema de Gestión Ambienta","Matriz de identificación de Aspectos y Valoración de Impactos Ambientales.\nMonitoreo en la Matriz de requisitos legales ambientales.","Probabilidad","Preventivo","Manual","40%","Sin Documentar","Continua","Con Registro",{"$f":"IFERROR(IF(V13=\"Probabilidad\",(K13-(+K13*Y13)),IF(V13=\"Impacto\",K13,\"\")),\"\")","v":0.24},{"$f":"IFERROR(IF(AC13=\"\",\"\",IF(AC13<=0.2,\"Muy Baja\",IF(AC13<=0.4,\"Baja\",IF(AC13<=0.6,\"Media\",IF(AC13<=0.8,\"Alta\",\"Muy Alta\"))))),\"\")","v":"Baja"},{"$f":"+AC13","v":0.24},{"$f":"IFERROR(IF(AG13=\"\",\"\",IF(AG13<=0.2,\"Leve\",IF(AG13<=0.4,\"Menor\",IF(AG13<=0.6,\"Moderado\",IF(AG13<=0.8,\"Mayor\",\"Catastrófico\"))))),\"\")","v":"Moderado"},{"$f":"IFERROR(IF(V13=\"Impacto\",(O13-(+O13*Y13)),IF(V13=\"Probabilidad\",O13,\"\")),\"\")","v":0.6},{"$f":"IFERROR(IF(OR(AND(AD13=\"Muy Baja\",AF13=\"Leve\"),AND(AD13=\"Muy Baja\",AF13=\"Menor\"),AND(AD13=\"Baja\",AF13=\"Leve\")),\"Bajo\",IF(OR(AND(AD13=\"Muy baja\",AF13=\"Moderado\"),AND(AD13=\"Baja\",AF13=\"Menor\"),AND(AD13=\"Baja\",AF13=\"Moderado\"),AND(AD13=\"Media\",AF13=\"Leve\"),AND(AD13=\"Media\",AF13=\"Menor\"),AND(AD13=\"Media\",AF13=\"Moderado\"),AND(AD13=\"Alta\",AF13=\"Leve\"),AND(AD13=\"Alta\",AF13=\"Menor\")),\"Moderado\",IF(OR(AND(AD13=\"Muy Baja\",AF13=\"Mayor\"),AND(AD13=\"Baja\",AF13=\"Mayor\"),AND(AD13=\"Media\",AF13=\"Mayor\"),AND(AD13=\"Alta\",AF13=\"Moderado\"),AND(AD13=\"Alta\",AF13=\"Mayor\"),AND(AD13=\"Muy Alta\",AF13=\"Leve\"),AND(AD13=\"Muy Alta\",AF13=\"Menor\"),AND(AD13=\"Muy Alta\",AF13=\"Moderado\"),AND(AD13=\"Muy Alta\",AF13=\"Mayor\")),\"Alto\",IF(OR(AND(AD13=\"Muy Baja\",AF13=\"Catastrófico\"),AND(AD13=\"Baja\",AF13=\"Catastrófico\"),AND(AD13=\"Media\",AF13=\"Catastrófico\"),AND(AD13=\"Alta\",AF13=\"Catastrófico\"),AND(AD13=\"Muy Alta\",AF13=\"Catastrófico\")),\"Extremo\",\"\")))),\"\")","v":"Moderado"},"Evitar",null,null,null,null,"Profesional Grupo de Gestión y Desempeño que administra el SGA","Oficina de Planeación y Gestión Internacional","Jefe de la Oficina  de Planeación y Gestión Internacional","2025-01-15","2025-12-31"]
[7,"GESTIÓN TALENTO HUMANO","Gestión","Posibilidad de afectacion económico y reputacional por fuga de conocimiento debido a entrega inadecuada del cargo","económico y reputacional","fuga de conocimiento","entrega inadecuada del cargo","Ejecucion y Administracion de procesos",75,"Media",0.6,"     El riesgo afecta la imagen de alguna área de la organización",{"$f":"IF(NOT(ISERROR(MATCH(L14,'[5]Tabla Impacto'!#REF!,0))),'[5]Tabla Impacto'!$F$229&\"Por favor no seleccionar los criterios de impacto(Afectación Económica o presupuestal y Pérdida Reputacional)\",L14)","v":"     El riesgo afecta la imagen de alguna área de la organización"},{"$f":"IF(OR(M14='[5]Tabla Impacto'!$C$11,M14='[5]Tabla Impacto'!$D$11),\"Leve\",IF(OR(M14='[5]Tabla Impacto'!$C$12,M14='[5]Tabla Impacto'!$D$12),\"Menor\",IF(OR(M14='[5]Tabla Impacto'!$C$13,M14='[5]Tabla Impacto'!$D$13),\"Moderado\",IF(OR(M14='[5]Tabla Impacto'!$C$14,M14='[5]Tabla Impacto'!$D$14),\"Mayor\",IF(OR(M14='[5]Tabla Impacto'!$C$15,M14='[5]Tabla Impacto'!$D$15),\"Catastrófico\",\"\")))))","v":"Leve"},0.2,"Moderado",1,"El coordinador del Grupo de Gestión Laboral y Carrera Administrativa realiza la verificación del diligenciamiento del formato de control de documento, de los empleados que ya no harán parte de la carrera administrativa; en caso que no se cuente con el documento se solicitará al jefe inmediato el documento hasta obtener el documento","coordinador del Grupo de Gestión Laboral y Carrera Administrativa","Realizar la verificación del diligenciamiento del formato de control de documento, de los empleados que ya no harán parte de la carrera administrativa","Formato control de documentos para retiro diligenciado y parte de los expedientes",{"$f":"IF(OR(W14=\"Preventivo\",W14=\"Detectivo\"),\"Probabilidad\",IF(W14=\"Correctivo\",\"Impacto\",\"\"))","v":"Probabilidad"},"Detectivo","Manual",{"$f":"IF(AND(W14=\"Preventivo\",X14=\"Automático\"),\"50%\",IF(AND(W14=\"Preventivo\",X14=\"Manual\"),\"40%\",IF(AND(W14=\"Detectivo\",X14=\"Automático\"),\"40%\",IF(AND(W14=\"Detectivo\",X14=\"Manual\"),\"30%\",IF(AND(W14=\"Correctivo\",X14=\"Automático\"),\"35%\",IF(AND(W14=\"Correctivo\",X14=\"Manual\"),\"25%\",\"\"))))))","v":"30%"},"Documentado","Continua","Con Registro",0.42,"Media",0.42,"Leve",0.2,"Moderado","Evitar",null,null,null,null,"Julia Felipe Aguilar Arboleda\nCoordinador Grupo Humanización","Subdirección de Talento Humano","Subdirectora de Talento Humano","2025-02-01","2025-12-31"]
[8,"GESTIÓN DE COMUNICACIONES","Gestión","Posibilidad de afectacion económico y reputacional por Investigaciones penales, fiscales o disciplinarias, aumento de PQRSD debido a baja divulgación y socialización de la temática institucional y sectorial mediante la difusión de información por medio de los diferentes canales de comunicación (internos y externos)","económico y reputacional","Investigaciones penales, fiscales o disciplinarias, aumento de PQRSD","baja divulgación y socialización de la temática institucional y sectorial mediante la difusión de información por medio de los diferentes canales de comunicación (internos y externos)","Ejecucion y Administracion de procesos",50,"Media",0.6,"     Entre 100 y 500 SMLMV ",{"$f":"IF(NOT(ISERROR(MATCH(L15,'[5]Tabla Impacto'!#REF!,0))),'[5]Tabla Impacto'!$F$229&\"Por favor no seleccionar los criterios de impacto(Afectación Económica o presupuestal y Pérdida Reputacional)\",L15)","v":"     Entre 100 y 500 SMLMV "},{"$f":"IF(OR(M15='[5]Tabla Impacto'!$C$11,M15='[5]Tabla Impacto'!$D$11),\"Leve\",IF(OR(M15='[5]Tabla Impacto'!$C$12,M15='[5]Tabla Impacto'!$D$12),\"Menor\",IF(OR(M15='[5]Tabla Impacto'!$C$13,M15='[5]Tabla Impacto'!$D$13),\"Moderado\",IF(OR(M15='[5]Tabla Impacto'!$C$14,M15='[5]Tabla Impacto'!$D$14),\"Mayor\",IF(OR(M15='[5]Tabla Impacto'!$C$15,M15='[5]Tabla Impacto'!$D$15),\"Catastrófico\",\"\")))))","v":"Mayor"},0.8,"Alto",1,"La Lider SIG, gestion y calidad, realiza mesas de trabajo al interior del gupo de comunicaciones y prensa, para verificar el cumplimiento de las acciones trazadas para el cumplimiento del objetivo del proceso,información que queda documentada a traves de actas en las mesas de trabajo ","Lideo SIG y Gestor de Calidad ","Verificar el cumplimiento de las las acciones estratégicas que se realizarán  para cumplir los objetivos del proceso","actas que documenten lo tratado en las mesas de trabajo",{"$f":"IF(OR(W15=\"Preventivo\",W15=\"Detectivo\"),\"Probabilidad\",IF(W15=\"Correctivo\",\"Impacto\",\"\"))","v":"Probabilidad"},"Preventivo","Manual",{"$f":"IF(AND(W15=\"Preventivo\",X15=\"Automático\"),\"50%\",IF(AND(W15=\"Preventivo\",X15=\"Manual\"),\"40%\",IF(AND(W15=\"Detectivo\",X15=\"Automático\"),\"40%\",IF(AND(W15=\"Detectivo\",X15=\"Manual\"),\"30%\",IF(AND(W15=\"Correctivo\",X15=\"Automático\"),\"35%\",IF(AND(W15=\"Correctivo\",X15=\"Manual\"),\"25%\",\"\"))))))","v":"40%"},"Sin Documentar","Continua","Con Registro",0.36,"Baja",0.36,"Mayor",0.8,"Alto","Evitar",null,null,null,null,"Lideo SIG y Gestor de Calidad ","Grupo de Comunicaciones y Prensa ","Laura Vanessa Gomez Charris ","2025-02-01","30/04/2025"]
[9,"GESTIÓN DE COMUNICACIONES","Gestión","Posibilidad de afectacion económico y reputacional por Demandas de los grupos de valor, partes interesadas, usuarios por incumplimiento de contenga la estrategia institucional a realizar a través de los diferentes canales de comunicación del Ministerio de Minas y Energía debido a Ausencia de un Plan Estratégico de Comunicaciones ","económico y reputacional","Demandas de los grupos de valor, partes interesadas, usuarios por incumplimiento de contenga la estrategia institucional a realizar a través de los diferentes canales de comunicación del Ministerio de Minas y Energía","Ausencia de un Plan Estratégico de Comunicaciones ","Ejecucion y Administracion de procesos",50,"Media",{"$f":"IF(J16=\"\",\"\",IF(J16=\"Muy Baja\",0.2,IF(J16=\"Baja\",0.4,IF(J16=\"Media\",0.6,IF(J16=\"Alta\",0.8,IF(J16=\"Muy Alta\",1,))))))","v":0.6},"     Mayor a 500 SMLMV ",{"$f":"IF(NOT(ISERROR(MATCH(L16,'[5]Tabla Impacto'!#REF!,0))),'[5]Tabla Impacto'!$F$229&\"Por favor no seleccionar los criterios de impacto(Afectación Económica o presupuestal y Pérdida Reputacional)\",L16)","v":"     Mayor a 500 SMLMV "},{"$f":"IF(OR(M16='[5]Tabla Impacto'!$C$11,M16='[5]Tabla Impacto'!$D$11),\"Leve\",IF(OR(M16='[5]Tabla Impacto'!$C$12,M16='[5]Tabla Impacto'!$D$12),\"Menor\",IF(OR(M16='[5]Tabla Impacto'!$C$13,M16='[5]Tabla Impacto'!$D$13),\"Moderado\",IF(OR(M16='[5]Tabla Impacto'!$C$14,M16='[5]Tabla Impacto'!$D$14),\"Mayor\",IF(OR(M16='[5]Tabla Impacto'!$C$15,M16='[5]Tabla Impacto'!$D$15),\"Catastrófico\",\"\")))))","v":"Catastrófico"},{"$f":"IF(N16=\"\",\"\",IF(N16=\"Leve\",0.2,IF(N16=\"Menor\",0.4,IF(N16=\"Moderado\",0.6,IF(N16=\"Mayor\",0.8,IF(N16=\"Catastrófico\",1,))))))","v":1},{"$f":"IF(OR(AND(J16=\"Muy Baja\",N16=\"Leve\"),AND(J16=\"Muy Baja\",N16=\"Menor\"),AND(J16=\"Baja\",N16=\"Leve\")),\"Bajo\",IF(OR(AND(J16=\"Muy baja\",N16=\"Moderado\"),AND(J16=\"Baja\",N16=\"Menor\"),AND(J16=\"Baja\",N16=\"Moderado\"),AND(J16=\"Media\",N16=\"Leve\"),AND(J16=\"Media\",N16=\"Menor\"),AND(J16=\"Media\",N16=\"Moderado\"),AND(J16=\"Alta\",N16=\"Leve\"),AND(J16=\"Alta\",N16=\"Menor\")),\"Moderado\",IF(OR(AND(J16=\"Muy Baja\",N16=\"Mayor\"),AND(J16=\"Baja\",N16=\"Mayor\"),AND(J16=\"Media\",N16=\"Mayor\"),AND(J16=\"Alta\",N16=\"Moderado\"),AND(J16=\"Alta\",N16=\"Mayor\"),AND(J16=\"Muy Alta\",N16=\"Leve\"),AND(J16=\"Muy Alta\",N16=\"Menor\"),AND(J16=\"Muy Alta\",N16=\"Moderado\"),AND(J16=\"Muy Alta\",N16=\"Mayor\")),\"Alto\",IF(OR(AND(J16=\"Muy Baja\",N16=\"Catastrófico\"),AND(J16=\"Baja\",N16=\"Catastrófico\"),AND(J16=\"Media\",N16=\"Catastrófico\"),AND(J16=\"Alta\",N16=\"Catastrófico\"),AND(J16=\"Muy Alta\",N16=\"Catastrófico\")),\"Extremo\",\"\"))))","v":"Extremo"},1,"La Lider SIG, gestion y calidad, realiza seguimiento al plan de comunicaciones y verifica el cumplimiento de los indicadores, en caso de encontrar desviaciones en el control, solicita ajustes respectivos","Lideo SIG y Gestor de Calidad ","Formulación del plan de comunicaciones\nRealizar seguimiento al plan de comunicaciones\nMeición del plan de comunicaciones a través de indicadores","Plan de comunicaciones\nSeguimientos al plan de comunicaciones\nReporte de indicadores","Probabilidad","Preventivo","Manual","40%","Sin Documentar","Continua","Con Registro",{"$f":"IFERROR(IF(V16=\"Probabilidad\",(K16-(+K16*Y16)),IF(V16=\"Impacto\",K16,\"\")),\"\")","v":0.36},{"$f":"IFERROR(IF(AC16=\"\",\"\",IF(AC16<=0.2,\"Muy Baja\",IF(AC16<=0.4,\"Baja\",IF(AC16<=0.6,\"Media\",IF(AC16<=0.8,\"Alta\",\"Muy Alta\"))))),\"\")","v":"Baja"},{"$f":"+AC16","v":0.36},{"$f":"IFERROR(IF(AG16=\"\",\"\",IF(AG16<=0.2,\"Leve\",IF(AG16<=0.4,\"Menor\",IF(AG16<=0.6,\"Moderado\",IF(AG16<=0.8,\"Mayor\",\"Catastrófico\"))))),\"\")","v":"Catastrófico"},{"$f":"IFERROR(IF(V16=\"Impacto\",(O16-(+O16*Y16)),IF(V16=\"Probabilidad\",O16,\"\")),\"\")","v":1},{"$f":"IFERROR(IF(OR(AND(AD16=\"Muy Baja\",AF16=\"Leve\"),AND(AD16=\"Muy Baja\",AF16=\"Menor\"),AND(AD16=\"Baja\",AF16=\"Leve\")),\"Bajo\",IF(OR(AND(AD16=\"Muy baja\",AF16=\"Moderado\"),AND(AD16=\"Baja\",AF16=\"Menor\"),AND(AD16=\"Baja\",AF16=\"Moderado\"),AND(AD16=\"Media\",AF16=\"Leve\"),AND(AD16=\"Media\",AF16=\"Menor\"),AND(AD16=\"Media\",AF16=\"Moderado\"),AND(AD16=\"Alta\",AF16=\"Leve\"),AND(AD16=\"Alta\",AF16=\"Menor\")),\"Moderado\",IF(OR(AND(AD16=\"Muy Baja\",AF16=\"Mayor\"),AND(AD16=\"Baja\",AF16=\"Mayor\"),AND(AD16=\"Media\",AF16=\"Mayor\"),AND(AD16=\"Alta\",AF16=\"Moderado\"),AND(AD16=\"Alta\",AF16=\"Mayor\"),AND(AD16=\"Muy Alta\",AF16=\"Leve\"),AND(AD16=\"Muy Alta\",AF16=\"Menor\"),AND(AD16=\"Muy Alta\",AF16=\"Moderado\"),AND(AD16=\"Muy Alta\",AF16=\"Mayor\")),\"Alto\",IF(OR(AND(AD16=\"Muy Baja\",AF16=\"Catastrófico\"),AND(AD16=\"Baja\",AF16=\"Catastrófico\"),AND(AD16=\"Media\",AF16=\"Catastrófico\"),AND(AD16=\"Alta\",AF16=\"Catastrófico\"),AND(AD16=\"Muy Alta\",AF16=\"Catastrófico\")),\"Extremo\",\"\")))),\"\")","v":"Extremo"},"Evitar",null,null,null,null,"Lideo SIG y Gestor de Calidad ","Grupo de Comunicaciones y Prensa ","Laura Vanessa Gomez Charris ","2025-02-01","30/04/2025"]
[10,"GESTIÓN TECNOLÓGICA","Gestión","Posibilidad de afectacion económico y reputacional por Generación de sobrecostos por redundancia de software en sistemas de información y herramientas tecnologías que ya se encuentran en funcionamiento dentro de la infraestructura de la entidad, baja gobernanza sobre la soberanía de datos y aumento de brechas en seguridad. debido a Ausencia de normativas y controles obligatorios para la supervisión y aprobación de adquisiciones y desarrollos tecnológicos por parte del Ministerio y Ausencia de mecanismos de control y seguimiento continuo sobre los contratos TIC, permitiendo su ejecución sin auditoría técnica, financiera y de cumplimiento.","económico y reputacional","Generación de sobrecostos por redundancia de software en sistemas de información y herramientas tecnologías que ya se encuentran en funcionamiento dentro de la infraestructura de la entidad, baja gobernanza sobre la soberanía de datos y aumento de brechas en seguridad.","Ausencia de normativas y controles obligatorios para la supervisión y aprobación de adquisiciones y desarrollos tecnológicos por parte del Ministerio y Ausencia de mecanismos de control y seguimiento continuo sobre los contratos TIC, permitiendo su ejecución sin auditoría técnica, financiera y de cumplimiento.","Ejecucion y Administracion de procesos",12,"Baja",0.4,"     Entre 100 y 500 SMLMV ",{"$f":"IF(NOT(ISERROR(MATCH(L17,'[5]Tabla Impacto'!#REF!,0))),'[5]Tabla Impacto'!$F$229&\"Por favor no seleccionar los criterios de impacto(Afectación Económica o presupuestal y Pérdida Reputacional)\",L17)","v":"     Entre 100 y 500 SMLMV "},{"$f":"IF(OR(M17='[5]Tabla Impacto'!$C$11,M17='[5]Tabla Impacto'!$D$11),\"Leve\",IF(OR(M17='[5]Tabla Impacto'!$C$12,M17='[5]Tabla Impacto'!$D$12),\"Menor\",IF(OR(M17='[5]Tabla Impacto'!$C$13,M17='[5]Tabla Impacto'!$D$13),\"Moderado\",IF(OR(M17='[5]Tabla Impacto'!$C$14,M17='[5]Tabla Impacto'!$D$14),\"Mayor\",IF(OR(M17='[5]Tabla Impacto'!$C$15,M17='[5]Tabla Impacto'!$D$15),\"Catastrófico\",\"\")))))","v":"Mayor"},0.8,"Alto",1,"El contratista de segudidad de la información verifica que exista el lineamiento institucional  para la adquisición y desarrollos tecnológicos alineados con la estrategia TIC del ministerio, adicionalmente, valida que haya una supervisión y auditoría trimestral a los proyectos tecnológicos en ejecución, verificando cumplimiento, trazabilidad y uso eficiente del presupuesto, igualmente, verifica que inventario de activos de Información se encuentre actualizado, asegurando que toda nueva adquisición o desarrollo sea registrado y gestionado adecuadamente"," contratista- Seguridad de la información","1. Establecer  un lineamiento institucional  para la adquisición y desarrollos tecnológicos alineados con la estrategia TIC del ministerio. Que cuente con la aprobación del grupo TIC.\n\n2. Supervisar y auditar trimestralmente los proyectos tecnológicos en ejecución, verificando cumplimiento, trazabilidad y uso eficiente del presupuesto.\n\n3. Actualizar y mantener el inventario de activos de Información, asegurando que toda nueva adquisición o desarrollo sea registrado y gestionado adecuadamente.\n\n","1. Lineamiento institucional y actas de aprobación o rechazo de adquisiciones y desarrollos tecnológicos, documentadas en el sistema de gestión del Grupo TIC.\n\n2. Reportes de auditoría trimestral sobre el cumplimiento del procedimiento de supervisión de proyectos TIC, con hallazgos y acciones correctivas.\n\n3.  Registro actualizado en el Inventario de Activos de Información, reflejando cada adquisición o desarrollo aprobado, su responsable y estado de uso.\n\n",{"$f":"IF(OR(W17=\"Preventivo\",W17=\"Detectivo\"),\"Probabilidad\",IF(W17=\"Correctivo\",\"Impacto\",\"\"))","v":"Probabilidad"},"Preventivo","Manual",{"$f":"IF(AND(W17=\"Preventivo\",X17=\"Automático\"),\"50%\",IF(AND(W17=\"Preventivo\",X17=\"Manual\"),\"40%\",IF(AND(W17=\"Detectivo\",X17=\"Automático\"),\"40%\",IF(AND(W17=\"Detectivo\",X17=\"Manual\"),\"30%\",IF(AND(W17=\"Correctivo\",X17=\"Automático\"),\"35%\",IF(AND(W17=\"Correctivo\",X17=\"Manual\"),\"25%\",\"\"))))))","v":"40%"},"Sin Documentar","Continua","Con Registro",0.24,"Baja",0.24,"Mayor",0.8,"Alto","Evitar","Documentar el procedimiento de adquisición de software o herramientas de tecnología","Andrés Molano- contratista- Seguridad de la información","2025-04-20","2025-06-30"," contratista- Seguridad de la información","Grupo de Tecnologías de la Información y las Comunicaciones TICS.","Andrés Alejandro Ayure- Coordinador Grupo TICS","2025-02-21","2025-12-31"]
[11,"GESTIÓN TECNOLÓGICA","Gestión","Posibilidad de afectacion económico y reputacional por  Retrasos en la ejecución presupuestal, sobrecostos y afectación en la continuidad operativa  debido a Ausencia de un mecanismo de planeación estratégica que permita programar con antelación las necesidades tecnológicas y optimizar la ejecución del presupuesto TIC.","económico y reputacional"," Retrasos en la ejecución presupuestal, sobrecostos y afectación en la continuidad operativa ","Ausencia de un mecanismo de planeación estratégica que permita programar con antelación las necesidades tecnológicas y optimizar la ejecución del presupuesto TIC.","Ejecucion y Administracion de procesos",2,"Muy Baja",{"$f":"IF(J18=\"\",\"\",IF(J18=\"Muy Baja\",0.2,IF(J18=\"Baja\",0.4,IF(J18=\"Media\",0.6,IF(J18=\"Alta\",0.8,IF(J18=\"Muy Alta\",1,))))))","v":0.2},"     Entre 100 y 500 SMLMV ",{"$f":"IF(NOT(ISERROR(MATCH(L18,'[5]Tabla Impacto'!#REF!,0))),'[5]Tabla Impacto'!$F$229&\"Por favor no seleccionar los criterios de impacto(Afectación Económica o presupuestal y Pérdida Reputacional)\",L18)","v":"     Entre 100 y 500 SMLMV "},{"$f":"IF(OR(M18='[5]Tabla Impacto'!$C$11,M18='[5]Tabla Impacto'!$D$11),\"Leve\",IF(OR(M18='[5]Tabla Impacto'!$C$12,M18='[5]Tabla Impacto'!$D$12),\"Menor\",IF(OR(M18='[5]Tabla Impacto'!$C$13,M18='[5]Tabla Impacto'!$D$13),\"Moderado\",IF(OR(M18='[5]Tabla Impacto'!$C$14,M18='[5]Tabla Impacto'!$D$14),\"Mayor\",IF(OR(M18='[5]Tabla Impacto'!$C$15,M18='[5]Tabla Impacto'!$D$15),\"Catastrófico\",\"\")))))","v":"Mayor"},{"$f":"IF(N18=\"\",\"\",IF(N18=\"Leve\",0.2,IF(N18=\"Menor\",0.4,IF(N18=\"Moderado\",0.6,IF(N18=\"Mayor\",0.8,IF(N18=\"Catastrófico\",1,))))))","v":0.8},{"$f":"IF(OR(AND(J18=\"Muy Baja\",N18=\"Leve\"),AND(J18=\"Muy Baja\",N18=\"Menor\"),AND(J18=\"Baja\",N18=\"Leve\")),\"Bajo\",IF(OR(AND(J18=\"Muy baja\",N18=\"Moderado\"),AND(J18=\"Baja\",N18=\"Menor\"),AND(J18=\"Baja\",N18=\"Moderado\"),AND(J18=\"Media\",N18=\"Leve\"),AND(J18=\"Media\",N18=\"Menor\"),AND(J18=\"Media\",N18=\"Moderado\"),AND(J18=\"Alta\",N18=\"Leve\"),AND(J18=\"Alta\",N18=\"Menor\")),\"Moderado\",IF(OR(AND(J18=\"Muy Baja\",N18=\"Mayor\"),AND(J18=\"Baja\",N18=\"Mayor\"),AND(J18=\"Media\",N18=\"Mayor\"),AND(J18=\"Alta\",N18=\"Moderado\"),AND(J18=\"Alta\",N18=\"Mayor\"),AND(J18=\"Muy Alta\",N18=\"Leve\"),AND(J18=\"Muy Alta\",N18=\"Menor\"),AND(J18=\"Muy Alta\",N18=\"Moderado\"),AND(J18=\"Muy Alta\",N18=\"Mayor\")),\"Alto\",IF(OR(AND(J18=\"Muy Baja\",N18=\"Catastrófico\"),AND(J18=\"Baja\",N18=\"Catastrófico\"),AND(J18=\"Media\",N18=\"Catastrófico\"),AND(J18=\"Alta\",N18=\"Catastrófico\"),AND(J18=\"Muy Alta\",N18=\"Catastrófico\")),\"Extremo\",\"\"))))","v":"Alto"},1,"El funcionario del Grupo TICs, verifica que se realice el cumplimiento del  cronograma anual de contrataciones TIC, que este se encuentre actualizado para que garantice la optimización del presupuesto y la oportunidad en las compras; adicionalmente, realiza control y seguimiento a los contratos TIC suscritos","Funcionario","1. Implementar un cronograma anual de contrataciones TIC alineado con el presupuesto y las necesidades operativas del ministerio.\n\n2.  Actualizar y mantener un plan de adquisiciones tecnológicas que garantice la optimización del presupuesto y la oportunidad en las compras.\n\n3. Control y seguimiento trimestralmente los contratos TIC, verificando entregables, costos y calidad de los productos adquiridos.","1. Plan Anual de Contrataciones TIC, con cronogramas de ejecución y seguimiento.\n\n2. Registro actualizado en el sistema de adquisiciones TIC, reflejando el estado de cada proceso de contratación.\n\n3. Informes de calidad de cierre","Probabilidad","Preventivo","Manual","40%","Documentado","Continua","Con Registro",{"$f":"IFERROR(IF(V18=\"Probabilidad\",(K18-(+K18*Y18)),IF(V18=\"Impacto\",K18,\"\")),\"\")","v":0.12},{"$f":"IFERROR(IF(AC18=\"\",\"\",IF(AC18<=0.2,\"Muy Baja\",IF(AC18<=0.4,\"Baja\",IF(AC18<=0.6,\"Media\",IF(AC18<=0.8,\"Alta\",\"Muy Alta\"))))),\"\")","v":"Muy Baja"},{"$f":"+AC18","v":0.12},{"$f":"IFERROR(IF(AG18=\"\",\"\",IF(AG18<=0.2,\"Leve\",IF(AG18<=0.4,\"Menor\",IF(AG18<=0.6,\"Moderado\",IF(AG18<=0.8,\"Mayor\",\"Catastrófico\"))))),\"\")","v":"Mayor"},{"$f":"IFERROR(IF(V18=\"Impacto\",(O18-(+O18*Y18)),IF(V18=\"Probabilidad\",O18,\"\")),\"\")","v":0.8},{"$f":"IFERROR(IF(OR(AND(AD18=\"Muy Baja\",AF18=\"Leve\"),AND(AD18=\"Muy Baja\",AF18=\"Menor\"),AND(AD18=\"Baja\",AF18=\"Leve\")),\"Bajo\",IF(OR(AND(AD18=\"Muy baja\",AF18=\"Moderado\"),AND(AD18=\"Baja\",AF18=\"Menor\"),AND(AD18=\"Baja\",AF18=\"Moderado\"),AND(AD18=\"Media\",AF18=\"Leve\"),AND(AD18=\"Media\",AF18=\"Menor\"),AND(AD18=\"Media\",AF18=\"Moderado\"),AND(AD18=\"Alta\",AF18=\"Leve\"),AND(AD18=\"Alta\",AF18=\"Menor\")),\"Moderado\",IF(OR(AND(AD18=\"Muy Baja\",AF18=\"Mayor\"),AND(AD18=\"Baja\",AF18=\"Mayor\"),AND(AD18=\"Media\",AF18=\"Mayor\"),AND(AD18=\"Alta\",AF18=\"Moderado\"),AND(AD18=\"Alta\",AF18=\"Mayor\"),AND(AD18=\"Muy Alta\",AF18=\"Leve\"),AND(AD18=\"Muy Alta\",AF18=\"Menor\"),AND(AD18=\"Muy Alta\",AF18=\"Moderado\"),AND(AD18=\"Muy Alta\",AF18=\"Mayor\")),\"Alto\",IF(OR(AND(AD18=\"Muy Baja\",AF18=\"Catastrófico\"),AND(AD18=\"Baja\",AF18=\"Catastrófico\"),AND(AD18=\"Media\",AF18=\"Catastrófico\"),AND(AD18=\"Alta\",AF18=\"Catastrófico\"),AND(AD18=\"Muy Alta\",AF18=\"Catastrófico\")),\"Extremo\",\"\")))),\"\")","v":"Alto"},"Evitar",null,null,null,null,"Funcionario","Grupo de Tecnologías de la Información y las Comunicaciones TICS.","Andrés Alejandro Ayure- Coordinador Grupo TICS","2025-02-21","2025-12-31"]
[12,"GESTIÓN TECNOLÓGICA","Gestión","Posibilidad de afectacion económico y reputacional por Generación de sobrecostos y desperdicio de recursos TIC debido a la falta de monitoreo y optimización de la infraestructura tecnológica del ministerio, lo que impacta la eficiencia operativa y la sostenibilidad del gasto. debido a Ausencia de un proceso de gestión, monitoreo y optimización de la infraestructura tecnológica, permitiendo el subuso, sobrecarga o inadecuada distribución de los recursos TIC.","económico y reputacional","Generación de sobrecostos y desperdicio de recursos TIC debido a la falta de monitoreo y optimización de la infraestructura tecnológica del ministerio, lo que impacta la eficiencia operativa y la sostenibilidad del gasto.","Ausencia de un proceso de gestión, monitoreo y optimización de la infraestructura tecnológica, permitiendo el subuso, sobrecarga o inadecuada distribución de los recursos TIC.","Ejecucion y Administracion de procesos",2,"Muy Baja",0.2,"     Entre 50 y 100 SMLMV ",{"$f":"IF(NOT(ISERROR(MATCH(L19,'[5]Tabla Impacto'!#REF!,0))),'[5]Tabla Impacto'!$F$229&\"Por favor no seleccionar los criterios de impacto(Afectación Económica o presupuestal y Pérdida Reputacional)\",L19)","v":"     Entre 50 y 100 SMLMV "},{"$f":"IF(OR(M19='[5]Tabla Impacto'!$C$11,M19='[5]Tabla Impacto'!$D$11),\"Leve\",IF(OR(M19='[5]Tabla Impacto'!$C$12,M19='[5]Tabla Impacto'!$D$12),\"Menor\",IF(OR(M19='[5]Tabla Impacto'!$C$13,M19='[5]Tabla Impacto'!$D$13),\"Moderado\",IF(OR(M19='[5]Tabla Impacto'!$C$14,M19='[5]Tabla Impacto'!$D$14),\"Mayor\",IF(OR(M19='[5]Tabla Impacto'!$C$15,M19='[5]Tabla Impacto'!$D$15),\"Catastrófico\",\"\")))))","v":"Moderado"},0.6,"Moderado",1,"El contratista de infraestuctura tecnológica valida trimestralmente la capacidad y carga de la infraestructura, optimizando su uso antes de realizar nuevas adquisiciones; en caso de encontrar desviaciones procede a la informar lo encontrado para ajustar los recursos","Contratista- Infraestructura tecnológica","Supervisar trimestralmente la capacidad y carga de la infraestructura, optimizando su uso antes de realizar nuevas adquisiciones; en caso de encontrar desviaciones procede a la informar ","Actas de auditoría y revisión de capacidad, identificando necesidades reales de adquisición o ajuste de recursos.","Probabilidad","Preventivo","Manual","40%","Documentado","Continua","Con Registro",0.12,"Muy Baja",0.12,"Moderado",0.6,"Moderado","Evitar",null,null,null,null,"Contratista- Infraestructura tecnológica","Grupo de Tecnologías de la Información y las Comunicaciones TICS.","Andrés Alejandro Ayure- Coordinador Grupo TICS","2025-02-21","2025-12-31"]
[13,"GESTIÓN DEL CONOCIMIENTO, LA INFORMACIÓN Y LA INNOVACIÓN","Gestión","Posibilidad de afectacion económico y reputacional por Pérdida de conocimiento estratégico debido a baja capacidad de transferencia y difusión del conocimiento en los procesos llevados a cabo dentro del Ministerio","económico y reputacional","Pérdida de conocimiento estratégico","baja capacidad de transferencia y difusión del conocimiento en los procesos llevados a cabo dentro del Ministerio","Ejecucion y Administracion de procesos",10,"Baja",{"$f":"IF(J20=\"\",\"\",IF(J20=\"Muy Baja\",0.2,IF(J20=\"Baja\",0.4,IF(J20=\"Media\",0.6,IF(J20=\"Alta\",0.8,IF(J20=\"Muy Alta\",1,))))))","v":0.4},"     El riesgo afecta la imagen de la entidad a nivel nacional, con efecto publicitarios sostenible a nivel país",{"$f":"IF(NOT(ISERROR(MATCH(L20,'[5]Tabla Impacto'!#REF!,0))),'[5]Tabla Impacto'!$F$229&\"Por favor no seleccionar los criterios de impacto(Afectación Económica o presupuestal y Pérdida Reputacional)\",L20)","v":"     El riesgo afecta la imagen de la entidad a nivel nacional, con efecto publicitarios sostenible a nivel país"},{"$f":"IF(OR(M20='[5]Tabla Impacto'!$C$11,M20='[5]Tabla Impacto'!$D$11),\"Leve\",IF(OR(M20='[5]Tabla Impacto'!$C$12,M20='[5]Tabla Impacto'!$D$12),\"Menor\",IF(OR(M20='[5]Tabla Impacto'!$C$13,M20='[5]Tabla Impacto'!$D$13),\"Moderado\",IF(OR(M20='[5]Tabla Impacto'!$C$14,M20='[5]Tabla Impacto'!$D$14),\"Mayor\",IF(OR(M20='[5]Tabla Impacto'!$C$15,M20='[5]Tabla Impacto'!$D$15),\"Catastrófico\",\"\")))))","v":"Catastrófico"},{"$f":"IF(N20=\"\",\"\",IF(N20=\"Leve\",0.2,IF(N20=\"Menor\",0.4,IF(N20=\"Moderado\",0.6,IF(N20=\"Mayor\",0.8,IF(N20=\"Catastrófico\",1,))))))","v":1},{"$f":"IF(OR(AND(J20=\"Muy Baja\",N20=\"Leve\"),AND(J20=\"Muy Baja\",N20=\"Menor\"),AND(J20=\"Baja\",N20=\"Leve\")),\"Bajo\",IF(OR(AND(J20=\"Muy baja\",N20=\"Moderado\"),AND(J20=\"Baja\",N20=\"Menor\"),AND(J20=\"Baja\",N20=\"Moderado\"),AND(J20=\"Media\",N20=\"Leve\"),AND(J20=\"Media\",N20=\"Menor\"),AND(J20=\"Media\",N20=\"Moderado\"),AND(J20=\"Alta\",N20=\"Leve\"),AND(J20=\"Alta\",N20=\"Menor\")),\"Moderado\",IF(OR(AND(J20=\"Muy Baja\",N20=\"Mayor\"),AND(J20=\"Baja\",N20=\"Mayor\"),AND(J20=\"Media\",N20=\"Mayor\"),AND(J20=\"Alta\",N20=\"Moderado\"),AND(J20=\"Alta\",N20=\"Mayor\"),AND(J20=\"Muy Alta\",N20=\"Leve\"),AND(J20=\"Muy Alta\",N20=\"Menor\"),AND(J20=\"Muy Alta\",N20=\"Moderado\"),AND(J20=\"Muy Alta\",N20=\"Mayor\")),\"Alto\",IF(OR(AND(J20=\"Muy Baja\",N20=\"Catastrófico\"),AND(J20=\"Baja\",N20=\"Catastrófico\"),AND(J20=\"Media\",N20=\"Catastrófico\"),AND(J20=\"Alta\",N20=\"Catastrófico\"),AND(J20=\"Muy Alta\",N20=\"Catastrófico\")),\"Extremo\",\"\"))))","v":"Extremo"},1,"El grupo de Comunicaciones, realiza la formulación del plan de comunicaciones, posteriormente realizar seguimiento al plan, a través de reuniones que documentan los trabajado en las mesas de trabajo ","Contratista encargado de los procesos de gestión del conocimiento y la innovación delegado por la Subdirectora de Talento Humano\n\nSubdirectora de Talento Humano","Formular, aprobar  y ejecutar un plan de trabajo que logre identificar y evitar la pérdida de conocimiento estratégico del ministerio, el plan contiene acciones de transferencia y difusión del conocimiento\n\nRealizar actividades de seguimiento al plan establecido; en caso de encontrar desviaciones en la ejecución del plan se tomarán acciones correctivas para lograr el objetivo del plan","Diagnóstico del estado de la información\nEstadísticas\nDocumentos word y excel\nElementos de comunicación estratégica",{"$f":"IF(OR(W20=\"Preventivo\",W20=\"Detectivo\"),\"Probabilidad\",IF(W20=\"Correctivo\",\"Impacto\",\"\"))","v":"Probabilidad"},"Preventivo","Manual",{"$f":"IF(AND(W20=\"Preventivo\",X20=\"Automático\"),\"50%\",IF(AND(W20=\"Preventivo\",X20=\"Manual\"),\"40%\",IF(AND(W20=\"Detectivo\",X20=\"Automático\"),\"40%\",IF(AND(W20=\"Detectivo\",X20=\"Manual\"),\"30%\",IF(AND(W20=\"Correctivo\",X20=\"Automático\"),\"35%\",IF(AND(W20=\"Correctivo\",X20=\"Manual\"),\"25%\",\"\"))))))","v":"40%"},"Sin Documentar","Continua","Con Registro",{"$f":"IFERROR(IF(V20=\"Probabilidad\",(K20-(+K20*Y20)),IF(V20=\"Impacto\",K20,\"\")),\"\")","v":0.24},{"$f":"IFERROR(IF(AC20=\"\",\"\",IF(AC20<=0.2,\"Muy Baja\",IF(AC20<=0.4,\"Baja\",IF(AC20<=0.6,\"Media\",IF(AC20<=0.8,\"Alta\",\"Muy Alta\"))))),\"\")","v":"Baja"},{"$f":"+AC20","v":0.24},{"$f":"IFERROR(IF(AG20=\"\",\"\",IF(AG20<=0.2,\"Leve\",IF(AG20<=0.4,\"Menor\",IF(AG20<=0.6,\"Moderado\",IF(AG20<=0.8,\"Mayor\",\"Catastrófico\"))))),\"\")","v":"Catastrófico"},{"$f":"IFERROR(IF(V20=\"Impacto\",(O20-(+O20*Y20)),IF(V20=\"Probabilidad\",O20,\"\")),\"\")","v":1},{"$f":"IFERROR(IF(OR(AND(AD20=\"Muy Baja\",AF20=\"Leve\"),AND(AD20=\"Muy Baja\",AF20=\"Menor\"),AND(AD20=\"Baja\",AF20=\"Leve\")),\"Bajo\",IF(OR(AND(AD20=\"Muy baja\",AF20=\"Moderado\"),AND(AD20=\"Baja\",AF20=\"Menor\"),AND(AD20=\"Baja\",AF20=\"Moderado\"),AND(AD20=\"Media\",AF20=\"Leve\"),AND(AD20=\"Media\",AF20=\"Menor\"),AND(AD20=\"Media\",AF20=\"Moderado\"),AND(AD20=\"Alta\",AF20=\"Leve\"),AND(AD20=\"Alta\",AF20=\"Menor\")),\"Moderado\",IF(OR(AND(AD20=\"Muy Baja\",AF20=\"Mayor\"),AND(AD20=\"Baja\",AF20=\"Mayor\"),AND(AD20=\"Media\",AF20=\"Mayor\"),AND(AD20=\"Alta\",AF20=\"Moderado\"),AND(AD20=\"Alta\",AF20=\"Mayor\"),AND(AD20=\"Muy Alta\",AF20=\"Leve\"),AND(AD20=\"Muy Alta\",AF20=\"Menor\"),AND(AD20=\"Muy Alta\",AF20=\"Moderado\"),AND(AD20=\"Muy Alta\",AF20=\"Mayor\")),\"Alto\",IF(OR(AND(AD20=\"Muy Baja\",AF20=\"Catastrófico\"),AND(AD20=\"Baja\",AF20=\"Catastrófico\"),AND(AD20=\"Media\",AF20=\"Catastrófico\"),AND(AD20=\"Alta\",AF20=\"Catastrófico\"),AND(AD20=\"Muy Alta\",AF20=\"Catastrófico\")),\"Extremo\",\"\")))),\"\")","v":"Extremo"},"Evitar",null,null,null,null,"Contratista encargado de los procesos de gestión del conocimiento y la innovación delegado por la Subdirectora de Talento Humano\n\n","Subdirección de Talento Humano","Subdirectora de Talento Humano","2025-02-01","2025-12-31"]
[14,"GESTIÓN JURÍDICA","Gestión","Posibilidad de afectacion económico por sanciones de entes de control por imposibilidad de realizar el cobro  del título ejecutivo debido a incumplimiento de las caracteristicas legales que soporten la exigibilidad del título","económico","sanciones de entes de control por imposibilidad de realizar el cobro  del título ejecutivo","incumplimiento de las caracteristicas legales que soporten la exigibilidad del título","Ejecucion y Administracion de procesos",80,"Media",0.6,"     Entre 100 y 500 SMLMV ",{"$f":"IF(NOT(ISERROR(MATCH(L21,'[5]Tabla Impacto'!#REF!,0))),'[5]Tabla Impacto'!$F$229&\"Por favor no seleccionar los criterios de impacto(Afectación Económica o presupuestal y Pérdida Reputacional)\",L21)","v":"     Entre 100 y 500 SMLMV "},{"$f":"IF(OR(M21='[5]Tabla Impacto'!$C$11,M21='[5]Tabla Impacto'!$D$11),\"Leve\",IF(OR(M21='[5]Tabla Impacto'!$C$12,M21='[5]Tabla Impacto'!$D$12),\"Menor\",IF(OR(M21='[5]Tabla Impacto'!$C$13,M21='[5]Tabla Impacto'!$D$13),\"Moderado\",IF(OR(M21='[5]Tabla Impacto'!$C$14,M21='[5]Tabla Impacto'!$D$14),\"Mayor\",IF(OR(M21='[5]Tabla Impacto'!$C$15,M21='[5]Tabla Impacto'!$D$15),\"Catastrófico\",\"\")))))","v":"Mayor"},0.8,"Alto",1,"El profesional a cargo del proceso, verifica los requisitos del Título Ejecutivo (Claro, Expreso y Exigible) y que cuente con los anexos soporte del mismo (Actos Administrativos y certificación de ejecutoria). El profesional certifica expresamente el cumplimiento o no de requisitos y envía al Coordinador del grupo el proyecto de Auto de Avocar Conocimiento o el proyecto de Memorando devolutivo al área de origen, para que subsane","Profesional","Verifica el cumplimiento de los requisitos del Titulo Ejecutivo en caractríticas legales tales como: claro, expreso y exigible con sus anexos soporte que se encuentran descritos, para que su cobro sea jurídicamente viable. ","Correo electrónico de cumplimiento de requisitos legales (sábana)","Probabilidad","Preventivo","Manual",{"$f":"IF(AND(W21=\"Preventivo\",X21=\"Automático\"),\"50%\",IF(AND(W21=\"Preventivo\",X21=\"Manual\"),\"40%\",IF(AND(W21=\"Detectivo\",X21=\"Automático\"),\"40%\",IF(AND(W21=\"Detectivo\",X21=\"Manual\"),\"30%\",IF(AND(W21=\"Correctivo\",X21=\"Automático\"),\"35%\",IF(AND(W21=\"Correctivo\",X21=\"Manual\"),\"25%\",\"\"))))))","v":"40%"},"Sin Documentar","Continua","Con Registro",0.36,"Baja",0.36,"Mayor",0.8,"Alto","Evitar","Revisar la Resolución 90430 de 2014 expedida por el Ministerio, con el fin de verificar la necesidad de iniciar un proceso de actualización al Manual de Recaudo de Cartera del Ministerio de Minas y Energía, proceso que culmina con la presentación para aprobación y firma del Sr. Ministro, de un proyecto de Resolución","Abogado Profesional del grupo coactivos","2025-06-30","2025-08-30","Abogado Profesional del grupo coactivos"," Grupo de Jurisdicción Coactiva de Secretaría General","Lelis Francisco Forero","2025-02-21","31/02/2025"]
[15,"GESTIÓN JURÍDICA","Gestión","Posibilidad de afectacion reputacional por emitir conceptos jurídicos erróneos, demandas, sanciones y multas debido a a la falta de claridad en la solicitud o que ésta abarque varios temas misionales","reputacional","emitir conceptos jurídicos erróneos, demandas, sanciones y multas","a la falta de claridad en la solicitud o que ésta abarque varios temas misionales","Usuarios, productos y practicas , organizacionales",36,"Media",{"$f":"IF(J22=\"\",\"\",IF(J22=\"Muy Baja\",0.2,IF(J22=\"Baja\",0.4,IF(J22=\"Media\",0.6,IF(J22=\"Alta\",0.8,IF(J22=\"Muy Alta\",1,))))))","v":0.6},"     El riesgo afecta la imagen de de la entidad con efecto publicitario sostenido a nivel de sector administrativo, nivel departamental o municipal",{"$f":"IF(NOT(ISERROR(MATCH(L22,'[5]Tabla Impacto'!#REF!,0))),'[5]Tabla Impacto'!$F$229&\"Por favor no seleccionar los criterios de impacto(Afectación Económica o presupuestal y Pérdida Reputacional)\",L22)","v":"     El riesgo afecta la imagen de de la entidad con efecto publicitario sostenido a nivel de sector administrativo, nivel departamental o municipal"},{"$f":"IF(OR(M22='[5]Tabla Impacto'!$C$11,M22='[5]Tabla Impacto'!$D$11),\"Leve\",IF(OR(M22='[5]Tabla Impacto'!$C$12,M22='[5]Tabla Impacto'!$D$12),\"Menor\",IF(OR(M22='[5]Tabla Impacto'!$C$13,M22='[5]Tabla Impacto'!$D$13),\"Moderado\",IF(OR(M22='[5]Tabla Impacto'!$C$14,M22='[5]Tabla Impacto'!$D$14),\"Mayor\",IF(OR(M22='[5]Tabla Impacto'!$C$15,M22='[5]Tabla Impacto'!$D$15),\"Catastrófico\",\"\")))))","v":"Mayor"},{"$f":"IF(N22=\"\",\"\",IF(N22=\"Leve\",0.2,IF(N22=\"Menor\",0.4,IF(N22=\"Moderado\",0.6,IF(N22=\"Mayor\",0.8,IF(N22=\"Catastrófico\",1,))))))","v":0.8},{"$f":"IF(OR(AND(J22=\"Muy Baja\",N22=\"Leve\"),AND(J22=\"Muy Baja\",N22=\"Menor\"),AND(J22=\"Baja\",N22=\"Leve\")),\"Bajo\",IF(OR(AND(J22=\"Muy baja\",N22=\"Moderado\"),AND(J22=\"Baja\",N22=\"Menor\"),AND(J22=\"Baja\",N22=\"Moderado\"),AND(J22=\"Media\",N22=\"Leve\"),AND(J22=\"Media\",N22=\"Menor\"),AND(J22=\"Media\",N22=\"Moderado\"),AND(J22=\"Alta\",N22=\"Leve\"),AND(J22=\"Alta\",N22=\"Menor\")),\"Moderado\",IF(OR(AND(J22=\"Muy Baja\",N22=\"Mayor\"),AND(J22=\"Baja\",N22=\"Mayor\"),AND(J22=\"Media\",N22=\"Mayor\"),AND(J22=\"Alta\",N22=\"Moderado\"),AND(J22=\"Alta\",N22=\"Mayor\"),AND(J22=\"Muy Alta\",N22=\"Leve\"),AND(J22=\"Muy Alta\",N22=\"Menor\"),AND(J22=\"Muy Alta\",N22=\"Moderado\"),AND(J22=\"Muy Alta\",N22=\"Mayor\")),\"Alto\",IF(OR(AND(J22=\"Muy Baja\",N22=\"Catastrófico\"),AND(J22=\"Baja\",N22=\"Catastrófico\"),AND(J22=\"Media\",N22=\"Catastrófico\"),AND(J22=\"Alta\",N22=\"Catastrófico\"),AND(J22=\"Muy Alta\",N22=\"Catastrófico\")),\"Extremo\",\"\"))))","v":"Alto"},1,"El  profesional o contratista de la Oficina Asesora Jurídica\nEl coordinador del área, revisa las consultas para establecer que su contenido sea claro o que no abarque varios temas misionales. Si los contenidos no son claros, se solicita al usuario precisar su consulta a través de comunicación escrita, si es claro se da curso a la respuesta. En caso que la línea o temática donde este el concepto esta en construcción, el Coordinador del área dará lineamientos para respuesta al concepto. \nUna vez proyectado el concepto, el coordinador aprueba la proyección del concepto o devuelve a profesional","El profesional o contratista de la Oficina Asesora Jurídica\nEl coordinador del área","Revisar las consultas para establecer que su contenido sea claro o que no abarque varios temas misionales. Si los contenidos no son claros, se solicita al usuario precisar su consulta a través de comunicación escrita, si es claro se da curso a la respuesta. \nDar lineamientos para respuesta al concepto para líneas temáticas en construcción \nRevisar y aprobar la proyección del concepto","Respuesta a las consultas\nAlcance de las consultas","Probabilidad","Preventivo","Manual",{"$f":"IF(AND(W22=\"Preventivo\",X22=\"Automático\"),\"50%\",IF(AND(W22=\"Preventivo\",X22=\"Manual\"),\"40%\",IF(AND(W22=\"Detectivo\",X22=\"Automático\"),\"40%\",IF(AND(W22=\"Detectivo\",X22=\"Manual\"),\"30%\",IF(AND(W22=\"Correctivo\",X22=\"Automático\"),\"35%\",IF(AND(W22=\"Correctivo\",X22=\"Manual\"),\"25%\",\"\"))))))","v":"40%"},"Documentado","Continua","Con Registro",0.36,"Baja",0.36,"Mayor",0.8,"Alto","Evitar",null,null,null,null,"Claudia Milena Valera\nProfesional Especializado","Oficina Asesora Jurídica","Jefe Oficina Asesora Jurídica","2025-02-21","31/02/2025"]
[16,"GESTIÓN JURÍDICA","Gestión",{"$f":"IF(C23=\"Fiscal\",_xlfn.CONCAT(\"Posibilidad de efectos dañosos sobre bienes públicos \",\" por o para \",F23,\" debido a \",G23),IF(C23=\"Gestión\",_xlfn.CONCAT(\"Posibilidad de afectacion \",E23,\" por \",F23,\" debido a \",G23),\"\"))","v":"Posibilidad de afectacion económico y reputacional por fallos en contra\n debido a actuaciones procesales presentadas fuera de los términos legales"},"económico y reputacional","fallos en contra\n","actuaciones procesales presentadas fuera de los términos legales","Ejecucion y Administracion de procesos",100,{"$f":"IF(I23<=0,\"\",IF(I23<=2,\"Muy Baja\",IF(I23<=5,\"Baja\",IF(I23<=19,\"Media\",IF(I23<=50,\"Alta\",\"Muy Alta\")))))","v":"Muy Alta"},1,"     El riesgo afecta la imagen de de la entidad con efecto publicitario sostenido a nivel de sector administrativo, nivel departamental o municipal",{"$f":"IF(NOT(ISERROR(MATCH(L23,'[6]Tabla Impacto'!$B$221:$B$223,0))),'[6]Tabla Impacto'!$F$223&\"Por favor no seleccionar los criterios de impacto(Afectación Económica o presupuestal y Pérdida Reputacional)\",L23)","v":"     El riesgo afecta la imagen de de la entidad con efecto publicitario sostenido a nivel de sector administrativo, nivel departamental o municipal"},{"$f":"IF(OR(M23='[6]Tabla Impacto'!$C$11,M23='[6]Tabla Impacto'!$D$11),\"Leve\",IF(OR(M23='[6]Tabla Impacto'!$C$12,M23='[6]Tabla Impacto'!$D$12),\"Menor\",IF(OR(M23='[6]Tabla Impacto'!$C$13,M23='[6]Tabla Impacto'!$D$13),\"Moderado\",IF(OR(M23='[6]Tabla Impacto'!$C$14,M23='[6]Tabla Impacto'!$D$14),\"Mayor\",IF(OR(M23='[6]Tabla Impacto'!$C$15,M23='[6]Tabla Impacto'!$D$15),\"Catastrófico\",\"\")))))","v":"Mayor"},0.8,"Alto",1,"El profesional o contratista de la Oficina Asesora Jurídica a cargo del proceso,  realiza seguimiento y verificación del cumplimiento de términos legales, apoyándose en los informes del contratista de seguimiento de procesos y la herramienta de consulta de procesos de la rama judicial","El profesional o contratista de la Oficina Asesora Jurídica a cargo del proceso","Realizar seguimiento y verificación del cumplimiento de términos legales que eviten actuaciones fuera de los términos, teniendo en cuenta el aplicativo de la rama judicial que permita hacer la verificación respectiva","Informes de seguimiento a procesos\nVerificación aplicativo rama judicial","Probabilidad","Preventivo","Manual",{"$f":"IF(AND(W23=\"Preventivo\",X23=\"Automático\"),\"50%\",IF(AND(W23=\"Preventivo\",X23=\"Manual\"),\"40%\",IF(AND(W23=\"Detectivo\",X23=\"Automático\"),\"40%\",IF(AND(W23=\"Detectivo\",X23=\"Manual\"),\"30%\",IF(AND(W23=\"Correctivo\",X23=\"Automático\"),\"35%\",IF(AND(W23=\"Correctivo\",X23=\"Manual\"),\"25%\",\"\"))))))","v":"40%"},"Documentado","Continua","Con Registro",0.6,"Media",0.6,"Mayor",0.8,"Alto","Evitar",null,null,null,null,"Claudia Milena Valera\nProfesional Especializado","Oficina Asesora Jurídica","Jefe Oficina Asesora Jurídica","2025-02-21","31/02/2025"]
[17,"GESTIÓN JURÍDICA","Gestión","Posibilidad de afectacion reputacional por expedición de actos administrativos ilegales debido a fallas en control de legalidad\n","reputacional","expedición de actos administrativos ilegales","fallas en control de legalidad\n","Ejecucion y Administracion de procesos",120,"Muy Alta",1,"     El riesgo afecta la imagen de de la entidad con efecto publicitario sostenido a nivel de sector administrativo, nivel departamental o municipal",{"$f":"IF(NOT(ISERROR(MATCH(L24,'[6]Tabla Impacto'!$B$221:$B$223,0))),'[6]Tabla Impacto'!$F$223&\"Por favor no seleccionar los criterios de impacto(Afectación Económica o presupuestal y Pérdida Reputacional)\",L24)","v":"     El riesgo afecta la imagen de de la entidad con efecto publicitario sostenido a nivel de sector administrativo, nivel departamental o municipal"},{"$f":"IF(OR(M24='[6]Tabla Impacto'!$C$11,M24='[6]Tabla Impacto'!$D$11),\"Leve\",IF(OR(M24='[6]Tabla Impacto'!$C$12,M24='[6]Tabla Impacto'!$D$12),\"Menor\",IF(OR(M24='[6]Tabla Impacto'!$C$13,M24='[6]Tabla Impacto'!$D$13),\"Moderado\",IF(OR(M24='[6]Tabla Impacto'!$C$14,M24='[6]Tabla Impacto'!$D$14),\"Mayor\",IF(OR(M24='[6]Tabla Impacto'!$C$15,M24='[6]Tabla Impacto'!$D$15),\"Catastrófico\",\"\")))))","v":"Mayor"},0.8,"Alto",1,"El profesional o contratista de la Oficina Asesora Jurídica, revisa la legalidad de los actos administrativos dentro del proceso de actuación administrativa en concordancia con el procedimiento de revisión de actos administrativos que hace parte de la documentación del Sistema de Gestión de a Calidad del Minenergía","El profesional o contratista de la Oficina Asesora Jurídica","Revisar la legalidad de los actos administrativos dentro del proceso de actuación administrativa en concordancia con el procedimiento de revisión de actos administrativos que hace parte de la documentación del Sistema de Gestión de a Calidad del Minenergía o aquel que lo modifique o sustituya","Carpeta de actos administrativos","Probabilidad","Preventivo","Manual","40%","Documentado","Continua","Con Registro",0.6,"Media",0.6,"Mayor",0.8,"Alto","Evitar",null,null,null,null,"Claudia Milena Valera\nProfesional Especializado","Oficina Asesora Jurídica","Jefe Oficina Asesora Jurídica","2025-02-21","31/02/2025"]
[18,"GESTIÓN DOCUMENTAL","Gestión","Posibilidad de afectacion reputacional por Incumplimiento a los lineamientos de manejo y organización documental  debido a Que  los funcionarios encargados en las distintas áreas no aplican  Manual de Organización Documental Archivos de Gestion y  Transferencias  Documentales Primarias","reputacional","Incumplimiento a los lineamientos de manejo y organización documental ","Que  los funcionarios encargados en las distintas áreas no aplican  Manual de Organización Documental Archivos de Gestion y  Transferencias  Documentales Primarias","Ejecucion y Administracion de procesos",12,"Baja",{"$f":"IF(J25=\"\",\"\",IF(J25=\"Muy Baja\",0.2,IF(J25=\"Baja\",0.4,IF(J25=\"Media\",0.6,IF(J25=\"Alta\",0.8,IF(J25=\"Muy Alta\",1,))))))","v":0.4},"     El riesgo afecta la imagen de la entidad con algunos usuarios de relevancia frente al logro de los objetivos",{"$f":"IF(NOT(ISERROR(MATCH(L25,'[5]Tabla Impacto'!#REF!,0))),'[5]Tabla Impacto'!$F$229&\"Por favor no seleccionar los criterios de impacto(Afectación Económica o presupuestal y Pérdida Reputacional)\",L25)","v":"     El riesgo afecta la imagen de la entidad con algunos usuarios de relevancia frente al logro de los objetivos"},{"$f":"IF(OR(M25='[5]Tabla Impacto'!$C$11,M25='[5]Tabla Impacto'!$D$11),\"Leve\",IF(OR(M25='[5]Tabla Impacto'!$C$12,M25='[5]Tabla Impacto'!$D$12),\"Menor\",IF(OR(M25='[5]Tabla Impacto'!$C$13,M25='[5]Tabla Impacto'!$D$13),\"Moderado\",IF(OR(M25='[5]Tabla Impacto'!$C$14,M25='[5]Tabla Impacto'!$D$14),\"Mayor\",IF(OR(M25='[5]Tabla Impacto'!$C$15,M25='[5]Tabla Impacto'!$D$15),\"Catastrófico\",\"\")))))","v":"Moderado"},{"$f":"IF(N25=\"\",\"\",IF(N25=\"Leve\",0.2,IF(N25=\"Menor\",0.4,IF(N25=\"Moderado\",0.6,IF(N25=\"Mayor\",0.8,IF(N25=\"Catastrófico\",1,))))))","v":0.6},{"$f":"IF(OR(AND(J25=\"Muy Baja\",N25=\"Leve\"),AND(J25=\"Muy Baja\",N25=\"Menor\"),AND(J25=\"Baja\",N25=\"Leve\")),\"Bajo\",IF(OR(AND(J25=\"Muy baja\",N25=\"Moderado\"),AND(J25=\"Baja\",N25=\"Menor\"),AND(J25=\"Baja\",N25=\"Moderado\"),AND(J25=\"Media\",N25=\"Leve\"),AND(J25=\"Media\",N25=\"Menor\"),AND(J25=\"Media\",N25=\"Moderado\"),AND(J25=\"Alta\",N25=\"Leve\"),AND(J25=\"Alta\",N25=\"Menor\")),\"Moderado\",IF(OR(AND(J25=\"Muy Baja\",N25=\"Mayor\"),AND(J25=\"Baja\",N25=\"Mayor\"),AND(J25=\"Media\",N25=\"Mayor\"),AND(J25=\"Alta\",N25=\"Moderado\"),AND(J25=\"Alta\",N25=\"Mayor\"),AND(J25=\"Muy Alta\",N25=\"Leve\"),AND(J25=\"Muy Alta\",N25=\"Menor\"),AND(J25=\"Muy Alta\",N25=\"Moderado\"),AND(J25=\"Muy Alta\",N25=\"Mayor\")),\"Alto\",IF(OR(AND(J25=\"Muy Baja\",N25=\"Catastrófico\"),AND(J25=\"Baja\",N25=\"Catastrófico\"),AND(J25=\"Media\",N25=\"Catastrófico\"),AND(J25=\"Alta\",N25=\"Catastrófico\"),AND(J25=\"Muy Alta\",N25=\"Catastrófico\")),\"Extremo\",\"\"))))","v":"Moderado"},1,"El funcionario y/o contratistas signados del grupo de GRCGI , realizan acompañamientos a las áreas para la revisión de la organización de los archivos y la preparación de las transferencias, verificando que cumpla y documente de acuerdo con lo establecido en el Manual de Organización Documental Archivos de Gestion y  Transferencias  Documentales Primarias","Auxiliar administrativo y/o Contratista"," Adelantar acompañamientos a las áreas para la revisión de laorganización de los archivos de gestión de aurdo con el Manual\n\nRealizar el diligenciamiento de la Matriz de chuqueo de cumplimiento de los lineamientos del Manual","Matriz trimestral de chequeo de cumplimeinto o no de linemientos del Manual; Correos; Actas; Planes de mejoramiento",{"$f":"IF(OR(W25=\"Preventivo\",W25=\"Detectivo\"),\"Probabilidad\",IF(W25=\"Correctivo\",\"Impacto\",\"\"))","v":"Probabilidad"},"Preventivo","Manual",{"$f":"IF(AND(W25=\"Preventivo\",X25=\"Automático\"),\"50%\",IF(AND(W25=\"Preventivo\",X25=\"Manual\"),\"40%\",IF(AND(W25=\"Detectivo\",X25=\"Automático\"),\"40%\",IF(AND(W25=\"Detectivo\",X25=\"Manual\"),\"30%\",IF(AND(W25=\"Correctivo\",X25=\"Automático\"),\"35%\",IF(AND(W25=\"Correctivo\",X25=\"Manual\"),\"25%\",\"\"))))))","v":"40%"},"Documentado","Continua","Con Registro",{"$f":"IFERROR(IF(V25=\"Probabilidad\",(K25-(+K25*Y25)),IF(V25=\"Impacto\",K25,\"\")),\"\")","v":0.24},{"$f":"IFERROR(IF(AC25=\"\",\"\",IF(AC25<=0.2,\"Muy Baja\",IF(AC25<=0.4,\"Baja\",IF(AC25<=0.6,\"Media\",IF(AC25<=0.8,\"Alta\",\"Muy Alta\"))))),\"\")","v":"Baja"},{"$f":"+AC25","v":0.24},{"$f":"IFERROR(IF(AG25=\"\",\"\",IF(AG25<=0.2,\"Leve\",IF(AG25<=0.4,\"Menor\",IF(AG25<=0.6,\"Moderado\",IF(AG25<=0.8,\"Mayor\",\"Catastrófico\"))))),\"\")","v":"Moderado"},{"$f":"IFERROR(IF(V25=\"Impacto\",(O25-(+O25*Y25)),IF(V25=\"Probabilidad\",O25,\"\")),\"\")","v":0.6},{"$f":"IFERROR(IF(OR(AND(AD25=\"Muy Baja\",AF25=\"Leve\"),AND(AD25=\"Muy Baja\",AF25=\"Menor\"),AND(AD25=\"Baja\",AF25=\"Leve\")),\"Bajo\",IF(OR(AND(AD25=\"Muy baja\",AF25=\"Moderado\"),AND(AD25=\"Baja\",AF25=\"Menor\"),AND(AD25=\"Baja\",AF25=\"Moderado\"),AND(AD25=\"Media\",AF25=\"Leve\"),AND(AD25=\"Media\",AF25=\"Menor\"),AND(AD25=\"Media\",AF25=\"Moderado\"),AND(AD25=\"Alta\",AF25=\"Leve\"),AND(AD25=\"Alta\",AF25=\"Menor\")),\"Moderado\",IF(OR(AND(AD25=\"Muy Baja\",AF25=\"Mayor\"),AND(AD25=\"Baja\",AF25=\"Mayor\"),AND(AD25=\"Media\",AF25=\"Mayor\"),AND(AD25=\"Alta\",AF25=\"Moderado\"),AND(AD25=\"Alta\",AF25=\"Mayor\"),AND(AD25=\"Muy Alta\",AF25=\"Leve\"),AND(AD25=\"Muy Alta\",AF25=\"Menor\"),AND(AD25=\"Muy Alta\",AF25=\"Moderado\"),AND(AD25=\"Muy Alta\",AF25=\"Mayor\")),\"Alto\",IF(OR(AND(AD25=\"Muy Baja\",AF25=\"Catastrófico\"),AND(AD25=\"Baja\",AF25=\"Catastrófico\"),AND(AD25=\"Media\",AF25=\"Catastrófico\"),AND(AD25=\"Alta\",AF25=\"Catastrófico\"),AND(AD25=\"Muy Alta\",AF25=\"Catastrófico\")),\"Extremo\",\"\")))),\"\")","v":"Moderado"},"Reducir (compartir)","Realizar mesas de trabajo con Secretaría General con el fin de fortalecer el seguimiento y cumplimiento para que los archivos de gestión cumplan con los lineamientos de organización de acuerdo con el Manual","Servidores publicos del GRCGI y de las Areas del Ministerio ","2025-03-30","2025-06-30","Coordinador del grupo de GRCGI; Responsables de Areas","Grupo de Relacionamiento con la Ciudadanía y Gestión de la Información; y las Areas del Ministerio"," Jenny Constanza Nova Martinez","2025-02-21","2025-12-31"]
[19,"GESTIÓN DOCUMENTAL","Gestión","Posibilidad de afectacion reputacional por Inadecuado seguimiento de aplicación de procedimientos de copias de seguridad debido a Inaplicación de los controles establecidos y ausencia de seguimiento  sobre las copias de seguridad de los documentos electrónicos de archivo y sus metadatos","reputacional","Inadecuado seguimiento de aplicación de procedimientos de copias de seguridad","Inaplicación de los controles establecidos y ausencia de seguimiento  sobre las copias de seguridad de los documentos electrónicos de archivo y sus metadatos","Ejecucion y Administracion de procesos",12,"Baja",0.4,"     El riesgo afecta la imagen de la entidad internamente, de conocimiento general, nivel interno, de junta dircetiva y accionistas y/o de provedores",{"$f":"IF(NOT(ISERROR(MATCH(L26,'[5]Tabla Impacto'!#REF!,0))),'[5]Tabla Impacto'!$F$229&\"Por favor no seleccionar los criterios de impacto(Afectación Económica o presupuestal y Pérdida Reputacional)\",L26)","v":"     El riesgo afecta la imagen de la entidad internamente, de conocimiento general, nivel interno, de junta dircetiva y accionistas y/o de provedores"},{"$f":"IF(OR(M26='[5]Tabla Impacto'!$C$11,M26='[5]Tabla Impacto'!$D$11),\"Leve\",IF(OR(M26='[5]Tabla Impacto'!$C$12,M26='[5]Tabla Impacto'!$D$12),\"Menor\",IF(OR(M26='[5]Tabla Impacto'!$C$13,M26='[5]Tabla Impacto'!$D$13),\"Moderado\",IF(OR(M26='[5]Tabla Impacto'!$C$14,M26='[5]Tabla Impacto'!$D$14),\"Mayor\",IF(OR(M26='[5]Tabla Impacto'!$C$15,M26='[5]Tabla Impacto'!$D$15),\"Catastrófico\",\"\")))))","v":"Menor"},0.4,"Moderado",1,"El funcionario y/o contratista responsable, solicita reporte de la correcta ejecución de de copias de seguridad de los documentos electrónicos de archivo y metadatos del SGDEA, a la Oficina de Tecnologías de la información","Profesional especializado 19 y/o Contratista","Validar la correcta ejecución del reporte de copias de seguridad de los documentos electrónicos de archivo y metadatos del SGDEA que realiza la Oficina de Tecnologías de la información ","Correos electrónicos, reportes técnicos","Probabilidad","Preventivo","Manual","40%","Documentado","Continua","Con Registro",0.24,"Baja",0.24,"Menor",0.4,"Moderado","Reducir (compartir)","Realizar mesas de trabajo con TIC con el fin de validar las acciones ante posibles incidencias y necesidad de restauración de copias de seguridad","Servidores publicos del GRCGI y del  Grupo TIC ","2025-06-30","2025-09-30","Coordinadores lGRCGI y TIC ","Grupo de Relacionamiento con la Ciudadanía y Gestión de la Información; y Grupo de Tecnologias de la Información"," Jenny Constanza Nova Martinez","2025-02-21","2025-12-31"]
[20,"GESTIÓN DEL RELACIONAMIENTO CON LOS GRUPOS DE VALOR","Gestión","Posibilidad de afectacion reputacional por desconocimiento del grado de satisfacción de los grupos de valor, aumento de PQRSD y reprocesos debido a inaplicación de la encuesta de medición de la Satisfacción de forma oportuna  a los ciudadanos que interactuaron con el MME  a través de los diferentes canales de atención","reputacional","desconocimiento del grado de satisfacción de los grupos de valor, aumento de PQRSD y reprocesos","inaplicación de la encuesta de medición de la Satisfacción de forma oportuna  a los ciudadanos que interactuaron con el MME  a través de los diferentes canales de atención","Usuarios, productos y practicas , organizacionales",12,"Baja",0.4,"     El riesgo afecta la imagen de la entidad con algunos usuarios de relevancia frente al logro de los objetivos",{"$f":"IF(NOT(ISERROR(MATCH(L27,'[5]Tabla Impacto'!#REF!,0))),'[5]Tabla Impacto'!$F$229&\"Por favor no seleccionar los criterios de impacto(Afectación Económica o presupuestal y Pérdida Reputacional)\",L27)","v":"     El riesgo afecta la imagen de la entidad con algunos usuarios de relevancia frente al logro de los objetivos"},{"$f":"IF(OR(M27='[5]Tabla Impacto'!$C$11,M27='[5]Tabla Impacto'!$D$11),\"Leve\",IF(OR(M27='[5]Tabla Impacto'!$C$12,M27='[5]Tabla Impacto'!$D$12),\"Menor\",IF(OR(M27='[5]Tabla Impacto'!$C$13,M27='[5]Tabla Impacto'!$D$13),\"Moderado\",IF(OR(M27='[5]Tabla Impacto'!$C$14,M27='[5]Tabla Impacto'!$D$14),\"Mayor\",IF(OR(M27='[5]Tabla Impacto'!$C$15,M27='[5]Tabla Impacto'!$D$15),\"Catastrófico\",\"\")))))","v":"Moderado"},0.6,"Moderado",1,"El Funcionario del Grupo de Relacionamiento con el Ciudadano y Gestión de la Información , recopila las bases de datos de ciudadanos atendidos en el mes, remite encuesta de medición de la satisfacción a ciudadanos atendidos en el mes y genera informe semestral de medición de la satisfacción que incluye conclusiones y recomendaciones. Este informe semestral de Medición de la Satisfacción se publica en la página web y se lleva a la alta dirección","Profesional Especializado Grado 17","Recopilar las bases de datos de ciudadanos atendidos en el mes\nRemitir encuesta de medición de la satisfacción a ciudadanos atendidos en el me\nGenerar informe semestral de medición de la satisfacción que incluye conclusiones y recomendaciones y publicar en portal web ","Informe Semestral de Medición de la Satisfacción ","Probabilidad","Preventivo","Manual","40%","Documentado","Continua","Con Registro",0.24,"Baja",0.24,"Moderado",0.6,"Moderado","Evitar",null,null,null,null,"Coordinador del grupo de GRCGI ","Grupo de Relacionamiento con la Ciudadanía y Gestión de la Información"," Jenny Constanza Nova Martinez","2025-02-21","2025-12-31"]
[21,"GESTIÓN DEL RELACIONAMIENTO CON LOS GRUPOS DE VALOR","Gestión","Posibilidad de afectacion reputacional por sanciones, tutelas, aumento de PQRSD y reprocesos debido a incumplimiento en los términos de ley para dar respuesta a las PQRS","reputacional","sanciones, tutelas, aumento de PQRSD y reprocesos","incumplimiento en los términos de ley para dar respuesta a las PQRS","Usuarios, productos y practicas , organizacionales",52,"Media",{"$f":"IF(J28=\"\",\"\",IF(J28=\"Muy Baja\",0.2,IF(J28=\"Baja\",0.4,IF(J28=\"Media\",0.6,IF(J28=\"Alta\",0.8,IF(J28=\"Muy Alta\",1,))))))","v":0.6},"     El riesgo afecta la imagen de la entidad con algunos usuarios de relevancia frente al logro de los objetivos",{"$f":"IF(NOT(ISERROR(MATCH(L28,'[5]Tabla Impacto'!#REF!,0))),'[5]Tabla Impacto'!$F$229&\"Por favor no seleccionar los criterios de impacto(Afectación Económica o presupuestal y Pérdida Reputacional)\",L28)","v":"     El riesgo afecta la imagen de la entidad con algunos usuarios de relevancia frente al logro de los objetivos"},{"$f":"IF(OR(M28='[5]Tabla Impacto'!$C$11,M28='[5]Tabla Impacto'!$D$11),\"Leve\",IF(OR(M28='[5]Tabla Impacto'!$C$12,M28='[5]Tabla Impacto'!$D$12),\"Menor\",IF(OR(M28='[5]Tabla Impacto'!$C$13,M28='[5]Tabla Impacto'!$D$13),\"Moderado\",IF(OR(M28='[5]Tabla Impacto'!$C$14,M28='[5]Tabla Impacto'!$D$14),\"Mayor\",IF(OR(M28='[5]Tabla Impacto'!$C$15,M28='[5]Tabla Impacto'!$D$15),\"Catastrófico\",\"\")))))","v":"Moderado"},{"$f":"IF(N28=\"\",\"\",IF(N28=\"Leve\",0.2,IF(N28=\"Menor\",0.4,IF(N28=\"Moderado\",0.6,IF(N28=\"Mayor\",0.8,IF(N28=\"Catastrófico\",1,))))))","v":0.6},{"$f":"IF(OR(AND(J28=\"Muy Baja\",N28=\"Leve\"),AND(J28=\"Muy Baja\",N28=\"Menor\"),AND(J28=\"Baja\",N28=\"Leve\")),\"Bajo\",IF(OR(AND(J28=\"Muy baja\",N28=\"Moderado\"),AND(J28=\"Baja\",N28=\"Menor\"),AND(J28=\"Baja\",N28=\"Moderado\"),AND(J28=\"Media\",N28=\"Leve\"),AND(J28=\"Media\",N28=\"Menor\"),AND(J28=\"Media\",N28=\"Moderado\"),AND(J28=\"Alta\",N28=\"Leve\"),AND(J28=\"Alta\",N28=\"Menor\")),\"Moderado\",IF(OR(AND(J28=\"Muy Baja\",N28=\"Mayor\"),AND(J28=\"Baja\",N28=\"Mayor\"),AND(J28=\"Media\",N28=\"Mayor\"),AND(J28=\"Alta\",N28=\"Moderado\"),AND(J28=\"Alta\",N28=\"Mayor\"),AND(J28=\"Muy Alta\",N28=\"Leve\"),AND(J28=\"Muy Alta\",N28=\"Menor\"),AND(J28=\"Muy Alta\",N28=\"Moderado\"),AND(J28=\"Muy Alta\",N28=\"Mayor\")),\"Alto\",IF(OR(AND(J28=\"Muy Baja\",N28=\"Catastrófico\"),AND(J28=\"Baja\",N28=\"Catastrófico\"),AND(J28=\"Media\",N28=\"Catastrófico\"),AND(J28=\"Alta\",N28=\"Catastrófico\"),AND(J28=\"Muy Alta\",N28=\"Catastrófico\")),\"Extremo\",\"\"))))","v":"Moderado"},1,"El Funcionario del Grupo de Relacionamiento con el Ciudadano y Gestión de la Información realiza el diligenciamiento de la base de datos de PQRS y valida cuáles PQRSD se encuentran con vencimiento semanal para proceder a enviar alertas semanales de vencimiento de peticiones.","Secretario Ejecutivo\nContratista","Diligenciar la base de datos de PQRS realizando seguimiento y control a la oportunidad de las PQRSD\nDocumentar el envío de alertas semanales de vencimiento de peticiones al área técnica que tiene asignada la respuesta a la solicitud inicial.\n","Base de  datos Relación de alertas Correos electrónicos Memorandos",{"$f":"IF(OR(W28=\"Preventivo\",W28=\"Detectivo\"),\"Probabilidad\",IF(W28=\"Correctivo\",\"Impacto\",\"\"))","v":"Probabilidad"},"Preventivo","Manual",{"$f":"IF(AND(W28=\"Preventivo\",X28=\"Automático\"),\"50%\",IF(AND(W28=\"Preventivo\",X28=\"Manual\"),\"40%\",IF(AND(W28=\"Detectivo\",X28=\"Automático\"),\"40%\",IF(AND(W28=\"Detectivo\",X28=\"Manual\"),\"30%\",IF(AND(W28=\"Correctivo\",X28=\"Automático\"),\"35%\",IF(AND(W28=\"Correctivo\",X28=\"Manual\"),\"25%\",\"\"))))))","v":"40%"},"Documentado","Continua","Con Registro",{"$f":"IFERROR(IF(V28=\"Probabilidad\",(K28-(+K28*Y28)),IF(V28=\"Impacto\",K28,\"\")),\"\")","v":0.36},{"$f":"IFERROR(IF(AC28=\"\",\"\",IF(AC28<=0.2,\"Muy Baja\",IF(AC28<=0.4,\"Baja\",IF(AC28<=0.6,\"Media\",IF(AC28<=0.8,\"Alta\",\"Muy Alta\"))))),\"\")","v":"Baja"},{"$f":"+AC28","v":0.36},{"$f":"IFERROR(IF(AG28=\"\",\"\",IF(AG28<=0.2,\"Leve\",IF(AG28<=0.4,\"Menor\",IF(AG28<=0.6,\"Moderado\",IF(AG28<=0.8,\"Mayor\",\"Catastrófico\"))))),\"\")","v":"Moderado"},{"$f":"IFERROR(IF(V28=\"Impacto\",(O28-(+O28*Y28)),IF(V28=\"Probabilidad\",O28,\"\")),\"\")","v":0.6},{"$f":"IFERROR(IF(OR(AND(AD28=\"Muy Baja\",AF28=\"Leve\"),AND(AD28=\"Muy Baja\",AF28=\"Menor\"),AND(AD28=\"Baja\",AF28=\"Leve\")),\"Bajo\",IF(OR(AND(AD28=\"Muy baja\",AF28=\"Moderado\"),AND(AD28=\"Baja\",AF28=\"Menor\"),AND(AD28=\"Baja\",AF28=\"Moderado\"),AND(AD28=\"Media\",AF28=\"Leve\"),AND(AD28=\"Media\",AF28=\"Menor\"),AND(AD28=\"Media\",AF28=\"Moderado\"),AND(AD28=\"Alta\",AF28=\"Leve\"),AND(AD28=\"Alta\",AF28=\"Menor\")),\"Moderado\",IF(OR(AND(AD28=\"Muy Baja\",AF28=\"Mayor\"),AND(AD28=\"Baja\",AF28=\"Mayor\"),AND(AD28=\"Media\",AF28=\"Mayor\"),AND(AD28=\"Alta\",AF28=\"Moderado\"),AND(AD28=\"Alta\",AF28=\"Mayor\"),AND(AD28=\"Muy Alta\",AF28=\"Leve\"),AND(AD28=\"Muy Alta\",AF28=\"Menor\"),AND(AD28=\"Muy Alta\",AF28=\"Moderado\"),AND(AD28=\"Muy Alta\",AF28=\"Mayor\")),\"Alto\",IF(OR(AND(AD28=\"Muy Baja\",AF28=\"Catastrófico\"),AND(AD28=\"Baja\",AF28=\"Catastrófico\"),AND(AD28=\"Media\",AF28=\"Catastrófico\"),AND(AD28=\"Alta\",AF28=\"Catastrófico\"),AND(AD28=\"Muy Alta\",AF28=\"Catastrófico\")),\"Extremo\",\"\")))),\"\")","v":"Moderado"},"Evitar","Actualizar procedimiento de PQRSD","Secretario Ejecutivo y Contratista","2do semestre de 2025","2do semestre de 2025","Coordinador del grupo de GRCGI ","Grupo de Relacionamiento con la Ciudadanía y Gestión de la Información"," Jenny Constanza Nova Martinez","2025-02-21","2025-12-31"]
[22,"CONTROL DISCIPLINARIO","Gestión","Posibilidad de afectacion reputacional por  instruir o evaluar tardíamente investigaciones disciplinarias hasta  prescribir, debido a expedientes con fechas próxímas a prescribir","reputacional"," instruir o evaluar tardíamente investigaciones disciplinarias hasta  prescribir,","expedientes con fechas próxímas a prescribir","Ejecucion y Administracion de procesos",23,"Baja",0.4,"     El riesgo afecta la imagen de de la entidad con efecto publicitario sostenido a nivel de sector administrativo, nivel departamental o municipal",{"$f":"IF(NOT(ISERROR(MATCH(L29,'[5]Tabla Impacto'!#REF!,0))),'[5]Tabla Impacto'!$F$229&\"Por favor no seleccionar los criterios de impacto(Afectación Económica o presupuestal y Pérdida Reputacional)\",L29)","v":"     El riesgo afecta la imagen de de la entidad con efecto publicitario sostenido a nivel de sector administrativo, nivel departamental o municipal"},{"$f":"IF(OR(M29='[5]Tabla Impacto'!$C$11,M29='[5]Tabla Impacto'!$D$11),\"Leve\",IF(OR(M29='[5]Tabla Impacto'!$C$12,M29='[5]Tabla Impacto'!$D$12),\"Menor\",IF(OR(M29='[5]Tabla Impacto'!$C$13,M29='[5]Tabla Impacto'!$D$13),\"Moderado\",IF(OR(M29='[5]Tabla Impacto'!$C$14,M29='[5]Tabla Impacto'!$D$14),\"Mayor\",IF(OR(M29='[5]Tabla Impacto'!$C$15,M29='[5]Tabla Impacto'!$D$15),\"Catastrófico\",\"\")))))","v":"Mayor"},0.8,"Alto",1,"El Jefe de la Oficina, monitorea con los abogados instructores el avance de los expedientes priorizando en el impulso, revisión y firma los asuntos próximos a vencer a través de, un informe mensual , previamente, en coordinación la Secretaría General se contratará un abogado  para impulsar las actuaciones.","Jefe de la Oficina","Monitorear el avance de los expedientes priorizando en el impuso, revisión y firma los asuntos con riesgo de prescripción\n","Informe mensual\n",{"$f":"IF(OR(W29=\"Preventivo\",W29=\"Detectivo\"),\"Probabilidad\",IF(W29=\"Correctivo\",\"Impacto\",\"\"))","v":"Probabilidad"},"Preventivo","Manual",{"$f":"IF(AND(W29=\"Preventivo\",X29=\"Automático\"),\"50%\",IF(AND(W29=\"Preventivo\",X29=\"Manual\"),\"40%\",IF(AND(W29=\"Detectivo\",X29=\"Automático\"),\"40%\",IF(AND(W29=\"Detectivo\",X29=\"Manual\"),\"30%\",IF(AND(W29=\"Correctivo\",X29=\"Automático\"),\"35%\",IF(AND(W29=\"Correctivo\",X29=\"Manual\"),\"25%\",\"\"))))))","v":"40%"},"Sin Documentar","Continua","Con Registro",0.24,"Baja",0.24,"Mayor",0.8,"Alto","Evitar",null,null,null,null,"Jefe de la Oficina  y abogados del grupo ","Oficina de Control Disciplinario Interno","Jefe de Oficina","2025-02-21","2025-12-31"]
[23,"CONTROL DISCIPLINARIO","Gestión","Posibilidad de afectacion reputacional por pérdida de información o imposibilidad de tomar decisiones ajustadas al derecho disciplinario debido a contar con un archivo que a la fecha se ajusta en baja medida a las condiciones normativas exigidas en materia documental.  ","reputacional","pérdida de información o imposibilidad de tomar decisiones ajustadas al derecho disciplinario","contar con un archivo que a la fecha se ajusta en baja medida a las condiciones normativas exigidas en materia documental.  ","Ejecucion y Administracion de procesos",66,"Media",{"$f":"IF(J30=\"\",\"\",IF(J30=\"Muy Baja\",0.2,IF(J30=\"Baja\",0.4,IF(J30=\"Media\",0.6,IF(J30=\"Alta\",0.8,IF(J30=\"Muy Alta\",1,))))))","v":0.6},"     El riesgo afecta la imagen de de la entidad con efecto publicitario sostenido a nivel de sector administrativo, nivel departamental o municipal",{"$f":"IF(NOT(ISERROR(MATCH(L30,'[5]Tabla Impacto'!#REF!,0))),'[5]Tabla Impacto'!$F$229&\"Por favor no seleccionar los criterios de impacto(Afectación Económica o presupuestal y Pérdida Reputacional)\",L30)","v":"     El riesgo afecta la imagen de de la entidad con efecto publicitario sostenido a nivel de sector administrativo, nivel departamental o municipal"},{"$f":"IF(OR(M30='[5]Tabla Impacto'!$C$11,M30='[5]Tabla Impacto'!$D$11),\"Leve\",IF(OR(M30='[5]Tabla Impacto'!$C$12,M30='[5]Tabla Impacto'!$D$12),\"Menor\",IF(OR(M30='[5]Tabla Impacto'!$C$13,M30='[5]Tabla Impacto'!$D$13),\"Moderado\",IF(OR(M30='[5]Tabla Impacto'!$C$14,M30='[5]Tabla Impacto'!$D$14),\"Mayor\",IF(OR(M30='[5]Tabla Impacto'!$C$15,M30='[5]Tabla Impacto'!$D$15),\"Catastrófico\",\"\")))))","v":"Mayor"},{"$f":"IF(N30=\"\",\"\",IF(N30=\"Leve\",0.2,IF(N30=\"Menor\",0.4,IF(N30=\"Moderado\",0.6,IF(N30=\"Mayor\",0.8,IF(N30=\"Catastrófico\",1,))))))","v":0.8},{"$f":"IF(OR(AND(J30=\"Muy Baja\",N30=\"Leve\"),AND(J30=\"Muy Baja\",N30=\"Menor\"),AND(J30=\"Baja\",N30=\"Leve\")),\"Bajo\",IF(OR(AND(J30=\"Muy baja\",N30=\"Moderado\"),AND(J30=\"Baja\",N30=\"Menor\"),AND(J30=\"Baja\",N30=\"Moderado\"),AND(J30=\"Media\",N30=\"Leve\"),AND(J30=\"Media\",N30=\"Menor\"),AND(J30=\"Media\",N30=\"Moderado\"),AND(J30=\"Alta\",N30=\"Leve\"),AND(J30=\"Alta\",N30=\"Menor\")),\"Moderado\",IF(OR(AND(J30=\"Muy Baja\",N30=\"Mayor\"),AND(J30=\"Baja\",N30=\"Mayor\"),AND(J30=\"Media\",N30=\"Mayor\"),AND(J30=\"Alta\",N30=\"Moderado\"),AND(J30=\"Alta\",N30=\"Mayor\"),AND(J30=\"Muy Alta\",N30=\"Leve\"),AND(J30=\"Muy Alta\",N30=\"Menor\"),AND(J30=\"Muy Alta\",N30=\"Moderado\"),AND(J30=\"Muy Alta\",N30=\"Mayor\")),\"Alto\",IF(OR(AND(J30=\"Muy Baja\",N30=\"Catastrófico\"),AND(J30=\"Baja\",N30=\"Catastrófico\"),AND(J30=\"Media\",N30=\"Catastrófico\"),AND(J30=\"Alta\",N30=\"Catastrófico\"),AND(J30=\"Muy Alta\",N30=\"Catastrófico\")),\"Extremo\",\"\"))))","v":"Alto"},1,"El Secretario ejecutivo organizará los archivos físicos y así vez en digital en (ONE DRIVE y ARGO) de acuerdo con los lineamientos establecidos por el grupo de Relacionamiento con la Ciudadanía y Gestión de la Información y en concordancias con las tablas de retención documental.\n\nEl abogado instructor una vez realice la revisión documental, reportará al jefe de oficina  y  personal asistencial  las novedades relacionadas con la falta de inserción de documentos y/o pruebas producidos durante el mes  y se realizarán los ajustes a lugar","Secretario ejecutivo\n\n\nAbogado instructor\n\n","Organizar los archivos físico y digital en ARGO de acuerdo con las tablas de retención documental, en caso de detectar expedientes incompletos se reportará al personal asistencial  las novedades relacionadas con la falta de inserción de documentos y/o pruebas producidos, para las gestiones respectivas. ","Plantilla para migración de información de Sharepoint a ARGO","Probabilidad","Preventivo","Manual","40%","Sin Documentar","Continua","Con Registro",{"$f":"IFERROR(IF(V30=\"Probabilidad\",(K30-(+K30*Y30)),IF(V30=\"Impacto\",K30,\"\")),\"\")","v":0.36},{"$f":"IFERROR(IF(AC30=\"\",\"\",IF(AC30<=0.2,\"Muy Baja\",IF(AC30<=0.4,\"Baja\",IF(AC30<=0.6,\"Media\",IF(AC30<=0.8,\"Alta\",\"Muy Alta\"))))),\"\")","v":"Baja"},{"$f":"+AC30","v":0.36},{"$f":"IFERROR(IF(AG30=\"\",\"\",IF(AG30<=0.2,\"Leve\",IF(AG30<=0.4,\"Menor\",IF(AG30<=0.6,\"Moderado\",IF(AG30<=0.8,\"Mayor\",\"Catastrófico\"))))),\"\")","v":"Mayor"},{"$f":"IFERROR(IF(V30=\"Impacto\",(O30-(+O30*Y30)),IF(V30=\"Probabilidad\",O30,\"\")),\"\")","v":0.8},{"$f":"IFERROR(IF(OR(AND(AD30=\"Muy Baja\",AF30=\"Leve\"),AND(AD30=\"Muy Baja\",AF30=\"Menor\"),AND(AD30=\"Baja\",AF30=\"Leve\")),\"Bajo\",IF(OR(AND(AD30=\"Muy baja\",AF30=\"Moderado\"),AND(AD30=\"Baja\",AF30=\"Menor\"),AND(AD30=\"Baja\",AF30=\"Moderado\"),AND(AD30=\"Media\",AF30=\"Leve\"),AND(AD30=\"Media\",AF30=\"Menor\"),AND(AD30=\"Media\",AF30=\"Moderado\"),AND(AD30=\"Alta\",AF30=\"Leve\"),AND(AD30=\"Alta\",AF30=\"Menor\")),\"Moderado\",IF(OR(AND(AD30=\"Muy Baja\",AF30=\"Mayor\"),AND(AD30=\"Baja\",AF30=\"Mayor\"),AND(AD30=\"Media\",AF30=\"Mayor\"),AND(AD30=\"Alta\",AF30=\"Moderado\"),AND(AD30=\"Alta\",AF30=\"Mayor\"),AND(AD30=\"Muy Alta\",AF30=\"Leve\"),AND(AD30=\"Muy Alta\",AF30=\"Menor\"),AND(AD30=\"Muy Alta\",AF30=\"Moderado\"),AND(AD30=\"Muy Alta\",AF30=\"Mayor\")),\"Alto\",IF(OR(AND(AD30=\"Muy Baja\",AF30=\"Catastrófico\"),AND(AD30=\"Baja\",AF30=\"Catastrófico\"),AND(AD30=\"Media\",AF30=\"Catastrófico\"),AND(AD30=\"Alta\",AF30=\"Catastrófico\"),AND(AD30=\"Muy Alta\",AF30=\"Catastrófico\")),\"Extremo\",\"\")))),\"\")","v":"Alto"},"Evitar",null,null,null,null,"Secretarios ejecutivos","Oficina de Control Disciplinario interno","Jefe de Oficina","2025-02-21","2025-12-31"]
[24,"SOCIAMBIENTAL","Gestión","Posibilidad de afectacion económico y reputacional por \nReducción de presupuesto a los proyectos de inversión y  sanciones  debido a Incumplimiento en planes, programas y proyectos de inversión y en las metas a nivel socio-ambiental de definidas en el plan de acción de la Oficina de Asuntos Ambientales y Sociales","económico y reputacional","\nReducción de presupuesto a los proyectos de inversión y  sanciones ","Incumplimiento en planes, programas y proyectos de inversión y en las metas a nivel socio-ambiental de definidas en el plan de acción de la Oficina de Asuntos Ambientales y Sociales","Ejecucion y Administracion de procesos",12,{"$f":"IF(I31<=0,\"\",IF(I31<=2,\"Muy Baja\",IF(I31<=5,\"Baja\",IF(I31<=19,\"Media\",IF(I31<=50,\"Alta\",\"Muy Alta\")))))","v":"Media"},0.6,"     El riesgo afecta la imagen de la entidad con algunos usuarios de relevancia frente al logro de los objetivos",{"$f":"IF(NOT(ISERROR(MATCH(L31,'[7]Tabla Impacto'!$B$221:$B$223,0))),'[7]Tabla Impacto'!$F$223&\"Por favor no seleccionar los criterios de impacto(Afectación Económica o presupuestal y Pérdida Reputacional)\",L31)","v":"     El riesgo afecta la imagen de la entidad con algunos usuarios de relevancia frente al logro de los objetivos"},{"$f":"IF(OR(M31='[7]Tabla Impacto'!$C$11,M31='[7]Tabla Impacto'!$D$11),\"Leve\",IF(OR(M31='[7]Tabla Impacto'!$C$12,M31='[7]Tabla Impacto'!$D$12),\"Menor\",IF(OR(M31='[7]Tabla Impacto'!$C$13,M31='[7]Tabla Impacto'!$D$13),\"Moderado\",IF(OR(M31='[7]Tabla Impacto'!$C$14,M31='[7]Tabla Impacto'!$D$14),\"Mayor\",IF(OR(M31='[7]Tabla Impacto'!$C$15,M31='[7]Tabla Impacto'!$D$15),\"Catastrófico\",\"\")))))","v":"Moderado"},0.6,"Moderado",1,"El Contratista delegado por la jefe de la Oficina de Asuntos Ambientales y Sociales, realizar una planeación y seguimiento frente a las metas a cumplir por parte de la oficina de Asuntos Ambientales y Sociales, revisa y verifica los avances reportados por los equipos técnicos de la OAAS en cumplimiento con las metas establecidas en el Plan de Acción para la vigencia 2024, en caso de tener desviaciones en la ejecución de la metas realiza las alertas respectivas. A la par, realiza seguimiento a los avances  programados para cumplimiento de acuerdos contractuales y metas de proyectos de inversión establecidas para la Oficina de Asuntos Ambientales y sociales en la vigencia 2024 que permita ver cumplimientos de manera global y por indicador establecidos dentro del plan","Contratista delegado por la jefe de la Oficina de Asuntos Ambientales y Sociales"," Realizar seguimiento a los indicadores que integran el plan de acción a cargo de la oficina, verificando el cumplimiento que estén acorde a la programación establecida y justificando su nivel de avance.\nRealizar seguimiento a los entregables contractuales y productos de los proyectos de inversión a cargo de la oficina, verificando que el cumplimiento este acorde a la programación establecida y justificando su nivel de avance por medio del registro de información en las plataformas SECOP II y Neón según aplique.","Instrumento de seguimiento que permita ver cumplimientos de manera global y por indicador establecidos dentro del plan","Probabilidad","Preventivo","Manual","40%","Sin Documentar","Continua","Con Registro",0.36,"Baja",0.36,"Moderado",0.6,"Moderado","Evitar",null,null,null,null,"Contratista delegado por la oficina para seguimiento","Oficina de Asuntos Ambientales y Sociales","Jefe de la Oficina ","2025-02-21","2025-12-31"]
[25,"SOCIAMBIENTAL","Gestión","Posibilidad de afectacion económico y reputacional por Multas, sanciones, duplicidad en PQRs,  debido a incumplimiento en los tiempos de respuesta de los PQRS a cargo de la OAAS","económico y reputacional","Multas, sanciones, duplicidad en PQRs, ","incumplimiento en los tiempos de respuesta de los PQRS a cargo de la OAAS","Ejecucion y Administracion de procesos",50,"Alta",0.8,"     El riesgo afecta la imagen de la entidad con algunos usuarios de relevancia frente al logro de los objetivos",{"$f":"IF(NOT(ISERROR(MATCH(L32,'[7]Tabla Impacto'!$B$221:$B$223,0))),'[7]Tabla Impacto'!$F$223&\"Por favor no seleccionar los criterios de impacto(Afectación Económica o presupuestal y Pérdida Reputacional)\",L32)","v":"     El riesgo afecta la imagen de la entidad con algunos usuarios de relevancia frente al logro de los objetivos"},{"$f":"IF(OR(M32='[7]Tabla Impacto'!$C$11,M32='[7]Tabla Impacto'!$D$11),\"Leve\",IF(OR(M32='[7]Tabla Impacto'!$C$12,M32='[7]Tabla Impacto'!$D$12),\"Menor\",IF(OR(M32='[7]Tabla Impacto'!$C$13,M32='[7]Tabla Impacto'!$D$13),\"Moderado\",IF(OR(M32='[7]Tabla Impacto'!$C$14,M32='[7]Tabla Impacto'!$D$14),\"Mayor\",IF(OR(M32='[7]Tabla Impacto'!$C$15,M32='[7]Tabla Impacto'!$D$15),\"Catastrófico\",\"\")))))","v":"Moderado"},0.6,"Alto",1,"El jefe de Oficina de Asuntos Ambientales y Sociales en conjunto con su equipo de trabajo, establece un plan de acción que permita el seguimiento y cumplimiento a las respuesta de los PQRS asignados a la OAAS, igualmente verifica los tiempos de respuesta para evitar incumplimientos, en caso de encontrar desviaciones realiza aleratas al equipo de trabajo indicando cuáles solicitudes a la fechano tienen respuesta .","El jefe de Oficina de Asuntos Ambientales y Sociales en conjunto con su equipo de trabajo ","Establecer un plan de acción que permita el seguimiento y cumplimiento a las respuestas de los PQRS asignados a la OAAS\nGenerar de manera mensual un análisis de gestión que de evidencia de los avances frente a los PQRS ","Reportes de seguimiento a la gestión de PQRS a manera de alertas.",{"$f":"IF(OR(W32=\"Preventivo\",W32=\"Detectivo\"),\"Probabilidad\",IF(W32=\"Correctivo\",\"Impacto\",\"\"))","v":"Probabilidad"},"Preventivo","Manual",{"$f":"IF(AND(W32=\"Preventivo\",X32=\"Automático\"),\"50%\",IF(AND(W32=\"Preventivo\",X32=\"Manual\"),\"40%\",IF(AND(W32=\"Detectivo\",X32=\"Automático\"),\"40%\",IF(AND(W32=\"Detectivo\",X32=\"Manual\"),\"30%\",IF(AND(W32=\"Correctivo\",X32=\"Automático\"),\"35%\",IF(AND(W32=\"Correctivo\",X32=\"Manual\"),\"25%\",\"\"))))))","v":"40%"},"Documentado","Continua","Con Registro",0.48,"Media",0.48,"Moderado",0.6,"Moderado","Evitar",null,null,null,null,"Contratista delegado por la oficina para seguimiento","Oficina de Asuntos Ambientales y Sociales","Jefe de la Oficina ","2025-02-21","2025-12-31"]
[26,"MINERIA","Gestión","Posibilidad de afectacion reputacional por Sanciones de entes de control por retrasos en la gestión y respuesta de derechos de petición. debido a Ausencia de procedimientos claros y sistemas de seguimiento eficaces para garantizar el cumplimiento de los plazos legales.","reputacional","Sanciones de entes de control por retrasos en la gestión y respuesta de derechos de petición.","Ausencia de procedimientos claros y sistemas de seguimiento eficaces para garantizar el cumplimiento de los plazos legales.","Ejecucion y Administracion de procesos",12,"Baja",{"$f":"IF(J33=\"\",\"\",IF(J33=\"Muy Baja\",0.2,IF(J33=\"Baja\",0.4,IF(J33=\"Media\",0.6,IF(J33=\"Alta\",0.8,IF(J33=\"Muy Alta\",1,))))))","v":0.4},"     El riesgo afecta la imagen de alguna área de la organización",{"$f":"IF(NOT(ISERROR(MATCH(L33,'[5]Tabla Impacto'!#REF!,0))),'[5]Tabla Impacto'!$F$229&\"Por favor no seleccionar los criterios de impacto(Afectación Económica o presupuestal y Pérdida Reputacional)\",L33)","v":"     El riesgo afecta la imagen de alguna área de la organización"},{"$f":"IF(OR(M33='[5]Tabla Impacto'!$C$11,M33='[5]Tabla Impacto'!$D$11),\"Leve\",IF(OR(M33='[5]Tabla Impacto'!$C$12,M33='[5]Tabla Impacto'!$D$12),\"Menor\",IF(OR(M33='[5]Tabla Impacto'!$C$13,M33='[5]Tabla Impacto'!$D$13),\"Moderado\",IF(OR(M33='[5]Tabla Impacto'!$C$14,M33='[5]Tabla Impacto'!$D$14),\"Mayor\",IF(OR(M33='[5]Tabla Impacto'!$C$15,M33='[5]Tabla Impacto'!$D$15),\"Catastrófico\",\"\")))))","v":"Leve"},{"$f":"IF(N33=\"\",\"\",IF(N33=\"Leve\",0.2,IF(N33=\"Menor\",0.4,IF(N33=\"Moderado\",0.6,IF(N33=\"Mayor\",0.8,IF(N33=\"Catastrófico\",1,))))))","v":0.2},{"$f":"IF(OR(AND(J33=\"Muy Baja\",N33=\"Leve\"),AND(J33=\"Muy Baja\",N33=\"Menor\"),AND(J33=\"Baja\",N33=\"Leve\")),\"Bajo\",IF(OR(AND(J33=\"Muy baja\",N33=\"Moderado\"),AND(J33=\"Baja\",N33=\"Menor\"),AND(J33=\"Baja\",N33=\"Moderado\"),AND(J33=\"Media\",N33=\"Leve\"),AND(J33=\"Media\",N33=\"Menor\"),AND(J33=\"Media\",N33=\"Moderado\"),AND(J33=\"Alta\",N33=\"Leve\"),AND(J33=\"Alta\",N33=\"Menor\")),\"Moderado\",IF(OR(AND(J33=\"Muy Baja\",N33=\"Mayor\"),AND(J33=\"Baja\",N33=\"Mayor\"),AND(J33=\"Media\",N33=\"Mayor\"),AND(J33=\"Alta\",N33=\"Moderado\"),AND(J33=\"Alta\",N33=\"Mayor\"),AND(J33=\"Muy Alta\",N33=\"Leve\"),AND(J33=\"Muy Alta\",N33=\"Menor\"),AND(J33=\"Muy Alta\",N33=\"Moderado\"),AND(J33=\"Muy Alta\",N33=\"Mayor\")),\"Alto\",IF(OR(AND(J33=\"Muy Baja\",N33=\"Catastrófico\"),AND(J33=\"Baja\",N33=\"Catastrófico\"),AND(J33=\"Media\",N33=\"Catastrófico\"),AND(J33=\"Alta\",N33=\"Catastrófico\"),AND(J33=\"Muy Alta\",N33=\"Catastrófico\")),\"Extremo\",\"\"))))","v":"Bajo"},1,"Los coordinadores de la Dirección de Minería Empresarial, realizan un seguimiento permanente a los derechos de petición con alertas de vencimiento, validando los tiempos de respuesta frente a las solicitudes; en caso de encontrar desviaciones solicitan a los encargados contestar en la brevedad posible los derecho de petición.","Director de minería empresarial\nCoordinadores","Monitoreo continuo y periódicas sobre la gestión de derechos de petición","Reportes de cumplimiento de tiempos de respuesta.\nValidaciones internas en cumpliminetos de respuesta\n",{"$f":"IF(OR(W33=\"Preventivo\",W33=\"Detectivo\"),\"Probabilidad\",IF(W33=\"Correctivo\",\"Impacto\",\"\"))","v":"Probabilidad"},"Preventivo","Manual",{"$f":"IF(AND(W33=\"Preventivo\",X33=\"Automático\"),\"50%\",IF(AND(W33=\"Preventivo\",X33=\"Manual\"),\"40%\",IF(AND(W33=\"Detectivo\",X33=\"Automático\"),\"40%\",IF(AND(W33=\"Detectivo\",X33=\"Manual\"),\"30%\",IF(AND(W33=\"Correctivo\",X33=\"Automático\"),\"35%\",IF(AND(W33=\"Correctivo\",X33=\"Manual\"),\"25%\",\"\"))))))","v":"40%"},"Sin Documentar","Continua","Con Registro",{"$f":"IFERROR(IF(V33=\"Probabilidad\",(K33-(+K33*Y33)),IF(V33=\"Impacto\",K33,\"\")),\"\")","v":0.24},{"$f":"IFERROR(IF(AC33=\"\",\"\",IF(AC33<=0.2,\"Muy Baja\",IF(AC33<=0.4,\"Baja\",IF(AC33<=0.6,\"Media\",IF(AC33<=0.8,\"Alta\",\"Muy Alta\"))))),\"\")","v":"Baja"},{"$f":"+AC33","v":0.24},{"$f":"IFERROR(IF(AG33=\"\",\"\",IF(AG33<=0.2,\"Leve\",IF(AG33<=0.4,\"Menor\",IF(AG33<=0.6,\"Moderado\",IF(AG33<=0.8,\"Mayor\",\"Catastrófico\"))))),\"\")","v":"Leve"},{"$f":"IFERROR(IF(V33=\"Impacto\",(O33-(+O33*Y33)),IF(V33=\"Probabilidad\",O33,\"\")),\"\")","v":0.2},{"$f":"IFERROR(IF(OR(AND(AD33=\"Muy Baja\",AF33=\"Leve\"),AND(AD33=\"Muy Baja\",AF33=\"Menor\"),AND(AD33=\"Baja\",AF33=\"Leve\")),\"Bajo\",IF(OR(AND(AD33=\"Muy baja\",AF33=\"Moderado\"),AND(AD33=\"Baja\",AF33=\"Menor\"),AND(AD33=\"Baja\",AF33=\"Moderado\"),AND(AD33=\"Media\",AF33=\"Leve\"),AND(AD33=\"Media\",AF33=\"Menor\"),AND(AD33=\"Media\",AF33=\"Moderado\"),AND(AD33=\"Alta\",AF33=\"Leve\"),AND(AD33=\"Alta\",AF33=\"Menor\")),\"Moderado\",IF(OR(AND(AD33=\"Muy Baja\",AF33=\"Mayor\"),AND(AD33=\"Baja\",AF33=\"Mayor\"),AND(AD33=\"Media\",AF33=\"Mayor\"),AND(AD33=\"Alta\",AF33=\"Moderado\"),AND(AD33=\"Alta\",AF33=\"Mayor\"),AND(AD33=\"Muy Alta\",AF33=\"Leve\"),AND(AD33=\"Muy Alta\",AF33=\"Menor\"),AND(AD33=\"Muy Alta\",AF33=\"Moderado\"),AND(AD33=\"Muy Alta\",AF33=\"Mayor\")),\"Alto\",IF(OR(AND(AD33=\"Muy Baja\",AF33=\"Catastrófico\"),AND(AD33=\"Baja\",AF33=\"Catastrófico\"),AND(AD33=\"Media\",AF33=\"Catastrófico\"),AND(AD33=\"Alta\",AF33=\"Catastrófico\"),AND(AD33=\"Muy Alta\",AF33=\"Catastrófico\")),\"Extremo\",\"\")))),\"\")","v":"Bajo"},"Evitar","Documentar el control","Contratista responsable del Sistema de Gestión de Calidad en la DME","2025-04-01","2025-07-01","Contratista responsable del Sistema de Gestión de Calidad en la DME","Dirección de minería Empresarial","Profesional especializado Dirección de Minería Empresarial","2025-02-01","2025-12-31"]
[27,"MINERIA","Gestión","Posibilidad de afectacion económico y reputacional por Multas y sanciones de entes de control debido a inaplicación metodológica de la valoración de reservas mineras del país","económico y reputacional","Multas y sanciones de entes de control","inaplicación metodológica de la valoración de reservas mineras del país","Ejecucion y Administracion de procesos",2,"Muy Baja",0.2,"     El riesgo afecta la imagen de la entidad internamente, de conocimiento general, nivel interno, de junta dircetiva y accionistas y/o de provedores",{"$f":"IF(NOT(ISERROR(MATCH(L34,'[5]Tabla Impacto'!#REF!,0))),'[5]Tabla Impacto'!$F$229&\"Por favor no seleccionar los criterios de impacto(Afectación Económica o presupuestal y Pérdida Reputacional)\",L34)","v":"     El riesgo afecta la imagen de la entidad internamente, de conocimiento general, nivel interno, de junta dircetiva y accionistas y/o de provedores"},{"$f":"IF(OR(M34='[5]Tabla Impacto'!$C$11,M34='[5]Tabla Impacto'!$D$11),\"Leve\",IF(OR(M34='[5]Tabla Impacto'!$C$12,M34='[5]Tabla Impacto'!$D$12),\"Menor\",IF(OR(M34='[5]Tabla Impacto'!$C$13,M34='[5]Tabla Impacto'!$D$13),\"Moderado\",IF(OR(M34='[5]Tabla Impacto'!$C$14,M34='[5]Tabla Impacto'!$D$14),\"Mayor\",IF(OR(M34='[5]Tabla Impacto'!$C$15,M34='[5]Tabla Impacto'!$D$15),\"Catastrófico\",\"\")))))","v":"Menor"},0.4,"Bajo",1,"El Director de Minería Empresarial y los coordinadores realizan una validación de la información suministrada por parte de la Agencia Nacional de Minería aplicando la metodología para la valoración de reservas mineras del país, soportada en la Resolución 90079 del 13 de febrero del 2013 y emite un informe de validación; en caso de encontrar inconsistencias en el reporte solicitará ajustes","Director de minería empresarial\nCoordinadores","Validar la información suministrada por parte de la ANM\nAplicar la metodología para la valoración de reservas mineras del país, soportada en la Resolución 90079 del 13 de febrero del 2013\nCumplimiento al procedimiento de valoración de reservas","Informe de valoración de reservas.",{"$f":"IF(OR(W34=\"Preventivo\",W34=\"Detectivo\"),\"Probabilidad\",IF(W34=\"Correctivo\",\"Impacto\",\"\"))","v":"Probabilidad"},"Preventivo","Manual",{"$f":"IF(AND(W34=\"Preventivo\",X34=\"Automático\"),\"50%\",IF(AND(W34=\"Preventivo\",X34=\"Manual\"),\"40%\",IF(AND(W34=\"Detectivo\",X34=\"Automático\"),\"40%\",IF(AND(W34=\"Detectivo\",X34=\"Manual\"),\"30%\",IF(AND(W34=\"Correctivo\",X34=\"Automático\"),\"35%\",IF(AND(W34=\"Correctivo\",X34=\"Manual\"),\"25%\",\"\"))))))","v":"40%"},"Documentado","Continua","Con Registro",0.12,"Muy Baja",0.12,"Menor",0.4,"Bajo","Evitar",null,null,null,null,"Contratista responsable del Sistema de Gestión de Calidad en la DME","Dirección de minería Empresarial","Profesional especializado Dirección de Minería Empresarial","2025-02-01","2025-12-31"]
[28,"MINERIA","Gestión",{"$f":"IF(C35=\"Fiscal\",_xlfn.CONCAT(\"Posibilidad de efectos dañosos sobre bienes públicos \",\" por o para \",F35,\" debido a \",G35),IF(C35=\"Gestión\",_xlfn.CONCAT(\"Posibilidad de afectacion \",E35,\" por \",F35,\" debido a \",G35),\"\"))","v":"Posibilidad de afectacion reputacional por Baja ejecución de las metas asociadas a la Dirección de Minería Empresarial debido a Deficiencias en la gestión estratégica y ausencia de herramientas efectivas para la supervisión del cumplimiento del Plan de Acción."},"reputacional","Baja ejecución de las metas asociadas a la Dirección de Minería Empresarial","Deficiencias en la gestión estratégica y ausencia de herramientas efectivas para la supervisión del cumplimiento del Plan de Acción.","Ejecucion y Administracion de procesos",4,{"$f":"IF(I35<=0,\"\",IF(I35<=2,\"Muy Baja\",IF(I35<=24,\"Baja\",IF(I35<=500,\"Media\",IF(I35<=5000,\"Alta\",\"Muy Alta\")))))","v":"Baja"},0.4,"     El riesgo afecta la imagen de la entidad internamente, de conocimiento general, nivel interno, de junta dircetiva y accionistas y/o de provedores",{"$f":"IF(NOT(ISERROR(MATCH(L35,'[5]Tabla Impacto'!#REF!,0))),'[5]Tabla Impacto'!$F$229&\"Por favor no seleccionar los criterios de impacto(Afectación Económica o presupuestal y Pérdida Reputacional)\",L35)","v":"     El riesgo afecta la imagen de la entidad internamente, de conocimiento general, nivel interno, de junta dircetiva y accionistas y/o de provedores"},{"$f":"IF(OR(M35='[5]Tabla Impacto'!$C$11,M35='[5]Tabla Impacto'!$D$11),\"Leve\",IF(OR(M35='[5]Tabla Impacto'!$C$12,M35='[5]Tabla Impacto'!$D$12),\"Menor\",IF(OR(M35='[5]Tabla Impacto'!$C$13,M35='[5]Tabla Impacto'!$D$13),\"Moderado\",IF(OR(M35='[5]Tabla Impacto'!$C$14,M35='[5]Tabla Impacto'!$D$14),\"Mayor\",IF(OR(M35='[5]Tabla Impacto'!$C$15,M35='[5]Tabla Impacto'!$D$15),\"Catastrófico\",\"\")))))","v":"Menor"},0.4,"Moderado",1,"Realizar el seguimiento periódico a la ejecución del plan de acción, emitiendo las alertas necesarias para dar cumplimiento del mismo, analizando y verificando los avances de los indicadores; en caso de encontrar incumplimientos realiza ajustes respectivos para cumplir las metas planeadas en el plan de acción","Director de minería empresarial\nCoordinadores","Revisión mensual del avance del Plan de Acción y ajuste de estrategias según los resultados obtenidos.","Reportes de avance del Plan de Acción.\nIndicadores de cumplimiento de metas.\nActas de reuniones de seguimiento.\nCorreos alertas",{"$f":"IF(OR(W35=\"Preventivo\",W35=\"Detectivo\"),\"Probabilidad\",IF(W35=\"Correctivo\",\"Impacto\",\"\"))","v":"Probabilidad"},"Preventivo","Manual",{"$f":"IF(AND(W35=\"Preventivo\",X35=\"Automático\"),\"50%\",IF(AND(W35=\"Preventivo\",X35=\"Manual\"),\"40%\",IF(AND(W35=\"Detectivo\",X35=\"Automático\"),\"40%\",IF(AND(W35=\"Detectivo\",X35=\"Manual\"),\"30%\",IF(AND(W35=\"Correctivo\",X35=\"Automático\"),\"35%\",IF(AND(W35=\"Correctivo\",X35=\"Manual\"),\"25%\",\"\"))))))","v":"40%"},"Sin Documentar","Continua","Con Registro",0.24,"Baja",0.24,"Menor",0.4,"Moderado","Evitar","Documentar el control","Contratista responsable del Sistema de Gestión de Calidad en la DME","2025-04-15","2025-07-15","Contratista responsable del Sistema de Gestión de Calidad en la DME","Dirección de minería Empresarial","Profesional especializado Dirección de Minería Empresarial","2025-02-01","2025-12-31"]
[29,"MINERIA","Gestión","Posibilidad de afectacion económico y reputacional por sanciones y demandas por incumplimientos en la ejecución de los convenios y/o contratos de la Dirección de Formalización Minera debido a un bajo seguimiento  en su etapa  contractual y postcontractual","económico y reputacional","sanciones y demandas por incumplimientos en la ejecución de los convenios y/o contratos de la Dirección de Formalización Minera","un bajo seguimiento  en su etapa  contractual y postcontractual","Ejecucion y Administracion de procesos",4,"Baja",0.4,"     El riesgo afecta la imagen de la entidad internamente, de conocimiento general, nivel interno, de junta dircetiva y accionistas y/o de provedores",{"$f":"IF(NOT(ISERROR(MATCH(L36,'[5]Tabla Impacto'!#REF!,0))),'[5]Tabla Impacto'!$F$229&\"Por favor no seleccionar los criterios de impacto(Afectación Económica o presupuestal y Pérdida Reputacional)\",L36)","v":"     El riesgo afecta la imagen de la entidad internamente, de conocimiento general, nivel interno, de junta dircetiva y accionistas y/o de provedores"},{"$f":"IF(OR(M36='[5]Tabla Impacto'!$C$11,M36='[5]Tabla Impacto'!$D$11),\"Leve\",IF(OR(M36='[5]Tabla Impacto'!$C$12,M36='[5]Tabla Impacto'!$D$12),\"Menor\",IF(OR(M36='[5]Tabla Impacto'!$C$13,M36='[5]Tabla Impacto'!$D$13),\"Moderado\",IF(OR(M36='[5]Tabla Impacto'!$C$14,M36='[5]Tabla Impacto'!$D$14),\"Mayor\",IF(OR(M36='[5]Tabla Impacto'!$C$15,M36='[5]Tabla Impacto'!$D$15),\"Catastrófico\",\"\")))))","v":"Menor"},0.4,"Moderado",1,"El Supervisor delegado para el convenio o contrato, realizará el seguimiento a las obligaciones y términos contractuales de acuerdo con el manual de contratación de la entidad y con los términos establecidos en el convenio o contrato, en aras de validar la gestión en la entrega y pago de los productos o servicios prestados y /o solicitar los ajustes o complementos necesarios a través de, comunicaciones oficiales, informes de actividades, informes de supervisión, entre otros, según aplique, lo cual será ubicado en una carpeta definida por cada coordinación.","Director de minería empresarial\nCoordinadores","Revisión mensual del avance del Plan de Acción y ajuste de estrategias según los resultados obtenidos.","Reportes de avance del Plan de Acción.\nIndicadores de cumplimiento de metas.\nActas de reuniones de seguimiento.\nCorreos alertas","Probabilidad","Preventivo","Manual","40%","Sin Documentar","Continua","Con Registro",0.24,"Baja",0.24,"Menor",0.4,"Moderado","Evitar","Documentar el control","Contratista responsable del Sistema de Gestión de Calidad en la DME","2025-04-15","2025-07-15","Contratista responsable del Sistema de Gestión de Calidad en la DME","Dirección de minería Empresarial","Profesional especializado Dirección de Minería Empresarial","2025-02-01","2025-12-31"]
[30,"MINERIA","Gestión","Posibilidad de afectacion reputacional por multas y sanciones por atrasos en la respuesta a los derechos de petición de la Dirección de Formalización Minera debido a la falta de seguimiento y control en la atención oportuna y completa de los derechos de petición","reputacional","multas y sanciones por atrasos en la respuesta a los derechos de petición de la Dirección de Formalización Minera","la falta de seguimiento y control en la atención oportuna y completa de los derechos de petición","Ejecucion y Administracion de procesos",60,"Media",{"$f":"IF(J37=\"\",\"\",IF(J37=\"Muy Baja\",0.2,IF(J37=\"Baja\",0.4,IF(J37=\"Media\",0.6,IF(J37=\"Alta\",0.8,IF(J37=\"Muy Alta\",1,))))))","v":0.6},"     El riesgo afecta la imagen de de la entidad con efecto publicitario sostenido a nivel de sector administrativo, nivel departamental o municipal",{"$f":"IF(NOT(ISERROR(MATCH(L37,'[5]Tabla Impacto'!#REF!,0))),'[5]Tabla Impacto'!$F$229&\"Por favor no seleccionar los criterios de impacto(Afectación Económica o presupuestal y Pérdida Reputacional)\",L37)","v":"     El riesgo afecta la imagen de de la entidad con efecto publicitario sostenido a nivel de sector administrativo, nivel departamental o municipal"},{"$f":"IF(OR(M37='[5]Tabla Impacto'!$C$11,M37='[5]Tabla Impacto'!$D$11),\"Leve\",IF(OR(M37='[5]Tabla Impacto'!$C$12,M37='[5]Tabla Impacto'!$D$12),\"Menor\",IF(OR(M37='[5]Tabla Impacto'!$C$13,M37='[5]Tabla Impacto'!$D$13),\"Moderado\",IF(OR(M37='[5]Tabla Impacto'!$C$14,M37='[5]Tabla Impacto'!$D$14),\"Mayor\",IF(OR(M37='[5]Tabla Impacto'!$C$15,M37='[5]Tabla Impacto'!$D$15),\"Catastrófico\",\"\")))))","v":"Mayor"},{"$f":"IF(N37=\"\",\"\",IF(N37=\"Leve\",0.2,IF(N37=\"Menor\",0.4,IF(N37=\"Moderado\",0.6,IF(N37=\"Mayor\",0.8,IF(N37=\"Catastrófico\",1,))))))","v":0.8},{"$f":"IF(OR(AND(J37=\"Muy Baja\",N37=\"Leve\"),AND(J37=\"Muy Baja\",N37=\"Menor\"),AND(J37=\"Baja\",N37=\"Leve\")),\"Bajo\",IF(OR(AND(J37=\"Muy baja\",N37=\"Moderado\"),AND(J37=\"Baja\",N37=\"Menor\"),AND(J37=\"Baja\",N37=\"Moderado\"),AND(J37=\"Media\",N37=\"Leve\"),AND(J37=\"Media\",N37=\"Menor\"),AND(J37=\"Media\",N37=\"Moderado\"),AND(J37=\"Alta\",N37=\"Leve\"),AND(J37=\"Alta\",N37=\"Menor\")),\"Moderado\",IF(OR(AND(J37=\"Muy Baja\",N37=\"Mayor\"),AND(J37=\"Baja\",N37=\"Mayor\"),AND(J37=\"Media\",N37=\"Mayor\"),AND(J37=\"Alta\",N37=\"Moderado\"),AND(J37=\"Alta\",N37=\"Mayor\"),AND(J37=\"Muy Alta\",N37=\"Leve\"),AND(J37=\"Muy Alta\",N37=\"Menor\"),AND(J37=\"Muy Alta\",N37=\"Moderado\"),AND(J37=\"Muy Alta\",N37=\"Mayor\")),\"Alto\",IF(OR(AND(J37=\"Muy Baja\",N37=\"Catastrófico\"),AND(J37=\"Baja\",N37=\"Catastrófico\"),AND(J37=\"Media\",N37=\"Catastrófico\"),AND(J37=\"Alta\",N37=\"Catastrófico\"),AND(J37=\"Muy Alta\",N37=\"Catastrófico\")),\"Extremo\",\"\"))))","v":"Alto"},1,"El /los profesionales de apoyo designados en la Dirección, enviarán alertas relacionadas con los derechos de petición próximos a vencer, de acuerdo con el correo que remite la oficina de relacionamiento con el ciudadano, adicionalmente, \nel Coordinador de cada grupo de la Dirección de Formalización Minera, realiza la revisión del aplicativo Argo para el reparto y posterior verificación de la respuesta completa y oportuna por parte del funcionario o contratista asignado ","Supervisor delegado para el convenio o contrato","Realizar el seguimiento a las obligaciones y términos contractuales de acuerdo con el manual de contratación de la entidad y con los términos establecidos en el convenio o contrato, en aras de validar la gestión en la entrega y pago de los productos o servicios prestados y /o solicitar los ajustes o complementos necesarios ","* Comunicaciones oficiales\n* Informes de supervisión\n* Acta de designación de apoyo a la supervisión, entre otros, según aplique, lo cual será ubicado en una carpeta definida por cada coordinación.","Probabilidad","Preventivo","Manual","40%","Sin Documentar","Continua","Con Registro",{"$f":"IFERROR(IF(V37=\"Probabilidad\",(K37-(+K37*Y37)),IF(V37=\"Impacto\",K37,\"\")),\"\")","v":0.36},{"$f":"IFERROR(IF(AC37=\"\",\"\",IF(AC37<=0.2,\"Muy Baja\",IF(AC37<=0.4,\"Baja\",IF(AC37<=0.6,\"Media\",IF(AC37<=0.8,\"Alta\",\"Muy Alta\"))))),\"\")","v":"Baja"},{"$f":"+AC37","v":0.36},{"$f":"IFERROR(IF(AG37=\"\",\"\",IF(AG37<=0.2,\"Leve\",IF(AG37<=0.4,\"Menor\",IF(AG37<=0.6,\"Moderado\",IF(AG37<=0.8,\"Mayor\",\"Catastrófico\"))))),\"\")","v":"Mayor"},{"$f":"IFERROR(IF(V37=\"Impacto\",(O37-(+O37*Y37)),IF(V37=\"Probabilidad\",O37,\"\")),\"\")","v":0.8},{"$f":"IFERROR(IF(OR(AND(AD37=\"Muy Baja\",AF37=\"Leve\"),AND(AD37=\"Muy Baja\",AF37=\"Menor\"),AND(AD37=\"Baja\",AF37=\"Leve\")),\"Bajo\",IF(OR(AND(AD37=\"Muy baja\",AF37=\"Moderado\"),AND(AD37=\"Baja\",AF37=\"Menor\"),AND(AD37=\"Baja\",AF37=\"Moderado\"),AND(AD37=\"Media\",AF37=\"Leve\"),AND(AD37=\"Media\",AF37=\"Menor\"),AND(AD37=\"Media\",AF37=\"Moderado\"),AND(AD37=\"Alta\",AF37=\"Leve\"),AND(AD37=\"Alta\",AF37=\"Menor\")),\"Moderado\",IF(OR(AND(AD37=\"Muy Baja\",AF37=\"Mayor\"),AND(AD37=\"Baja\",AF37=\"Mayor\"),AND(AD37=\"Media\",AF37=\"Mayor\"),AND(AD37=\"Alta\",AF37=\"Moderado\"),AND(AD37=\"Alta\",AF37=\"Mayor\"),AND(AD37=\"Muy Alta\",AF37=\"Leve\"),AND(AD37=\"Muy Alta\",AF37=\"Menor\"),AND(AD37=\"Muy Alta\",AF37=\"Moderado\"),AND(AD37=\"Muy Alta\",AF37=\"Mayor\")),\"Alto\",IF(OR(AND(AD37=\"Muy Baja\",AF37=\"Catastrófico\"),AND(AD37=\"Baja\",AF37=\"Catastrófico\"),AND(AD37=\"Media\",AF37=\"Catastrófico\"),AND(AD37=\"Alta\",AF37=\"Catastrófico\"),AND(AD37=\"Muy Alta\",AF37=\"Catastrófico\")),\"Extremo\",\"\")))),\"\")","v":"Alto"},"Evitar",null,null,null,null,"Coordinadores de grupo","Dirección de Formalización (cada grupo de Coordinación)","Director/a de Formalización Minera","2025-02-01","2025-12-31"]
[31,"HIDROCARBUROS","Gestión","Posibilidad de afectacion económico y reputacional por pérdida de memoria institucional  debido a inadecuado manejo de la información ","económico y reputacional","pérdida de memoria institucional ","inadecuado manejo de la información ","Ejecucion y Administracion de procesos",365,{"$f":"IF(I38<=0,\"\",IF(I38<=2,\"Muy Baja\",IF(I38<=5,\"Baja\",IF(I38<=19,\"Media\",IF(I38<=50,\"Alta\",\"Muy Alta\")))))","v":"Muy Alta"},1,"     El riesgo afecta la imagen de la entidad con algunos usuarios de relevancia frente al logro de los objetivos",{"$f":"IF(NOT(ISERROR(MATCH(L38,'[7]Tabla Impacto'!$B$221:$B$223,0))),'[7]Tabla Impacto'!$F$223&\"Por favor no seleccionar los criterios de impacto(Afectación Económica o presupuestal y Pérdida Reputacional)\",L38)","v":"     El riesgo afecta la imagen de la entidad con algunos usuarios de relevancia frente al logro de los objetivos"},{"$f":"IF(OR(M38='[7]Tabla Impacto'!$C$11,M38='[7]Tabla Impacto'!$D$11),\"Leve\",IF(OR(M38='[7]Tabla Impacto'!$C$12,M38='[7]Tabla Impacto'!$D$12),\"Menor\",IF(OR(M38='[7]Tabla Impacto'!$C$13,M38='[7]Tabla Impacto'!$D$13),\"Moderado\",IF(OR(M38='[7]Tabla Impacto'!$C$14,M38='[7]Tabla Impacto'!$D$14),\"Mayor\",IF(OR(M38='[7]Tabla Impacto'!$C$15,M38='[7]Tabla Impacto'!$D$15),\"Catastrófico\",\"\")))))","v":"Moderado"},0.6,"Alto",1,"Los colaboradores de la DH, clasifican y organizan la información de acuerdo con las TRD vigentes y los lineamientos del proceso de Gestión Documental, igualmente, en caso que llos responsables de emitir lineamientos respecto de la gestión documental asociada al proceso luego de verificar la información, soliciten al proceso ajustes, se procederá a realizarlos.","Colaboradores de la DH","Clasificar y organizar la información de acuerdo con las TRD vigentes y los lineamientos del proceso de Gestión Documental","Formulario Único de Inventario Documental - FUID diligenciado ",{"$f":"IF(OR(W38=\"Preventivo\",W38=\"Detectivo\"),\"Probabilidad\",IF(W38=\"Correctivo\",\"Impacto\",\"\"))","v":"Probabilidad"},"Preventivo","Manual",{"$f":"IF(AND(W38=\"Preventivo\",X38=\"Automático\"),\"50%\",IF(AND(W38=\"Preventivo\",X38=\"Manual\"),\"40%\",IF(AND(W38=\"Detectivo\",X38=\"Automático\"),\"40%\",IF(AND(W38=\"Detectivo\",X38=\"Manual\"),\"30%\",IF(AND(W38=\"Correctivo\",X38=\"Automático\"),\"35%\",IF(AND(W38=\"Correctivo\",X38=\"Manual\"),\"25%\",\"\"))))))","v":"40%"},"Documentado","Continua","Con Registro",{"$f":"IFERROR(IF(V38=\"Probabilidad\",(K38-(+K38*Y38)),IF(V38=\"Impacto\",K38,\"\")),\"\")","v":0.6},{"$f":"IFERROR(IF(AC38=\"\",\"\",IF(AC38<=0.2,\"Muy Baja\",IF(AC38<=0.4,\"Baja\",IF(AC38<=0.6,\"Media\",IF(AC38<=0.8,\"Alta\",\"Muy Alta\"))))),\"\")","v":"Media"},{"$f":"+AC38","v":0.6},{"$f":"IFERROR(IF(AG38=\"\",\"\",IF(AG38<=0.2,\"Leve\",IF(AG38<=0.4,\"Menor\",IF(AG38<=0.6,\"Moderado\",IF(AG38<=0.8,\"Mayor\",\"Catastrófico\"))))),\"\")","v":"Moderado"},{"$f":"IFERROR(IF(V38=\"Impacto\",(O38-(+O38*Y38)),IF(V38=\"Probabilidad\",O38,\"\")),\"\")","v":0.6},{"$f":"IFERROR(IF(OR(AND(AD38=\"Muy Baja\",AF38=\"Leve\"),AND(AD38=\"Muy Baja\",AF38=\"Menor\"),AND(AD38=\"Baja\",AF38=\"Leve\")),\"Bajo\",IF(OR(AND(AD38=\"Muy baja\",AF38=\"Moderado\"),AND(AD38=\"Baja\",AF38=\"Menor\"),AND(AD38=\"Baja\",AF38=\"Moderado\"),AND(AD38=\"Media\",AF38=\"Leve\"),AND(AD38=\"Media\",AF38=\"Menor\"),AND(AD38=\"Media\",AF38=\"Moderado\"),AND(AD38=\"Alta\",AF38=\"Leve\"),AND(AD38=\"Alta\",AF38=\"Menor\")),\"Moderado\",IF(OR(AND(AD38=\"Muy Baja\",AF38=\"Mayor\"),AND(AD38=\"Baja\",AF38=\"Mayor\"),AND(AD38=\"Media\",AF38=\"Mayor\"),AND(AD38=\"Alta\",AF38=\"Moderado\"),AND(AD38=\"Alta\",AF38=\"Mayor\"),AND(AD38=\"Muy Alta\",AF38=\"Leve\"),AND(AD38=\"Muy Alta\",AF38=\"Menor\"),AND(AD38=\"Muy Alta\",AF38=\"Moderado\"),AND(AD38=\"Muy Alta\",AF38=\"Mayor\")),\"Alto\",IF(OR(AND(AD38=\"Muy Baja\",AF38=\"Catastrófico\"),AND(AD38=\"Baja\",AF38=\"Catastrófico\"),AND(AD38=\"Media\",AF38=\"Catastrófico\"),AND(AD38=\"Alta\",AF38=\"Catastrófico\"),AND(AD38=\"Muy Alta\",AF38=\"Catastrófico\")),\"Extremo\",\"\")))),\"\")","v":"Moderado"},"Evitar",null,null,null,null,"Profesionales  ","Dirección de Hidrocarburos ","Director Técnico - Coordinador de Grupo ","2025-02-01","2025-12-31"]
[34,"HIDROCARBUROS","Gestión","Posibilidad de afectacion económico y reputacional por procesos sancionatorios debido a debilidades en el cumplimiento del manual de supervisión de contratos y/o convenios ","económico y reputacional","procesos sancionatorios","debilidades en el cumplimiento del manual de supervisión de contratos y/o convenios ","Ejecucion y Administracion de procesos",156,"Muy Alta",1,"     El riesgo afecta la imagen de la entidad con algunos usuarios de relevancia frente al logro de los objetivos",{"$f":"IF(NOT(ISERROR(MATCH(L39,'[7]Tabla Impacto'!$B$221:$B$223,0))),'[7]Tabla Impacto'!$F$223&\"Por favor no seleccionar los criterios de impacto(Afectación Económica o presupuestal y Pérdida Reputacional)\",L39)","v":"     El riesgo afecta la imagen de la entidad con algunos usuarios de relevancia frente al logro de los objetivos"},{"$f":"IF(OR(M39='[7]Tabla Impacto'!$C$11,M39='[7]Tabla Impacto'!$D$11),\"Leve\",IF(OR(M39='[7]Tabla Impacto'!$C$12,M39='[7]Tabla Impacto'!$D$12),\"Menor\",IF(OR(M39='[7]Tabla Impacto'!$C$13,M39='[7]Tabla Impacto'!$D$13),\"Moderado\",IF(OR(M39='[7]Tabla Impacto'!$C$14,M39='[7]Tabla Impacto'!$D$14),\"Mayor\",IF(OR(M39='[7]Tabla Impacto'!$C$15,M39='[7]Tabla Impacto'!$D$15),\"Catastrófico\",\"\")))))","v":"Moderado"},0.6,"Alto",1,"El supervisor designado para tal fin, verifica el progreso de cumplimiento y ejecución contractual de forma mensual  sin omitir los lineamientos establecidos en el manual, procedimientos para el cumplimiento de sus funciones, y en caso de evidenciar la omision de publicidad en la pataforma SECOP y/o encontrar inconsistencias en la información publicada se solicitara al contratista la validación y verificación de la información reportada, asi como su respectiva publicación dentro de las fechas establecidas.","Supervisores y Contratistas","Verificar, validar y viabilizar la información publicada en SECOP por parte del contratista (Formatos de Informes, Soportes y Planilla) dando cumplimiento a los requisitos normativos establecidos en el manual de contratación, de igual manera el supervisor validará el  avance del objeto contractual  y en caso de identificar  inconsistencias en la información,  solicitará al contatista realizar los ajustes respectivos.","FORMATO INFORME PERIÓDICO\nDE SUPERVISIÓN Y RECIBO A\nSATISFACCIÓN PRESTACIÓN DE\nSERVICIOS PROFESIONALES Y DE\nAPOYO A LA GESTIÓN aprobado, firnado y radicado por el supervisor.",{"$f":"IF(OR(W39=\"Preventivo\",W39=\"Detectivo\"),\"Probabilidad\",IF(W39=\"Correctivo\",\"Impacto\",\"\"))","v":"Probabilidad"},"Preventivo","Manual",{"$f":"IF(AND(W39=\"Preventivo\",X39=\"Automático\"),\"50%\",IF(AND(W39=\"Preventivo\",X39=\"Manual\"),\"40%\",IF(AND(W39=\"Detectivo\",X39=\"Automático\"),\"40%\",IF(AND(W39=\"Detectivo\",X39=\"Manual\"),\"30%\",IF(AND(W39=\"Correctivo\",X39=\"Automático\"),\"35%\",IF(AND(W39=\"Correctivo\",X39=\"Manual\"),\"25%\",\"\"))))))","v":"40%"},"Documentado","Continua","Con Registro",0.6,"Media",0.6,"Moderado",0.6,"Moderado","Evitar",null,null,null,null,"Supervisores y Contratistas","Dirección de Hidrocarburos ","Supervisores y Contratistas","2025-02-01","2025-12-31"]
[35,"HIDROCARBUROS","Gestión","Posibilidad de afectacion económico y reputacional por \ninadecuada liquidación de los recursos señalados en el artículo 19 de la Ley 10 de 1961 debido a información poco confiable reportada por otras entidades ","económico y reputacional","\ninadecuada liquidación de los recursos señalados en el artículo 19 de la Ley 10 de 1961","información poco confiable reportada por otras entidades ","Ejecucion y Administracion de procesos",4,"Baja",0.4,"     El riesgo afecta la imagen de la entidad con algunos usuarios de relevancia frente al logro de los objetivos",{"$f":"IF(NOT(ISERROR(MATCH(L40,'[7]Tabla Impacto'!$B$221:$B$223,0))),'[7]Tabla Impacto'!$F$223&\"Por favor no seleccionar los criterios de impacto(Afectación Económica o presupuestal y Pérdida Reputacional)\",L40)","v":"     El riesgo afecta la imagen de la entidad con algunos usuarios de relevancia frente al logro de los objetivos"},{"$f":"IF(OR(M40='[7]Tabla Impacto'!$C$11,M40='[7]Tabla Impacto'!$D$11),\"Leve\",IF(OR(M40='[7]Tabla Impacto'!$C$12,M40='[7]Tabla Impacto'!$D$12),\"Menor\",IF(OR(M40='[7]Tabla Impacto'!$C$13,M40='[7]Tabla Impacto'!$D$13),\"Moderado\",IF(OR(M40='[7]Tabla Impacto'!$C$14,M40='[7]Tabla Impacto'!$D$14),\"Mayor\",IF(OR(M40='[7]Tabla Impacto'!$C$15,M40='[7]Tabla Impacto'!$D$15),\"Catastrófico\",\"\")))))","v":"Moderado"},0.6,"Moderado",1,"El profesionales validan la información en el sistema de la ANH y genera la liquidación según el procedimiento vigente (EP-P-61), en caso de encontrar desviación al control solicita a la ANH la actualización de la información en el sistema, es información es validada por el coordinador y el director.","Profesionales, coordinador y director ","Validar la información en el sistema de la ANH y generar la liquidación según el procedimiento vigente (EP-P-61), en caso de encontrar desviación al control solicitar a la ANH la actualización de la información en el sistema ","Oficios con la liquidación de los valores o confirmación de valores liquidados","Probabilidad","Preventivo","Manual","40%","Documentado","Continua","Con Registro",0.24,"Baja",0.24,"Moderado",0.6,"Moderado","Evitar",null,null,null,null,"Coordinador Grupo Upstream ","Grupo Upstream ","Director de Hidrocarburos ","2025-02-01","2025-12-31"]
[36,"HIDROCARBUROS","Gestión","Posibilidad de afectacion reputacional por  el sistema capture variables que no correspondan con la información definida dentro de la metodología, para la difusion de los boletines estadisticos debido a ausencia de parametrización de las reglas establecidas en el sistema (SQL)","reputacional"," el sistema capture variables que no correspondan con la información definida dentro de la metodología, para la difusion de los boletines estadisticos","ausencia de parametrización de las reglas establecidas en el sistema (SQL)","Ejecucion y Administracion de procesos",4,"Baja",0.4,"     El riesgo afecta la imagen de la entidad con algunos usuarios de relevancia frente al logro de los objetivos",{"$f":"IF(NOT(ISERROR(MATCH(L41,'[7]Tabla Impacto'!$B$221:$B$223,0))),'[7]Tabla Impacto'!$F$223&\"Por favor no seleccionar los criterios de impacto(Afectación Económica o presupuestal y Pérdida Reputacional)\",L41)","v":"     El riesgo afecta la imagen de la entidad con algunos usuarios de relevancia frente al logro de los objetivos"},{"$f":"IF(OR(M41='[7]Tabla Impacto'!$C$11,M41='[7]Tabla Impacto'!$D$11),\"Leve\",IF(OR(M41='[7]Tabla Impacto'!$C$12,M41='[7]Tabla Impacto'!$D$12),\"Menor\",IF(OR(M41='[7]Tabla Impacto'!$C$13,M41='[7]Tabla Impacto'!$D$13),\"Moderado\",IF(OR(M41='[7]Tabla Impacto'!$C$14,M41='[7]Tabla Impacto'!$D$14),\"Mayor\",IF(OR(M41='[7]Tabla Impacto'!$C$15,M41='[7]Tabla Impacto'!$D$15),\"Catastrófico\",\"\")))))","v":"Moderado"},0.6,"Moderado",1,"El Profesional liquidos/Profesional Downstream/Profesional BI - SICOM, valida el registro de errores y realiza los ajustes y pruebas a las reglas de validacion establecidas en la base de datos durante la etapa de analisisa mediante un reporte de los casos en el sistema aranda de manera mensual donde se adjunte el Log de errors de la Base de Datos SQL, cuando existe una desviación en las variables realizan ajustes de variables según la metodología establecida.   Adicionalmente, verifica el periodo de publicación dentro de los tiempos de calendario de difusión establecidos, antes de su publicacion.a mediante el  EP-F-11 Calendario de difusión del proceso estadístico  de las transacciones de volúmenes líquidos derivados del petróleo, en caso de presentar novedades en relación con accesibilidad, remite Correo electronico notificando novedades para ajustes; si no hay novedades en la verificación del periodo a publicar realiza la aprobación del boletin","El Profesional liquidos/Profesional Downstream/Profesional BI - SICOM,","Validar el registro de errores y realizar los ajustes y pruebas a las reglas de validacion establecidas en la base de datos durante la etapa de analisisa , cuando existe una desviación en las variables realizan ajustes de variables según la metodología establecida.   \nVerificar el periodo de publicación dentro de los tiempos de calendario de difusión establecidos, antes de su publicacion, en caso de presentar novedades en relación con accesibilidad, remite correo electronico notificando novedades para ajustes; si no hay novedades en la verificación del periodo a publicar realiza la aprobación del boletin","Reporte de los casos en el sistema aranda de manera mensual donde se adjunte el Log de errors de la Base de Datos SQL\nEP-F-11 Calendario de difusión del proceso estadístico  de las transacciones de volúmenes líquidos derivados del petróleo\nBoletín","Probabilidad","Preventivo","Manual","40%","Documentado","Continua","Con Registro",0.24,"Baja",0.24,"Moderado",0.6,"Moderado","Evitar",null,null,null,null,"Dayer Gozalez / Rafael Tabarez\nProfesional Downstream - SICOM / Profesional Grupo liquidos - SICOM","Direccion de hidrocarburos ","Director de Hidrocarburos ","2025-02-01","2025-12-31"]
[37,"HIDROCARBUROS","Gestión","Posibilidad de afectacion reputacional por la  información producida no contribuye al desarrollo de políticas públicas que respondan a las necesidades institucionales, de los clientes y partes interesadas  debido a ausencia de identificación y priorización de necesidades de información estadística relevante ","reputacional","la  información producida no contribuye al desarrollo de políticas públicas que respondan a las necesidades institucionales, de los clientes y partes interesadas ","ausencia de identificación y priorización de necesidades de información estadística relevante ","Ejecucion y Administracion de procesos",12,"Media",0.6,"     El riesgo afecta la imagen de la entidad con algunos usuarios de relevancia frente al logro de los objetivos",{"$f":"IF(NOT(ISERROR(MATCH(L42,'[7]Tabla Impacto'!$B$221:$B$223,0))),'[7]Tabla Impacto'!$F$223&\"Por favor no seleccionar los criterios de impacto(Afectación Económica o presupuestal y Pérdida Reputacional)\",L42)","v":"     El riesgo afecta la imagen de la entidad con algunos usuarios de relevancia frente al logro de los objetivos"},{"$f":"IF(OR(M42='[7]Tabla Impacto'!$C$11,M42='[7]Tabla Impacto'!$D$11),\"Leve\",IF(OR(M42='[7]Tabla Impacto'!$C$12,M42='[7]Tabla Impacto'!$D$12),\"Menor\",IF(OR(M42='[7]Tabla Impacto'!$C$13,M42='[7]Tabla Impacto'!$D$13),\"Moderado\",IF(OR(M42='[7]Tabla Impacto'!$C$14,M42='[7]Tabla Impacto'!$D$14),\"Mayor\",IF(OR(M42='[7]Tabla Impacto'!$C$15,M42='[7]Tabla Impacto'!$D$15),\"Catastrófico\",\"\")))))","v":"Moderado"},0.6,"Moderado",1,"El Lider Downstream/ Servicio al Ciudadano/Equipo SICOM, identifica mensualmente las necesidades de informacion asociadas a la operación estadistica  a través de los diferentes canales; prioriza y gestiona para su analisis y respuesta (registros de trazabilidad)","El Lider Downstream/ Servicio al Ciudadano/Equipo SICOM","Identifica mensualmente las necesidades de informacion asociadas a la operación estadistica  a través de los diferentes canales; prioriza y gestiona para su analisis y respuesta (registros de trazabilidad)","Registro de gestión de PQR´S (MME) \nRegistro casos (portal autogestión aranda- SICOM)",{"$f":"IF(OR(W42=\"Preventivo\",W42=\"Detectivo\"),\"Probabilidad\",IF(W42=\"Correctivo\",\"Impacto\",\"\"))","v":"Probabilidad"},"Preventivo","Manual",{"$f":"IF(AND(W42=\"Preventivo\",X42=\"Automático\"),\"50%\",IF(AND(W42=\"Preventivo\",X42=\"Manual\"),\"40%\",IF(AND(W42=\"Detectivo\",X42=\"Automático\"),\"40%\",IF(AND(W42=\"Detectivo\",X42=\"Manual\"),\"30%\",IF(AND(W42=\"Correctivo\",X42=\"Automático\"),\"35%\",IF(AND(W42=\"Correctivo\",X42=\"Manual\"),\"25%\",\"\"))))))","v":"40%"},"Sin Documentar","Continua","Con Registro",0.36,"Baja",0.36,"Moderado",0.6,"Moderado","Evitar",null,null,null,null,"Dayer Gozalez / Rafael Tabarez\nProfesional Downstream - SICOM / Profesional Grupo liquidos - SICOM","Direccion de hidrocarburos ","Director de Hidrocarburos ","2025-02-01","2025-12-31"]
[38,"HIDROCARBUROS","Gestión","Posibilidad de afectacion reputacional por la  información producida no contribuye al desarrollo de políticas públicas que respondan a las necesidades institucionales, de los clientes y partes interesadas  debido a la Construcción de procedimientos, instrumentos, mecanismos y herramientas que no corresponden a los objetivos de la operación estadística ","reputacional","la  información producida no contribuye al desarrollo de políticas públicas que respondan a las necesidades institucionales, de los clientes y partes interesadas ","la Construcción de procedimientos, instrumentos, mecanismos y herramientas que no corresponden a los objetivos de la operación estadística ","Ejecucion y Administracion de procesos",12,"Media",0.6,"     El riesgo afecta la imagen de la entidad con algunos usuarios de relevancia frente al logro de los objetivos",{"$f":"IF(NOT(ISERROR(MATCH(L43,'[7]Tabla Impacto'!$B$221:$B$223,0))),'[7]Tabla Impacto'!$F$223&\"Por favor no seleccionar los criterios de impacto(Afectación Económica o presupuestal y Pérdida Reputacional)\",L43)","v":"     El riesgo afecta la imagen de la entidad con algunos usuarios de relevancia frente al logro de los objetivos"},{"$f":"IF(OR(M43='[7]Tabla Impacto'!$C$11,M43='[7]Tabla Impacto'!$D$11),\"Leve\",IF(OR(M43='[7]Tabla Impacto'!$C$12,M43='[7]Tabla Impacto'!$D$12),\"Menor\",IF(OR(M43='[7]Tabla Impacto'!$C$13,M43='[7]Tabla Impacto'!$D$13),\"Moderado\",IF(OR(M43='[7]Tabla Impacto'!$C$14,M43='[7]Tabla Impacto'!$D$14),\"Mayor\",IF(OR(M43='[7]Tabla Impacto'!$C$15,M43='[7]Tabla Impacto'!$D$15),\"Catastrófico\",\"\")))))","v":"Moderado"},0.6,"Moderado",1,"El Lider Downstream, realiza un monitoreo a los instrumentos, mecanismos y herramientas del proceso estadistico que permita identificar el incumplimiento frente a las metodologias definidas en la NTC PE 1000:2020 y en caso de existir desviaciones, corregir y actualizar los hallazgos ","Lider Downstream, "," Realizar monitoreo a los instrumentos, mecanismos y herramientas del proceso estadistico que permita identificar el incumplimiento frente a las metodologias definidas en la NTC PE 1000:2020 y en caso de existir desviaciones, corregir y actualizar los hallazgos mediante un plan de mejoramiento","Evaluación de la operación estadistica anual\nAuditorias internas anuales\nplan de mejoramiento",{"$f":"IF(OR(W43=\"Preventivo\",W43=\"Detectivo\"),\"Probabilidad\",IF(W43=\"Correctivo\",\"Impacto\",\"\"))","v":"Probabilidad"},"Preventivo","Manual",{"$f":"IF(AND(W43=\"Preventivo\",X43=\"Automático\"),\"50%\",IF(AND(W43=\"Preventivo\",X43=\"Manual\"),\"40%\",IF(AND(W43=\"Detectivo\",X43=\"Automático\"),\"40%\",IF(AND(W43=\"Detectivo\",X43=\"Manual\"),\"30%\",IF(AND(W43=\"Correctivo\",X43=\"Automático\"),\"35%\",IF(AND(W43=\"Correctivo\",X43=\"Manual\"),\"25%\",\"\"))))))","v":"40%"},"Documentado","Continua","Con Registro",0.36,"Baja",0.36,"Moderado",0.6,"Moderado","Evitar",null,null,null,null,"Dayer Gozalez / Rafael Tabarez\nProfesional Downstream - SICOM / Profesional Grupo liquidos - SICOM","Direccion de hidrocarburos ","Director de Hidrocarburos ","2025-02-01","2025-12-31"]
[39,"HIDROCARBUROS","Gestión","Posibilidad de afectacion reputacional por Publicación de información errónea o limitada para los grupos de interés del ministerio debido a no identificar los grupos de interes, sus necesidades de informacion y  herramientas de publicacion de información","reputacional","Publicación de información errónea o limitada para los grupos de interés del ministerio","no identificar los grupos de interes, sus necesidades de informacion y  herramientas de publicacion de información","Ejecucion y Administracion de procesos",12,"Media",0.6,"     El riesgo afecta la imagen de la entidad con algunos usuarios de relevancia frente al logro de los objetivos",{"$f":"IF(NOT(ISERROR(MATCH(L44,'[7]Tabla Impacto'!$B$221:$B$223,0))),'[7]Tabla Impacto'!$F$223&\"Por favor no seleccionar los criterios de impacto(Afectación Económica o presupuestal y Pérdida Reputacional)\",L44)","v":"     El riesgo afecta la imagen de la entidad con algunos usuarios de relevancia frente al logro de los objetivos"},{"$f":"IF(OR(M44='[7]Tabla Impacto'!$C$11,M44='[7]Tabla Impacto'!$D$11),\"Leve\",IF(OR(M44='[7]Tabla Impacto'!$C$12,M44='[7]Tabla Impacto'!$D$12),\"Menor\",IF(OR(M44='[7]Tabla Impacto'!$C$13,M44='[7]Tabla Impacto'!$D$13),\"Moderado\",IF(OR(M44='[7]Tabla Impacto'!$C$14,M44='[7]Tabla Impacto'!$D$14),\"Mayor\",IF(OR(M44='[7]Tabla Impacto'!$C$15,M44='[7]Tabla Impacto'!$D$15),\"Catastrófico\",\"\")))))","v":"Moderado"},0.6,"Moderado",1,"\n\nEl Líder Grupo Gas Operador SICOM identifica las necesidades de informacion, para su análisis y respuesta; revisa que los productos estadísticos sean accesibles  comprensibles para los grupos de interés en los canales de comunicación establecidos; en caso de encontrar desviaciones realizar mejoras en la informacion publicada o mantenimiento de los servicios","Líder Grupo Gas  /  Operador SICOM","Identificar las necesidades de informacion, para su análisis y respuesta (registros de trazabilidad) y revisa que los productos estadísticos sean accesibles y de comprensión para los grupos de interés, en los canales de comunicación establecidos","Documentos de analisis de necesidades de registro de PQRS de la informacion estadistica a traves de ARGO.\n\nCorreo de aprobacion sobre la accesibilidad para la publicación de la información \n\n",{"$f":"IF(OR(W44=\"Preventivo\",W44=\"Detectivo\"),\"Probabilidad\",IF(W44=\"Correctivo\",\"Impacto\",\"\"))","v":"Probabilidad"},"Preventivo","Manual",{"$f":"IF(AND(W44=\"Preventivo\",X44=\"Automático\"),\"50%\",IF(AND(W44=\"Preventivo\",X44=\"Manual\"),\"40%\",IF(AND(W44=\"Detectivo\",X44=\"Automático\"),\"40%\",IF(AND(W44=\"Detectivo\",X44=\"Manual\"),\"30%\",IF(AND(W44=\"Correctivo\",X44=\"Automático\"),\"35%\",IF(AND(W44=\"Correctivo\",X44=\"Manual\"),\"25%\",\"\"))))))","v":"40%"},"Documentado","Continua","Con Registro",0.36,"Baja",0.36,"Moderado",0.6,"Moderado","Evitar",null,null,null,null,"Dayer Gozalez / Rafael Tabarez\nProfesional Downstream - SICOM / Profesional Grupo GAS - SICOM","Direccion de hidrocarburos ","Director de Hidrocarburos ","2025-02-01","2025-12-31"]
[40,"HIDROCARBUROS","Gestión","Posibilidad de afectacion reputacional por Incumplimiento en una o varias fases del proceso estadistico seguno la NTC PE 1000 - 2020 que pueden afectar la producción estadística debido a no comunicar los cambios que se puedan presentar a nivel institucional  (estratégicos, lineamientos operativos, personal) y/o falta de claridad de los roles, definicion de responsabilidades y falta de conocimiento para el desarrollo de las actividades de la operación estadistica","reputacional","Incumplimiento en una o varias fases del proceso estadistico seguno la NTC PE 1000 - 2020 que pueden afectar la producción estadística","no comunicar los cambios que se puedan presentar a nivel institucional  (estratégicos, lineamientos operativos, personal) y/o falta de claridad de los roles, definicion de responsabilidades y falta de conocimiento para el desarrollo de las actividades de la operación estadistica","Ejecucion y Administracion de procesos",2,"Muy Baja",0.2,"     El riesgo afecta la imagen de la entidad con algunos usuarios de relevancia frente al logro de los objetivos",{"$f":"IF(NOT(ISERROR(MATCH(L45,'[7]Tabla Impacto'!$B$221:$B$223,0))),'[7]Tabla Impacto'!$F$223&\"Por favor no seleccionar los criterios de impacto(Afectación Económica o presupuestal y Pérdida Reputacional)\",L45)","v":"     El riesgo afecta la imagen de la entidad con algunos usuarios de relevancia frente al logro de los objetivos"},{"$f":"IF(OR(M45='[7]Tabla Impacto'!$C$11,M45='[7]Tabla Impacto'!$D$11),\"Leve\",IF(OR(M45='[7]Tabla Impacto'!$C$12,M45='[7]Tabla Impacto'!$D$12),\"Menor\",IF(OR(M45='[7]Tabla Impacto'!$C$13,M45='[7]Tabla Impacto'!$D$13),\"Moderado\",IF(OR(M45='[7]Tabla Impacto'!$C$14,M45='[7]Tabla Impacto'!$D$14),\"Mayor\",IF(OR(M45='[7]Tabla Impacto'!$C$15,M45='[7]Tabla Impacto'!$D$15),\"Catastrófico\",\"\")))))","v":"Moderado"},0.6,"Moderado",1,"El Lider Grupo Gas/ Lider / operador SICOM, Realizará periodicamente la evaluacion del proceso estadistico en cada una de las fases, cuando exista una desviacion del control se realiza el cambio correspondiente describiendo en la observacion el tipo de cambio realizado.\nIgualmente, Informará y participará (en los casos que aplique) al operador y enlace del MME, de las actividades que se realizan al interior de la entidad y que impactan de manera directa la implementación y seguimiento de la OE. \nAdicionalmente, Definirá los roles y responsabilidades de las personas que desarrollen las actividades dentro del proceso estadistico segun la metodologia definida.\ny Finalmente, Contará con el  personal involucrado en la implementacion (MME) para dar continidad a la actividades planificadas y fortalecer los conocimientos del personal (operador - MME) en temas relacionados con el proceso estadístico. ","Lider Grupo Gas/ Lider / operador SICOM","Realizar periodicamente la evaluacion del proceso estadistico en cada una de las fases. cuando exista una desviacion del control se realiza el cambio correspondiente describiendo en la observacion el tipo de cambio realizado.\nInformar y participar (en los casos que aplique) al operador y enlace del MME, de las actividades que se realizan al interior de la entidad y que impactan de manera directa la implementación y seguimiento de la OE. \nDefinir los roles y responsabilidades de las personas que desarrollen las actividades dentro del proceso estadistico segun la metodologia definida.\nContar con el  personal involucrado en la implementacion (MME) para dar continidad a la actividades planificadas y fortalecer los conocimientos del personal (operador - MME) en temas relacionados con el proceso estadístico. \n","Registro evaluación del proceso estadístico\nActas de reuniones (cuando aplique)\nFormación y entrenamiento ( cuando aplique).\nMatriz de control de personal","Probabilidad","Preventivo","Manual","40%","Documentado","Continua","Con Registro",0.12,"Muy Baja",0.12,"Moderado",0.6,"Moderado","Evitar",null,null,null,null,"Dayer Gozalez / Rafael Tabarez\nProfesional Downstream - SICOM / Profesional Grupo GAS - SICOM","Direccion de hidrocarburos ","Director de Hidrocarburos ","2025-02-01","2025-12-31"]
[41,"HIDROCARBUROS","Gestión","Posibilidad de afectacion reputacional por incertidumbre en los resultados del proceso estadistico en relacion la consistencia de los resultados debido a no aplicar la metodología de analisis que permita validar la información publicada, que reflejen la realidad del fenómeno de estudio","reputacional","incertidumbre en los resultados del proceso estadistico en relacion la consistencia de los resultados","no aplicar la metodología de analisis que permita validar la información publicada, que reflejen la realidad del fenómeno de estudio","Ejecucion y Administracion de procesos",3,"Baja",0.4,"     El riesgo afecta la imagen de la entidad con algunos usuarios de relevancia frente al logro de los objetivos",{"$f":"IF(NOT(ISERROR(MATCH(L46,'[7]Tabla Impacto'!$B$221:$B$223,0))),'[7]Tabla Impacto'!$F$223&\"Por favor no seleccionar los criterios de impacto(Afectación Económica o presupuestal y Pérdida Reputacional)\",L46)","v":"     El riesgo afecta la imagen de la entidad con algunos usuarios de relevancia frente al logro de los objetivos"},{"$f":"IF(OR(M46='[7]Tabla Impacto'!$C$11,M46='[7]Tabla Impacto'!$D$11),\"Leve\",IF(OR(M46='[7]Tabla Impacto'!$C$12,M46='[7]Tabla Impacto'!$D$12),\"Menor\",IF(OR(M46='[7]Tabla Impacto'!$C$13,M46='[7]Tabla Impacto'!$D$13),\"Moderado\",IF(OR(M46='[7]Tabla Impacto'!$C$14,M46='[7]Tabla Impacto'!$D$14),\"Mayor\",IF(OR(M46='[7]Tabla Impacto'!$C$15,M46='[7]Tabla Impacto'!$D$15),\"Catastrófico\",\"\")))))","v":"Moderado"},0.6,"Moderado",1,"El Lider Grupo Gas operador SICOM validará mediante socializaciones los resultados del analisis de la produccion estadistica, analizando que la informacion sea comprensiva, tenga credibilidad de resultados y confianza para toma de decisiones.  En caso que se encuentre desviaciones del control se reajustará la metodologia aplicada","Lider Grupo Gas operador SICOM","socializar los resultados del analisis de la produccion estadistica, analizando que la informacion sea comprensiva, tenga credibilidad de resultados y confianza para toma de decisiones. ","Reportes de las novedades presentadas (caso aranda) \nRegistos de socializacion de los resultados (garabaciones, reuniones, etc)\n","Probabilidad","Preventivo","Manual","40%","Documentado","Continua","Con Registro",0.24,"Baja",0.24,"Moderado",0.6,"Moderado","Evitar",null,null,null,null,"Dayer Gozalez / Rafael Tabarez\nProfesional Downstream - SICOM / Profesional Grupo GAS - SICOM","Direccion de hidrocarburos ","Director de Hidrocarburos ","2025-02-01","2025-12-31"]
[42,"HIDROCARBUROS","Gestión","Posibilidad de afectacion reputacional por Ausencia de informacion estadistica de gas combustible vehicular relevante para la toma de decisiones debido a no publicar oportunamente los productos de informacion estadística, según el cronograma de difusión","reputacional","Ausencia de informacion estadistica de gas combustible vehicular relevante para la toma de decisiones","no publicar oportunamente los productos de informacion estadística, según el cronograma de difusión","Ejecucion y Administracion de procesos",6,"Media",0.6,"     El riesgo afecta la imagen de alguna área de la organización",{"$f":"IF(NOT(ISERROR(MATCH(L47,'[7]Tabla Impacto'!$B$221:$B$223,0))),'[7]Tabla Impacto'!$F$223&\"Por favor no seleccionar los criterios de impacto(Afectación Económica o presupuestal y Pérdida Reputacional)\",L47)","v":"     El riesgo afecta la imagen de alguna área de la organización"},{"$f":"IF(OR(M47='[7]Tabla Impacto'!$C$11,M47='[7]Tabla Impacto'!$D$11),\"Leve\",IF(OR(M47='[7]Tabla Impacto'!$C$12,M47='[7]Tabla Impacto'!$D$12),\"Menor\",IF(OR(M47='[7]Tabla Impacto'!$C$13,M47='[7]Tabla Impacto'!$D$13),\"Moderado\",IF(OR(M47='[7]Tabla Impacto'!$C$14,M47='[7]Tabla Impacto'!$D$14),\"Mayor\",IF(OR(M47='[7]Tabla Impacto'!$C$15,M47='[7]Tabla Impacto'!$D$15),\"Catastrófico\",\"\")))))","v":"Leve"},0.2,"Moderado",1,"El Lider Grupo Gas, Realizará seguimiento periodico al calendario establecido para la publicación de los productos estadísticos y a su vez, realizará monitoreo y  actualizaciones en la infraestructura tecnologica y otros instrumentos de comunicación para el acceso a la información.","Lider Grupo Gas","Realizar seguimiento periodico al calendario establecido para la publicación de los productos estadísticos; realizar monitoreo y  actualizaciones en la infraestructura tecnologica y otros instrumentos de comunicación para el acceso a la información.","Correos de aprobación de la publicación de la información estadística.\n\nReporte de monitoreo y actualizacion en la infraestructura del boletin estadistico","Probabilidad","Preventivo","Manual","40%","Documentado","Continua","Con Registro",0.36,"Baja",0.36,"Leve",0.2,"Bajo","Evitar",null,null,null,null,"Dayer Gozalez / Rafael Tabarez\nProfesional Downstream - SICOM / Profesional Grupo GAS - SICOM","Direccion de hidrocarburos ","Director de Hidrocarburos ","2025-02-01","2025-12-31"]
[43,"HIDROCARBUROS","Fiscal",{"$f":"IF(C48=\"Fiscal\",_xlfn.CONCAT(\"Posibilidad de efectos dañosos sobre bienes públicos \",\" por o para \",F48,\" debido a \",G48),IF(C48=\"Gestión\",_xlfn.CONCAT(\"Posibilidad de afectacion \",E48,\" por \",F48,\" debido a \",G48),\"\"))","v":"Posibilidad de efectos dañosos sobre bienes públicos  por o para pago de subsidios u otros beneficios a una empresa prestadora de servicios públicos (Gas Cilindros y RED) que no tienen derecho a los mismos a la luz de requisitos de ley debido a a causa de la omisión en la aplicación del procedimiento y normatividad para la asignación de recursos"},"reputacional","pago de subsidios u otros beneficios a una empresa prestadora de servicios públicos (Gas Cilindros y RED) que no tienen derecho a los mismos a la luz de requisitos de ley","a causa de la omisión en la aplicación del procedimiento y normatividad para la asignación de recursos","Ejecucion y Administracion de procesos",12,{"$f":"IF(I48<=0,\"\",IF(I48<=2,\"Muy Baja\",IF(I48<=5,\"Baja\",IF(I48<=19,\"Media\",IF(I48<=50,\"Alta\",\"Muy Alta\")))))","v":"Media"},{"$f":"IF(J48=\"\",\"\",IF(J48=\"Muy Baja\",0.2,IF(J48=\"Baja\",0.4,IF(J48=\"Media\",0.6,IF(J48=\"Alta\",0.8,IF(J48=\"Muy Alta\",1,))))))","v":0.6},"     El riesgo afecta la imagen de la entidad a nivel nacional, con efecto publicitarios sostenible a nivel país",{"$f":"IF(NOT(ISERROR(MATCH(L48,'[7]Tabla Impacto'!$B$221:$B$223,0))),'[7]Tabla Impacto'!$F$223&\"Por favor no seleccionar los criterios de impacto(Afectación Económica o presupuestal y Pérdida Reputacional)\",L48)","v":"     El riesgo afecta la imagen de la entidad a nivel nacional, con efecto publicitarios sostenible a nivel país"},{"$f":"IF(OR(M48='[7]Tabla Impacto'!$C$11,M48='[7]Tabla Impacto'!$D$11),\"Leve\",IF(OR(M48='[7]Tabla Impacto'!$C$12,M48='[7]Tabla Impacto'!$D$12),\"Menor\",IF(OR(M48='[7]Tabla Impacto'!$C$13,M48='[7]Tabla Impacto'!$D$13),\"Moderado\",IF(OR(M48='[7]Tabla Impacto'!$C$14,M48='[7]Tabla Impacto'!$D$14),\"Mayor\",IF(OR(M48='[7]Tabla Impacto'!$C$15,M48='[7]Tabla Impacto'!$D$15),\"Catastrófico\",\"\")))))","v":"Catastrófico"},1,"Extremo",1,"El profesional especializado del grupo gas combustible verifica que la Superintendencia de Servicios Público Domiciliarios (SSPD) envíe el estado de cargue de informaicón en el SUI por parte de las empresas del sector de gas combustible, con el fin de realizar la distribución y asignación de los subsidios, para luego remitir a la Subdirección Administrativa y Financiera para que proceda con el pago respectivo, en caso que no haya validación de cargue de información por parte de la SSPD no se procederá con el pago y se informará a la empresa prestadora.","Profesional especializado grupo gas combustible","Verificar que la Superintendencia de Servicios Público Domiciliarios (SSPD) envíe el estado de cargue de informaicón en el SUI por parte de las empresas del sector de gas combustible, con el fin de realizar la distribución y asignación de los subsidios, para luego remitir a la Subdirección Administrativa y Financiera para que proceda con el pago respectivo, en caso que no haya validación de cargue de información por parte de la SSPD no se procederá con el pago y se informará a la empresa prestadora.","Comunicación de la SSPD, resolución de pago y comunicación a la empresa prestadora",{"$f":"IF(OR(W48=\"Preventivo\",W48=\"Detectivo\"),\"Probabilidad\",IF(W48=\"Correctivo\",\"Impacto\",\"\"))","v":"Probabilidad"},"Preventivo","Manual",{"$f":"IF(AND(W48=\"Preventivo\",X48=\"Automático\"),\"50%\",IF(AND(W48=\"Preventivo\",X48=\"Manual\"),\"40%\",IF(AND(W48=\"Detectivo\",X48=\"Automático\"),\"40%\",IF(AND(W48=\"Detectivo\",X48=\"Manual\"),\"30%\",IF(AND(W48=\"Correctivo\",X48=\"Automático\"),\"35%\",IF(AND(W48=\"Correctivo\",X48=\"Manual\"),\"25%\",\"\"))))))","v":"40%"},"Documentado","Continua","Con Registro",0.36,"Baja",0.36,"Catastrófico",1,"Extremo","Evitar",null,null,null,null,"Profesional especializado grupo gas combustible","Direccion de hidrocarburos ","Director de Hidrocarburos ","2025-02-01","2025-12-31"]
[null,null,null,null,null,null,null,null,null,null,null,null,null,null,null,null,2,"El profesional especializado del grupo gas combustible realiza la debida verificación de datos en cada uno de los aplicativos (SUI-SSPD  y aplicativo de subsidios del MME ) para  validar que el valor real a pagar sea el mismo en los dos aplicativos, en caso que los valores no sean iguales en ambos aplicativos no se procede al pago.","Profesional especializado grupo gas combustible","verificación de datos en cada uno de los aplicativos (SUI-SSPD  y aplicativo de subsidios del MME ) para  validar que el valor real a pagar sea el mismo en los dos aplicativos, en caso que los valores no sean iguales en ambos aplicativos no se procede al pago."," Resolución de pago generada correspondiente a los valores pagados durante el mes.\nExcel verificación de SUI mes validado","Probabilidad","Preventivo","Manual","40%","Documentado","Continua","Con Registro",{"$f":"IFERROR(IF(V49=\"Probabilidad\",(K49-(+K49*Y49)),IF(V49=\"Impacto\",K49,\"\")),\"\")","v":0},{"$f":"IFERROR(IF(AC49=\"\",\"\",IF(AC49<=0.2,\"Muy Baja\",IF(AC49<=0.4,\"Baja\",IF(AC49<=0.6,\"Media\",IF(AC49<=0.8,\"Alta\",\"Muy Alta\"))))),\"\")","v":"Muy Baja"},{"$f":"+AC49","v":0},{"$f":"IFERROR(IF(AG49=\"\",\"\",IF(AG49<=0.2,\"Leve\",IF(AG49<=0.4,\"Menor\",IF(AG49<=0.6,\"Moderado\",IF(AG49<=0.8,\"Mayor\",\"Catastrófico\"))))),\"\")","v":"Leve"},{"$f":"IFERROR(IF(V49=\"Impacto\",(O49-(+O49*Y49)),IF(V49=\"Probabilidad\",O49,\"\")),\"\")","v":0},{"$f":"IFERROR(IF(OR(AND(AD49=\"Muy Baja\",AF49=\"Leve\"),AND(AD49=\"Muy Baja\",AF49=\"Menor\"),AND(AD49=\"Baja\",AF49=\"Leve\")),\"Bajo\",IF(OR(AND(AD49=\"Muy baja\",AF49=\"Moderado\"),AND(AD49=\"Baja\",AF49=\"Menor\"),AND(AD49=\"Baja\",AF49=\"Moderado\"),AND(AD49=\"Media\",AF49=\"Leve\"),AND(AD49=\"Media\",AF49=\"Menor\"),AND(AD49=\"Media\",AF49=\"Moderado\"),AND(AD49=\"Alta\",AF49=\"Leve\"),AND(AD49=\"Alta\",AF49=\"Menor\")),\"Moderado\",IF(OR(AND(AD49=\"Muy Baja\",AF49=\"Mayor\"),AND(AD49=\"Baja\",AF49=\"Mayor\"),AND(AD49=\"Media\",AF49=\"Mayor\"),AND(AD49=\"Alta\",AF49=\"Moderado\"),AND(AD49=\"Alta\",AF49=\"Mayor\"),AND(AD49=\"Muy Alta\",AF49=\"Leve\"),AND(AD49=\"Muy Alta\",AF49=\"Menor\"),AND(AD49=\"Muy Alta\",AF49=\"Moderado\"),AND(AD49=\"Muy Alta\",AF49=\"Mayor\")),\"Alto\",IF(OR(AND(AD49=\"Muy Baja\",AF49=\"Catastrófico\"),AND(AD49=\"Baja\",AF49=\"Catastrófico\"),AND(AD49=\"Media\",AF49=\"Catastrófico\"),AND(AD49=\"Alta\",AF49=\"Catastrófico\"),AND(AD49=\"Muy Alta\",AF49=\"Catastrófico\")),\"Extremo\",\"\")))),\"\")","v":"Bajo"},"Evitar",null,null,null,null,"Profesional especializado grupo gas combustible","Direccion de hidrocarburos ","Director de Hidrocarburos ","2025-02-01","2025-12-31"]
[44,"HIDROCARBUROS","Gestión",{"$f":"IF(C50=\"Fiscal\",_xlfn.CONCAT(\"Posibilidad de efectos dañosos sobre bienes públicos \",\" por o para \",F50,\" debido a \",G50),IF(C50=\"Gestión\",_xlfn.CONCAT(\"Posibilidad de afectacion \",E50,\" por \",F50,\" debido a \",G50),\"\"))","v":"Posibilidad de afectacion reputacional por no generar oportunamente las alertas sobre el avance del recaudo del SGR y el comportamiento de las variables utilizadas para las proyecciones del presupuesto bienal del SGR por no realizar el seguimiento al recaudo del SGR y a la determinación mensual de Asignaciones Directas debido a que no se realiza la consolidación mensual de la información reportada por la Agencia Nacional de Minería y la Agencia Nacional de Hidrocarburos mensualmente relacionada con el recaudo por sector de explotación y con la determinación las Asignaciones Directas por beneficiario."},"reputacional","no generar oportunamente las alertas sobre el avance del recaudo del SGR y el comportamiento de las variables utilizadas para las proyecciones del presupuesto bienal del SGR por no realizar el seguimiento al recaudo del SGR y a la determinación mensual de Asignaciones Directas","que no se realiza la consolidación mensual de la información reportada por la Agencia Nacional de Minería y la Agencia Nacional de Hidrocarburos mensualmente relacionada con el recaudo por sector de explotación y con la determinación las Asignaciones Directas por beneficiario.","Ejecucion y Administracion de procesos",12,{"$f":"IF(I50<=0,\"\",IF(I50<=2,\"Muy Baja\",IF(I50<=24,\"Baja\",IF(I50<=500,\"Media\",IF(I50<=5000,\"Alta\",\"Muy Alta\")))))","v":"Baja"},0.4,"     El riesgo afecta la imagen de la entidad a nivel nacional, con efecto publicitarios sostenible a nivel país",{"$f":"IF(NOT(ISERROR(MATCH(L50,'[5]Tabla Impacto'!#REF!,0))),'[5]Tabla Impacto'!$F$229&\"Por favor no seleccionar los criterios de impacto(Afectación Económica o presupuestal y Pérdida Reputacional)\",L50)","v":"     El riesgo afecta la imagen de la entidad a nivel nacional, con efecto publicitarios sostenible a nivel país"},{"$f":"IF(OR(M50='[5]Tabla Impacto'!$C$11,M50='[5]Tabla Impacto'!$D$11),\"Leve\",IF(OR(M50='[5]Tabla Impacto'!$C$12,M50='[5]Tabla Impacto'!$D$12),\"Menor\",IF(OR(M50='[5]Tabla Impacto'!$C$13,M50='[5]Tabla Impacto'!$D$13),\"Moderado\",IF(OR(M50='[5]Tabla Impacto'!$C$14,M50='[5]Tabla Impacto'!$D$14),\"Mayor\",IF(OR(M50='[5]Tabla Impacto'!$C$15,M50='[5]Tabla Impacto'!$D$15),\"Catastrófico\",\"\")))))","v":"Catastrófico"},{"$f":"IF(N50=\"\",\"\",IF(N50=\"Leve\",0.2,IF(N50=\"Menor\",0.4,IF(N50=\"Moderado\",0.6,IF(N50=\"Mayor\",0.8,IF(N50=\"Catastrófico\",1,))))))","v":1},{"$f":"IF(OR(AND(J50=\"Muy Baja\",N50=\"Leve\"),AND(J50=\"Muy Baja\",N50=\"Menor\"),AND(J50=\"Baja\",N50=\"Leve\")),\"Bajo\",IF(OR(AND(J50=\"Muy baja\",N50=\"Moderado\"),AND(J50=\"Baja\",N50=\"Menor\"),AND(J50=\"Baja\",N50=\"Moderado\"),AND(J50=\"Media\",N50=\"Leve\"),AND(J50=\"Media\",N50=\"Menor\"),AND(J50=\"Media\",N50=\"Moderado\"),AND(J50=\"Alta\",N50=\"Leve\"),AND(J50=\"Alta\",N50=\"Menor\")),\"Moderado\",IF(OR(AND(J50=\"Muy Baja\",N50=\"Mayor\"),AND(J50=\"Baja\",N50=\"Mayor\"),AND(J50=\"Media\",N50=\"Mayor\"),AND(J50=\"Alta\",N50=\"Moderado\"),AND(J50=\"Alta\",N50=\"Mayor\"),AND(J50=\"Muy Alta\",N50=\"Leve\"),AND(J50=\"Muy Alta\",N50=\"Menor\"),AND(J50=\"Muy Alta\",N50=\"Moderado\"),AND(J50=\"Muy Alta\",N50=\"Mayor\")),\"Alto\",IF(OR(AND(J50=\"Muy Baja\",N50=\"Catastrófico\"),AND(J50=\"Baja\",N50=\"Catastrófico\"),AND(J50=\"Media\",N50=\"Catastrófico\"),AND(J50=\"Alta\",N50=\"Catastrófico\"),AND(J50=\"Muy Alta\",N50=\"Catastrófico\")),\"Extremo\",\"\"))))","v":"Extremo"},1,"El Grupo de Regalías, hará seguimiento mensual al recaudo de regalías mediante, el registro en una matriz de seguimiento al recaudo de regalías que informen la Agencia Nacional de Minería y la Agencia Nacional de Hidrocarburos y en caso de ser necesario, alertará cambios en el recaudo frente a la apropiación de Asignaciones Directas de conformidad con lo dispuesto en el artículo 153 de la Ley 2056 de 2020.","Grupo de Regalías","hará seguimiento al recaudo de regalías ","el registro en una matriz de seguimiento al recaudo de regalías que informen la Agencia Nacional de Minería y la Agencia Nacional de Hidrocarburos y en caso de ser necesario, alertará  cambios en el recaudo frente a la apropiación de Asignaciones Directas de conformidad con lo dispuesto en el artículo 153 de la Ley 2056 de 2020.",{"$f":"IF(OR(W50=\"Preventivo\",W50=\"Detectivo\"),\"Probabilidad\",IF(W50=\"Correctivo\",\"Impacto\",\"\"))","v":"Probabilidad"},"Preventivo","Manual",{"$f":"IF(AND(W50=\"Preventivo\",X50=\"Automático\"),\"50%\",IF(AND(W50=\"Preventivo\",X50=\"Manual\"),\"40%\",IF(AND(W50=\"Detectivo\",X50=\"Automático\"),\"40%\",IF(AND(W50=\"Detectivo\",X50=\"Manual\"),\"30%\",IF(AND(W50=\"Correctivo\",X50=\"Automático\"),\"35%\",IF(AND(W50=\"Correctivo\",X50=\"Manual\"),\"25%\",\"\"))))))","v":"40%"},"Sin Documentar","Continua","Con Registro",0.24,"Baja",0.24,"Catastrófico",1,"Extremo","Evitar","Documentar el control","Asesora","2025-01-01","Trimestral","Coordinador","Gupo de Regalías","Jefe de Grupo","2025-01-01","2025-12-31"]
[45,"ASUNTOS NUCLEARES","Gestión","Posibilidad de afectacion económico y reputacional por incidentes o accidentes radiologicos o nucleares que afecten a los usuarios  debido a realización de actividades no autorizadas y desactualización de la regulación para el uso seguro de materiales nucleares y radiactivos ","económico y reputacional","incidentes o accidentes radiologicos o nucleares que afecten a los usuarios ","realización de actividades no autorizadas y desactualización de la regulación para el uso seguro de materiales nucleares y radiactivos ","Usuarios, productos y practicas , organizacionales",7,{"$f":"IF(I51<=0,\"\",IF(I51<=2,\"Muy Baja\",IF(I51<=24,\"Baja\",IF(I51<=500,\"Media\",IF(I51<=5000,\"Alta\",\"Muy Alta\")))))","v":"Baja"},{"$f":"IF(J51=\"\",\"\",IF(J51=\"Muy Baja\",0.2,IF(J51=\"Baja\",0.4,IF(J51=\"Media\",0.6,IF(J51=\"Alta\",0.8,IF(J51=\"Muy Alta\",1,))))))","v":0.4},"     El riesgo afecta la imagen de la entidad a nivel nacional, con efecto publicitarios sostenible a nivel país",{"$f":"IF(NOT(ISERROR(MATCH(L51,'[5]Tabla Impacto'!#REF!,0))),'[5]Tabla Impacto'!$F$229&\"Por favor no seleccionar los criterios de impacto(Afectación Económica o presupuestal y Pérdida Reputacional)\",L51)","v":"     El riesgo afecta la imagen de la entidad a nivel nacional, con efecto publicitarios sostenible a nivel país"},{"$f":"IF(OR(M51='[5]Tabla Impacto'!$C$11,M51='[5]Tabla Impacto'!$D$11),\"Leve\",IF(OR(M51='[5]Tabla Impacto'!$C$12,M51='[5]Tabla Impacto'!$D$12),\"Menor\",IF(OR(M51='[5]Tabla Impacto'!$C$13,M51='[5]Tabla Impacto'!$D$13),\"Moderado\",IF(OR(M51='[5]Tabla Impacto'!$C$14,M51='[5]Tabla Impacto'!$D$14),\"Mayor\",IF(OR(M51='[5]Tabla Impacto'!$C$15,M51='[5]Tabla Impacto'!$D$15),\"Catastrófico\",\"\")))))","v":"Catastrófico"},{"$f":"IF(N51=\"\",\"\",IF(N51=\"Leve\",0.2,IF(N51=\"Menor\",0.4,IF(N51=\"Moderado\",0.6,IF(N51=\"Mayor\",0.8,IF(N51=\"Catastrófico\",1,))))))","v":1},{"$f":"IF(OR(AND(J51=\"Muy Baja\",N51=\"Leve\"),AND(J51=\"Muy Baja\",N51=\"Menor\"),AND(J51=\"Baja\",N51=\"Leve\")),\"Bajo\",IF(OR(AND(J51=\"Muy baja\",N51=\"Moderado\"),AND(J51=\"Baja\",N51=\"Menor\"),AND(J51=\"Baja\",N51=\"Moderado\"),AND(J51=\"Media\",N51=\"Leve\"),AND(J51=\"Media\",N51=\"Menor\"),AND(J51=\"Media\",N51=\"Moderado\"),AND(J51=\"Alta\",N51=\"Leve\"),AND(J51=\"Alta\",N51=\"Menor\")),\"Moderado\",IF(OR(AND(J51=\"Muy Baja\",N51=\"Mayor\"),AND(J51=\"Baja\",N51=\"Mayor\"),AND(J51=\"Media\",N51=\"Mayor\"),AND(J51=\"Alta\",N51=\"Moderado\"),AND(J51=\"Alta\",N51=\"Mayor\"),AND(J51=\"Muy Alta\",N51=\"Leve\"),AND(J51=\"Muy Alta\",N51=\"Menor\"),AND(J51=\"Muy Alta\",N51=\"Moderado\"),AND(J51=\"Muy Alta\",N51=\"Mayor\")),\"Alto\",IF(OR(AND(J51=\"Muy Baja\",N51=\"Catastrófico\"),AND(J51=\"Baja\",N51=\"Catastrófico\"),AND(J51=\"Media\",N51=\"Catastrófico\"),AND(J51=\"Alta\",N51=\"Catastrófico\"),AND(J51=\"Muy Alta\",N51=\"Catastrófico\")),\"Extremo\",\"\"))))","v":"Extremo"},1,"El Coordinador del Grupo de Asuntos Nucleares supervisará y apoyará el cumplimiento de las actividades y requisitos para la elaboración de proyectos normativos relacionados con el uso seguro de materiales nucleares y radiactivos. Asimismo, evaluará las solicitudes de autorización, verificando que cumplan con la normativa vigente, y coordinará la programación de inspecciones para prevenir posibles incumplimientos.","Coordinador del Grupo de Asuntos Nucleares","Planificar y supervisar las actividades necesarias para la elaboración de proyectos normativos que garanticen el uso seguro de materiales nucleares y radiactivos\nEvaluar las solicitudes de autorización, verificando el cumplimiento de los requisitos normativos para garantizar el uso seguro de materiales nucleares o radiactivos.\nSupervisar la programación de inspecciones para prevenir posibles incumplimientos normativos.","Matriz de seguimiento proyectos normativos \nBorrador del proyecto normativo.\nDocumento técnico del dictamen sobre la aprobación o rechazo de la solicitud.\nCronograma anual y seguimiento de las inspecciones técnicas de vigilancia y control de instalaciones nucleares y radiactivas a cargo del Ministerio de Minas y Energía.\n\n",{"$f":"IF(OR(W51=\"Preventivo\",W51=\"Detectivo\"),\"Probabilidad\",IF(W51=\"Correctivo\",\"Impacto\",\"\"))","v":"Probabilidad"},"Preventivo","Manual",{"$f":"IF(AND(W51=\"Preventivo\",X51=\"Automático\"),\"50%\",IF(AND(W51=\"Preventivo\",X51=\"Manual\"),\"40%\",IF(AND(W51=\"Detectivo\",X51=\"Automático\"),\"40%\",IF(AND(W51=\"Detectivo\",X51=\"Manual\"),\"30%\",IF(AND(W51=\"Correctivo\",X51=\"Automático\"),\"35%\",IF(AND(W51=\"Correctivo\",X51=\"Manual\"),\"25%\",\"\"))))))","v":"40%"},"Sin Documentar","Continua","Con Registro",{"$f":"IFERROR(IF(V51=\"Probabilidad\",(K51-(+K51*Y51)),IF(V51=\"Impacto\",K51,\"\")),\"\")","v":0.24},{"$f":"IFERROR(IF(AC51=\"\",\"\",IF(AC51<=0.2,\"Muy Baja\",IF(AC51<=0.4,\"Baja\",IF(AC51<=0.6,\"Media\",IF(AC51<=0.8,\"Alta\",\"Muy Alta\"))))),\"\")","v":"Baja"},{"$f":"+AC51","v":0.24},{"$f":"IFERROR(IF(AG51=\"\",\"\",IF(AG51<=0.2,\"Leve\",IF(AG51<=0.4,\"Menor\",IF(AG51<=0.6,\"Moderado\",IF(AG51<=0.8,\"Mayor\",\"Catastrófico\"))))),\"\")","v":"Catastrófico"},{"$f":"IFERROR(IF(V51=\"Impacto\",(O51-(+O51*Y51)),IF(V51=\"Probabilidad\",O51,\"\")),\"\")","v":1},{"$f":"IFERROR(IF(OR(AND(AD51=\"Muy Baja\",AF51=\"Leve\"),AND(AD51=\"Muy Baja\",AF51=\"Menor\"),AND(AD51=\"Baja\",AF51=\"Leve\")),\"Bajo\",IF(OR(AND(AD51=\"Muy baja\",AF51=\"Moderado\"),AND(AD51=\"Baja\",AF51=\"Menor\"),AND(AD51=\"Baja\",AF51=\"Moderado\"),AND(AD51=\"Media\",AF51=\"Leve\"),AND(AD51=\"Media\",AF51=\"Menor\"),AND(AD51=\"Media\",AF51=\"Moderado\"),AND(AD51=\"Alta\",AF51=\"Leve\"),AND(AD51=\"Alta\",AF51=\"Menor\")),\"Moderado\",IF(OR(AND(AD51=\"Muy Baja\",AF51=\"Mayor\"),AND(AD51=\"Baja\",AF51=\"Mayor\"),AND(AD51=\"Media\",AF51=\"Mayor\"),AND(AD51=\"Alta\",AF51=\"Moderado\"),AND(AD51=\"Alta\",AF51=\"Mayor\"),AND(AD51=\"Muy Alta\",AF51=\"Leve\"),AND(AD51=\"Muy Alta\",AF51=\"Menor\"),AND(AD51=\"Muy Alta\",AF51=\"Moderado\"),AND(AD51=\"Muy Alta\",AF51=\"Mayor\")),\"Alto\",IF(OR(AND(AD51=\"Muy Baja\",AF51=\"Catastrófico\"),AND(AD51=\"Baja\",AF51=\"Catastrófico\"),AND(AD51=\"Media\",AF51=\"Catastrófico\"),AND(AD51=\"Alta\",AF51=\"Catastrófico\"),AND(AD51=\"Muy Alta\",AF51=\"Catastrófico\")),\"Extremo\",\"\")))),\"\")","v":"Extremo"},"Evitar","Realizar la docuemntación de los controles","Juan Pablo Parra","2025-03-14","2025-06-30","Profesional Especializado del Grupo de Asuntos Nucleares","Oficina de Asuntos Regulatorios y Empresariales- Grupo de Asuntos Nucleares","Jefe Oficina de Asuntos Regulatorios y Empresariales","2025-02-03","2025-12-31"]
[46,"ENERGÍA","Gestión",{"$f":"IF(C52=\"Fiscal\",_xlfn.CONCAT(\"Posibilidad de efectos dañosos sobre bienes públicos \",\" por o para \",F52,\" debido a \",G52),IF(C52=\"Gestión\",_xlfn.CONCAT(\"Posibilidad de afectacion \",E52,\" por \",F52,\" debido a \",G52),\"\"))","v":"Posibilidad de afectacion económico y reputacional por sanciones de entes de control por otorgamiento indebido de subsidios debido a incumplimiento de los requisitos minimos exigidos en la normatividad legal vigente."},"económico y reputacional","sanciones de entes de control por otorgamiento indebido de subsidios","incumplimiento de los requisitos minimos exigidos en la normatividad legal vigente.","Ejecucion y Administracion de procesos",11,"Baja",0.4,"     El riesgo afecta la imagen de alguna área de la organización",{"$f":"IF(NOT(ISERROR(MATCH(L52,'[5]Tabla Impacto'!#REF!,0))),'[5]Tabla Impacto'!$F$229&\"Por favor no seleccionar los criterios de impacto(Afectación Económica o presupuestal y Pérdida Reputacional)\",L52)","v":"     El riesgo afecta la imagen de alguna área de la organización"},{"$f":"IF(OR(M52='[5]Tabla Impacto'!$C$11,M52='[5]Tabla Impacto'!$D$11),\"Leve\",IF(OR(M52='[5]Tabla Impacto'!$C$12,M52='[5]Tabla Impacto'!$D$12),\"Menor\",IF(OR(M52='[5]Tabla Impacto'!$C$13,M52='[5]Tabla Impacto'!$D$13),\"Moderado\",IF(OR(M52='[5]Tabla Impacto'!$C$14,M52='[5]Tabla Impacto'!$D$14),\"Mayor\",IF(OR(M52='[5]Tabla Impacto'!$C$15,M52='[5]Tabla Impacto'!$D$15),\"Catastrófico\",\"\")))))","v":"Leve"},0.2,"Bajo",1,"El profesional del Grupo de Subsidios,  realizará seguimiento a la recepción de la información de consumos de energía de usuarios de áreas especiales la cual se recepciona por medio de correo electrónico en las fechas establecidas en el cronograma, la evidencia es los correos electrónicos","Coordinador Grupo de Subsidios o su delegado","Realizar seguimiento y monitoreo mensual a la información detallada requerida para la distribución de los recursos FOES","Memorandos internos con la validación de la información y asignación de subsidios",{"$f":"IF(OR(W52=\"Preventivo\",W52=\"Detectivo\"),\"Probabilidad\",IF(W52=\"Correctivo\",\"Impacto\",\"\"))","v":"Probabilidad"},"Detectivo","Manual",{"$f":"IF(AND(W52=\"Preventivo\",X52=\"Automático\"),\"50%\",IF(AND(W52=\"Preventivo\",X52=\"Manual\"),\"40%\",IF(AND(W52=\"Detectivo\",X52=\"Automático\"),\"40%\",IF(AND(W52=\"Detectivo\",X52=\"Manual\"),\"30%\",IF(AND(W52=\"Correctivo\",X52=\"Automático\"),\"35%\",IF(AND(W52=\"Correctivo\",X52=\"Manual\"),\"25%\",\"\"))))))","v":"30%"},"Documentado","Continua","Con Registro",0.28000000000000003,"Baja",0.28000000000000003,"Leve",0.2,"Bajo","Evitar"]
[47,"ENERGÍA","Fiscal",{"$f":"IF(C53=\"Fiscal\",_xlfn.CONCAT(\"Posibilidad de efectos dañosos sobre bienes públicos \",\" por o para \",F53,\" debido a \",G53),IF(C53=\"Gestión\",_xlfn.CONCAT(\"Posibilidad de afectacion \",E53,\" por \",F53,\" debido a \",G53),\"\"))","v":"Posibilidad de efectos dañosos sobre bienes públicos  por o para conceptos de superávit no girados al Ministerio por parte de las ESP debido a demoras en los procesos de validación y suministro de información para el inicio de la gestión de cobro de los excedentes de las contribuciones a las empresas prestadoras del servicio público domiciliario de energía eléctrica deudoras del FSRRI"},"económico y reputacional","conceptos de superávit no girados al Ministerio por parte de las ESP","demoras en los procesos de validación y suministro de información para el inicio de la gestión de cobro de los excedentes de las contribuciones a las empresas prestadoras del servicio público domiciliario de energía eléctrica deudoras del FSRRI","Ejecucion y Administracion de procesos",12,{"$f":"IF(I53<=0,\"\",IF(I53<=2,\"Muy Baja\",IF(I53<=24,\"Baja\",IF(I53<=500,\"Media\",IF(I53<=5000,\"Alta\",\"Muy Alta\")))))","v":"Baja"},0.4,"     Mayor a 500 SMLMV ",{"$f":"IF(NOT(ISERROR(MATCH(L53,'[5]Tabla Impacto'!#REF!,0))),'[5]Tabla Impacto'!$F$229&\"Por favor no seleccionar los criterios de impacto(Afectación Económica o presupuestal y Pérdida Reputacional)\",L53)","v":"     Mayor a 500 SMLMV "},{"$f":"IF(OR(M53='[5]Tabla Impacto'!$C$11,M53='[5]Tabla Impacto'!$D$11),\"Leve\",IF(OR(M53='[5]Tabla Impacto'!$C$12,M53='[5]Tabla Impacto'!$D$12),\"Menor\",IF(OR(M53='[5]Tabla Impacto'!$C$13,M53='[5]Tabla Impacto'!$D$13),\"Moderado\",IF(OR(M53='[5]Tabla Impacto'!$C$14,M53='[5]Tabla Impacto'!$D$14),\"Mayor\",IF(OR(M53='[5]Tabla Impacto'!$C$15,M53='[5]Tabla Impacto'!$D$15),\"Catastrófico\",\"\")))))","v":"Catastrófico"},1,"Extremo",1,"Validación de las cuentas de subsidios y contribuciones del FSSRI en el SIN, con el fin de establecer el estado de cuenta de las EPS, en caso de encontrar superavit solicitar a la empresa la devolución de los recursos o inicio de proceso de cobro coactivo a la SAF, a demás de Realizar visitas de seguimiento y monitoreo a las EPS - en concordancia con el MANUAL DE VISITAS DE SEGUIMIENTO Y  MONITOREO PRESTADORES DEL  SERVICIO PÚBLICO DOMICILIARIO DE  ENERGÍA ELÉCTRICA EN SIN Y ZNI QUE  RECIBEN SUBSIDIOS DEL FSSRI Y FOE, con el objetivo de contrastar, comparar y/o verificar que la información reportada al Ministerio de Minas y Energía y al Sistema Único de Información- SUI,  relacionada con subsidios y contribuciones del FSSRI y del FOES esté acorde con la información registrada en el sistema comercial, de facturación, y/o contable del  Prestador de Servicio Público Domiciliario de energía eléctrica, para determinar la  correcta aplicación de los subsidios del respectivo fondo, en caso de encontrar variaciones en el control se informará a la superintendencia de servicios públicos las observaciones encontradas","Coordinador Grupo de Subsidios o su delegado","Validación de las cuentas de subsidios y contribuciones del FSSRI en el SIN, con el fin de establecer el estado de cuenta de las EPS, en caso de encontrar superavit solicitar a la empresa la devolución de los recursos o inicio de proceso de cobro coactivo a la SAF, a demás de Realizar visitas de seguimiento y monitoreo a las EPS con el objetivo de contrastar, comparar y/o verificar que la información reportada al Ministerio de Minas y Energía y al Sistema Único de Información- SUI,  relacionada con subsidios y contribuciones del FSSRI y del FOES esté acorde con la información registrada en el sistema comercial, de facturación, y/o contable del  Prestador de Servicio Público Domiciliario de energía eléctrica","Oficio de validación trimestral\nInforme final de visita","Impacto","Correctivo","Manual","25%","Documentado","Continua","Con Registro",0.4,"Baja",0.4,"Mayor",0.75,"Alto","Evitar",null,null,null,null,"Contratista designado para reporte de riesgos","Dirección de Energía","Jefe de Oficina","2025-02-03","2025-12-31"]
[48,"ENERGÍA","Gestión","Posibilidad de afectacion económico y reputacional por requerimento, multa o sanción de organismos de control  debido a incumplimiento de los  términos de entrega de los requerimentos generados ","económico y reputacional","requerimento, multa o sanción de organismos de control ","incumplimiento de los  términos de entrega de los requerimentos generados ","Ejecucion y Administracion de procesos",100,{"$f":"IF(I54<=0,\"\",IF(I54<=2,\"Muy Baja\",IF(I54<=24,\"Baja\",IF(I54<=500,\"Media\",IF(I54<=5000,\"Alta\",\"Muy Alta\")))))","v":"Media"},{"$f":"IF(J54=\"\",\"\",IF(J54=\"Muy Baja\",0.2,IF(J54=\"Baja\",0.4,IF(J54=\"Media\",0.6,IF(J54=\"Alta\",0.8,IF(J54=\"Muy Alta\",1,))))))","v":0.6},"     El riesgo afecta la imagen de la entidad con algunos usuarios de relevancia frente al logro de los objetivos",{"$f":"IF(NOT(ISERROR(MATCH(L54,'[5]Tabla Impacto'!#REF!,0))),'[5]Tabla Impacto'!$F$229&\"Por favor no seleccionar los criterios de impacto(Afectación Económica o presupuestal y Pérdida Reputacional)\",L54)","v":"     El riesgo afecta la imagen de la entidad con algunos usuarios de relevancia frente al logro de los objetivos"},{"$f":"IF(OR(M54='[5]Tabla Impacto'!$C$11,M54='[5]Tabla Impacto'!$D$11),\"Leve\",IF(OR(M54='[5]Tabla Impacto'!$C$12,M54='[5]Tabla Impacto'!$D$12),\"Menor\",IF(OR(M54='[5]Tabla Impacto'!$C$13,M54='[5]Tabla Impacto'!$D$13),\"Moderado\",IF(OR(M54='[5]Tabla Impacto'!$C$14,M54='[5]Tabla Impacto'!$D$14),\"Mayor\",IF(OR(M54='[5]Tabla Impacto'!$C$15,M54='[5]Tabla Impacto'!$D$15),\"Catastrófico\",\"\")))))","v":"Moderado"},{"$f":"IF(N54=\"\",\"\",IF(N54=\"Leve\",0.2,IF(N54=\"Menor\",0.4,IF(N54=\"Moderado\",0.6,IF(N54=\"Mayor\",0.8,IF(N54=\"Catastrófico\",1,))))))","v":0.6},{"$f":"IF(OR(AND(J54=\"Muy Baja\",N54=\"Leve\"),AND(J54=\"Muy Baja\",N54=\"Menor\"),AND(J54=\"Baja\",N54=\"Leve\")),\"Bajo\",IF(OR(AND(J54=\"Muy baja\",N54=\"Moderado\"),AND(J54=\"Baja\",N54=\"Menor\"),AND(J54=\"Baja\",N54=\"Moderado\"),AND(J54=\"Media\",N54=\"Leve\"),AND(J54=\"Media\",N54=\"Menor\"),AND(J54=\"Media\",N54=\"Moderado\"),AND(J54=\"Alta\",N54=\"Leve\"),AND(J54=\"Alta\",N54=\"Menor\")),\"Moderado\",IF(OR(AND(J54=\"Muy Baja\",N54=\"Mayor\"),AND(J54=\"Baja\",N54=\"Mayor\"),AND(J54=\"Media\",N54=\"Mayor\"),AND(J54=\"Alta\",N54=\"Moderado\"),AND(J54=\"Alta\",N54=\"Mayor\"),AND(J54=\"Muy Alta\",N54=\"Leve\"),AND(J54=\"Muy Alta\",N54=\"Menor\"),AND(J54=\"Muy Alta\",N54=\"Moderado\"),AND(J54=\"Muy Alta\",N54=\"Mayor\")),\"Alto\",IF(OR(AND(J54=\"Muy Baja\",N54=\"Catastrófico\"),AND(J54=\"Baja\",N54=\"Catastrófico\"),AND(J54=\"Media\",N54=\"Catastrófico\"),AND(J54=\"Alta\",N54=\"Catastrófico\"),AND(J54=\"Muy Alta\",N54=\"Catastrófico\")),\"Extremo\",\"\"))))","v":"Moderado"},1,"Registro de las solicitudes o requerimientos de entes de control en matriz de seguimiento para posterior notificación y remisión al grupo responsable de dar respuesta  a través de correo electrónico y seguimiento periódico al estado de la solicitud o requerimiento.    ","Profesional Asignado de la DEE \nCoordinadores\nDirector (a)","Actualizar la matriz de seguimiento y notificar a los responsables de contestar la solicitudes allegadas por los entes de control.\n\nRealizar seguimiento a los tiempos de vencimiento de los requerimientos.\n\nReportar el estado de la atención de los requerimentos ","Matriz de seguimiento y alertas sobre el vencimiento de las solicitudes o requerimentos ",{"$f":"IF(OR(W54=\"Preventivo\",W54=\"Detectivo\"),\"Probabilidad\",IF(W54=\"Correctivo\",\"Impacto\",\"\"))","v":"Probabilidad"},"Detectivo","Manual",{"$f":"IF(AND(W54=\"Preventivo\",X54=\"Automático\"),\"50%\",IF(AND(W54=\"Preventivo\",X54=\"Manual\"),\"40%\",IF(AND(W54=\"Detectivo\",X54=\"Automático\"),\"40%\",IF(AND(W54=\"Detectivo\",X54=\"Manual\"),\"30%\",IF(AND(W54=\"Correctivo\",X54=\"Automático\"),\"35%\",IF(AND(W54=\"Correctivo\",X54=\"Manual\"),\"25%\",\"\"))))))","v":"30%"},"Documentado","Continua","Con Registro",{"$f":"IFERROR(IF(V54=\"Probabilidad\",(K54-(+K54*Y54)),IF(V54=\"Impacto\",K54,\"\")),\"\")","v":0.42},{"$f":"IFERROR(IF(AC54=\"\",\"\",IF(AC54<=0.2,\"Muy Baja\",IF(AC54<=0.4,\"Baja\",IF(AC54<=0.6,\"Media\",IF(AC54<=0.8,\"Alta\",\"Muy Alta\"))))),\"\")","v":"Media"},{"$f":"+AC54","v":0.42},{"$f":"IFERROR(IF(AG54=\"\",\"\",IF(AG54<=0.2,\"Leve\",IF(AG54<=0.4,\"Menor\",IF(AG54<=0.6,\"Moderado\",IF(AG54<=0.8,\"Mayor\",\"Catastrófico\"))))),\"\")","v":"Moderado"},{"$f":"IFERROR(IF(V54=\"Impacto\",(O54-(+O54*Y54)),IF(V54=\"Probabilidad\",O54,\"\")),\"\")","v":0.6},{"$f":"IFERROR(IF(OR(AND(AD54=\"Muy Baja\",AF54=\"Leve\"),AND(AD54=\"Muy Baja\",AF54=\"Menor\"),AND(AD54=\"Baja\",AF54=\"Leve\")),\"Bajo\",IF(OR(AND(AD54=\"Muy baja\",AF54=\"Moderado\"),AND(AD54=\"Baja\",AF54=\"Menor\"),AND(AD54=\"Baja\",AF54=\"Moderado\"),AND(AD54=\"Media\",AF54=\"Leve\"),AND(AD54=\"Media\",AF54=\"Menor\"),AND(AD54=\"Media\",AF54=\"Moderado\"),AND(AD54=\"Alta\",AF54=\"Leve\"),AND(AD54=\"Alta\",AF54=\"Menor\")),\"Moderado\",IF(OR(AND(AD54=\"Muy Baja\",AF54=\"Mayor\"),AND(AD54=\"Baja\",AF54=\"Mayor\"),AND(AD54=\"Media\",AF54=\"Mayor\"),AND(AD54=\"Alta\",AF54=\"Moderado\"),AND(AD54=\"Alta\",AF54=\"Mayor\"),AND(AD54=\"Muy Alta\",AF54=\"Leve\"),AND(AD54=\"Muy Alta\",AF54=\"Menor\"),AND(AD54=\"Muy Alta\",AF54=\"Moderado\"),AND(AD54=\"Muy Alta\",AF54=\"Mayor\")),\"Alto\",IF(OR(AND(AD54=\"Muy Baja\",AF54=\"Catastrófico\"),AND(AD54=\"Baja\",AF54=\"Catastrófico\"),AND(AD54=\"Media\",AF54=\"Catastrófico\"),AND(AD54=\"Alta\",AF54=\"Catastrófico\"),AND(AD54=\"Muy Alta\",AF54=\"Catastrófico\")),\"Extremo\",\"\")))),\"\")","v":"Moderado"},"Evitar","Socializar al interior de la DEE las responsabilidades y lineamientos para dar respuesta oportuna a derechos de petición y peticiones de órganos de control ","Profesional Juridico de la DEE","2025-06-30","2025-07-30","Contratista designado para reporte de riesgos","Dirección de Energía","Jefe de Oficina","2025-02-03","2025-12-31"]
[49,"ENERGÍA","Gestión",{"$f":"IF(C55=\"Fiscal\",_xlfn.CONCAT(\"Posibilidad de efectos dañosos sobre bienes públicos \",\" por o para \",F55,\" debido a \",G55),IF(C55=\"Gestión\",_xlfn.CONCAT(\"Posibilidad de afectacion \",E55,\" por \",F55,\" debido a \",G55),\"\"))","v":"Posibilidad de afectacion reputacional por aplicación indebida de los reglamentos técnicos por parte de los regulados debido a diversidad en la interpretación de los requisitos establecidos, dado que estos reglamentos son aplicados por diferentes sectores y partes interesadas "},"reputacional","aplicación indebida de los reglamentos técnicos por parte de los regulados","diversidad en la interpretación de los requisitos establecidos, dado que estos reglamentos son aplicados por diferentes sectores y partes interesadas ","Ejecucion y Administracion de procesos",11,{"$f":"IF(I55<=0,\"\",IF(I55<=2,\"Muy Baja\",IF(I55<=24,\"Baja\",IF(I55<=500,\"Media\",IF(I55<=5000,\"Alta\",\"Muy Alta\")))))","v":"Baja"},0.4,"     El riesgo afecta la imagen de alguna área de la organización",{"$f":"IF(NOT(ISERROR(MATCH(L55,'[5]Tabla Impacto'!#REF!,0))),'[5]Tabla Impacto'!$F$229&\"Por favor no seleccionar los criterios de impacto(Afectación Económica o presupuestal y Pérdida Reputacional)\",L55)","v":"     El riesgo afecta la imagen de alguna área de la organización"},{"$f":"IF(OR(M55='[5]Tabla Impacto'!$C$11,M55='[5]Tabla Impacto'!$D$11),\"Leve\",IF(OR(M55='[5]Tabla Impacto'!$C$12,M55='[5]Tabla Impacto'!$D$12),\"Menor\",IF(OR(M55='[5]Tabla Impacto'!$C$13,M55='[5]Tabla Impacto'!$D$13),\"Moderado\",IF(OR(M55='[5]Tabla Impacto'!$C$14,M55='[5]Tabla Impacto'!$D$14),\"Mayor\",IF(OR(M55='[5]Tabla Impacto'!$C$15,M55='[5]Tabla Impacto'!$D$15),\"Catastrófico\",\"\")))))","v":"Leve"},0.2,"Bajo",1,"El Coordinador del Grupo de Reglamentos Técnicos o su delegado realiza  validación de cumplimientos de las buenas prácticas reglamentarias establecidas por el Ministerio de Comercio industria y turismo y realizará  reuniones, mesas de trabajo y divulgación de los reglamentos con los regulados del sector, para recibir retroalimentación sobre la normatividad vigente y así obtener insumos que sirvan para actualizar  o modificar los reglamentos a demás de  medir su impacto ","El Coordinador del Grupo de Reglamentos Técnicos o su delegado","Validar el cumplimientos de las buenas prácticas reglamentarias establecidas por el Ministerio de Comercio industria y turismo y socializar a quien corresponda el resultado del análisis realizado a la información recibida por el sector ","Documentos soporte de las buenas prácticas reglamentarias.\n\n\nInforme anual con el analisis y compilación de la información aportada por el sector ","Probabilidad","Detectivo","Manual","30%","Documentado","Continua","Con Registro",0.28000000000000003,"Baja",0.28000000000000003,"Leve",0.2,"Bajo","Evitar","Liderar reuniones, mesas de trabajo y divulgaciones de los reglamentos con los regulados del sector\n\nEvidencia: Listados de asistencia y actas de reunión ","El Coordinador del Grupo de Reglamentos Técnicos o su delegado","2025-12-31","2025-06-15","Contratista designado para reporte de riesgos","Dirección de Energía","Jefe de Oficina","2025-02-03","2025-12-31"]
[50,"ENERGÍA","Fiscal","Posibilidad de efectos dañosos sobre bienes públicos  por o para dificultad  y/o retraso en la ejecución de los proyectos financiados con los Fondos FAER y FAZNI y PRONE, que darán  acceso al servicio de energía eléctrica debido a Inadecuada supervisión y verificación del cumplimiento de las condiciones contractuales ","económico y reputacional","dificultad  y/o retraso en la ejecución de los proyectos financiados con los Fondos FAER y FAZNI y PRONE, que darán  acceso al servicio de energía eléctrica","Inadecuada supervisión y verificación del cumplimiento de las condiciones contractuales ","Ejecucion y Administracion de procesos",250,{"$f":"IF(I56<=0,\"\",IF(I56<=2,\"Muy Baja\",IF(I56<=24,\"Baja\",IF(I56<=500,\"Media\",IF(I56<=5000,\"Alta\",\"Muy Alta\")))))","v":"Media"},{"$f":"IF(J56=\"\",\"\",IF(J56=\"Muy Baja\",0.2,IF(J56=\"Baja\",0.4,IF(J56=\"Media\",0.6,IF(J56=\"Alta\",0.8,IF(J56=\"Muy Alta\",1,))))))","v":0.6},"     El riesgo afecta la imagen de la entidad con algunos usuarios de relevancia frente al logro de los objetivos",{"$f":"IF(NOT(ISERROR(MATCH(L56,'[5]Tabla Impacto'!#REF!,0))),'[5]Tabla Impacto'!$F$229&\"Por favor no seleccionar los criterios de impacto(Afectación Económica o presupuestal y Pérdida Reputacional)\",L56)","v":"     El riesgo afecta la imagen de la entidad con algunos usuarios de relevancia frente al logro de los objetivos"},{"$f":"IF(OR(M56='[5]Tabla Impacto'!$C$11,M56='[5]Tabla Impacto'!$D$11),\"Leve\",IF(OR(M56='[5]Tabla Impacto'!$C$12,M56='[5]Tabla Impacto'!$D$12),\"Menor\",IF(OR(M56='[5]Tabla Impacto'!$C$13,M56='[5]Tabla Impacto'!$D$13),\"Moderado\",IF(OR(M56='[5]Tabla Impacto'!$C$14,M56='[5]Tabla Impacto'!$D$14),\"Mayor\",IF(OR(M56='[5]Tabla Impacto'!$C$15,M56='[5]Tabla Impacto'!$D$15),\"Catastrófico\",\"\")))))","v":"Moderado"},{"$f":"IF(N56=\"\",\"\",IF(N56=\"Leve\",0.2,IF(N56=\"Menor\",0.4,IF(N56=\"Moderado\",0.6,IF(N56=\"Mayor\",0.8,IF(N56=\"Catastrófico\",1,))))))","v":0.6},{"$f":"IF(OR(AND(J56=\"Muy Baja\",N56=\"Leve\"),AND(J56=\"Muy Baja\",N56=\"Menor\"),AND(J56=\"Baja\",N56=\"Leve\")),\"Bajo\",IF(OR(AND(J56=\"Muy baja\",N56=\"Moderado\"),AND(J56=\"Baja\",N56=\"Menor\"),AND(J56=\"Baja\",N56=\"Moderado\"),AND(J56=\"Media\",N56=\"Leve\"),AND(J56=\"Media\",N56=\"Menor\"),AND(J56=\"Media\",N56=\"Moderado\"),AND(J56=\"Alta\",N56=\"Leve\"),AND(J56=\"Alta\",N56=\"Menor\")),\"Moderado\",IF(OR(AND(J56=\"Muy Baja\",N56=\"Mayor\"),AND(J56=\"Baja\",N56=\"Mayor\"),AND(J56=\"Media\",N56=\"Mayor\"),AND(J56=\"Alta\",N56=\"Moderado\"),AND(J56=\"Alta\",N56=\"Mayor\"),AND(J56=\"Muy Alta\",N56=\"Leve\"),AND(J56=\"Muy Alta\",N56=\"Menor\"),AND(J56=\"Muy Alta\",N56=\"Moderado\"),AND(J56=\"Muy Alta\",N56=\"Mayor\")),\"Alto\",IF(OR(AND(J56=\"Muy Baja\",N56=\"Catastrófico\"),AND(J56=\"Baja\",N56=\"Catastrófico\"),AND(J56=\"Media\",N56=\"Catastrófico\"),AND(J56=\"Alta\",N56=\"Catastrófico\"),AND(J56=\"Muy Alta\",N56=\"Catastrófico\")),\"Extremo\",\"\"))))","v":"Moderado"},1,"Los profesionales del Grupo de Supervisión de la Dirección de Energía Eléctrica aplican los controles descritos en la ultima versión del procedimiento \"M-EN-P-13 Supervisión de proyectos a cargo de la Dirección de Energía Eléctrica\"  donde se realizan revisiones cruzadas en las áreas técnica, jurídica, financiera y administrativa, lo cual se realizará a través de la matriz general de supervisión donde se evidencian todas las actuaciones hechas en virtud de la supervisión realizada. En caso de haber desviación del control se reporta al grupo de gestión contractual el posible incumplimiento para que se inicie el respectivo proceso.","Profesionales del Grupo de Supervisión de la Dirección de Energía Eléctrica","Realizar revisiones del avance y cumplimiento de las condiciones contractuales, desde los aspectos técnicos, jurídicos y financieros, en caso tal de alguna inconsistencia realizar el reporte de  incumplimientos al Grupo de Gestión Contractual","Matriz general de supervisión.\n\nReportes o informes al grupo de gestión contractual",{"$f":"IF(OR(W56=\"Preventivo\",W56=\"Detectivo\"),\"Probabilidad\",IF(W56=\"Correctivo\",\"Impacto\",\"\"))","v":"Probabilidad"},"Detectivo","Manual",{"$f":"IF(AND(W56=\"Preventivo\",X56=\"Automático\"),\"50%\",IF(AND(W56=\"Preventivo\",X56=\"Manual\"),\"40%\",IF(AND(W56=\"Detectivo\",X56=\"Automático\"),\"40%\",IF(AND(W56=\"Detectivo\",X56=\"Manual\"),\"30%\",IF(AND(W56=\"Correctivo\",X56=\"Automático\"),\"35%\",IF(AND(W56=\"Correctivo\",X56=\"Manual\"),\"25%\",\"\"))))))","v":"30%"},"Documentado","Continua","Con Registro",{"$f":"IFERROR(IF(V56=\"Probabilidad\",(K56-(+K56*Y56)),IF(V56=\"Impacto\",K56,\"\")),\"\")","v":0.42},{"$f":"IFERROR(IF(AC56=\"\",\"\",IF(AC56<=0.2,\"Muy Baja\",IF(AC56<=0.4,\"Baja\",IF(AC56<=0.6,\"Media\",IF(AC56<=0.8,\"Alta\",\"Muy Alta\"))))),\"\")","v":"Media"},{"$f":"+AC56","v":0.42},{"$f":"IFERROR(IF(AG56=\"\",\"\",IF(AG56<=0.2,\"Leve\",IF(AG56<=0.4,\"Menor\",IF(AG56<=0.6,\"Moderado\",IF(AG56<=0.8,\"Mayor\",\"Catastrófico\"))))),\"\")","v":"Moderado"},{"$f":"IFERROR(IF(V56=\"Impacto\",(O56-(+O56*Y56)),IF(V56=\"Probabilidad\",O56,\"\")),\"\")","v":0.6},{"$f":"IFERROR(IF(OR(AND(AD56=\"Muy Baja\",AF56=\"Leve\"),AND(AD56=\"Muy Baja\",AF56=\"Menor\"),AND(AD56=\"Baja\",AF56=\"Leve\")),\"Bajo\",IF(OR(AND(AD56=\"Muy baja\",AF56=\"Moderado\"),AND(AD56=\"Baja\",AF56=\"Menor\"),AND(AD56=\"Baja\",AF56=\"Moderado\"),AND(AD56=\"Media\",AF56=\"Leve\"),AND(AD56=\"Media\",AF56=\"Menor\"),AND(AD56=\"Media\",AF56=\"Moderado\"),AND(AD56=\"Alta\",AF56=\"Leve\"),AND(AD56=\"Alta\",AF56=\"Menor\")),\"Moderado\",IF(OR(AND(AD56=\"Muy Baja\",AF56=\"Mayor\"),AND(AD56=\"Baja\",AF56=\"Mayor\"),AND(AD56=\"Media\",AF56=\"Mayor\"),AND(AD56=\"Alta\",AF56=\"Moderado\"),AND(AD56=\"Alta\",AF56=\"Mayor\"),AND(AD56=\"Muy Alta\",AF56=\"Leve\"),AND(AD56=\"Muy Alta\",AF56=\"Menor\"),AND(AD56=\"Muy Alta\",AF56=\"Moderado\"),AND(AD56=\"Muy Alta\",AF56=\"Mayor\")),\"Alto\",IF(OR(AND(AD56=\"Muy Baja\",AF56=\"Catastrófico\"),AND(AD56=\"Baja\",AF56=\"Catastrófico\"),AND(AD56=\"Media\",AF56=\"Catastrófico\"),AND(AD56=\"Alta\",AF56=\"Catastrófico\"),AND(AD56=\"Muy Alta\",AF56=\"Catastrófico\")),\"Extremo\",\"\")))),\"\")","v":"Moderado"},"Evitar","Realizar reuniones de seguimiento con el ejecutor ","Apoyo a la supervisión ","2025-12-31","2025-12-31","Contratista designado para reporte de riesgos","Dirección de Energía","Jefe de Oficina","2025-02-03","2025-12-31"]
[51,"ENERGÍA","Gestión",{"$f":"IF(C57=\"Fiscal\",_xlfn.CONCAT(\"Posibilidad de efectos dañosos sobre bienes públicos \",\" por o para \",F57,\" debido a \",G57),IF(C57=\"Gestión\",_xlfn.CONCAT(\"Posibilidad de afectacion \",E57,\" por \",F57,\" debido a \",G57),\"\"))","v":"Posibilidad de afectacion económico y reputacional por Incumplimiento de las metas del Gobierno Nacional en usuarios conectados con servicio de energía eléctrica. debido a Insuficiencia de proyectos con viabilidad técnica y financiera favorable, o la no aprobación de proyectos en comité."},"económico y reputacional","Incumplimiento de las metas del Gobierno Nacional en usuarios conectados con servicio de energía eléctrica.","Insuficiencia de proyectos con viabilidad técnica y financiera favorable, o la no aprobación de proyectos en comité.","Ejecucion y Administracion de procesos",3,{"$f":"IF(I57<=0,\"\",IF(I57<=2,\"Muy Baja\",IF(I57<=24,\"Baja\",IF(I57<=500,\"Media\",IF(I57<=5000,\"Alta\",\"Muy Alta\")))))","v":"Baja"},0.4,"     El riesgo afecta la imagen de la entidad con algunos usuarios de relevancia frente al logro de los objetivos",{"$f":"IF(NOT(ISERROR(MATCH(L57,'[5]Tabla Impacto'!#REF!,0))),'[5]Tabla Impacto'!$F$229&\"Por favor no seleccionar los criterios de impacto(Afectación Económica o presupuestal y Pérdida Reputacional)\",L57)","v":"     El riesgo afecta la imagen de la entidad con algunos usuarios de relevancia frente al logro de los objetivos"},{"$f":"IF(OR(M57='[5]Tabla Impacto'!$C$11,M57='[5]Tabla Impacto'!$D$11),\"Leve\",IF(OR(M57='[5]Tabla Impacto'!$C$12,M57='[5]Tabla Impacto'!$D$12),\"Menor\",IF(OR(M57='[5]Tabla Impacto'!$C$13,M57='[5]Tabla Impacto'!$D$13),\"Moderado\",IF(OR(M57='[5]Tabla Impacto'!$C$14,M57='[5]Tabla Impacto'!$D$14),\"Mayor\",IF(OR(M57='[5]Tabla Impacto'!$C$15,M57='[5]Tabla Impacto'!$D$15),\"Catastrófico\",\"\")))))","v":"Moderado"},0.6,"Moderado",1,"Realizar mesas de trabajo con los entes territoriales, operadores de red y otros estructuradores, para divulgar las diferentes fuentes de financiación (FAER, FAZNI, OCAD Paz, entre otros); en caso de no contar con suficiencia de proyectos solicitar a la IPSE la presentación de proyectos","Coordinador (a) Grupo de Fondos de Inversion y  Gestión del Sector Electrico Colombiano o su delegado","Divulgar las fuentes de financiación con los entes territoriales, operadores de red y otros estructuradores, con el propósito de contribuir a la ampliación de cobertura del servicio de energía eléctrica","Actas de reunión y comunicaciones ","Probabilidad","Detectivo","Manual","30%","Documentado","Continua","Con Registro",0.28000000000000003,"Baja",0.28000000000000003,"Moderado",0.6,"Moderado","Reducir (mitigar)","Realizar monitoreo o seguimiento al cumplimiento de las metas del Gobierno Nacional a fin de generar las alertas correspondientes\n","Coordinadora Grupo de Gestión del Sector o su delegado","2025-03-01","2025-03-31","Coordinador (a)","Grupo de Fondos y Gestión del Sector Eléctrico Colombiano.","Jefe de oficina","2025-03-01","2025-12-31"]
[52,"ENERGÍA","Gestión","Posibilidad de afectacion reputacional por incumplimiento en las metas relacionadas con nuevos usuarios de energía eléctrica derivado de la falta de seguimiento, desde el equipo técnico del Grupo de Regalías, debido a la no realización de mesas de trabajo o visitas técnicas suficientes, que permitan evidenciar el avance y terminación de los proyectos que se traducen en nuevos usuarios de energía eléctrica para su oportuno reporte en los diferentes instrumentos de seguimiento.","reputacional","incumplimiento en las metas relacionadas con nuevos usuarios de energía eléctrica derivado de la falta de seguimiento, desde el equipo técnico del Grupo de Regalías,","la no realización de mesas de trabajo o visitas técnicas suficientes, que permitan evidenciar el avance y terminación de los proyectos que se traducen en nuevos usuarios de energía eléctrica para su oportuno reporte en los diferentes instrumentos de seguimiento.","Usuarios, productos y practicas , organizacionales",200,"Media",0.6,"     El riesgo afecta la imagen de la entidad a nivel nacional, con efecto publicitarios sostenible a nivel país",{"$f":"IF(NOT(ISERROR(MATCH(L58,'[5]Tabla Impacto'!#REF!,0))),'[5]Tabla Impacto'!$F$229&\"Por favor no seleccionar los criterios de impacto(Afectación Económica o presupuestal y Pérdida Reputacional)\",L58)","v":"     El riesgo afecta la imagen de la entidad a nivel nacional, con efecto publicitarios sostenible a nivel país"},{"$f":"IF(OR(M58='[5]Tabla Impacto'!$C$11,M58='[5]Tabla Impacto'!$D$11),\"Leve\",IF(OR(M58='[5]Tabla Impacto'!$C$12,M58='[5]Tabla Impacto'!$D$12),\"Menor\",IF(OR(M58='[5]Tabla Impacto'!$C$13,M58='[5]Tabla Impacto'!$D$13),\"Moderado\",IF(OR(M58='[5]Tabla Impacto'!$C$14,M58='[5]Tabla Impacto'!$D$14),\"Mayor\",IF(OR(M58='[5]Tabla Impacto'!$C$15,M58='[5]Tabla Impacto'!$D$15),\"Catastrófico\",\"\")))))","v":"Catastrófico"},1,"Extremo",1,"El equipo técnico del Grupo de Regalías, realizará el seguimiento que permita evidenciar el avance y terminación de los proyectos que se traducen en nuevos usuarios de energía eléctrica que contribuyan a las metas de la Entidad y el Gobierno nacional, a traves de mesas técnicas o visitas reflejadas en actas y listas de asistencia, fichas de seguimiento Grupo de Regalías, adicionalmente, este seguimiento se registrará en la matriz correspondiente con el fin de facilitar la consulta, control relacionados con la revisión de los proyectos y contribuirá a su oportuno reporte en los diferentes instrumentos de seguimiento.","equipo técnico del Grupo de Regalías","realizará el seguimiento que permita evidenciar el avance y terminación de los proyectos que se traducen en nuevos usuarios de energía eléctrica que contribuyan a las metas de la Entidad y el Gobierno nacional","mesas técnicas o visitas reflejadas en actas y listas de asistencia, fichas de seguimiento Grupo de Regalías, adicionalmente, este seguimiento se registrará en la matriz correspondiente con el fin de facilitar la consulta, control relacionados con la revisión de los proyectos y contribuirá a su oportuno reporte en los diferentes instrumentos de seguimiento.","Probabilidad","Preventivo","Manual","40%","Sin Documentar","Continua","Con Registro",0.36,"Baja",0.36,"Catastrófico",1,"Extremo","Evitar","Documentar el control","Asesora","2025-01-01","Trimestral","Coordinador","Gupo de Regalías","Jefe de Grupo","2025-02-03","2025-12-31"]
[53,"ENERGÍA","Gestión","Posibilidad de afectacion reputacional por demoras en la verificación de requisitos por parte del equipo técnico del Grupo de Regalías y en consecuencia el incumplimiento en los términos establecidos en la normativa vigente del SGR debido a al retraso en el envio de las comunicaciones correspondientes a las entidades adscritas al Ministerio, las cuales apoyan esta función (IPSE y UPME), entre otros. ","reputacional","demoras en la verificación de requisitos por parte del equipo técnico del Grupo de Regalías y en consecuencia el incumplimiento en los términos establecidos en la normativa vigente del SGR","al retraso en el envio de las comunicaciones correspondientes a las entidades adscritas al Ministerio, las cuales apoyan esta función (IPSE y UPME), entre otros. ","Usuarios, productos y practicas , organizacionales",180,{"$f":"IF(I59<=0,\"\",IF(I59<=2,\"Muy Baja\",IF(I59<=24,\"Baja\",IF(I59<=500,\"Media\",IF(I59<=5000,\"Alta\",\"Muy Alta\")))))","v":"Media"},{"$f":"IF(J59=\"\",\"\",IF(J59=\"Muy Baja\",0.2,IF(J59=\"Baja\",0.4,IF(J59=\"Media\",0.6,IF(J59=\"Alta\",0.8,IF(J59=\"Muy Alta\",1,))))))","v":0.6},"     El riesgo afecta la imagen de la entidad a nivel nacional, con efecto publicitarios sostenible a nivel país",{"$f":"IF(NOT(ISERROR(MATCH(L59,'[5]Tabla Impacto'!#REF!,0))),'[5]Tabla Impacto'!$F$229&\"Por favor no seleccionar los criterios de impacto(Afectación Económica o presupuestal y Pérdida Reputacional)\",L59)","v":"     El riesgo afecta la imagen de la entidad a nivel nacional, con efecto publicitarios sostenible a nivel país"},{"$f":"IF(OR(M59='[5]Tabla Impacto'!$C$11,M59='[5]Tabla Impacto'!$D$11),\"Leve\",IF(OR(M59='[5]Tabla Impacto'!$C$12,M59='[5]Tabla Impacto'!$D$12),\"Menor\",IF(OR(M59='[5]Tabla Impacto'!$C$13,M59='[5]Tabla Impacto'!$D$13),\"Moderado\",IF(OR(M59='[5]Tabla Impacto'!$C$14,M59='[5]Tabla Impacto'!$D$14),\"Mayor\",IF(OR(M59='[5]Tabla Impacto'!$C$15,M59='[5]Tabla Impacto'!$D$15),\"Catastrófico\",\"\")))))","v":"Catastrófico"},{"$f":"IF(N59=\"\",\"\",IF(N59=\"Leve\",0.2,IF(N59=\"Menor\",0.4,IF(N59=\"Moderado\",0.6,IF(N59=\"Mayor\",0.8,IF(N59=\"Catastrófico\",1,))))))","v":1},{"$f":"IF(OR(AND(J59=\"Muy Baja\",N59=\"Leve\"),AND(J59=\"Muy Baja\",N59=\"Menor\"),AND(J59=\"Baja\",N59=\"Leve\")),\"Bajo\",IF(OR(AND(J59=\"Muy baja\",N59=\"Moderado\"),AND(J59=\"Baja\",N59=\"Menor\"),AND(J59=\"Baja\",N59=\"Moderado\"),AND(J59=\"Media\",N59=\"Leve\"),AND(J59=\"Media\",N59=\"Menor\"),AND(J59=\"Media\",N59=\"Moderado\"),AND(J59=\"Alta\",N59=\"Leve\"),AND(J59=\"Alta\",N59=\"Menor\")),\"Moderado\",IF(OR(AND(J59=\"Muy Baja\",N59=\"Mayor\"),AND(J59=\"Baja\",N59=\"Mayor\"),AND(J59=\"Media\",N59=\"Mayor\"),AND(J59=\"Alta\",N59=\"Moderado\"),AND(J59=\"Alta\",N59=\"Mayor\"),AND(J59=\"Muy Alta\",N59=\"Leve\"),AND(J59=\"Muy Alta\",N59=\"Menor\"),AND(J59=\"Muy Alta\",N59=\"Moderado\"),AND(J59=\"Muy Alta\",N59=\"Mayor\")),\"Alto\",IF(OR(AND(J59=\"Muy Baja\",N59=\"Catastrófico\"),AND(J59=\"Baja\",N59=\"Catastrófico\"),AND(J59=\"Media\",N59=\"Catastrófico\"),AND(J59=\"Alta\",N59=\"Catastrófico\"),AND(J59=\"Muy Alta\",N59=\"Catastrófico\")),\"Extremo\",\"\"))))","v":"Extremo"},1,"El equipo técnico del Grupo de Regalías, realizará un estricto seguimiento a las solicitudes para la adecuada emisión de conceptosa traves del envío oportuno de comunicaciones a las entidades adscritas al Ministerio que apoyan esta función (IPSE y UPME). Adicionalmente se consolidará en una matriz de control el seguimiento en donde se evidencien las solicitudes de conceptos y los tiempos establecidos.","equipo técnico del Grupo de Regalías","realizará un estricto seguimiento a las solicitudes para la adecuada emisión de conceptos","envío oportuno de comunicaciones a las entidades adscritas al Ministerio que apoyan esta función (IPSE y UPME). Adicionalmente se consolidará en una matriz de control el seguimiento en donde se evidencien las solicitudes de conceptos y los tiempos establecidos.",{"$f":"IF(OR(W59=\"Preventivo\",W59=\"Detectivo\"),\"Probabilidad\",IF(W59=\"Correctivo\",\"Impacto\",\"\"))","v":"Probabilidad"},"Preventivo","Manual",{"$f":"IF(AND(W59=\"Preventivo\",X59=\"Automático\"),\"50%\",IF(AND(W59=\"Preventivo\",X59=\"Manual\"),\"40%\",IF(AND(W59=\"Detectivo\",X59=\"Automático\"),\"40%\",IF(AND(W59=\"Detectivo\",X59=\"Manual\"),\"30%\",IF(AND(W59=\"Correctivo\",X59=\"Automático\"),\"35%\",IF(AND(W59=\"Correctivo\",X59=\"Manual\"),\"25%\",\"\"))))))","v":"40%"},"Sin Documentar","Continua","Con Registro",{"$f":"IFERROR(IF(V59=\"Probabilidad\",(K59-(+K59*Y59)),IF(V59=\"Impacto\",K59,\"\")),\"\")","v":0.36},{"$f":"IFERROR(IF(AC59=\"\",\"\",IF(AC59<=0.2,\"Muy Baja\",IF(AC59<=0.4,\"Baja\",IF(AC59<=0.6,\"Media\",IF(AC59<=0.8,\"Alta\",\"Muy Alta\"))))),\"\")","v":"Baja"},{"$f":"+AC59","v":0.36},{"$f":"IFERROR(IF(AG59=\"\",\"\",IF(AG59<=0.2,\"Leve\",IF(AG59<=0.4,\"Menor\",IF(AG59<=0.6,\"Moderado\",IF(AG59<=0.8,\"Mayor\",\"Catastrófico\"))))),\"\")","v":"Catastrófico"},{"$f":"IFERROR(IF(V59=\"Impacto\",(O59-(+O59*Y59)),IF(V59=\"Probabilidad\",O59,\"\")),\"\")","v":1},{"$f":"IFERROR(IF(OR(AND(AD59=\"Muy Baja\",AF59=\"Leve\"),AND(AD59=\"Muy Baja\",AF59=\"Menor\"),AND(AD59=\"Baja\",AF59=\"Leve\")),\"Bajo\",IF(OR(AND(AD59=\"Muy baja\",AF59=\"Moderado\"),AND(AD59=\"Baja\",AF59=\"Menor\"),AND(AD59=\"Baja\",AF59=\"Moderado\"),AND(AD59=\"Media\",AF59=\"Leve\"),AND(AD59=\"Media\",AF59=\"Menor\"),AND(AD59=\"Media\",AF59=\"Moderado\"),AND(AD59=\"Alta\",AF59=\"Leve\"),AND(AD59=\"Alta\",AF59=\"Menor\")),\"Moderado\",IF(OR(AND(AD59=\"Muy Baja\",AF59=\"Mayor\"),AND(AD59=\"Baja\",AF59=\"Mayor\"),AND(AD59=\"Media\",AF59=\"Mayor\"),AND(AD59=\"Alta\",AF59=\"Moderado\"),AND(AD59=\"Alta\",AF59=\"Mayor\"),AND(AD59=\"Muy Alta\",AF59=\"Leve\"),AND(AD59=\"Muy Alta\",AF59=\"Menor\"),AND(AD59=\"Muy Alta\",AF59=\"Moderado\"),AND(AD59=\"Muy Alta\",AF59=\"Mayor\")),\"Alto\",IF(OR(AND(AD59=\"Muy Baja\",AF59=\"Catastrófico\"),AND(AD59=\"Baja\",AF59=\"Catastrófico\"),AND(AD59=\"Media\",AF59=\"Catastrófico\"),AND(AD59=\"Alta\",AF59=\"Catastrófico\"),AND(AD59=\"Muy Alta\",AF59=\"Catastrófico\")),\"Extremo\",\"\")))),\"\")","v":"Extremo"},"Evitar","Documentar el control","Asesora","2025-01-01","Trimestral","Coordinador","Gupo de Regalías","Jefe de Grupo","2025-02-03","2025-12-31"]
[54,"ENERGÍA","Gestión",{"$f":"IF(C60=\"Fiscal\",_xlfn.CONCAT(\"Posibilidad de efectos dañosos sobre bienes públicos \",\" por o para \",F60,\" debido a \",G60),IF(C60=\"Gestión\",_xlfn.CONCAT(\"Posibilidad de afectacion \",E60,\" por \",F60,\" debido a \",G60),\"\"))","v":"Posibilidad de afectacion reputacional por rezago en la ejecución de los conceptos de gasto de regalias que corresponden a los distribuidos y asignados por el Ministerio de Minas y Energía debido a la falta de acompañamiento, desde el equipo técnico del Grupo de Regalías, a las entidades beneficiarias de estos recursos debido a  la no revisión del componente técnico de los proyectos o la insuficiente realización de mesas de trabajo que permitan promover la inversión de estos recursos en cumplimiento de los objetivos y fines del proyecto de inversión que corresponda."},"reputacional","rezago en la ejecución de los conceptos de gasto de regalias que corresponden a los distribuidos y asignados por el Ministerio de Minas y Energía debido a la falta de acompañamiento, desde el equipo técnico del Grupo de Regalías, a las entidades beneficiarias de estos recursos"," la no revisión del componente técnico de los proyectos o la insuficiente realización de mesas de trabajo que permitan promover la inversión de estos recursos en cumplimiento de los objetivos y fines del proyecto de inversión que corresponda.","Usuarios, productos y practicas , organizacionales",80,{"$f":"IF(I60<=0,\"\",IF(I60<=2,\"Muy Baja\",IF(I60<=24,\"Baja\",IF(I60<=500,\"Media\",IF(I60<=5000,\"Alta\",\"Muy Alta\")))))","v":"Media"},{"$f":"IF(J60=\"\",\"\",IF(J60=\"Muy Baja\",0.2,IF(J60=\"Baja\",0.4,IF(J60=\"Media\",0.6,IF(J60=\"Alta\",0.8,IF(J60=\"Muy Alta\",1,))))))","v":0.6},"     El riesgo afecta la imagen de la entidad a nivel nacional, con efecto publicitarios sostenible a nivel país",{"$f":"IF(NOT(ISERROR(MATCH(L60,'[5]Tabla Impacto'!#REF!,0))),'[5]Tabla Impacto'!$F$229&\"Por favor no seleccionar los criterios de impacto(Afectación Económica o presupuestal y Pérdida Reputacional)\",L60)","v":"     El riesgo afecta la imagen de la entidad a nivel nacional, con efecto publicitarios sostenible a nivel país"},{"$f":"IF(OR(M60='[5]Tabla Impacto'!$C$11,M60='[5]Tabla Impacto'!$D$11),\"Leve\",IF(OR(M60='[5]Tabla Impacto'!$C$12,M60='[5]Tabla Impacto'!$D$12),\"Menor\",IF(OR(M60='[5]Tabla Impacto'!$C$13,M60='[5]Tabla Impacto'!$D$13),\"Moderado\",IF(OR(M60='[5]Tabla Impacto'!$C$14,M60='[5]Tabla Impacto'!$D$14),\"Mayor\",IF(OR(M60='[5]Tabla Impacto'!$C$15,M60='[5]Tabla Impacto'!$D$15),\"Catastrófico\",\"\")))))","v":"Catastrófico"},{"$f":"IF(N60=\"\",\"\",IF(N60=\"Leve\",0.2,IF(N60=\"Menor\",0.4,IF(N60=\"Moderado\",0.6,IF(N60=\"Mayor\",0.8,IF(N60=\"Catastrófico\",1,))))))","v":1},{"$f":"IF(OR(AND(J60=\"Muy Baja\",N60=\"Leve\"),AND(J60=\"Muy Baja\",N60=\"Menor\"),AND(J60=\"Baja\",N60=\"Leve\")),\"Bajo\",IF(OR(AND(J60=\"Muy baja\",N60=\"Moderado\"),AND(J60=\"Baja\",N60=\"Menor\"),AND(J60=\"Baja\",N60=\"Moderado\"),AND(J60=\"Media\",N60=\"Leve\"),AND(J60=\"Media\",N60=\"Menor\"),AND(J60=\"Media\",N60=\"Moderado\"),AND(J60=\"Alta\",N60=\"Leve\"),AND(J60=\"Alta\",N60=\"Menor\")),\"Moderado\",IF(OR(AND(J60=\"Muy Baja\",N60=\"Mayor\"),AND(J60=\"Baja\",N60=\"Mayor\"),AND(J60=\"Media\",N60=\"Mayor\"),AND(J60=\"Alta\",N60=\"Moderado\"),AND(J60=\"Alta\",N60=\"Mayor\"),AND(J60=\"Muy Alta\",N60=\"Leve\"),AND(J60=\"Muy Alta\",N60=\"Menor\"),AND(J60=\"Muy Alta\",N60=\"Moderado\"),AND(J60=\"Muy Alta\",N60=\"Mayor\")),\"Alto\",IF(OR(AND(J60=\"Muy Baja\",N60=\"Catastrófico\"),AND(J60=\"Baja\",N60=\"Catastrófico\"),AND(J60=\"Media\",N60=\"Catastrófico\"),AND(J60=\"Alta\",N60=\"Catastrófico\"),AND(J60=\"Muy Alta\",N60=\"Catastrófico\")),\"Extremo\",\"\"))))","v":"Extremo"},1,"El equipo técnico del Grupo de Regalías, realizará el acompañamiento técnico a las entidades beneficiarias de los recursos de inversión distribuidos y asignados por el Ministerio de Minas y Energía, mediante la emisión de fichas de revisión del componente técnico de los proyectos y la realización de mesas tecnicas, asi mismo se registrarán los proyectos en la matriz de seguimiento dispuesta para tal fin.","equipo técnico del Grupo de Regalías","realizará el acompañamiento técnico a las entidades beneficiarias de los recursos de inversión distribuidos y asignados por el Ministerio de Minas y Energía","la emisión de fichas de revisión del componente técnico de los proyectos y la realización de mesas tecnicas, asi mismo se registrarán los proyectos en la matriz de seguimiento dispuesta para tal fin.",{"$f":"IF(OR(W60=\"Preventivo\",W60=\"Detectivo\"),\"Probabilidad\",IF(W60=\"Correctivo\",\"Impacto\",\"\"))","v":"Probabilidad"},"Preventivo","Manual","40%","Sin Documentar","Continua","Con Registro",{"$f":"IFERROR(IF(V60=\"Probabilidad\",(K60-(+K60*Y60)),IF(V60=\"Impacto\",K60,\"\")),\"\")","v":0.36},{"$f":"IFERROR(IF(AC60=\"\",\"\",IF(AC60<=0.2,\"Muy Baja\",IF(AC60<=0.4,\"Baja\",IF(AC60<=0.6,\"Media\",IF(AC60<=0.8,\"Alta\",\"Muy Alta\"))))),\"\")","v":"Baja"},{"$f":"+AC60","v":0.36},{"$f":"IFERROR(IF(AG60=\"\",\"\",IF(AG60<=0.2,\"Leve\",IF(AG60<=0.4,\"Menor\",IF(AG60<=0.6,\"Moderado\",IF(AG60<=0.8,\"Mayor\",\"Catastrófico\"))))),\"\")","v":"Catastrófico"},{"$f":"IFERROR(IF(V60=\"Impacto\",(O60-(+O60*Y60)),IF(V60=\"Probabilidad\",O60,\"\")),\"\")","v":1},{"$f":"IFERROR(IF(OR(AND(AD60=\"Muy Baja\",AF60=\"Leve\"),AND(AD60=\"Muy Baja\",AF60=\"Menor\"),AND(AD60=\"Baja\",AF60=\"Leve\")),\"Bajo\",IF(OR(AND(AD60=\"Muy baja\",AF60=\"Moderado\"),AND(AD60=\"Baja\",AF60=\"Menor\"),AND(AD60=\"Baja\",AF60=\"Moderado\"),AND(AD60=\"Media\",AF60=\"Leve\"),AND(AD60=\"Media\",AF60=\"Menor\"),AND(AD60=\"Media\",AF60=\"Moderado\"),AND(AD60=\"Alta\",AF60=\"Leve\"),AND(AD60=\"Alta\",AF60=\"Menor\")),\"Moderado\",IF(OR(AND(AD60=\"Muy Baja\",AF60=\"Mayor\"),AND(AD60=\"Baja\",AF60=\"Mayor\"),AND(AD60=\"Media\",AF60=\"Mayor\"),AND(AD60=\"Alta\",AF60=\"Moderado\"),AND(AD60=\"Alta\",AF60=\"Mayor\"),AND(AD60=\"Muy Alta\",AF60=\"Leve\"),AND(AD60=\"Muy Alta\",AF60=\"Menor\"),AND(AD60=\"Muy Alta\",AF60=\"Moderado\"),AND(AD60=\"Muy Alta\",AF60=\"Mayor\")),\"Alto\",IF(OR(AND(AD60=\"Muy Baja\",AF60=\"Catastrófico\"),AND(AD60=\"Baja\",AF60=\"Catastrófico\"),AND(AD60=\"Media\",AF60=\"Catastrófico\"),AND(AD60=\"Alta\",AF60=\"Catastrófico\"),AND(AD60=\"Muy Alta\",AF60=\"Catastrófico\")),\"Extremo\",\"\")))),\"\")","v":"Extremo"},"Evitar","Documentar el control","Asesora","2025-01-01","Trimestral","Coordinador","Gupo de Regalías","Jefe de Grupo","2025-02-03","2025-12-31"]
[55,"GESTIÓN CONTRACTUAL","Gestión","Posibilidad de afectacion económico y reputacional por demoras y reprocesos en los procesos de contratación debido a fallas e indisponibilidad en la platforma SECOP","económico y reputacional","demoras y reprocesos en los procesos de contratación","fallas e indisponibilidad en la platforma SECOP","Fallas Tecnologicas",1200,"Alta",0.8,"     El riesgo afecta la imagen de la entidad con algunos usuarios de relevancia frente al logro de los objetivos",{"$f":"IF(NOT(ISERROR(MATCH(L61,'[5]Tabla Impacto'!#REF!,0))),'[5]Tabla Impacto'!$F$229&\"Por favor no seleccionar los criterios de impacto(Afectación Económica o presupuestal y Pérdida Reputacional)\",L61)","v":"     El riesgo afecta la imagen de la entidad con algunos usuarios de relevancia frente al logro de los objetivos"},{"$f":"IF(OR(M61='[5]Tabla Impacto'!$C$11,M61='[5]Tabla Impacto'!$D$11),\"Leve\",IF(OR(M61='[5]Tabla Impacto'!$C$12,M61='[5]Tabla Impacto'!$D$12),\"Menor\",IF(OR(M61='[5]Tabla Impacto'!$C$13,M61='[5]Tabla Impacto'!$D$13),\"Moderado\",IF(OR(M61='[5]Tabla Impacto'!$C$14,M61='[5]Tabla Impacto'!$D$14),\"Mayor\",IF(OR(M61='[5]Tabla Impacto'!$C$15,M61='[5]Tabla Impacto'!$D$15),\"Catastrófico\",\"\")))))","v":"Moderado"},0.6,"Alto",1,"El Coordinador Grupo de Gestión Contractual, a través del enlace designado, reporta fallas en la funcionalidad de la plataforma SECOP ante Colombia Compra Eficiente y aplica protocolos en caso de indisponibilidad de la plataforma SECOP y adelanta adendas en caso de requerirse","Coordinador (a) Grupo de Gestión Contractual","Reportar fallas en la plataforma SECOP, ante Colombia Compra Eficiente, aplicar protocolos en caso de indisponibilidad de la plataforma secop, adelantar adendas y guardar reporte de incidentes radicados","Certificados de indisponibilidad general y particular, protocolos expedidos por Colombia compra eficiente y constancias de casos radicados en Colombia compra eficiente","Impacto","Correctivo","Manual",{"$f":"IF(AND(W61=\"Preventivo\",X61=\"Automático\"),\"50%\",IF(AND(W61=\"Preventivo\",X61=\"Manual\"),\"40%\",IF(AND(W61=\"Detectivo\",X61=\"Automático\"),\"40%\",IF(AND(W61=\"Detectivo\",X61=\"Manual\"),\"30%\",IF(AND(W61=\"Correctivo\",X61=\"Automático\"),\"35%\",IF(AND(W61=\"Correctivo\",X61=\"Manual\"),\"25%\",\"\"))))))","v":"25%"},"Sin Documentar","Aleatoria","Con Registro",0.8,"Alta",0.8,"Moderado",0.44999999999999996,"Alto","Evitar",null,null,null,null,"Coordinador (a) Grupo de Gestión Contractual","Subdirección Administrativa y Financiera","Pablo César Pacheco Rodríguez","2025-03-03","2025-12-31"]
[56,"GESTIÓN FINANCIERA","Gestión",{"$f":"IF(C62=\"Fiscal\",_xlfn.CONCAT(\"Posibilidad de efectos dañosos sobre bienes públicos \",\" por o para \",F62,\" debido a \",G62),IF(C62=\"Gestión\",_xlfn.CONCAT(\"Posibilidad de afectacion \",E62,\" por \",F62,\" debido a \",G62),\"\"))","v":"Posibilidad de afectacion económico por Reducción o no aprobación de los recursos PAC por parte del Ministerio de Hacienda y Crédito Público. debido a Falta de planeación y seguimiento a la ejecución de los recursos PAC programados por parte de las dependencias."},"económico","Reducción o no aprobación de los recursos PAC por parte del Ministerio de Hacienda y Crédito Público.","Falta de planeación y seguimiento a la ejecución de los recursos PAC programados por parte de las dependencias.","Ejecucion y Administracion de procesos",12,{"$f":"IF(I62<=0,\"\",IF(I62<=2,\"Muy Baja\",IF(I62<=24,\"Baja\",IF(I62<=500,\"Media\",IF(I62<=5000,\"Alta\",\"Muy Alta\")))))","v":"Baja"},{"$f":"IF(J62=\"\",\"\",IF(J62=\"Muy Baja\",0.2,IF(J62=\"Baja\",0.4,IF(J62=\"Media\",0.6,IF(J62=\"Alta\",0.8,IF(J62=\"Muy Alta\",1,))))))","v":0.4},"     Mayor a 500 SMLMV ",{"$f":"IF(NOT(ISERROR(MATCH(L62,'[5]Tabla Impacto'!#REF!,0))),'[5]Tabla Impacto'!$F$229&\"Por favor no seleccionar los criterios de impacto(Afectación Económica o presupuestal y Pérdida Reputacional)\",L62)","v":"     Mayor a 500 SMLMV "},{"$f":"IF(OR(M62='[5]Tabla Impacto'!$C$11,M62='[5]Tabla Impacto'!$D$11),\"Leve\",IF(OR(M62='[5]Tabla Impacto'!$C$12,M62='[5]Tabla Impacto'!$D$12),\"Menor\",IF(OR(M62='[5]Tabla Impacto'!$C$13,M62='[5]Tabla Impacto'!$D$13),\"Moderado\",IF(OR(M62='[5]Tabla Impacto'!$C$14,M62='[5]Tabla Impacto'!$D$14),\"Mayor\",IF(OR(M62='[5]Tabla Impacto'!$C$15,M62='[5]Tabla Impacto'!$D$15),\"Catastrófico\",\"\")))))","v":"Catastrófico"},{"$f":"IF(N62=\"\",\"\",IF(N62=\"Leve\",0.2,IF(N62=\"Menor\",0.4,IF(N62=\"Moderado\",0.6,IF(N62=\"Mayor\",0.8,IF(N62=\"Catastrófico\",1,))))))","v":1},{"$f":"IF(OR(AND(J62=\"Muy Baja\",N62=\"Leve\"),AND(J62=\"Muy Baja\",N62=\"Menor\"),AND(J62=\"Baja\",N62=\"Leve\")),\"Bajo\",IF(OR(AND(J62=\"Muy baja\",N62=\"Moderado\"),AND(J62=\"Baja\",N62=\"Menor\"),AND(J62=\"Baja\",N62=\"Moderado\"),AND(J62=\"Media\",N62=\"Leve\"),AND(J62=\"Media\",N62=\"Menor\"),AND(J62=\"Media\",N62=\"Moderado\"),AND(J62=\"Alta\",N62=\"Leve\"),AND(J62=\"Alta\",N62=\"Menor\")),\"Moderado\",IF(OR(AND(J62=\"Muy Baja\",N62=\"Mayor\"),AND(J62=\"Baja\",N62=\"Mayor\"),AND(J62=\"Media\",N62=\"Mayor\"),AND(J62=\"Alta\",N62=\"Moderado\"),AND(J62=\"Alta\",N62=\"Mayor\"),AND(J62=\"Muy Alta\",N62=\"Leve\"),AND(J62=\"Muy Alta\",N62=\"Menor\"),AND(J62=\"Muy Alta\",N62=\"Moderado\"),AND(J62=\"Muy Alta\",N62=\"Mayor\")),\"Alto\",IF(OR(AND(J62=\"Muy Baja\",N62=\"Catastrófico\"),AND(J62=\"Baja\",N62=\"Catastrófico\"),AND(J62=\"Media\",N62=\"Catastrófico\"),AND(J62=\"Alta\",N62=\"Catastrófico\"),AND(J62=\"Muy Alta\",N62=\"Catastrófico\")),\"Extremo\",\"\"))))","v":"Extremo"},1,"El profesional asignado del Grupo de Tesorería, realiza un seguimiento continuo a la ejecución de los recursos PAC solicitados mensualmente ante el Ministerio de Hacienda y Crédito Público, según la programación realizada por cada una de las dependencias del MME, con el fin de verificar que todas las obligaciones se causen y se paguen oportunamente.","Profesional PAC Grupo de Tesorería","Realizar control y seguimiento de la ejecución de los recursos PAC programados por cada una de las dependencias del MME, con el fin de evidenciar que los recursos asignados por parte del MHCP sean ejecutados por cada una de las dependencias del MME.","Comunicaciones de seguimiento enviadas a cada una de las dependencias que presentan baja ejecución.",{"$f":"IF(OR(W62=\"Preventivo\",W62=\"Detectivo\"),\"Probabilidad\",IF(W62=\"Correctivo\",\"Impacto\",\"\"))","v":"Probabilidad"},"Preventivo","Manual","40%","Documentado","Continua","Con Registro",{"$f":"IFERROR(IF(V62=\"Probabilidad\",(K62-(+K62*Y62)),IF(V62=\"Impacto\",K62,\"\")),\"\")","v":0.24},{"$f":"IFERROR(IF(AC62=\"\",\"\",IF(AC62<=0.2,\"Muy Baja\",IF(AC62<=0.4,\"Baja\",IF(AC62<=0.6,\"Media\",IF(AC62<=0.8,\"Alta\",\"Muy Alta\"))))),\"\")","v":"Baja"},{"$f":"+AC62","v":0.24},{"$f":"IFERROR(IF(AG62=\"\",\"\",IF(AG62<=0.2,\"Leve\",IF(AG62<=0.4,\"Menor\",IF(AG62<=0.6,\"Moderado\",IF(AG62<=0.8,\"Mayor\",\"Catastrófico\"))))),\"\")","v":"Catastrófico"},{"$f":"IFERROR(IF(V62=\"Impacto\",(O62-(+O62*Y62)),IF(V62=\"Probabilidad\",O62,\"\")),\"\")","v":1},{"$f":"IFERROR(IF(OR(AND(AD62=\"Muy Baja\",AF62=\"Leve\"),AND(AD62=\"Muy Baja\",AF62=\"Menor\"),AND(AD62=\"Baja\",AF62=\"Leve\")),\"Bajo\",IF(OR(AND(AD62=\"Muy baja\",AF62=\"Moderado\"),AND(AD62=\"Baja\",AF62=\"Menor\"),AND(AD62=\"Baja\",AF62=\"Moderado\"),AND(AD62=\"Media\",AF62=\"Leve\"),AND(AD62=\"Media\",AF62=\"Menor\"),AND(AD62=\"Media\",AF62=\"Moderado\"),AND(AD62=\"Alta\",AF62=\"Leve\"),AND(AD62=\"Alta\",AF62=\"Menor\")),\"Moderado\",IF(OR(AND(AD62=\"Muy Baja\",AF62=\"Mayor\"),AND(AD62=\"Baja\",AF62=\"Mayor\"),AND(AD62=\"Media\",AF62=\"Mayor\"),AND(AD62=\"Alta\",AF62=\"Moderado\"),AND(AD62=\"Alta\",AF62=\"Mayor\"),AND(AD62=\"Muy Alta\",AF62=\"Leve\"),AND(AD62=\"Muy Alta\",AF62=\"Menor\"),AND(AD62=\"Muy Alta\",AF62=\"Moderado\"),AND(AD62=\"Muy Alta\",AF62=\"Mayor\")),\"Alto\",IF(OR(AND(AD62=\"Muy Baja\",AF62=\"Catastrófico\"),AND(AD62=\"Baja\",AF62=\"Catastrófico\"),AND(AD62=\"Media\",AF62=\"Catastrófico\"),AND(AD62=\"Alta\",AF62=\"Catastrófico\"),AND(AD62=\"Muy Alta\",AF62=\"Catastrófico\")),\"Extremo\",\"\")))),\"\")","v":"Extremo"},"Evitar",null,null,null,null,"Profesional Especializado","Subdirección Administrativa y Financiera \n\nGrupo de Tesorería","Pablo César Pacheco Rodríguez","2025-01-01","2025-12-31",null,"NO"]
[57,"GESTIÓN FINANCIERA","Gestión",{"$f":"IF(C63=\"Fiscal\",_xlfn.CONCAT(\"Posibilidad de efectos dañosos sobre bienes públicos \",\" por o para \",F63,\" debido a \",G63),IF(C63=\"Gestión\",_xlfn.CONCAT(\"Posibilidad de afectacion \",E63,\" por \",F63,\" debido a \",G63),\"\"))","v":"Posibilidad de afectacion económico y reputacional por Incumplimiento en el pago de las obligaciones adquiridas con terceros. debido a No cumplimiento parcial o total de los Requisitos establecidos para el trámite de pago."},"económico y reputacional","Incumplimiento en el pago de las obligaciones adquiridas con terceros.","No cumplimiento parcial o total de los Requisitos establecidos para el trámite de pago.","Ejecucion y Administracion de procesos",360,"Media",0.6,"     Mayor a 500 SMLMV ",{"$f":"IF(NOT(ISERROR(MATCH(L63,'[5]Tabla Impacto'!#REF!,0))),'[5]Tabla Impacto'!$F$229&\"Por favor no seleccionar los criterios de impacto(Afectación Económica o presupuestal y Pérdida Reputacional)\",L63)","v":"     Mayor a 500 SMLMV "},{"$f":"IF(OR(M63='[5]Tabla Impacto'!$C$11,M63='[5]Tabla Impacto'!$D$11),\"Leve\",IF(OR(M63='[5]Tabla Impacto'!$C$12,M63='[5]Tabla Impacto'!$D$12),\"Menor\",IF(OR(M63='[5]Tabla Impacto'!$C$13,M63='[5]Tabla Impacto'!$D$13),\"Moderado\",IF(OR(M63='[5]Tabla Impacto'!$C$14,M63='[5]Tabla Impacto'!$D$14),\"Mayor\",IF(OR(M63='[5]Tabla Impacto'!$C$15,M63='[5]Tabla Impacto'!$D$15),\"Catastrófico\",\"\")))))","v":"Catastrófico"},1,"Extremo",1,"El Profesional del Grupo de Tesorería, revisa el cumplimiento de los requisitos necesarios para cada tipo de pago y una vez cumplido los mismos, se realiza la orden de pago en el aplicativo SIIF Nación y/o SPGR según corresponda, posteriormente a los dos días hábiles siguientes, confirmamos que la orden de pago se encuentre en estado Pagada.","Profesional Grupo de Tesorería","Verificar las consistencias de los requisitos presentados en las cuentas, lo anterior con el fin de identificar el estado de los posibles ajustes que se hayan adelantado en el flujo de las cuentas en el sistema Neón.","Reporte de rechazos generado del sistema Neón.","Probabilidad","Preventivo","Manual",{"$f":"IF(AND(W63=\"Preventivo\",X63=\"Automático\"),\"50%\",IF(AND(W63=\"Preventivo\",X63=\"Manual\"),\"40%\",IF(AND(W63=\"Detectivo\",X63=\"Automático\"),\"40%\",IF(AND(W63=\"Detectivo\",X63=\"Manual\"),\"30%\",IF(AND(W63=\"Correctivo\",X63=\"Automático\"),\"35%\",IF(AND(W63=\"Correctivo\",X63=\"Manual\"),\"25%\",\"\"))))))","v":"40%"},"Documentado","Continua","Con Registro",0.36,"Baja",0.36,"Catastrófico",1,"Extremo","Evitar",null,null,null,null,"Profesional","Subdirección Administrativa y Financiera \n\nGrupo de Tesorería","Pablo César Pacheco Rodríguez","2025-01-01","2025-12-31",null,"NO"]
[58,"GESTIÓN FINANCIERA","Gestión",{"$f":"IF(C64=\"Fiscal\",_xlfn.CONCAT(\"Posibilidad de efectos dañosos sobre bienes públicos \",\" por o para \",F64,\" debido a \",G64),IF(C64=\"Gestión\",_xlfn.CONCAT(\"Posibilidad de afectacion \",E64,\" por \",F64,\" debido a \",G64),\"\"))","v":"Posibilidad de afectacion económico por reducción o aplazamiento de las partidas asignadas en el presupuesto del ministerio por baja ejecución del presupuesto asignado, según las metas establecidas en los Acuerdos de Gestión debido a falta de cumplimiento oportuno y falta de planeación así como ausencia de medidas correctivas por parte de las dependencias"},"económico","reducción o aplazamiento de las partidas asignadas en el presupuesto del ministerio por baja ejecución del presupuesto asignado, según las metas establecidas en los Acuerdos de Gestión","falta de cumplimiento oportuno y falta de planeación así como ausencia de medidas correctivas por parte de las dependencias","Ejecucion y Administracion de procesos",12,{"$f":"IF(I64<=0,\"\",IF(I64<=2,\"Muy Baja\",IF(I64<=24,\"Baja\",IF(I64<=500,\"Media\",IF(I64<=5000,\"Alta\",\"Muy Alta\")))))","v":"Baja"},{"$f":"IF(J64=\"\",\"\",IF(J64=\"Muy Baja\",0.2,IF(J64=\"Baja\",0.4,IF(J64=\"Media\",0.6,IF(J64=\"Alta\",0.8,IF(J64=\"Muy Alta\",1,))))))","v":0.4},"     Mayor a 500 SMLMV ",{"$f":"IF(NOT(ISERROR(MATCH(L64,'[5]Tabla Impacto'!#REF!,0))),'[5]Tabla Impacto'!$F$229&\"Por favor no seleccionar los criterios de impacto(Afectación Económica o presupuestal y Pérdida Reputacional)\",L64)","v":"     Mayor a 500 SMLMV "},{"$f":"IF(OR(M64='[5]Tabla Impacto'!$C$11,M64='[5]Tabla Impacto'!$D$11),\"Leve\",IF(OR(M64='[5]Tabla Impacto'!$C$12,M64='[5]Tabla Impacto'!$D$12),\"Menor\",IF(OR(M64='[5]Tabla Impacto'!$C$13,M64='[5]Tabla Impacto'!$D$13),\"Moderado\",IF(OR(M64='[5]Tabla Impacto'!$C$14,M64='[5]Tabla Impacto'!$D$14),\"Mayor\",IF(OR(M64='[5]Tabla Impacto'!$C$15,M64='[5]Tabla Impacto'!$D$15),\"Catastrófico\",\"\")))))","v":"Catastrófico"},{"$f":"IF(N64=\"\",\"\",IF(N64=\"Leve\",0.2,IF(N64=\"Menor\",0.4,IF(N64=\"Moderado\",0.6,IF(N64=\"Mayor\",0.8,IF(N64=\"Catastrófico\",1,))))))","v":1},{"$f":"IF(OR(AND(J64=\"Muy Baja\",N64=\"Leve\"),AND(J64=\"Muy Baja\",N64=\"Menor\"),AND(J64=\"Baja\",N64=\"Leve\")),\"Bajo\",IF(OR(AND(J64=\"Muy baja\",N64=\"Moderado\"),AND(J64=\"Baja\",N64=\"Menor\"),AND(J64=\"Baja\",N64=\"Moderado\"),AND(J64=\"Media\",N64=\"Leve\"),AND(J64=\"Media\",N64=\"Menor\"),AND(J64=\"Media\",N64=\"Moderado\"),AND(J64=\"Alta\",N64=\"Leve\"),AND(J64=\"Alta\",N64=\"Menor\")),\"Moderado\",IF(OR(AND(J64=\"Muy Baja\",N64=\"Mayor\"),AND(J64=\"Baja\",N64=\"Mayor\"),AND(J64=\"Media\",N64=\"Mayor\"),AND(J64=\"Alta\",N64=\"Moderado\"),AND(J64=\"Alta\",N64=\"Mayor\"),AND(J64=\"Muy Alta\",N64=\"Leve\"),AND(J64=\"Muy Alta\",N64=\"Menor\"),AND(J64=\"Muy Alta\",N64=\"Moderado\"),AND(J64=\"Muy Alta\",N64=\"Mayor\")),\"Alto\",IF(OR(AND(J64=\"Muy Baja\",N64=\"Catastrófico\"),AND(J64=\"Baja\",N64=\"Catastrófico\"),AND(J64=\"Media\",N64=\"Catastrófico\"),AND(J64=\"Alta\",N64=\"Catastrófico\"),AND(J64=\"Muy Alta\",N64=\"Catastrófico\")),\"Extremo\",\"\"))))","v":"Extremo"},1,"El profesional del Grupo de Presupuesto realiza un seguimiento continuo a la ejecución presupuestal de la entidad y mediante comunicaciones dirigidas a cada una de las dependencias remite el informe periodico del estado de su ejecución, con el fin de identificar y evidenciar los recursos pendientes por ejecutar. Para el cumplimiento de los acuerdos de gestión, se implementan controles como el monitoreo mensual de ejecución, informes trimestrales y la priorización de áreas específicas para reuniones de análisis. En estas reuniones se definen acciones correctivas para alinear la ejecución con lo programado y se realiza un seguimiento continuo a las áreas priorizadas, conforme a lo establecido en el Procedimiento T-GF-P-17","Profesional del Grupo de Presupuesto ","Realizar un seguimiento oportuno a la ejecución presupuestal de la entidad para identificar las disponibilidades emitidas pendientes por comprometer, los saldos de registros presupuestales sin ejecución y los saldos de reservas presupuestales. Se priorizarán los recursos de funcionamiento y los proyectos de inversión con baja ejecución, con el objetivo de coordinar con las dependencias las acciones necesarias y establecer un cronograma para el cumplimiento de las metas definidas en los Acuerdos de Gestión","Informe de Seguimiento \nInforme de Gestión Financiera\nInforme de Gastos\nInforme de Reserva Presupuestal\nMemorandos de Seguimiento\nReuniones de Seguimiento\nAlertas de ejecución\nInforme Ejecutivo para la alta dirección\n",{"$f":"IF(OR(W64=\"Preventivo\",W64=\"Detectivo\"),\"Probabilidad\",IF(W64=\"Correctivo\",\"Impacto\",\"\"))","v":"Impacto"},"Correctivo","Manual","25%","Documentado","Continua","Con Registro",{"$f":"IFERROR(IF(V64=\"Probabilidad\",(K64-(+K64*Y64)),IF(V64=\"Impacto\",K64,\"\")),\"\")","v":0.4},{"$f":"IFERROR(IF(AC64=\"\",\"\",IF(AC64<=0.2,\"Muy Baja\",IF(AC64<=0.4,\"Baja\",IF(AC64<=0.6,\"Media\",IF(AC64<=0.8,\"Alta\",\"Muy Alta\"))))),\"\")","v":"Baja"},{"$f":"+AC64","v":0.4},{"$f":"IFERROR(IF(AG64=\"\",\"\",IF(AG64<=0.2,\"Leve\",IF(AG64<=0.4,\"Menor\",IF(AG64<=0.6,\"Moderado\",IF(AG64<=0.8,\"Mayor\",\"Catastrófico\"))))),\"\")","v":"Mayor"},{"$f":"IFERROR(IF(V64=\"Impacto\",(O64-(+O64*Y64)),IF(V64=\"Probabilidad\",O64,\"\")),\"\")","v":0.75},{"$f":"IFERROR(IF(OR(AND(AD64=\"Muy Baja\",AF64=\"Leve\"),AND(AD64=\"Muy Baja\",AF64=\"Menor\"),AND(AD64=\"Baja\",AF64=\"Leve\")),\"Bajo\",IF(OR(AND(AD64=\"Muy baja\",AF64=\"Moderado\"),AND(AD64=\"Baja\",AF64=\"Menor\"),AND(AD64=\"Baja\",AF64=\"Moderado\"),AND(AD64=\"Media\",AF64=\"Leve\"),AND(AD64=\"Media\",AF64=\"Menor\"),AND(AD64=\"Media\",AF64=\"Moderado\"),AND(AD64=\"Alta\",AF64=\"Leve\"),AND(AD64=\"Alta\",AF64=\"Menor\")),\"Moderado\",IF(OR(AND(AD64=\"Muy Baja\",AF64=\"Mayor\"),AND(AD64=\"Baja\",AF64=\"Mayor\"),AND(AD64=\"Media\",AF64=\"Mayor\"),AND(AD64=\"Alta\",AF64=\"Moderado\"),AND(AD64=\"Alta\",AF64=\"Mayor\"),AND(AD64=\"Muy Alta\",AF64=\"Leve\"),AND(AD64=\"Muy Alta\",AF64=\"Menor\"),AND(AD64=\"Muy Alta\",AF64=\"Moderado\"),AND(AD64=\"Muy Alta\",AF64=\"Mayor\")),\"Alto\",IF(OR(AND(AD64=\"Muy Baja\",AF64=\"Catastrófico\"),AND(AD64=\"Baja\",AF64=\"Catastrófico\"),AND(AD64=\"Media\",AF64=\"Catastrófico\"),AND(AD64=\"Alta\",AF64=\"Catastrófico\"),AND(AD64=\"Muy Alta\",AF64=\"Catastrófico\")),\"Extremo\",\"\")))),\"\")","v":"Alto"},"Evitar",null,null,null,null,"Coordinador Grupo Presupuesto","Subdirección Administrativa y Financiera \n\nGrupo Presupuesto","Pablo César Pacheco Rodríguez","2025-02-21","2025-12-31"," "]
[59,"GESTIÓN FINANCIERA","Gestión","Posibilidad de afectacion reputacional por Procesos disciplinarios y sanciones de los entes de control e imposibilidad de tomar decisiones a tiempo y confiables debido a entrega inoportuna de la información contable y financiera, solicitada por las entidades de control acorde con las fechas establecidas","reputacional","Procesos disciplinarios y sanciones de los entes de control e imposibilidad de tomar decisiones a tiempo y confiables","entrega inoportuna de la información contable y financiera, solicitada por las entidades de control acorde con las fechas establecidas","Ejecucion y Administracion de procesos",24,"Baja",0.4,"     El riesgo afecta la imagen de de la entidad con efecto publicitario sostenido a nivel de sector administrativo, nivel departamental o municipal",{"$f":"IF(NOT(ISERROR(MATCH(L65,'[5]Tabla Impacto'!#REF!,0))),'[5]Tabla Impacto'!$F$229&\"Por favor no seleccionar los criterios de impacto(Afectación Económica o presupuestal y Pérdida Reputacional)\",L65)","v":"     El riesgo afecta la imagen de de la entidad con efecto publicitario sostenido a nivel de sector administrativo, nivel departamental o municipal"},{"$f":"IF(OR(M65='[5]Tabla Impacto'!$C$11,M65='[5]Tabla Impacto'!$D$11),\"Leve\",IF(OR(M65='[5]Tabla Impacto'!$C$12,M65='[5]Tabla Impacto'!$D$12),\"Menor\",IF(OR(M65='[5]Tabla Impacto'!$C$13,M65='[5]Tabla Impacto'!$D$13),\"Moderado\",IF(OR(M65='[5]Tabla Impacto'!$C$14,M65='[5]Tabla Impacto'!$D$14),\"Mayor\",IF(OR(M65='[5]Tabla Impacto'!$C$15,M65='[5]Tabla Impacto'!$D$15),\"Catastrófico\",\"\")))))","v":"Mayor"},0.8,"Alto",1,"El Profesional Especializado del Grupo de Gestion Financiera y Contable  que  de acuerdo con la fecha de entrega de la información financiera que establece por la Contaduría General de la Nación,  y realiza el envió con debida antelación de comunicación de oficios internos y externos  solicitando la información contable para ser incluida en los estados financieros del MME, revisa y valida la remisión de la información y los seguimientos sobre las entidades que no realizaron el reporte.","Profesional Especializado del Grupo de Gestion Financiera y Contable","De acuerdo con la fecha de entrega de la información financiera establecida por la Contaduría General de la Nación, se envía con la debida antelación cartas internas y externas de solicitud de la información contable para ser incluida en los estados financieros del MME. Una vez cumplidos los términos se valida la remisión de la información y se efectúa seguimientos obre las entidades que no realizaron el reporte para su envió.","Comunicaciones internas y externas de solicitud de información.","Probabilidad","Preventivo","Manual",{"$f":"IF(AND(W65=\"Preventivo\",X65=\"Automático\"),\"50%\",IF(AND(W65=\"Preventivo\",X65=\"Manual\"),\"40%\",IF(AND(W65=\"Detectivo\",X65=\"Automático\"),\"40%\",IF(AND(W65=\"Detectivo\",X65=\"Manual\"),\"30%\",IF(AND(W65=\"Correctivo\",X65=\"Automático\"),\"35%\",IF(AND(W65=\"Correctivo\",X65=\"Manual\"),\"25%\",\"\"))))))","v":"40%"},"Documentado","Continua","Con Registro",0.24,"Baja",0.24,"Mayor",0.8,"Alto","Evitar",null,null,null,null,"Profesional Especializado","Subdirección Administrativa y Financiera \n\nGrupo de Gestión Financiera y Contable","Pablo César Pacheco Rodríguez","2025-03-01","2025-12-31"]
[60,"GESTIÓN FINANCIERA","Gestión",{"$f":"IF(C66=\"Fiscal\",_xlfn.CONCAT(\"Posibilidad de efectos dañosos sobre bienes públicos \",\" por o para \",F66,\" debido a \",G66),IF(C66=\"Gestión\",_xlfn.CONCAT(\"Posibilidad de afectacion \",E66,\" por \",F66,\" debido a \",G66),\"\"))","v":"Posibilidad de afectacion económico y reputacional por irregularidades o deficiencias en la gestión fiscal de la entidad y sanciones disciplinarias. debido a No fenecimiento de la cuenta  por la inobservancia e inaplicabilidad de las dinámicas del Plan General de Contabilidad Publica o aplicación de manera parcial o errónea de las normas  o instrucciones dadas por la CGN y otras entidades"},"económico y reputacional","irregularidades o deficiencias en la gestión fiscal de la entidad y sanciones disciplinarias.","No fenecimiento de la cuenta  por la inobservancia e inaplicabilidad de las dinámicas del Plan General de Contabilidad Publica o aplicación de manera parcial o errónea de las normas  o instrucciones dadas por la CGN y otras entidades","Ejecucion y Administracion de procesos",1,{"$f":"IF(I66<=0,\"\",IF(I66<=2,\"Muy Baja\",IF(I66<=24,\"Baja\",IF(I66<=500,\"Media\",IF(I66<=5000,\"Alta\",\"Muy Alta\")))))","v":"Muy Baja"},{"$f":"IF(J66=\"\",\"\",IF(J66=\"Muy Baja\",0.2,IF(J66=\"Baja\",0.4,IF(J66=\"Media\",0.6,IF(J66=\"Alta\",0.8,IF(J66=\"Muy Alta\",1,))))))","v":0.2},"     El riesgo afecta la imagen de la entidad a nivel nacional, con efecto publicitarios sostenible a nivel país",{"$f":"IF(NOT(ISERROR(MATCH(L66,'[5]Tabla Impacto'!#REF!,0))),'[5]Tabla Impacto'!$F$229&\"Por favor no seleccionar los criterios de impacto(Afectación Económica o presupuestal y Pérdida Reputacional)\",L66)","v":"     El riesgo afecta la imagen de la entidad a nivel nacional, con efecto publicitarios sostenible a nivel país"},{"$f":"IF(OR(M66='[5]Tabla Impacto'!$C$11,M66='[5]Tabla Impacto'!$D$11),\"Leve\",IF(OR(M66='[5]Tabla Impacto'!$C$12,M66='[5]Tabla Impacto'!$D$12),\"Menor\",IF(OR(M66='[5]Tabla Impacto'!$C$13,M66='[5]Tabla Impacto'!$D$13),\"Moderado\",IF(OR(M66='[5]Tabla Impacto'!$C$14,M66='[5]Tabla Impacto'!$D$14),\"Mayor\",IF(OR(M66='[5]Tabla Impacto'!$C$15,M66='[5]Tabla Impacto'!$D$15),\"Catastrófico\",\"\")))))","v":"Catastrófico"},{"$f":"IF(N66=\"\",\"\",IF(N66=\"Leve\",0.2,IF(N66=\"Menor\",0.4,IF(N66=\"Moderado\",0.6,IF(N66=\"Mayor\",0.8,IF(N66=\"Catastrófico\",1,))))))","v":1},{"$f":"IF(OR(AND(J66=\"Muy Baja\",N66=\"Leve\"),AND(J66=\"Muy Baja\",N66=\"Menor\"),AND(J66=\"Baja\",N66=\"Leve\")),\"Bajo\",IF(OR(AND(J66=\"Muy baja\",N66=\"Moderado\"),AND(J66=\"Baja\",N66=\"Menor\"),AND(J66=\"Baja\",N66=\"Moderado\"),AND(J66=\"Media\",N66=\"Leve\"),AND(J66=\"Media\",N66=\"Menor\"),AND(J66=\"Media\",N66=\"Moderado\"),AND(J66=\"Alta\",N66=\"Leve\"),AND(J66=\"Alta\",N66=\"Menor\")),\"Moderado\",IF(OR(AND(J66=\"Muy Baja\",N66=\"Mayor\"),AND(J66=\"Baja\",N66=\"Mayor\"),AND(J66=\"Media\",N66=\"Mayor\"),AND(J66=\"Alta\",N66=\"Moderado\"),AND(J66=\"Alta\",N66=\"Mayor\"),AND(J66=\"Muy Alta\",N66=\"Leve\"),AND(J66=\"Muy Alta\",N66=\"Menor\"),AND(J66=\"Muy Alta\",N66=\"Moderado\"),AND(J66=\"Muy Alta\",N66=\"Mayor\")),\"Alto\",IF(OR(AND(J66=\"Muy Baja\",N66=\"Catastrófico\"),AND(J66=\"Baja\",N66=\"Catastrófico\"),AND(J66=\"Media\",N66=\"Catastrófico\"),AND(J66=\"Alta\",N66=\"Catastrófico\"),AND(J66=\"Muy Alta\",N66=\"Catastrófico\")),\"Extremo\",\"\"))))","v":"Extremo"},1,"El Profesional Especializado del Grupo de Gestion Financiera y Contable  que realiza el análisis de partidas inusuales y saldos negativos con periodicidad trimestral de las cuentas del Balance del MME , de acuerdo a la asignación establecida y con el fin de evitar registros que nos correspondan a las cuentas,  en caso de encontrar inconsistencias se efectúa el comprobante de corrección correspondiente del ajuste.","Profesional Especializado del Grupo de Gestion Financiera y Contable","Analizar de manera trimestral las cuentas del Balance del MME, de acuerdo a la distribución establecida, con el fin de evitar registros que no correspondan a estas cuentas. En caso de encontrar inconsistencias se efectúa el comprobante de corrección correspondiente","Cuentas  analizadas detectando partidas inusuales y saldos negativos en las cuentas del balance General del MME",{"$f":"IF(OR(W66=\"Preventivo\",W66=\"Detectivo\"),\"Probabilidad\",IF(W66=\"Correctivo\",\"Impacto\",\"\"))","v":"Probabilidad"},"Preventivo","Manual","40%","Documentado","Continua","Con Registro",{"$f":"IFERROR(IF(V66=\"Probabilidad\",(K66-(+K66*Y66)),IF(V66=\"Impacto\",K66,\"\")),\"\")","v":0.12},{"$f":"IFERROR(IF(AC66=\"\",\"\",IF(AC66<=0.2,\"Muy Baja\",IF(AC66<=0.4,\"Baja\",IF(AC66<=0.6,\"Media\",IF(AC66<=0.8,\"Alta\",\"Muy Alta\"))))),\"\")","v":"Muy Baja"},{"$f":"+AC66","v":0.12},{"$f":"IFERROR(IF(AG66=\"\",\"\",IF(AG66<=0.2,\"Leve\",IF(AG66<=0.4,\"Menor\",IF(AG66<=0.6,\"Moderado\",IF(AG66<=0.8,\"Mayor\",\"Catastrófico\"))))),\"\")","v":"Catastrófico"},{"$f":"IFERROR(IF(V66=\"Impacto\",(O66-(+O66*Y66)),IF(V66=\"Probabilidad\",O66,\"\")),\"\")","v":1},{"$f":"IFERROR(IF(OR(AND(AD66=\"Muy Baja\",AF66=\"Leve\"),AND(AD66=\"Muy Baja\",AF66=\"Menor\"),AND(AD66=\"Baja\",AF66=\"Leve\")),\"Bajo\",IF(OR(AND(AD66=\"Muy baja\",AF66=\"Moderado\"),AND(AD66=\"Baja\",AF66=\"Menor\"),AND(AD66=\"Baja\",AF66=\"Moderado\"),AND(AD66=\"Media\",AF66=\"Leve\"),AND(AD66=\"Media\",AF66=\"Menor\"),AND(AD66=\"Media\",AF66=\"Moderado\"),AND(AD66=\"Alta\",AF66=\"Leve\"),AND(AD66=\"Alta\",AF66=\"Menor\")),\"Moderado\",IF(OR(AND(AD66=\"Muy Baja\",AF66=\"Mayor\"),AND(AD66=\"Baja\",AF66=\"Mayor\"),AND(AD66=\"Media\",AF66=\"Mayor\"),AND(AD66=\"Alta\",AF66=\"Moderado\"),AND(AD66=\"Alta\",AF66=\"Mayor\"),AND(AD66=\"Muy Alta\",AF66=\"Leve\"),AND(AD66=\"Muy Alta\",AF66=\"Menor\"),AND(AD66=\"Muy Alta\",AF66=\"Moderado\"),AND(AD66=\"Muy Alta\",AF66=\"Mayor\")),\"Alto\",IF(OR(AND(AD66=\"Muy Baja\",AF66=\"Catastrófico\"),AND(AD66=\"Baja\",AF66=\"Catastrófico\"),AND(AD66=\"Media\",AF66=\"Catastrófico\"),AND(AD66=\"Alta\",AF66=\"Catastrófico\"),AND(AD66=\"Muy Alta\",AF66=\"Catastrófico\")),\"Extremo\",\"\")))),\"\")","v":"Extremo"},"Evitar",null,null,null,null,"Profesional Especializado","Subdirección Administrativa y Financiera \n\nGrupo de Gestión Financiera y Contable","Pablo César Pacheco Rodríguez","2025-03-01","2025-12-31"]
[61,"GESTIÓN FINANCIERA","Gestión","Posibilidad de afectacion económico por reflejo erróneo de la situación económica y financiera en los Estados Financieros del MME debido a ausencia de validación de información contable con la que produce el Grupo de Jurisdicción Coactiva","económico","reflejo erróneo de la situación económica y financiera en los Estados Financieros del MME","ausencia de validación de información contable con la que produce el Grupo de Jurisdicción Coactiva","Ejecucion y Administracion de procesos",12,"Baja",0.4,"     El riesgo afecta la imagen de la entidad a nivel nacional, con efecto publicitarios sostenible a nivel país",{"$f":"IF(NOT(ISERROR(MATCH(L67,'[5]Tabla Impacto'!#REF!,0))),'[5]Tabla Impacto'!$F$229&\"Por favor no seleccionar los criterios de impacto(Afectación Económica o presupuestal y Pérdida Reputacional)\",L67)","v":"     El riesgo afecta la imagen de la entidad a nivel nacional, con efecto publicitarios sostenible a nivel país"},{"$f":"IF(OR(M67='[5]Tabla Impacto'!$C$11,M67='[5]Tabla Impacto'!$D$11),\"Leve\",IF(OR(M67='[5]Tabla Impacto'!$C$12,M67='[5]Tabla Impacto'!$D$12),\"Menor\",IF(OR(M67='[5]Tabla Impacto'!$C$13,M67='[5]Tabla Impacto'!$D$13),\"Moderado\",IF(OR(M67='[5]Tabla Impacto'!$C$14,M67='[5]Tabla Impacto'!$D$14),\"Mayor\",IF(OR(M67='[5]Tabla Impacto'!$C$15,M67='[5]Tabla Impacto'!$D$15),\"Catastrófico\",\"\")))))","v":"Catastrófico"},1,"Extremo",1,"El Profesional Especializado del Grupo de Gestion Financiera y Contable  verifica los saldos contables del balance en las cuentas por cobrar  elaborando una hoja de Excel de la conciliación entre los saldos reportados por el Grupo de Cobro Coactivo, si existir diferencias se analizan las causas y se realizan los ajustes correspondientes del caso.","Profesional Especializado del Grupo de Gestion Financiera y Contable","El profesional especializado verifica los saldos contables del balance en las cuentas por cobrar y elabora hoja de Excel comparándolos contra los saldos reportados por el Grupo de Cobro Coactivo. En  caso de existir diferencias se analizan las causas y se efectúan los ajustes correspondientes","Conciliación efectuada entre las partes","Probabilidad","Preventivo","Manual",{"$f":"IF(AND(W67=\"Preventivo\",X67=\"Automático\"),\"50%\",IF(AND(W67=\"Preventivo\",X67=\"Manual\"),\"40%\",IF(AND(W67=\"Detectivo\",X67=\"Automático\"),\"40%\",IF(AND(W67=\"Detectivo\",X67=\"Manual\"),\"30%\",IF(AND(W67=\"Correctivo\",X67=\"Automático\"),\"35%\",IF(AND(W67=\"Correctivo\",X67=\"Manual\"),\"25%\",\"\"))))))","v":"40%"},"Documentado","Continua","Con Registro",0.24,"Baja",0.24,"Catastrófico",1,"Extremo","Evitar",null,null,null,null,"Profesional Especializado","Subdirección Administrativa y Financiera \n\nGrupo de Gestión Financiera y Contable","Pablo César Pacheco Rodríguez","2025-03-01","2025-12-31"]
[62,"GESTIÓN FINANCIERA","Gestión",{"$f":"IF(C68=\"Fiscal\",_xlfn.CONCAT(\"Posibilidad de efectos dañosos sobre bienes públicos \",\" por o para \",F68,\" debido a \",G68),IF(C68=\"Gestión\",_xlfn.CONCAT(\"Posibilidad de afectacion \",E68,\" por \",F68,\" debido a \",G68),\"\"))","v":"Posibilidad de afectacion reputacional por inconsistencias o desviaciones significativas que no pueden justificarse con la información disponible de las cifras  en los Estados Financieros del MME debido a desatender las reglas de eliminación emitidas  por la Contaduría General de la Nación y falta de comunicación entre las entidades del sector."},"reputacional","inconsistencias o desviaciones significativas que no pueden justificarse con la información disponible de las cifras  en los Estados Financieros del MME","desatender las reglas de eliminación emitidas  por la Contaduría General de la Nación y falta de comunicación entre las entidades del sector.","Ejecucion y Administracion de procesos",12,{"$f":"IF(I68<=0,\"\",IF(I68<=2,\"Muy Baja\",IF(I68<=24,\"Baja\",IF(I68<=500,\"Media\",IF(I68<=5000,\"Alta\",\"Muy Alta\")))))","v":"Baja"},{"$f":"IF(J68=\"\",\"\",IF(J68=\"Muy Baja\",0.2,IF(J68=\"Baja\",0.4,IF(J68=\"Media\",0.6,IF(J68=\"Alta\",0.8,IF(J68=\"Muy Alta\",1,))))))","v":0.4},"     El riesgo afecta la imagen de la entidad a nivel nacional, con efecto publicitarios sostenible a nivel país",{"$f":"IF(NOT(ISERROR(MATCH(L68,'[5]Tabla Impacto'!#REF!,0))),'[5]Tabla Impacto'!$F$229&\"Por favor no seleccionar los criterios de impacto(Afectación Económica o presupuestal y Pérdida Reputacional)\",L68)","v":"     El riesgo afecta la imagen de la entidad a nivel nacional, con efecto publicitarios sostenible a nivel país"},{"$f":"IF(OR(M68='[5]Tabla Impacto'!$C$11,M68='[5]Tabla Impacto'!$D$11),\"Leve\",IF(OR(M68='[5]Tabla Impacto'!$C$12,M68='[5]Tabla Impacto'!$D$12),\"Menor\",IF(OR(M68='[5]Tabla Impacto'!$C$13,M68='[5]Tabla Impacto'!$D$13),\"Moderado\",IF(OR(M68='[5]Tabla Impacto'!$C$14,M68='[5]Tabla Impacto'!$D$14),\"Mayor\",IF(OR(M68='[5]Tabla Impacto'!$C$15,M68='[5]Tabla Impacto'!$D$15),\"Catastrófico\",\"\")))))","v":"Catastrófico"},{"$f":"IF(N68=\"\",\"\",IF(N68=\"Leve\",0.2,IF(N68=\"Menor\",0.4,IF(N68=\"Moderado\",0.6,IF(N68=\"Mayor\",0.8,IF(N68=\"Catastrófico\",1,))))))","v":1},{"$f":"IF(OR(AND(J68=\"Muy Baja\",N68=\"Leve\"),AND(J68=\"Muy Baja\",N68=\"Menor\"),AND(J68=\"Baja\",N68=\"Leve\")),\"Bajo\",IF(OR(AND(J68=\"Muy baja\",N68=\"Moderado\"),AND(J68=\"Baja\",N68=\"Menor\"),AND(J68=\"Baja\",N68=\"Moderado\"),AND(J68=\"Media\",N68=\"Leve\"),AND(J68=\"Media\",N68=\"Menor\"),AND(J68=\"Media\",N68=\"Moderado\"),AND(J68=\"Alta\",N68=\"Leve\"),AND(J68=\"Alta\",N68=\"Menor\")),\"Moderado\",IF(OR(AND(J68=\"Muy Baja\",N68=\"Mayor\"),AND(J68=\"Baja\",N68=\"Mayor\"),AND(J68=\"Media\",N68=\"Mayor\"),AND(J68=\"Alta\",N68=\"Moderado\"),AND(J68=\"Alta\",N68=\"Mayor\"),AND(J68=\"Muy Alta\",N68=\"Leve\"),AND(J68=\"Muy Alta\",N68=\"Menor\"),AND(J68=\"Muy Alta\",N68=\"Moderado\"),AND(J68=\"Muy Alta\",N68=\"Mayor\")),\"Alto\",IF(OR(AND(J68=\"Muy Baja\",N68=\"Catastrófico\"),AND(J68=\"Baja\",N68=\"Catastrófico\"),AND(J68=\"Media\",N68=\"Catastrófico\"),AND(J68=\"Alta\",N68=\"Catastrófico\"),AND(J68=\"Muy Alta\",N68=\"Catastrófico\")),\"Extremo\",\"\"))))","v":"Extremo"},1,"El Profesional Especializado del Grupo de Gestion Financiera y Contable revisa el cruce de los saldos contables del Ministerio Vs los saldos reportados por las diferentes entidades, si se detectan diferencias se envían comunicaciones a las mismas solicitando aclaración y se efectúa los ajuste contables correspondientes.","Profesional Especializado del Grupo de Gestion Financiera y Contable","El profesional especializado encargado efectúa cruce de  saldos contables del Ministerio Vs los saldos reportados por las diferentes entidades, en caso de encontrar diferencias se envían comunicaciones a las mismas solicitando aclaración de la diferencia y se efectúa ajuste contable si es requerido.","Comunicaciones de aclaración enviadas",{"$f":"IF(OR(W68=\"Preventivo\",W68=\"Detectivo\"),\"Probabilidad\",IF(W68=\"Correctivo\",\"Impacto\",\"\"))","v":"Probabilidad"},"Preventivo","Manual","40%","Documentado","Continua","Con Registro",{"$f":"IFERROR(IF(V68=\"Probabilidad\",(K68-(+K68*Y68)),IF(V68=\"Impacto\",K68,\"\")),\"\")","v":0.24},{"$f":"IFERROR(IF(AC68=\"\",\"\",IF(AC68<=0.2,\"Muy Baja\",IF(AC68<=0.4,\"Baja\",IF(AC68<=0.6,\"Media\",IF(AC68<=0.8,\"Alta\",\"Muy Alta\"))))),\"\")","v":"Baja"},{"$f":"+AC68","v":0.24},{"$f":"IFERROR(IF(AG68=\"\",\"\",IF(AG68<=0.2,\"Leve\",IF(AG68<=0.4,\"Menor\",IF(AG68<=0.6,\"Moderado\",IF(AG68<=0.8,\"Mayor\",\"Catastrófico\"))))),\"\")","v":"Catastrófico"},{"$f":"IFERROR(IF(V68=\"Impacto\",(O68-(+O68*Y68)),IF(V68=\"Probabilidad\",O68,\"\")),\"\")","v":1},{"$f":"IFERROR(IF(OR(AND(AD68=\"Muy Baja\",AF68=\"Leve\"),AND(AD68=\"Muy Baja\",AF68=\"Menor\"),AND(AD68=\"Baja\",AF68=\"Leve\")),\"Bajo\",IF(OR(AND(AD68=\"Muy baja\",AF68=\"Moderado\"),AND(AD68=\"Baja\",AF68=\"Menor\"),AND(AD68=\"Baja\",AF68=\"Moderado\"),AND(AD68=\"Media\",AF68=\"Leve\"),AND(AD68=\"Media\",AF68=\"Menor\"),AND(AD68=\"Media\",AF68=\"Moderado\"),AND(AD68=\"Alta\",AF68=\"Leve\"),AND(AD68=\"Alta\",AF68=\"Menor\")),\"Moderado\",IF(OR(AND(AD68=\"Muy Baja\",AF68=\"Mayor\"),AND(AD68=\"Baja\",AF68=\"Mayor\"),AND(AD68=\"Media\",AF68=\"Mayor\"),AND(AD68=\"Alta\",AF68=\"Moderado\"),AND(AD68=\"Alta\",AF68=\"Mayor\"),AND(AD68=\"Muy Alta\",AF68=\"Leve\"),AND(AD68=\"Muy Alta\",AF68=\"Menor\"),AND(AD68=\"Muy Alta\",AF68=\"Moderado\"),AND(AD68=\"Muy Alta\",AF68=\"Mayor\")),\"Alto\",IF(OR(AND(AD68=\"Muy Baja\",AF68=\"Catastrófico\"),AND(AD68=\"Baja\",AF68=\"Catastrófico\"),AND(AD68=\"Media\",AF68=\"Catastrófico\"),AND(AD68=\"Alta\",AF68=\"Catastrófico\"),AND(AD68=\"Muy Alta\",AF68=\"Catastrófico\")),\"Extremo\",\"\")))),\"\")","v":"Extremo"},"Evitar",null,null,null,null,"Profesional Especializado","Subdirección Administrativa y Financiera \n\nGrupo de Gestión Financiera y Contable","Pablo César Pacheco Rodríguez","2025-03-01","2025-12-31"]
[63,"GESTIÓN FINANCIERA","Gestión","Posibilidad de afectacion reputacional por errores, diferencias o falta de claridad en la forma en que se han contabilizado los recursos que han sido entregados para administración debido a \nvalores  registrados en cuentas diferentes a la de los recursos entregados en administración","reputacional","errores, diferencias o falta de claridad en la forma en que se han contabilizado los recursos que han sido entregados para administración","\nvalores  registrados en cuentas diferentes a la de los recursos entregados en administración","Ejecucion y Administracion de procesos",12,"Baja",0.4,"     El riesgo afecta la imagen de alguna área de la organización",{"$f":"IF(NOT(ISERROR(MATCH(L69,'[5]Tabla Impacto'!#REF!,0))),'[5]Tabla Impacto'!$F$229&\"Por favor no seleccionar los criterios de impacto(Afectación Económica o presupuestal y Pérdida Reputacional)\",L69)","v":"     El riesgo afecta la imagen de alguna área de la organización"},{"$f":"IF(OR(M69='[5]Tabla Impacto'!$C$11,M69='[5]Tabla Impacto'!$D$11),\"Leve\",IF(OR(M69='[5]Tabla Impacto'!$C$12,M69='[5]Tabla Impacto'!$D$12),\"Menor\",IF(OR(M69='[5]Tabla Impacto'!$C$13,M69='[5]Tabla Impacto'!$D$13),\"Moderado\",IF(OR(M69='[5]Tabla Impacto'!$C$14,M69='[5]Tabla Impacto'!$D$14),\"Mayor\",IF(OR(M69='[5]Tabla Impacto'!$C$15,M69='[5]Tabla Impacto'!$D$15),\"Catastrófico\",\"\")))))","v":"Leve"},0.2,"Bajo",1,"El Profesional Especializado del Grupo de Gestion Financiera y Contable que revisa y elabora la hoja de Excel de los valores registrados en cuentas diferentes a la de los recursos entregados en administración, revisa los valores dados a cada operador y compara con el valor total efectuado del convenio y verifica que las cifras del contrato coincidan con el total entregado de recursos en la cuenta contable.","Profesional Especializado del Grupo de Gestion Financiera y Contable","El profesional especializado encargado de elaborar lahoja de Excel de valores  registrados en cuentas diferentes a la de los recursos entregados en administración, registra los valores dados a cada operador y compara con el total de convenio efectuado, para que las cifras del contrato coincidan con el total entregado de recursos en la cuenta contable que corresponde.","Cuadro de control y hoja de soporte de liquidación del Neón ","Probabilidad","Preventivo","Manual","40%","Documentado","Continua","Con Registro",0.24,"Baja",0.24,"Leve",0.2,"Bajo","Evitar",null,null,null,null,"Profesional Especializado","Subdirección Administrativa y Financiera \n\nGrupo de Gestión Financiera y Contable","Pablo César Pacheco Rodríguez","2025-03-01","2025-12-31"]
[64,"GESTIÓN FINANCIERA","Gestión","Posibilidad de afectacion reputacional por Sobrevaluación o subvaluación de las cifras presentadas en las cuentas de Propiedad Planta y Equipo. debido a Inconsistencias entre los saldos de almacén y los registros contables","reputacional","Sobrevaluación o subvaluación de las cifras presentadas en las cuentas de Propiedad Planta y Equipo.","Inconsistencias entre los saldos de almacén y los registros contables","Ejecucion y Administracion de procesos",12,"Baja",0.4,"     El riesgo afecta la imagen de alguna área de la organización",{"$f":"IF(NOT(ISERROR(MATCH(L70,'[5]Tabla Impacto'!#REF!,0))),'[5]Tabla Impacto'!$F$229&\"Por favor no seleccionar los criterios de impacto(Afectación Económica o presupuestal y Pérdida Reputacional)\",L70)","v":"     El riesgo afecta la imagen de alguna área de la organización"},{"$f":"IF(OR(M70='[5]Tabla Impacto'!$C$11,M70='[5]Tabla Impacto'!$D$11),\"Leve\",IF(OR(M70='[5]Tabla Impacto'!$C$12,M70='[5]Tabla Impacto'!$D$12),\"Menor\",IF(OR(M70='[5]Tabla Impacto'!$C$13,M70='[5]Tabla Impacto'!$D$13),\"Moderado\",IF(OR(M70='[5]Tabla Impacto'!$C$14,M70='[5]Tabla Impacto'!$D$14),\"Mayor\",IF(OR(M70='[5]Tabla Impacto'!$C$15,M70='[5]Tabla Impacto'!$D$15),\"Catastrófico\",\"\")))))","v":"Leve"},0.2,"Bajo",1,"El Profesional Especializado del Grupo de Gestion Financiera y Contable  revisa y compara el saldo anterior de las cuentas de Propiedad Planta y Equipo y concilia con el saldo final de las mismas para establecer el valor de los movimientos, esta información es conciliada con el reporte de movimientos que genera el Sistema Neón ","Profesional Especializado del Grupo de Gestion Financiera y Contable","El profesional Especializado encargado, compara el saldo anterior de las cuentas de Propiedad Planta y Equipo contra el saldo final de las mismas para establecer el valor de los movimientos , esta información se compara con el reporte de movimientos emitido por el Neón","Conciliación efectuada","Probabilidad","Preventivo","Manual","40%","Documentado","Continua","Con Registro",0.24,"Baja",0.24,"Leve",0.2,"Bajo","Evitar",null,null,null,null,"Profesional Especializado","Subdirección Administrativa y Financiera \n\nGrupo de Gestión Financiera y Contable","Pablo César Pacheco Rodríguez","2025-03-01","2025-12-31"]
[65,"GESTIÓN DE RECURSOS FÍSICOS","Gestión","Posibilidad de afectacion económico por ausencia del registro presupuestal que compromete los recursos para el pago de la comisión debido a radicación de comisiones fuera de los plazos establecidos","económico","ausencia del registro presupuestal que compromete los recursos para el pago de la comisión","radicación de comisiones fuera de los plazos establecidos","Ejecucion y Administracion de procesos",3569,"Alta",0.8,"     El riesgo afecta la imagen de la entidad con algunos usuarios de relevancia frente al logro de los objetivos",{"$f":"IF(NOT(ISERROR(MATCH(L71,'[5]Tabla Impacto'!#REF!,0))),'[5]Tabla Impacto'!$F$229&\"Por favor no seleccionar los criterios de impacto(Afectación Económica o presupuestal y Pérdida Reputacional)\",L71)","v":"     El riesgo afecta la imagen de la entidad con algunos usuarios de relevancia frente al logro de los objetivos"},{"$f":"IF(OR(M71='[5]Tabla Impacto'!$C$11,M71='[5]Tabla Impacto'!$D$11),\"Leve\",IF(OR(M71='[5]Tabla Impacto'!$C$12,M71='[5]Tabla Impacto'!$D$12),\"Menor\",IF(OR(M71='[5]Tabla Impacto'!$C$13,M71='[5]Tabla Impacto'!$D$13),\"Moderado\",IF(OR(M71='[5]Tabla Impacto'!$C$14,M71='[5]Tabla Impacto'!$D$14),\"Mayor\",IF(OR(M71='[5]Tabla Impacto'!$C$15,M71='[5]Tabla Impacto'!$D$15),\"Catastrófico\",\"\")))))","v":"Moderado"},0.6,"Alto",1,"El grupo de comisiones y viaticos realiza seguimiento oportuno bimensual en reuniones PAE","Profesional Especializado grado 13","1. Diligenciamiento por las dependencias del formato de Planeación y Programación de comisiones que remitiran quincenalmente al grupo de comisiones.                                   \n2. Reuniones de seguimiento PAE bimensuales con las áreas.    \n3. En caso de encontrarse un porcentaje alto en las solicitudes de comisión extemporáneas se informará al jefe de la dependencia para que tome las medidas correctivas.","1. Formato de Programación y Planeación de  comisiones.                                                           2. Correos electrónicos con la presentación realizada en la reunión de seguimiento PAE con la ejecución del presupuesto de viáticos y tiquetes                                 ","Probabilidad","Detectivo","Manual","30%","Sin Documentar","Continua","Con Registro",0.56000000000000005,"Media",0.56000000000000005,"Moderado",0.6,"Moderado","Evitar","Legalizar el formato de Programación y Plenaación de solicitud de comisiones","Cooordinador -  Profesional Especializado grado 13","2025-06-30","2025-06-30","Cooordinador -  Profesional Especializado grado 13","Subdirección Administrativa y Financiera\n\nGrupo de comisión de servicios, viáticos y transporte","Pablo César Pacheco Rodríguez","2025-04-17","2025-12-31"]
[66,"GESTIÓN DE RECURSOS FÍSICOS","Gestión",{"$f":"IF(C72=\"Fiscal\",_xlfn.CONCAT(\"Posibilidad de efectos dañosos sobre bienes públicos \",\" por o para \",F72,\" debido a \",G72),IF(C72=\"Gestión\",_xlfn.CONCAT(\"Posibilidad de afectacion \",E72,\" por \",F72,\" debido a \",G72),\"\"))","v":"Posibilidad de afectacion reputacional por retrasos en los tiempos de pago de las comisiones debido a trámite de legalizaciones por parte de comisionados fuera de los tiempos establecidos al interior del MME y falta autorización de PAC solicitado ante el Ministerio de Hacienda y Crédito Público"},"reputacional","retrasos en los tiempos de pago de las comisiones","trámite de legalizaciones por parte de comisionados fuera de los tiempos establecidos al interior del MME y falta autorización de PAC solicitado ante el Ministerio de Hacienda y Crédito Público","Ejecucion y Administracion de procesos",12,{"$f":"IF(I72<=0,\"\",IF(I72<=2,\"Muy Baja\",IF(I72<=24,\"Baja\",IF(I72<=500,\"Media\",IF(I72<=5000,\"Alta\",\"Muy Alta\")))))","v":"Baja"},{"$f":"IF(J72=\"\",\"\",IF(J72=\"Muy Baja\",0.2,IF(J72=\"Baja\",0.4,IF(J72=\"Media\",0.6,IF(J72=\"Alta\",0.8,IF(J72=\"Muy Alta\",1,))))))","v":0.4},"     El riesgo afecta la imagen de alguna área de la organización",{"$f":"IF(NOT(ISERROR(MATCH(L72,'[5]Tabla Impacto'!#REF!,0))),'[5]Tabla Impacto'!$F$229&\"Por favor no seleccionar los criterios de impacto(Afectación Económica o presupuestal y Pérdida Reputacional)\",L72)","v":"     El riesgo afecta la imagen de alguna área de la organización"},{"$f":"IF(OR(M72='[5]Tabla Impacto'!$C$11,M72='[5]Tabla Impacto'!$D$11),\"Leve\",IF(OR(M72='[5]Tabla Impacto'!$C$12,M72='[5]Tabla Impacto'!$D$12),\"Menor\",IF(OR(M72='[5]Tabla Impacto'!$C$13,M72='[5]Tabla Impacto'!$D$13),\"Moderado\",IF(OR(M72='[5]Tabla Impacto'!$C$14,M72='[5]Tabla Impacto'!$D$14),\"Mayor\",IF(OR(M72='[5]Tabla Impacto'!$C$15,M72='[5]Tabla Impacto'!$D$15),\"Catastrófico\",\"\")))))","v":"Leve"},{"$f":"IF(N72=\"\",\"\",IF(N72=\"Leve\",0.2,IF(N72=\"Menor\",0.4,IF(N72=\"Moderado\",0.6,IF(N72=\"Mayor\",0.8,IF(N72=\"Catastrófico\",1,))))))","v":0.2},{"$f":"IF(OR(AND(J72=\"Muy Baja\",N72=\"Leve\"),AND(J72=\"Muy Baja\",N72=\"Menor\"),AND(J72=\"Baja\",N72=\"Leve\")),\"Bajo\",IF(OR(AND(J72=\"Muy baja\",N72=\"Moderado\"),AND(J72=\"Baja\",N72=\"Menor\"),AND(J72=\"Baja\",N72=\"Moderado\"),AND(J72=\"Media\",N72=\"Leve\"),AND(J72=\"Media\",N72=\"Menor\"),AND(J72=\"Media\",N72=\"Moderado\"),AND(J72=\"Alta\",N72=\"Leve\"),AND(J72=\"Alta\",N72=\"Menor\")),\"Moderado\",IF(OR(AND(J72=\"Muy Baja\",N72=\"Mayor\"),AND(J72=\"Baja\",N72=\"Mayor\"),AND(J72=\"Media\",N72=\"Mayor\"),AND(J72=\"Alta\",N72=\"Moderado\"),AND(J72=\"Alta\",N72=\"Mayor\"),AND(J72=\"Muy Alta\",N72=\"Leve\"),AND(J72=\"Muy Alta\",N72=\"Menor\"),AND(J72=\"Muy Alta\",N72=\"Moderado\"),AND(J72=\"Muy Alta\",N72=\"Mayor\")),\"Alto\",IF(OR(AND(J72=\"Muy Baja\",N72=\"Catastrófico\"),AND(J72=\"Baja\",N72=\"Catastrófico\"),AND(J72=\"Media\",N72=\"Catastrófico\"),AND(J72=\"Alta\",N72=\"Catastrófico\"),AND(J72=\"Muy Alta\",N72=\"Catastrófico\")),\"Extremo\",\"\"))))","v":"Bajo"},1,"El Profesional del Grupo de Legalización y Facturación de Comisiones, Viáticos y Transporte, realiza seguimiento mensual a los saldos autorizados al PAC para proceder al trámite de pago de las legalizaciones, en caso de no encontrar suficiencia en saldo para legalizar procede a priorizar los pagos del periodo. Así mismo, notifica a los jefes de área y coordinadores el estado de las comisiones pendientes por legalizar a traves de un reporte de seguimiento al estado de trámite de las legalizaciones, mediante memorando y un reporte comparativo de seguimiento a la programación del PAC de saldo solicitado vs saldos ejecutados.","Profesional del Grupo de Legalización y Facturación de Comisiones, Viáticos y Transporte","realiza seguimiento mensual a los saldos autorizados al PAC para proceder al trámite de pago de las legalizaciones, en caso de no encontrar suficiencia en saldo para legalizar procede a priorizar los pagos del periodo. Así mismo, notifica a los jefes de área y coordinadores el estado de las comisiones pendientes por legalizar","un reporte de seguimiento al estado de trámite de las legalizaciones, mediante memorando y un reporte comparativo de seguimiento a la programación del PAC de saldo solicitado vs saldos ejecutados.",{"$f":"IF(OR(W72=\"Preventivo\",W72=\"Detectivo\"),\"Probabilidad\",IF(W72=\"Correctivo\",\"Impacto\",\"\"))","v":"Probabilidad"},"Preventivo","Manual",{"$f":"IF(AND(W72=\"Preventivo\",X72=\"Automático\"),\"50%\",IF(AND(W72=\"Preventivo\",X72=\"Manual\"),\"40%\",IF(AND(W72=\"Detectivo\",X72=\"Automático\"),\"40%\",IF(AND(W72=\"Detectivo\",X72=\"Manual\"),\"30%\",IF(AND(W72=\"Correctivo\",X72=\"Automático\"),\"35%\",IF(AND(W72=\"Correctivo\",X72=\"Manual\"),\"25%\",\"\"))))))","v":"40%"},"Sin Documentar","Continua","Con Registro",{"$f":"IFERROR(IF(V72=\"Probabilidad\",(K72-(+K72*Y72)),IF(V72=\"Impacto\",K72,\"\")),\"\")","v":0.24},{"$f":"IFERROR(IF(AC72=\"\",\"\",IF(AC72<=0.2,\"Muy Baja\",IF(AC72<=0.4,\"Baja\",IF(AC72<=0.6,\"Media\",IF(AC72<=0.8,\"Alta\",\"Muy Alta\"))))),\"\")","v":"Baja"},{"$f":"+AC72","v":0.24},{"$f":"IFERROR(IF(AG72=\"\",\"\",IF(AG72<=0.2,\"Leve\",IF(AG72<=0.4,\"Menor\",IF(AG72<=0.6,\"Moderado\",IF(AG72<=0.8,\"Mayor\",\"Catastrófico\"))))),\"\")","v":"Leve"},{"$f":"IFERROR(IF(V72=\"Impacto\",(O72-(+O72*Y72)),IF(V72=\"Probabilidad\",O72,\"\")),\"\")","v":0.2},{"$f":"IFERROR(IF(OR(AND(AD72=\"Muy Baja\",AF72=\"Leve\"),AND(AD72=\"Muy Baja\",AF72=\"Menor\"),AND(AD72=\"Baja\",AF72=\"Leve\")),\"Bajo\",IF(OR(AND(AD72=\"Muy baja\",AF72=\"Moderado\"),AND(AD72=\"Baja\",AF72=\"Menor\"),AND(AD72=\"Baja\",AF72=\"Moderado\"),AND(AD72=\"Media\",AF72=\"Leve\"),AND(AD72=\"Media\",AF72=\"Menor\"),AND(AD72=\"Media\",AF72=\"Moderado\"),AND(AD72=\"Alta\",AF72=\"Leve\"),AND(AD72=\"Alta\",AF72=\"Menor\")),\"Moderado\",IF(OR(AND(AD72=\"Muy Baja\",AF72=\"Mayor\"),AND(AD72=\"Baja\",AF72=\"Mayor\"),AND(AD72=\"Media\",AF72=\"Mayor\"),AND(AD72=\"Alta\",AF72=\"Moderado\"),AND(AD72=\"Alta\",AF72=\"Mayor\"),AND(AD72=\"Muy Alta\",AF72=\"Leve\"),AND(AD72=\"Muy Alta\",AF72=\"Menor\"),AND(AD72=\"Muy Alta\",AF72=\"Moderado\"),AND(AD72=\"Muy Alta\",AF72=\"Mayor\")),\"Alto\",IF(OR(AND(AD72=\"Muy Baja\",AF72=\"Catastrófico\"),AND(AD72=\"Baja\",AF72=\"Catastrófico\"),AND(AD72=\"Media\",AF72=\"Catastrófico\"),AND(AD72=\"Alta\",AF72=\"Catastrófico\"),AND(AD72=\"Muy Alta\",AF72=\"Catastrófico\")),\"Extremo\",\"\")))),\"\")","v":"Bajo"},"Evitar","Realizar la actualización de los controles de tiempos de la legalización y saldos de PAC en el procedimiento","Profesional Grupo de Legalización y Facturación de Comisiones, Viáticos y Transporte","2025-06-30","2025-06-30","Profesional Grupo de Legalización y Facturación de Comisiones, Viáticos y Transporte","Subdirección Administrativa y Financiera\n\nGrupo de Legalización y Facturación de Comisiones, Viáticos y Transporte","Pablo César Pacheco Rodríguez","2025-03-01","2025-12-31","En el 1er Trimestre de 2025, se pago el 71,13% de las cuentas que fueron rechazadas por inconsistencias en requisitos presentados en las cuentas. La ejecución de pagos para los meses de enero, febrero y marzo fue del 100%, 86.67% y 57.14% respectivamente, lo que evidencia que el Ministerio de Minas y Energía ha cumplido oportunamente con el pago de sus obligaciones.","NO",null,"En el 2do Trimestre de 2025, se tuvo una ejecución de PAC del 37% que equivale a $338.240.144 millones con respecto a un PAC asignado de $1.390.000.000 millones. Para los meses de abril, mayo y junio, fueron del 82%, 27% y 38% por funcionamiento y por inversión fue del 76% para abril, 66% para mayo y 98% para junio. En consecuencia, durante el segundo trimestre no se ejecutó el PAC en su totalidad por el aumento de legalizaciones que no habian sido radicadas o que tenían alguna caulsa de devoluición sin subanadar del trismestre anterior por parte de los comisionados."]
[67,"GESTIÓN DE RECURSOS FÍSICOS","Gestión","Posibilidad de afectacion económico y reputacional por perdida de recursos debido a ausencia o inconsistencias en el reporte de movimientos y saldos mensuales  de gestión de activos que puede generarse por la no elaboración del control dual entre el proceso de gestión financiera y el proceso gestión de recursos físicos.","económico y reputacional","perdida de recursos","ausencia o inconsistencias en el reporte de movimientos y saldos mensuales  de gestión de activos que puede generarse por la no elaboración del control dual entre el proceso de gestión financiera y el proceso gestión de recursos físicos.","Fraude Interno",12,"Baja",0.4,"     El riesgo afecta la imagen de alguna área de la organización",{"$f":"IF(NOT(ISERROR(MATCH(L73,'[5]Tabla Impacto'!#REF!,0))),'[5]Tabla Impacto'!$F$229&\"Por favor no seleccionar los criterios de impacto(Afectación Económica o presupuestal y Pérdida Reputacional)\",L73)","v":"     El riesgo afecta la imagen de alguna área de la organización"},{"$f":"IF(OR(M73='[5]Tabla Impacto'!$C$11,M73='[5]Tabla Impacto'!$D$11),\"Leve\",IF(OR(M73='[5]Tabla Impacto'!$C$12,M73='[5]Tabla Impacto'!$D$12),\"Menor\",IF(OR(M73='[5]Tabla Impacto'!$C$13,M73='[5]Tabla Impacto'!$D$13),\"Moderado\",IF(OR(M73='[5]Tabla Impacto'!$C$14,M73='[5]Tabla Impacto'!$D$14),\"Mayor\",IF(OR(M73='[5]Tabla Impacto'!$C$15,M73='[5]Tabla Impacto'!$D$15),\"Catastrófico\",\"\")))))","v":"Leve"},0.2,"Bajo",1,"El profesional del grupo de gestión administrativa, realiza informe mensual de saldos y movimientos de almacén para garantizar un control dual entre el proceso de Gestión Financiera y el proceso Gestión de Recursos Físicos, si se encuentran desviaciones del control posterior  a la elaboración del informe se realizarán los ajustes respectivos","Profesional del Grupo de Gestión Administrativa","Realizar informe mensual de saldos y movimientos de almacén para garantizar un control dual entre el proceso de Gestión Financiera y el proceso Gestión de Recursos Físicos, si se encuentran desviaciones del control posterior a la elaboración del informe se realizarán los ajustes respectivos","Reporte al proceso de gestión financiera.\nInforme de saldos","Probabilidad","Detectivo","Manual","30%","Documentado","Continua","Con Registro",0.28000000000000003,"Baja",0.28000000000000003,"Leve",0.2,"Bajo","Evitar",null,null,null,null,"\nProfesional Grupo de Gestión Administrativa","Subdirección Administrativa y Financiera\n\nGrupo de Gestión Administrativa","Pablo César Pacheco Rodríguez","2025-01-01","2025-12-31"]
[null,null,null,"",null,null,null,null,null,"","",null,{"$f":"IF(NOT(ISERROR(MATCH(L74,'[5]Tabla Impacto'!#REF!,0))),'[5]Tabla Impacto'!$F$229&\"Por favor no seleccionar los criterios de impacto(Afectación Económica o presupuestal y Pérdida Reputacional)\",L74)","v":0},{"$f":"IF(OR(M74='[5]Tabla Impacto'!$C$11,M74='[5]Tabla Impacto'!$D$11),\"Leve\",IF(OR(M74='[5]Tabla Impacto'!$C$12,M74='[5]Tabla Impacto'!$D$12),\"Menor\",IF(OR(M74='[5]Tabla Impacto'!$C$13,M74='[5]Tabla Impacto'!$D$13),\"Moderado\",IF(OR(M74='[5]Tabla Impacto'!$C$14,M74='[5]Tabla Impacto'!$D$14),\"Mayor\",IF(OR(M74='[5]Tabla Impacto'!$C$15,M74='[5]Tabla Impacto'!$D$15),\"Catastrófico\",\"\")))))","v":""},"","",1,null,null,null,null,"",null,null,"",null,null,null,"","","","","",""]
[null,null,null,"",null,null,null,null,null,"","",null,{"$f":"IF(NOT(ISERROR(MATCH(L75,'[5]Tabla Impacto'!#REF!,0))),'[5]Tabla Impacto'!$F$229&\"Por favor no seleccionar los criterios de impacto(Afectación Económica o presupuestal y Pérdida Reputacional)\",L75)","v":0},{"$f":"IF(OR(M75='[5]Tabla Impacto'!$C$11,M75='[5]Tabla Impacto'!$D$11),\"Leve\",IF(OR(M75='[5]Tabla Impacto'!$C$12,M75='[5]Tabla Impacto'!$D$12),\"Menor\",IF(OR(M75='[5]Tabla Impacto'!$C$13,M75='[5]Tabla Impacto'!$D$13),\"Moderado\",IF(OR(M75='[5]Tabla Impacto'!$C$14,M75='[5]Tabla Impacto'!$D$14),\"Mayor\",IF(OR(M75='[5]Tabla Impacto'!$C$15,M75='[5]Tabla Impacto'!$D$15),\"Catastrófico\",\"\")))))","v":""},"","",1,null,null,null,null,"",null,null,{"$f":"IF(AND(W75=\"Preventivo\",X75=\"Automático\"),\"50%\",IF(AND(W75=\"Preventivo\",X75=\"Manual\"),\"40%\",IF(AND(W75=\"Detectivo\",X75=\"Automático\"),\"40%\",IF(AND(W75=\"Detectivo\",X75=\"Manual\"),\"30%\",IF(AND(W75=\"Correctivo\",X75=\"Automático\"),\"35%\",IF(AND(W75=\"Correctivo\",X75=\"Manual\"),\"25%\",\"\"))))))","v":""},null,null,null,"","","","","",""]

{"sheet":"Matriz_Riesgos_Corrupción","index":3,"n_rows":29,"n_cols":93,"rows_kept":29,"cut":false,"hidden":false,"merged":[[7,51,7,54],[7,46,8,46],[7,48,8,48],[6,51,6,59],[7,55,7,59],[7,49,8,49],[6,44,6,50],[7,50,8,50],[7,31,8,31],[7,38,7,43],[7,37,8,37],[7,1,8,1],[6,0,6,5],[6,6,6,31],[7,27,8,27],[7,8,7,26],[7,2,8,2],[7,7,8,7],[7,6,8,6],[7,5,8,5],[7,4,8,4],[1,0,3,1],[1,2,3,4],[2,5,2,6],[1,5,1,6],[7,47,8,47],[7,45,8,45],[7,44,8,44],[7,0,8,0],[5,0,5,1],[7,29,8,29],[7,3,8,3],[5,2,5,42],[7,32,8,32],[6,32,6,43],[7,30,8,30],[7,28,8,28]]}
[]
[null,null,"FORMATO PARA LA FORMULACIÓN Y TRATAMIENTOS DE RIESGOS"]
[null,null,null,null,null,"E-ME-F-08"]
[null,null,null,null,null,"2025-12-30","V-3"]
[]
["Proceso:",null,"TODOS LOS PROCESOS"]
["Identificación del riesgo",null,null,null,null,null,"Análisis del riesgo inherente",null,null,null,null,null,null,null,null,null,null,null,null,null,null,null,null,null,null,null,null,null,null,null,null,null,"Evaluación del riesgo - Valoración de los controles",null,null,null,null,null,null,null,null,null,null,null,"Evaluación del riesgo - Nivel del riesgo residual",null,null,null,null,null,null,"Tratamiento del Riesgo"]
["Referencia ","Proceso","Descripción del Riesgo ","Causa Inmediata ¿Cómo se podria dar la corrupción?","Clasificación del Riesgo","Frecuencia con la cual se realiza la actividad anual","Probabilidad Inherente","%","Si el Riesgo se materializará podria…",null,null,null,null,null,null,null,null,null,null,null,null,null,null,null,null,null,null,"Suma Afirmaciones","Calificación Impacto","Impacto \nInherente","%","Zona de Riesgo Inherente","No. Control",null,null,null,null,"Afectación","Atributos",null,null,null,null,null,"Probabilidad Residual","Probabilidad Residual Final","%","Impacto Residual Final","%","Zona de Riesgo Final","Tratamiento","Plan de acción",null,null,null,"Responsable de Tratamiento"]
[null,null,null,null,null,null,null,null,"¿Afectar al grupo de funcionarios del proceso?","¿Afectar el cumplimiento de metas y objetivos de la dependencia?","¿Afectar el cumplimiento de misión de la Entidad?","¿Afectar el cumplimiento de la misión del sector al que pertenece la Entidad?","¿Generar pérdida de confianza de la Entidad, afectando su reputación?","¿Generar pérdida de recursos económicos?","¿Afectar la generación de los productos o la prestación de servicios?","¿Dar lugar al detrimento de calidad de vida de la comunidad por la pérdida del bien o servicios o los recursos públicos?","¿Generar pérdida de información de la Entidad?","¿Generar intervención de los órganos de control, de la Fiscalía, u otro ente?","¿Dar lugar a procesos sancionatorios?"," ¿Dar lugar a procesos disciplinarios?","¿Dar lugar a procesos fiscales?","¿Dar lugar a procesos penales?","¿Generar pérdida de credibilidad del sector?","¿Ocasionar lesiones físicas o pérdida de vidas humanas?","¿Afectar la imagen regional?","¿Afectar la imagen nacional?","¿Generar daño ambiental?",null,null,null,null,null,null,"Descripción del Control","Cargo del reponsable del control ","Acción que realiza","Evidencia esperada del control",null,"Tipo","Implementación","Calificación","Documentación","Frecuencia","Evidencia",null,null,null,null,null,null,null,"Acción a realizar","Cargo del Responsable","Fecha de implementación","Fecha de seguimiento","Cargo del responsable","Área del Responsable","Jefe del Área del Responsable","Fecha Implementación\nInicio","Fecha de Implementación\n(Fin)","Reporte febrero","¿se materializó?\nSi/No","Seguimiento segunda línea de defensa","Reporte marzo","¿se materializó?\nSi/No","Seguimiento segunda línea de defensa","Reporte abril","¿se materializó?\nSi/No","Seguimiento segunda línea de defensa","Reporte mayo","¿se materializó?\nSi/No","Seguimiento segunda línea de defensa","Reporte junio","¿se materializó?\nSi/No","Seguimiento segunda línea de defensa","Reporte julio","¿se materializó?\nSi/No","Seguimiento segunda línea de defensa","Reporte agosto","¿se materializó?\nSi/No","Seguimiento segunda línea de defensa","Reporte septiembre","¿se materializó?\nSi/No","Seguimiento segunda línea de defensa","Reporte octubre","¿se materializó?\nSi/No","Seguimiento segunda línea de defensa","Reporte noviembre","¿se materializó?\nSi/No","Seguimiento segunda línea de defensa","Reporte diciembre","¿se materializó?\nSi/No","Seguimiento segunda línea de defensa"]
[1,"GESTIÓN TALENTO HUMANO",{"$f":"\"Posibilidad de recibir cualquier dádiva o beneficio a nombre propio o de terceros por \"&D10","v":"Posibilidad de recibir cualquier dádiva o beneficio a nombre propio o de terceros por revelar información reservada y/o clasificada de expedientes laborales a terceros no titulares"},"revelar información reservada y/o clasificada de expedientes laborales a terceros no titulares","Fraude Interno",1000,{"$f":"IF(F10<=0,\"\",IF(F10<=2,\"Muy Baja\",IF(F10<=24,\"Baja\",IF(F10<=500,\"Media\",IF(F10<=5000,\"Alta\",\"Muy Alta\")))))","v":"Alta"},{"$f":"IF(G10=\"\",\"\",IF(G10=\"Muy Baja\",0.2,IF(G10=\"Baja\",0.4,IF(G10=\"Media\",0.6,IF(G10=\"Alta\",0.8,IF(G10=\"Muy Alta\",1,))))))","v":0.8},"si","si","no","no","si","si","no","no","si","si","si","si","si","si","si","no","si","no","no",{"$f":"IF(X10=\"Si\",\"19\",COUNTIF(I10:AA10,\"si\"))","v":12},{"$f":"VALUE(IF(AB10<=5,5,IF(AND(AB10>5,AB10<=11),10,IF(AB10>11,20,0))))","v":20},{"$f":"IF(AC10=5,\"Moderado\",IF(AC10=10,\"Mayor\",IF(AC10=20,\"Catastrófico\",0)))","v":"Catastrófico"},{"$f":"IF(AD10=\"\",\"\",IF(AD10=\"Leve\",0.2,IF(AD10=\"Menor\",0.4,IF(AD10=\"Moderado\",0.6,IF(AD10=\"Mayor\",0.8,IF(AD10=\"Catastrófico\",1,))))))","v":1},{"$f":"IF(OR(AND(G10=\"Muy Baja\",AD10=\"Leve\"),AND(G10=\"Muy Baja\",AD10=\"Menor\"),AND(G10=\"Baja\",AD10=\"Leve\")),\"Bajo\",IF(OR(AND(G10=\"Muy baja\",AD10=\"Moderado\"),AND(G10=\"Baja\",AD10=\"Menor\"),AND(G10=\"Baja\",AD10=\"Moderado\"),AND(G10=\"Media\",AD10=\"Leve\"),AND(G10=\"Media\",AD10=\"Menor\"),AND(G10=\"Media\",AD10=\"Moderado\"),AND(G10=\"Alta\",AD10=\"Leve\"),AND(G10=\"Alta\",AD10=\"Menor\")),\"Moderado\",IF(OR(AND(G10=\"Muy Baja\",AD10=\"Mayor\"),AND(G10=\"Baja\",AD10=\"Mayor\"),AND(G10=\"Media\",AD10=\"Mayor\"),AND(G10=\"Alta\",AD10=\"Moderado\"),AND(G10=\"Alta\",AD10=\"Mayor\"),AND(G10=\"Muy Alta\",AD10=\"Leve\"),AND(G10=\"Muy Alta\",AD10=\"Menor\"),AND(G10=\"Muy Alta\",AD10=\"Moderado\"),AND(G10=\"Muy Alta\",AD10=\"Mayor\")),\"Alto\",IF(OR(AND(G10=\"Muy Baja\",AD10=\"Catastrófico\"),AND(G10=\"Baja\",AD10=\"Catastrófico\"),AND(G10=\"Media\",AD10=\"Catastrófico\"),AND(G10=\"Alta\",AD10=\"Catastrófico\"),AND(G10=\"Muy Alta\",AD10=\"Catastrófico\")),\"Extremo\",\"\"))))","v":"Extremo"},1,"El coordinador y profesional designado del Grupo de Pensiones y Entidades Liquidadas realiza la verificación de la solicitud de información con el fin de evitar la suplantación de identidad (esta verficación consiste en revisar que el requirimiento este firmado y con copia de la cédula de ciudadanía; cuando éste es realizado por  el abogado debe adjuntar copia del poder y si es por la esposa o conyugue del beneficiario debe anexar copia del documento que permita identificar el parentesco); una vez la solicitud cumple con los requisitos se solicita anexar mayor información y se procede a entregar información requerida. Si la solicitud no cumple con los requerimientos se informa al peticionario","Coordinador y profesional designado del Grupo de Pensiones y Entidades Liquidadas","Realizar la verificación de la solicitud con el fin de evitar suplantación de identidad","Formato control de documentos para retiro diligenciado y parte de los expedientes",{"$f":"IF(OR(AM10=\"Preventivo\",AM10=\"Detectivo\"),\"Probabilidad\",IF(AM10=\"Correctivo\",\"Impacto\",\"\"))","v":"Probabilidad"},"Detectivo","Manual",{"$f":"IF(AND(AM10=\"Preventivo\",AN10=\"Automático\"),\"50%\",IF(AND(AM10=\"Preventivo\",AN10=\"Manual\"),\"40%\",IF(AND(AM10=\"Detectivo\",AN10=\"Automático\"),\"40%\",IF(AND(AM10=\"Detectivo\",AN10=\"Manual\"),\"30%\",IF(AND(AM10=\"Correctivo\",AN10=\"Automático\"),\"35%\",IF(AND(AM10=\"Correctivo\",AN10=\"Manual\"),\"25%\",\"\"))))))","v":"30%"},"Documentado","Continua","Con Registro",{"$f":"IFERROR(IF(AL10=\"Probabilidad\",(H10-(+H10*AO10)),IF(AL10=\"Impacto\",H10,\"\")),\"\")","v":0.56000000000000005},{"$f":"IFERROR(IF(AS10=\"\",\"\",IF(AS10<=0.2,\"Muy Baja\",IF(AS10<=0.4,\"Baja\",IF(AS10<=0.6,\"Media\",IF(AS10<=0.8,\"Alta\",\"Muy Alta\"))))),\"\")","v":"Media"},{"$f":"+AS10","v":0.56000000000000005},{"$f":"IFERROR(IF(AW10=\"\",\"\",IF(AW10<=0.2,\"Leve\",IF(AW10<=0.4,\"Menor\",IF(AW10<=0.6,\"Moderado\",IF(AW10<=0.8,\"Mayor\",\"Catastrófico\"))))),\"\")","v":"Catastrófico"},{"$f":"IFERROR(IF(AL10=\"Impacto\",(AE10-(+AE10*AO10)),IF(AL10=\"Probabilidad\",AE10,\"\")),\"\")","v":1},{"$f":"IFERROR(IF(OR(AND(AT10=\"Muy Baja\",AV10=\"Leve\"),AND(AT10=\"Muy Baja\",AV10=\"Menor\"),AND(AT10=\"Baja\",AV10=\"Leve\")),\"Bajo\",IF(OR(AND(AT10=\"Muy baja\",AV10=\"Moderado\"),AND(AT10=\"Baja\",AV10=\"Menor\"),AND(AT10=\"Baja\",AV10=\"Moderado\"),AND(AT10=\"Media\",AV10=\"Leve\"),AND(AT10=\"Media\",AV10=\"Menor\"),AND(AT10=\"Media\",AV10=\"Moderado\"),AND(AT10=\"Alta\",AV10=\"Leve\"),AND(AT10=\"Alta\",AV10=\"Menor\")),\"Moderado\",IF(OR(AND(AT10=\"Muy Baja\",AV10=\"Mayor\"),AND(AT10=\"Baja\",AV10=\"Mayor\"),AND(AT10=\"Media\",AV10=\"Mayor\"),AND(AT10=\"Alta\",AV10=\"Moderado\"),AND(AT10=\"Alta\",AV10=\"Mayor\"),AND(AT10=\"Muy Alta\",AV10=\"Leve\"),AND(AT10=\"Muy Alta\",AV10=\"Menor\"),AND(AT10=\"Muy Alta\",AV10=\"Moderado\"),AND(AT10=\"Muy Alta\",AV10=\"Mayor\")),\"Alto\",IF(OR(AND(AT10=\"Muy Baja\",AV10=\"Catastrófico\"),AND(AT10=\"Baja\",AV10=\"Catastrófico\"),AND(AT10=\"Media\",AV10=\"Catastrófico\"),AND(AT10=\"Alta\",AV10=\"Catastrófico\"),AND(AT10=\"Muy Alta\",AV10=\"Catastrófico\")),\"Extremo\",\"\")))),\"\")","v":"Extremo"},"Evitar",null,null,null,null,"Ivonne Maritza Ruíz","Subdirección de Talento Humano","Subdirectora de Talento Humano","2024-01-15","2024-12-31"]
[2,"GESTIÓN TECNOLÓGICA","Posibilidad de recibir cualquier dádiva o beneficio a nombre propio o de terceros por Entrega de incentivos, regalos o favores personales a funcionarios para direccionar contratos de adquisición o desarrollo de software, comprometiendo la transparencia del proceso.","Entrega de incentivos, regalos o favores personales a funcionarios para direccionar contratos de adquisición o desarrollo de software, comprometiendo la transparencia del proceso.","Fraude Interno",4,{"$f":"IF(F11<=0,\"\",IF(F11<=2,\"Muy Baja\",IF(F11<=24,\"Baja\",IF(F11<=500,\"Media\",IF(F11<=5000,\"Alta\",\"Muy Alta\")))))","v":"Baja"},{"$f":"IF(G11=\"\",\"\",IF(G11=\"Muy Baja\",0.2,IF(G11=\"Baja\",0.4,IF(G11=\"Media\",0.6,IF(G11=\"Alta\",0.8,IF(G11=\"Muy Alta\",1,))))))","v":0.4},"si","si","si","no","si ","si","si","no","no","si","si","si","si","si","si","no","si","si","no",{"$f":"IF(X11=\"Si\",\"19\",COUNTIF(I11:AA11,\"si\"))","v":13},{"$f":"VALUE(IF(AB11<=5,5,IF(AND(AB11>5,AB11<=11),10,IF(AB11>11,20,0))))","v":20},"Catastrófico",{"$f":"IF(AD11=\"\",\"\",IF(AD11=\"Leve\",0.2,IF(AD11=\"Menor\",0.4,IF(AD11=\"Moderado\",0.6,IF(AD11=\"Mayor\",0.8,IF(AD11=\"Catastrófico\",1,))))))","v":1},{"$f":"IF(OR(AND(G11=\"Muy Baja\",AD11=\"Leve\"),AND(G11=\"Muy Baja\",AD11=\"Menor\"),AND(G11=\"Baja\",AD11=\"Leve\")),\"Bajo\",IF(OR(AND(G11=\"Muy baja\",AD11=\"Moderado\"),AND(G11=\"Baja\",AD11=\"Menor\"),AND(G11=\"Baja\",AD11=\"Moderado\"),AND(G11=\"Media\",AD11=\"Leve\"),AND(G11=\"Media\",AD11=\"Menor\"),AND(G11=\"Media\",AD11=\"Moderado\"),AND(G11=\"Alta\",AD11=\"Leve\"),AND(G11=\"Alta\",AD11=\"Menor\")),\"Moderado\",IF(OR(AND(G11=\"Muy Baja\",AD11=\"Mayor\"),AND(G11=\"Baja\",AD11=\"Mayor\"),AND(G11=\"Media\",AD11=\"Mayor\"),AND(G11=\"Alta\",AD11=\"Moderado\"),AND(G11=\"Alta\",AD11=\"Mayor\"),AND(G11=\"Muy Alta\",AD11=\"Leve\"),AND(G11=\"Muy Alta\",AD11=\"Menor\"),AND(G11=\"Muy Alta\",AD11=\"Moderado\"),AND(G11=\"Muy Alta\",AD11=\"Mayor\")),\"Alto\",IF(OR(AND(G11=\"Muy Baja\",AD11=\"Catastrófico\"),AND(G11=\"Baja\",AD11=\"Catastrófico\"),AND(G11=\"Media\",AD11=\"Catastrófico\"),AND(G11=\"Alta\",AD11=\"Catastrófico\"),AND(G11=\"Muy Alta\",AD11=\"Catastrófico\")),\"Extremo\",\"\"))))","v":"Extremo"},1,"El funcionario TIC, realiza un seguimiento a los desarrollos adquiridos o a las adquisiones registradas para verificar que estén acordes con las necesidades planetadas por la entidad","Funcionario TIC","Identificar y realizar seguimiento a las necesidades de soluciones y desarrollos de software ","informes consolidados de avances de desarrollo",{"$f":"IF(OR(AM11=\"Preventivo\",AM11=\"Detectivo\"),\"Probabilidad\",IF(AM11=\"Correctivo\",\"Impacto\",\"\"))","v":"Probabilidad"},"Preventivo","Manual",{"$f":"IF(AND(AM11=\"Preventivo\",AN11=\"Automático\"),\"50%\",IF(AND(AM11=\"Preventivo\",AN11=\"Manual\"),\"40%\",IF(AND(AM11=\"Detectivo\",AN11=\"Automático\"),\"40%\",IF(AND(AM11=\"Detectivo\",AN11=\"Manual\"),\"30%\",IF(AND(AM11=\"Correctivo\",AN11=\"Automático\"),\"35%\",IF(AND(AM11=\"Correctivo\",AN11=\"Manual\"),\"25%\",\"\"))))))","v":"40%"},"Documentado","Continua","Con Registro",{"$f":"IFERROR(IF(AL11=\"Probabilidad\",(H11-(+H11*AO11)),IF(AL11=\"Impacto\",H11,\"\")),\"\")","v":0.24},{"$f":"IFERROR(IF(AS11=\"\",\"\",IF(AS11<=0.2,\"Muy Baja\",IF(AS11<=0.4,\"Baja\",IF(AS11<=0.6,\"Media\",IF(AS11<=0.8,\"Alta\",\"Muy Alta\"))))),\"\")","v":"Baja"},{"$f":"+AS11","v":0.24},{"$f":"IFERROR(IF(AW11=\"\",\"\",IF(AW11<=0.2,\"Leve\",IF(AW11<=0.4,\"Menor\",IF(AW11<=0.6,\"Moderado\",IF(AW11<=0.8,\"Mayor\",\"Catastrófico\"))))),\"\")","v":"Catastrófico"},{"$f":"IFERROR(IF(AL11=\"Impacto\",(AE11-(+AE11*AO11)),IF(AL11=\"Probabilidad\",AE11,\"\")),\"\")","v":1},{"$f":"IFERROR(IF(OR(AND(AT11=\"Muy Baja\",AV11=\"Leve\"),AND(AT11=\"Muy Baja\",AV11=\"Menor\"),AND(AT11=\"Baja\",AV11=\"Leve\")),\"Bajo\",IF(OR(AND(AT11=\"Muy baja\",AV11=\"Moderado\"),AND(AT11=\"Baja\",AV11=\"Menor\"),AND(AT11=\"Baja\",AV11=\"Moderado\"),AND(AT11=\"Media\",AV11=\"Leve\"),AND(AT11=\"Media\",AV11=\"Menor\"),AND(AT11=\"Media\",AV11=\"Moderado\"),AND(AT11=\"Alta\",AV11=\"Leve\"),AND(AT11=\"Alta\",AV11=\"Menor\")),\"Moderado\",IF(OR(AND(AT11=\"Muy Baja\",AV11=\"Mayor\"),AND(AT11=\"Baja\",AV11=\"Mayor\"),AND(AT11=\"Media\",AV11=\"Mayor\"),AND(AT11=\"Alta\",AV11=\"Moderado\"),AND(AT11=\"Alta\",AV11=\"Mayor\"),AND(AT11=\"Muy Alta\",AV11=\"Leve\"),AND(AT11=\"Muy Alta\",AV11=\"Menor\"),AND(AT11=\"Muy Alta\",AV11=\"Moderado\"),AND(AT11=\"Muy Alta\",AV11=\"Mayor\")),\"Alto\",IF(OR(AND(AT11=\"Muy Baja\",AV11=\"Catastrófico\"),AND(AT11=\"Baja\",AV11=\"Catastrófico\"),AND(AT11=\"Media\",AV11=\"Catastrófico\"),AND(AT11=\"Alta\",AV11=\"Catastrófico\"),AND(AT11=\"Muy Alta\",AV11=\"Catastrófico\")),\"Extremo\",\"\")))),\"\")","v":"Extremo"},"Evitar",null,null,null,null,"Funcionario","Grupo de Tecnologías de la Información y las Comunicaciones TICS.","Andrés Alejandro Ayure- Coordinador Grupo TICS","2025-02-21","2025-12-31"]
[3,"GESTIÓN TECNOLÓGICA","Posibilidad de recibir cualquier dádiva o beneficio a nombre propio o de terceros por Incorporación de funciones ocultas, puertas traseras o vulnerabilidades en el código fuente de soluciones Open Source desarrolladas internamente, con el fin de obtener acceso privilegiado o control indebido sobre los sistemas.","Incorporación de funciones ocultas, puertas traseras o vulnerabilidades en el código fuente de soluciones Open Source desarrolladas internamente, con el fin de obtener acceso privilegiado o control indebido sobre los sistemas.","Fraude Interno",4,{"$f":"IF(F12<=0,\"\",IF(F12<=2,\"Muy Baja\",IF(F12<=24,\"Baja\",IF(F12<=500,\"Media\",IF(F12<=5000,\"Alta\",\"Muy Alta\")))))","v":"Baja"},{"$f":"IF(G12=\"\",\"\",IF(G12=\"Muy Baja\",0.2,IF(G12=\"Baja\",0.4,IF(G12=\"Media\",0.6,IF(G12=\"Alta\",0.8,IF(G12=\"Muy Alta\",1,))))))","v":0.4},"si","si","no","si ","si ","si","no","si","si","si","si","si","si","si","si","no","si","si","no",{"$f":"IF(X12=\"Si\",\"19\",COUNTIF(I12:AA12,\"si\"))","v":13},{"$f":"VALUE(IF(AB12<=5,5,IF(AND(AB12>5,AB12<=11),10,IF(AB12>11,20,0))))","v":20},"Catastrófico",{"$f":"IF(AD12=\"\",\"\",IF(AD12=\"Leve\",0.2,IF(AD12=\"Menor\",0.4,IF(AD12=\"Moderado\",0.6,IF(AD12=\"Mayor\",0.8,IF(AD12=\"Catastrófico\",1,))))))","v":1},{"$f":"IF(OR(AND(G12=\"Muy Baja\",AD12=\"Leve\"),AND(G12=\"Muy Baja\",AD12=\"Menor\"),AND(G12=\"Baja\",AD12=\"Leve\")),\"Bajo\",IF(OR(AND(G12=\"Muy baja\",AD12=\"Moderado\"),AND(G12=\"Baja\",AD12=\"Menor\"),AND(G12=\"Baja\",AD12=\"Moderado\"),AND(G12=\"Media\",AD12=\"Leve\"),AND(G12=\"Media\",AD12=\"Menor\"),AND(G12=\"Media\",AD12=\"Moderado\"),AND(G12=\"Alta\",AD12=\"Leve\"),AND(G12=\"Alta\",AD12=\"Menor\")),\"Moderado\",IF(OR(AND(G12=\"Muy Baja\",AD12=\"Mayor\"),AND(G12=\"Baja\",AD12=\"Mayor\"),AND(G12=\"Media\",AD12=\"Mayor\"),AND(G12=\"Alta\",AD12=\"Moderado\"),AND(G12=\"Alta\",AD12=\"Mayor\"),AND(G12=\"Muy Alta\",AD12=\"Leve\"),AND(G12=\"Muy Alta\",AD12=\"Menor\"),AND(G12=\"Muy Alta\",AD12=\"Moderado\"),AND(G12=\"Muy Alta\",AD12=\"Mayor\")),\"Alto\",IF(OR(AND(G12=\"Muy Baja\",AD12=\"Catastrófico\"),AND(G12=\"Baja\",AD12=\"Catastrófico\"),AND(G12=\"Media\",AD12=\"Catastrófico\"),AND(G12=\"Alta\",AD12=\"Catastrófico\"),AND(G12=\"Muy Alta\",AD12=\"Catastrófico\")),\"Extremo\",\"\"))))","v":"Extremo"},1,"El funcionario TIC realiza revisiones de códigos y trazabilidad de auditoría en los repositorios opensource, igualmente, valida que se realice la gestión de versiones","Funcionario TIC","1. Implementar revisiones de código colaborativas (Code Reviews) con trazabilidad y auditoría de cambios en los repositorios Open Source.\n2.  Supervisar cada contribución al código mediante sistemas de gestión de versiones (Git, commits firmados y auditoría de merges).","informe donde se muestre Historial de cambios en los repositorios Open Source y desarrollo general del codigo asegurando transparencia y trazabilidad de cada modificación.","Probabilidad","Detectivo","Manual","30%","Documentado","Continua","Con Registro",{"$f":"IFERROR(IF(AL12=\"Probabilidad\",(H12-(+H12*AO12)),IF(AL12=\"Impacto\",H12,\"\")),\"\")","v":0.28000000000000003},{"$f":"IFERROR(IF(AS12=\"\",\"\",IF(AS12<=0.2,\"Muy Baja\",IF(AS12<=0.4,\"Baja\",IF(AS12<=0.6,\"Media\",IF(AS12<=0.8,\"Alta\",\"Muy Alta\"))))),\"\")","v":"Baja"},{"$f":"+AS12","v":0.28000000000000003},{"$f":"IFERROR(IF(AW12=\"\",\"\",IF(AW12<=0.2,\"Leve\",IF(AW12<=0.4,\"Menor\",IF(AW12<=0.6,\"Moderado\",IF(AW12<=0.8,\"Mayor\",\"Catastrófico\"))))),\"\")","v":"Catastrófico"},{"$f":"IFERROR(IF(AL12=\"Impacto\",(AE12-(+AE12*AO12)),IF(AL12=\"Probabilidad\",AE12,\"\")),\"\")","v":1},{"$f":"IFERROR(IF(OR(AND(AT12=\"Muy Baja\",AV12=\"Leve\"),AND(AT12=\"Muy Baja\",AV12=\"Menor\"),AND(AT12=\"Baja\",AV12=\"Leve\")),\"Bajo\",IF(OR(AND(AT12=\"Muy baja\",AV12=\"Moderado\"),AND(AT12=\"Baja\",AV12=\"Menor\"),AND(AT12=\"Baja\",AV12=\"Moderado\"),AND(AT12=\"Media\",AV12=\"Leve\"),AND(AT12=\"Media\",AV12=\"Menor\"),AND(AT12=\"Media\",AV12=\"Moderado\"),AND(AT12=\"Alta\",AV12=\"Leve\"),AND(AT12=\"Alta\",AV12=\"Menor\")),\"Moderado\",IF(OR(AND(AT12=\"Muy Baja\",AV12=\"Mayor\"),AND(AT12=\"Baja\",AV12=\"Mayor\"),AND(AT12=\"Media\",AV12=\"Mayor\"),AND(AT12=\"Alta\",AV12=\"Moderado\"),AND(AT12=\"Alta\",AV12=\"Mayor\"),AND(AT12=\"Muy Alta\",AV12=\"Leve\"),AND(AT12=\"Muy Alta\",AV12=\"Menor\"),AND(AT12=\"Muy Alta\",AV12=\"Moderado\"),AND(AT12=\"Muy Alta\",AV12=\"Mayor\")),\"Alto\",IF(OR(AND(AT12=\"Muy Baja\",AV12=\"Catastrófico\"),AND(AT12=\"Baja\",AV12=\"Catastrófico\"),AND(AT12=\"Media\",AV12=\"Catastrófico\"),AND(AT12=\"Alta\",AV12=\"Catastrófico\"),AND(AT12=\"Muy Alta\",AV12=\"Catastrófico\")),\"Extremo\",\"\")))),\"\")","v":"Extremo"},"Evitar",null,null,null,null,"Funcionario","Grupo de Tecnologías de la Información y las Comunicaciones TICS.","Andrés Alejandro Ayure- Coordinador Grupo TICS","2025-02-21","2025-12-31"]
[4,"GESTIÓN DOCUMENTAL","Posibilidad de recibir cualquier dádiva o beneficio a nombre propio o de terceros por entregar y/o facilitar información clasificada o reservada","entregar y/o facilitar información clasificada o reservada","Fraude Interno",52,{"$f":"IF(F13<=0,\"\",IF(F13<=2,\"Muy Baja\",IF(F13<=24,\"Baja\",IF(F13<=500,\"Media\",IF(F13<=5000,\"Alta\",\"Muy Alta\")))))","v":"Media"},{"$f":"IF(G13=\"\",\"\",IF(G13=\"Muy Baja\",0.2,IF(G13=\"Baja\",0.4,IF(G13=\"Media\",0.6,IF(G13=\"Alta\",0.8,IF(G13=\"Muy Alta\",1,))))))","v":0.6},"si","si","si","si","si","si","si","si","si","si","si","si","si","si","si","no","si","si","no",{"$f":"IF(X13=\"Si\",\"19\",COUNTIF(I13:AA13,\"si\"))","v":17},{"$f":"VALUE(IF(AB13<=5,5,IF(AND(AB13>5,AB13<=11),10,IF(AB13>11,20,0))))","v":20},"Catastrófico",{"$f":"IF(AD13=\"\",\"\",IF(AD13=\"Leve\",0.2,IF(AD13=\"Menor\",0.4,IF(AD13=\"Moderado\",0.6,IF(AD13=\"Mayor\",0.8,IF(AD13=\"Catastrófico\",1,))))))","v":1},{"$f":"IF(OR(AND(G13=\"Muy Baja\",AD13=\"Leve\"),AND(G13=\"Muy Baja\",AD13=\"Menor\"),AND(G13=\"Baja\",AD13=\"Leve\")),\"Bajo\",IF(OR(AND(G13=\"Muy baja\",AD13=\"Moderado\"),AND(G13=\"Baja\",AD13=\"Menor\"),AND(G13=\"Baja\",AD13=\"Moderado\"),AND(G13=\"Media\",AD13=\"Leve\"),AND(G13=\"Media\",AD13=\"Menor\"),AND(G13=\"Media\",AD13=\"Moderado\"),AND(G13=\"Alta\",AD13=\"Leve\"),AND(G13=\"Alta\",AD13=\"Menor\")),\"Moderado\",IF(OR(AND(G13=\"Muy Baja\",AD13=\"Mayor\"),AND(G13=\"Baja\",AD13=\"Mayor\"),AND(G13=\"Media\",AD13=\"Mayor\"),AND(G13=\"Alta\",AD13=\"Moderado\"),AND(G13=\"Alta\",AD13=\"Mayor\"),AND(G13=\"Muy Alta\",AD13=\"Leve\"),AND(G13=\"Muy Alta\",AD13=\"Menor\"),AND(G13=\"Muy Alta\",AD13=\"Moderado\"),AND(G13=\"Muy Alta\",AD13=\"Mayor\")),\"Alto\",IF(OR(AND(G13=\"Muy Baja\",AD13=\"Catastrófico\"),AND(G13=\"Baja\",AD13=\"Catastrófico\"),AND(G13=\"Media\",AD13=\"Catastrófico\"),AND(G13=\"Alta\",AD13=\"Catastrófico\"),AND(G13=\"Muy Alta\",AD13=\"Catastrófico\")),\"Extremo\",\"\"))))","v":"Extremo"},1," El auxiliar Administrativo del grupo de Relacionamiento con el Ciudadano y Gestión de la información - GRCGI, verifica que previo al suministro de informacion solicitada por la ciudadania o grupos de valor, se cumpla con los niveles de acceso establecidos por la Ley, por lo cual se debe consultar las herramientas Indice información clasificada y reservada ( externo)  y Tablas de control de acceso ( interno)  que tiene el GRCGI. Adicionalmente, para la documentación fisica se debe generar una comunicación interna previa a la consulta o prestamo al Coordinador, con el fin de reportar la documentación con caracteristicas de clasificada y reservada.","Auxiliar Administrativo\ngrupo de Relacionamiento con el Ciudadano y Gestión de la información - GRCGI","Verificar que previo al suministro de informacion solicitada por la ciudadania o grupos de valor, se cumpla con los niveles de acceso establecidos por la Ley, de acuerdo con las herramientas Indice información clasificada y reservada ( externo)  y Tablas de control de acceso ( interno)  que tiene el GRCGI. \n\nGenerar una comunicación interna previa a la consulta o prestamo al Coordinador, con el fin de reportar la documentación con caracteristicas de clasificada y reservada. ","Comunicaciones oficiales; FormatoT-GD-F-03  planilla control de consultas en archivo central – base de datos",{"$f":"IF(OR(AM13=\"Preventivo\",AM13=\"Detectivo\"),\"Probabilidad\",IF(AM13=\"Correctivo\",\"Impacto\",\"\"))","v":"Probabilidad"},"Detectivo","Manual",{"$f":"IF(AND(AM13=\"Preventivo\",AN13=\"Automático\"),\"50%\",IF(AND(AM13=\"Preventivo\",AN13=\"Manual\"),\"40%\",IF(AND(AM13=\"Detectivo\",AN13=\"Automático\"),\"40%\",IF(AND(AM13=\"Detectivo\",AN13=\"Manual\"),\"30%\",IF(AND(AM13=\"Correctivo\",AN13=\"Automático\"),\"35%\",IF(AND(AM13=\"Correctivo\",AN13=\"Manual\"),\"25%\",\"\"))))))","v":"30%"},"Documentado","Continua","Con Registro",{"$f":"IFERROR(IF(AL13=\"Probabilidad\",(H13-(+H13*AO13)),IF(AL13=\"Impacto\",H13,\"\")),\"\")","v":0.42},{"$f":"IFERROR(IF(AS13=\"\",\"\",IF(AS13<=0.2,\"Muy Baja\",IF(AS13<=0.4,\"Baja\",IF(AS13<=0.6,\"Media\",IF(AS13<=0.8,\"Alta\",\"Muy Alta\"))))),\"\")","v":"Media"},{"$f":"+AS13","v":0.42},{"$f":"IFERROR(IF(AW13=\"\",\"\",IF(AW13<=0.2,\"Leve\",IF(AW13<=0.4,\"Menor\",IF(AW13<=0.6,\"Moderado\",IF(AW13<=0.8,\"Mayor\",\"Catastrófico\"))))),\"\")","v":"Catastrófico"},{"$f":"IFERROR(IF(AL13=\"Impacto\",(AE13-(+AE13*AO13)),IF(AL13=\"Probabilidad\",AE13,\"\")),\"\")","v":1},{"$f":"IFERROR(IF(OR(AND(AT13=\"Muy Baja\",AV13=\"Leve\"),AND(AT13=\"Muy Baja\",AV13=\"Menor\"),AND(AT13=\"Baja\",AV13=\"Leve\")),\"Bajo\",IF(OR(AND(AT13=\"Muy baja\",AV13=\"Moderado\"),AND(AT13=\"Baja\",AV13=\"Menor\"),AND(AT13=\"Baja\",AV13=\"Moderado\"),AND(AT13=\"Media\",AV13=\"Leve\"),AND(AT13=\"Media\",AV13=\"Menor\"),AND(AT13=\"Media\",AV13=\"Moderado\"),AND(AT13=\"Alta\",AV13=\"Leve\"),AND(AT13=\"Alta\",AV13=\"Menor\")),\"Moderado\",IF(OR(AND(AT13=\"Muy Baja\",AV13=\"Mayor\"),AND(AT13=\"Baja\",AV13=\"Mayor\"),AND(AT13=\"Media\",AV13=\"Mayor\"),AND(AT13=\"Alta\",AV13=\"Moderado\"),AND(AT13=\"Alta\",AV13=\"Mayor\"),AND(AT13=\"Muy Alta\",AV13=\"Leve\"),AND(AT13=\"Muy Alta\",AV13=\"Menor\"),AND(AT13=\"Muy Alta\",AV13=\"Moderado\"),AND(AT13=\"Muy Alta\",AV13=\"Mayor\")),\"Alto\",IF(OR(AND(AT13=\"Muy Baja\",AV13=\"Catastrófico\"),AND(AT13=\"Baja\",AV13=\"Catastrófico\"),AND(AT13=\"Media\",AV13=\"Catastrófico\"),AND(AT13=\"Alta\",AV13=\"Catastrófico\"),AND(AT13=\"Muy Alta\",AV13=\"Catastrófico\")),\"Extremo\",\"\")))),\"\")","v":"Extremo"},"Evitar",null,null,null,null,"Grupo de Relacionamiento con la Ciudadanía y Gestión de la Información"," Jenny Constanza Nova Martinez",45709,"2025-02-21","2025-12-31"]
[5,"MINERIA","Posibilidad de recibir cualquier dádiva o beneficio a nombre propio o de terceros por Influencia indebida en la formulación de normativas y políticas para beneficiar o perjudicar a determinados grupos.\n","Influencia indebida en la formulación de normativas y políticas para beneficiar o perjudicar a determinados grupos.\n","Fraude Interno",3,{"$f":"IF(F14<=0,\"\",IF(F14<=2,\"Muy Baja\",IF(F14<=24,\"Baja\",IF(F14<=500,\"Media\",IF(F14<=5000,\"Alta\",\"Muy Alta\")))))","v":"Baja"},{"$f":"IF(G14=\"\",\"\",IF(G14=\"Muy Baja\",0.2,IF(G14=\"Baja\",0.4,IF(G14=\"Media\",0.6,IF(G14=\"Alta\",0.8,IF(G14=\"Muy Alta\",1,))))))","v":0.4},"si","si","si","si","si","si","si","si","si","si","si","si","si","si","si","no","si","si","no",{"$f":"IF(X14=\"Si\",\"19\",COUNTIF(I14:AA14,\"si\"))","v":17},{"$f":"VALUE(IF(AB14<=5,5,IF(AND(AB14>5,AB14<=11),10,IF(AB14>11,20,0))))","v":20},"Catastrófico",{"$f":"IF(AD14=\"\",\"\",IF(AD14=\"Leve\",0.2,IF(AD14=\"Menor\",0.4,IF(AD14=\"Moderado\",0.6,IF(AD14=\"Mayor\",0.8,IF(AD14=\"Catastrófico\",1,))))))","v":1},{"$f":"IF(OR(AND(G14=\"Muy Baja\",AD14=\"Leve\"),AND(G14=\"Muy Baja\",AD14=\"Menor\"),AND(G14=\"Baja\",AD14=\"Leve\")),\"Bajo\",IF(OR(AND(G14=\"Muy baja\",AD14=\"Moderado\"),AND(G14=\"Baja\",AD14=\"Menor\"),AND(G14=\"Baja\",AD14=\"Moderado\"),AND(G14=\"Media\",AD14=\"Leve\"),AND(G14=\"Media\",AD14=\"Menor\"),AND(G14=\"Media\",AD14=\"Moderado\"),AND(G14=\"Alta\",AD14=\"Leve\"),AND(G14=\"Alta\",AD14=\"Menor\")),\"Moderado\",IF(OR(AND(G14=\"Muy Baja\",AD14=\"Mayor\"),AND(G14=\"Baja\",AD14=\"Mayor\"),AND(G14=\"Media\",AD14=\"Mayor\"),AND(G14=\"Alta\",AD14=\"Moderado\"),AND(G14=\"Alta\",AD14=\"Mayor\"),AND(G14=\"Muy Alta\",AD14=\"Leve\"),AND(G14=\"Muy Alta\",AD14=\"Menor\"),AND(G14=\"Muy Alta\",AD14=\"Moderado\"),AND(G14=\"Muy Alta\",AD14=\"Mayor\")),\"Alto\",IF(OR(AND(G14=\"Muy Baja\",AD14=\"Catastrófico\"),AND(G14=\"Baja\",AD14=\"Catastrófico\"),AND(G14=\"Media\",AD14=\"Catastrófico\"),AND(G14=\"Alta\",AD14=\"Catastrófico\"),AND(G14=\"Muy Alta\",AD14=\"Catastrófico\")),\"Extremo\",\"\"))))","v":"Extremo"},1,"Los coordinadores realizan a la agenda regulatoria de los reglamentos, políticas, lineamientos, planes, programas mediante la matriz de seguimiento cualitativa y cuantitativamente, para de esta manera generar las alertas necesarias por posibles incumplimientos de la misma","Director de Minería Empresarial","Monitoreo de decisiones normativas mediante seguimiento a la agendaa regulatoria.\n","Informes de seguimiento de agenda regulatoria sobre la formulación de normativas.\n",{"$f":"IF(OR(AM14=\"Preventivo\",AM14=\"Detectivo\"),\"Probabilidad\",IF(AM14=\"Correctivo\",\"Impacto\",\"\"))","v":"Probabilidad"},"Detectivo","Manual",{"$f":"IF(AND(AM14=\"Preventivo\",AN14=\"Automático\"),\"50%\",IF(AND(AM14=\"Preventivo\",AN14=\"Manual\"),\"40%\",IF(AND(AM14=\"Detectivo\",AN14=\"Automático\"),\"40%\",IF(AND(AM14=\"Detectivo\",AN14=\"Manual\"),\"30%\",IF(AND(AM14=\"Correctivo\",AN14=\"Automático\"),\"35%\",IF(AND(AM14=\"Correctivo\",AN14=\"Manual\"),\"25%\",\"\"))))))","v":"30%"},"Sin Documentar","Continua","Con Registro",{"$f":"IFERROR(IF(AL14=\"Probabilidad\",(H14-(+H14*AO14)),IF(AL14=\"Impacto\",H14,\"\")),\"\")","v":0.28000000000000003},{"$f":"IFERROR(IF(AS14=\"\",\"\",IF(AS14<=0.2,\"Muy Baja\",IF(AS14<=0.4,\"Baja\",IF(AS14<=0.6,\"Media\",IF(AS14<=0.8,\"Alta\",\"Muy Alta\"))))),\"\")","v":"Baja"},{"$f":"+AS14","v":0.28000000000000003},{"$f":"IFERROR(IF(AW14=\"\",\"\",IF(AW14<=0.2,\"Leve\",IF(AW14<=0.4,\"Menor\",IF(AW14<=0.6,\"Moderado\",IF(AW14<=0.8,\"Mayor\",\"Catastrófico\"))))),\"\")","v":"Catastrófico"},{"$f":"IFERROR(IF(AL14=\"Impacto\",(AE14-(+AE14*AO14)),IF(AL14=\"Probabilidad\",AE14,\"\")),\"\")","v":1},{"$f":"IFERROR(IF(OR(AND(AT14=\"Muy Baja\",AV14=\"Leve\"),AND(AT14=\"Muy Baja\",AV14=\"Menor\"),AND(AT14=\"Baja\",AV14=\"Leve\")),\"Bajo\",IF(OR(AND(AT14=\"Muy baja\",AV14=\"Moderado\"),AND(AT14=\"Baja\",AV14=\"Menor\"),AND(AT14=\"Baja\",AV14=\"Moderado\"),AND(AT14=\"Media\",AV14=\"Leve\"),AND(AT14=\"Media\",AV14=\"Menor\"),AND(AT14=\"Media\",AV14=\"Moderado\"),AND(AT14=\"Alta\",AV14=\"Leve\"),AND(AT14=\"Alta\",AV14=\"Menor\")),\"Moderado\",IF(OR(AND(AT14=\"Muy Baja\",AV14=\"Mayor\"),AND(AT14=\"Baja\",AV14=\"Mayor\"),AND(AT14=\"Media\",AV14=\"Mayor\"),AND(AT14=\"Alta\",AV14=\"Moderado\"),AND(AT14=\"Alta\",AV14=\"Mayor\"),AND(AT14=\"Muy Alta\",AV14=\"Leve\"),AND(AT14=\"Muy Alta\",AV14=\"Menor\"),AND(AT14=\"Muy Alta\",AV14=\"Moderado\"),AND(AT14=\"Muy Alta\",AV14=\"Mayor\")),\"Alto\",IF(OR(AND(AT14=\"Muy Baja\",AV14=\"Catastrófico\"),AND(AT14=\"Baja\",AV14=\"Catastrófico\"),AND(AT14=\"Media\",AV14=\"Catastrófico\"),AND(AT14=\"Alta\",AV14=\"Catastrófico\"),AND(AT14=\"Muy Alta\",AV14=\"Catastrófico\")),\"Extremo\",\"\")))),\"\")","v":"Extremo"},"Evitar",null,null,null,null,null,null,null,"2025-02-21","2025-12-31"]
[6,"MINERIA",{"$f":"\"Posibilidad de recibir cualquier dádiva o beneficio a nombre propio o de terceros por \"&D15","v":"Posibilidad de recibir cualquier dádiva o beneficio a nombre propio o de terceros por Manipulación de tiempos de respuesta en trámites administrativos a cambio de beneficios personales.\nFalta de trazabilidad y control en la asignación y priorización de los procesos administrativos."},"Manipulación de tiempos de respuesta en trámites administrativos a cambio de beneficios personales.\nFalta de trazabilidad y control en la asignación y priorización de los procesos administrativos.","Fraude Interno",12,"Baja",0.4,"si","no","si","si","si","si","si","si","si","si","si","si","si","si","si","no","si","si","no",16,20,{"$f":"IF(AC15=5,\"Moderado\",IF(AC15=10,\"Mayor\",IF(AC15=20,\"Catastrófico\",0)))","v":"Catastrófico"},1,"Extremo",1,"Los coordinadores realizan el establecimiento de tiempos estándar y protocolos claros para la gestión de procesos administrativos, una vez establecidos realizan seguimiento al cumplimientos de los tiempos","Director de Minería Empresarial","Procedimientos para gestiones administrativas\nSeguimiento y auditoría de los tiempos de atención de los procesos.","Informes de los tiempos de atención de los procesos.","Probabilidad","Detectivo","Manual","30%","Sin Documentar","Continua","Con Registro",0.28000000000000003,"Baja",0.28000000000000003,"Catastrófico",1,"Extremo","Evitar","Documentar los procedimientos, instructivos y formatos de tareas administrativas con el fin de estandarizarlos","Contratista responsable del Sistema de Gestión de Calidad en la DME",null,null,"Contratista responsable del Sistema de Gestión de Calidad en la DME","Dirección de minería Empresarial","Profesional especializado Dirección de Minería Empresarial","2025-02-21","2025-12-31"]
[7,"MINERIA","Posibilidad de recibir cualquier dádiva o beneficio a nombre propio o de terceros por ofrecer a cambio asistencia técnica o agilización de los procesos que son competencia de esta dirección.","ofrecer a cambio asistencia técnica o agilización de los procesos que son competencia de esta dirección.","Fraude Interno",60,{"$f":"IF(F16<=0,\"\",IF(F16<=2,\"Muy Baja\",IF(F16<=24,\"Baja\",IF(F16<=500,\"Media\",IF(F16<=5000,\"Alta\",\"Muy Alta\")))))","v":"Media"},{"$f":"IF(G16=\"\",\"\",IF(G16=\"Muy Baja\",0.2,IF(G16=\"Baja\",0.4,IF(G16=\"Media\",0.6,IF(G16=\"Alta\",0.8,IF(G16=\"Muy Alta\",1,))))))","v":0.6},"si","si","si","si","si","no","no","no","no","si","si","si","no","si","si","no","si","si","no",{"$f":"IF(X16=\"Si\",\"19\",COUNTIF(I16:AA16,\"si\"))","v":12},{"$f":"VALUE(IF(AB16<=5,5,IF(AND(AB16>5,AB16<=11),10,IF(AB16>11,20,0))))","v":20},"Catastrófico",{"$f":"IF(AD16=\"\",\"\",IF(AD16=\"Leve\",0.2,IF(AD16=\"Menor\",0.4,IF(AD16=\"Moderado\",0.6,IF(AD16=\"Mayor\",0.8,IF(AD16=\"Catastrófico\",1,))))))","v":1},{"$f":"IF(OR(AND(G16=\"Muy Baja\",AD16=\"Leve\"),AND(G16=\"Muy Baja\",AD16=\"Menor\"),AND(G16=\"Baja\",AD16=\"Leve\")),\"Bajo\",IF(OR(AND(G16=\"Muy baja\",AD16=\"Moderado\"),AND(G16=\"Baja\",AD16=\"Menor\"),AND(G16=\"Baja\",AD16=\"Moderado\"),AND(G16=\"Media\",AD16=\"Leve\"),AND(G16=\"Media\",AD16=\"Menor\"),AND(G16=\"Media\",AD16=\"Moderado\"),AND(G16=\"Alta\",AD16=\"Leve\"),AND(G16=\"Alta\",AD16=\"Menor\")),\"Moderado\",IF(OR(AND(G16=\"Muy Baja\",AD16=\"Mayor\"),AND(G16=\"Baja\",AD16=\"Mayor\"),AND(G16=\"Media\",AD16=\"Mayor\"),AND(G16=\"Alta\",AD16=\"Moderado\"),AND(G16=\"Alta\",AD16=\"Mayor\"),AND(G16=\"Muy Alta\",AD16=\"Leve\"),AND(G16=\"Muy Alta\",AD16=\"Menor\"),AND(G16=\"Muy Alta\",AD16=\"Moderado\"),AND(G16=\"Muy Alta\",AD16=\"Mayor\")),\"Alto\",IF(OR(AND(G16=\"Muy Baja\",AD16=\"Catastrófico\"),AND(G16=\"Baja\",AD16=\"Catastrófico\"),AND(G16=\"Media\",AD16=\"Catastrófico\"),AND(G16=\"Alta\",AD16=\"Catastrófico\"),AND(G16=\"Muy Alta\",AD16=\"Catastrófico\")),\"Extremo\",\"\"))))","v":"Extremo"},1,"El Coordinador de cada grupo de la Dirección de Formalización Minera, realizará la programación mensual de intervenciones y asistencias en territorio y en caso de existir cambios en la programación se realizarán ajustes semanales, a su vez verificará la entrega oportuna y completa de los informes de comisión","Coordinador de cada grupo","Realizar la programación mensual de intervenciones y asistencias en territorio y en caso de existir cambios en la programación se realizarán ajustes semanales, a su vez verificará la entrega oportuna y completa de los informes de comisión ","* Matriz interna de planeación de comisiones",{"$f":"IF(OR(AM16=\"Preventivo\",AM16=\"Detectivo\"),\"Probabilidad\",IF(AM16=\"Correctivo\",\"Impacto\",\"\"))","v":"Probabilidad"},"Preventivo","Manual",{"$f":"IF(AND(AM16=\"Preventivo\",AN16=\"Automático\"),\"50%\",IF(AND(AM16=\"Preventivo\",AN16=\"Manual\"),\"40%\",IF(AND(AM16=\"Detectivo\",AN16=\"Automático\"),\"40%\",IF(AND(AM16=\"Detectivo\",AN16=\"Manual\"),\"30%\",IF(AND(AM16=\"Correctivo\",AN16=\"Automático\"),\"35%\",IF(AND(AM16=\"Correctivo\",AN16=\"Manual\"),\"25%\",\"\"))))))","v":"40%"},"Sin Documentar","Continua","Con Registro",{"$f":"IFERROR(IF(AL16=\"Probabilidad\",(H16-(+H16*AO16)),IF(AL16=\"Impacto\",H16,\"\")),\"\")","v":0.36},{"$f":"IFERROR(IF(AS16=\"\",\"\",IF(AS16<=0.2,\"Muy Baja\",IF(AS16<=0.4,\"Baja\",IF(AS16<=0.6,\"Media\",IF(AS16<=0.8,\"Alta\",\"Muy Alta\"))))),\"\")","v":"Baja"},{"$f":"+AS16","v":0.36},{"$f":"IFERROR(IF(AW16=\"\",\"\",IF(AW16<=0.2,\"Leve\",IF(AW16<=0.4,\"Menor\",IF(AW16<=0.6,\"Moderado\",IF(AW16<=0.8,\"Mayor\",\"Catastrófico\"))))),\"\")","v":"Catastrófico"},{"$f":"IFERROR(IF(AL16=\"Impacto\",(AE16-(+AE16*AO16)),IF(AL16=\"Probabilidad\",AE16,\"\")),\"\")","v":1},{"$f":"IFERROR(IF(OR(AND(AT16=\"Muy Baja\",AV16=\"Leve\"),AND(AT16=\"Muy Baja\",AV16=\"Menor\"),AND(AT16=\"Baja\",AV16=\"Leve\")),\"Bajo\",IF(OR(AND(AT16=\"Muy baja\",AV16=\"Moderado\"),AND(AT16=\"Baja\",AV16=\"Menor\"),AND(AT16=\"Baja\",AV16=\"Moderado\"),AND(AT16=\"Media\",AV16=\"Leve\"),AND(AT16=\"Media\",AV16=\"Menor\"),AND(AT16=\"Media\",AV16=\"Moderado\"),AND(AT16=\"Alta\",AV16=\"Leve\"),AND(AT16=\"Alta\",AV16=\"Menor\")),\"Moderado\",IF(OR(AND(AT16=\"Muy Baja\",AV16=\"Mayor\"),AND(AT16=\"Baja\",AV16=\"Mayor\"),AND(AT16=\"Media\",AV16=\"Mayor\"),AND(AT16=\"Alta\",AV16=\"Moderado\"),AND(AT16=\"Alta\",AV16=\"Mayor\"),AND(AT16=\"Muy Alta\",AV16=\"Leve\"),AND(AT16=\"Muy Alta\",AV16=\"Menor\"),AND(AT16=\"Muy Alta\",AV16=\"Moderado\"),AND(AT16=\"Muy Alta\",AV16=\"Mayor\")),\"Alto\",IF(OR(AND(AT16=\"Muy Baja\",AV16=\"Catastrófico\"),AND(AT16=\"Baja\",AV16=\"Catastrófico\"),AND(AT16=\"Media\",AV16=\"Catastrófico\"),AND(AT16=\"Alta\",AV16=\"Catastrófico\"),AND(AT16=\"Muy Alta\",AV16=\"Catastrófico\")),\"Extremo\",\"\")))),\"\")","v":"Extremo"},"Evitar",null,null,null,null,"Coordinadores de grupo","Dirección de Formalización (cada grupo de Coordinación)","Director/a de Formalización Minera","2025-02-01","2025-12-31"]
[8,"HIDROCARBUROS","Posibilidad de recibir cualquier dádiva o beneficio a nombre propio o de terceros por ocultar o alterar información que no corresponda con los datos reportados en el aplicativo SICOM  ","ocultar o alterar información que no corresponda con los datos reportados en el aplicativo SICOM  ","Fraude Interno",100,{"$f":"IF(F17<=0,\"\",IF(F17<=2,\"Muy Baja\",IF(F17<=24,\"Baja\",IF(F17<=500,\"Media\",IF(F17<=5000,\"Alta\",\"Muy Alta\")))))","v":"Media"},{"$f":"IF(G17=\"\",\"\",IF(G17=\"Muy Baja\",0.2,IF(G17=\"Baja\",0.4,IF(G17=\"Media\",0.6,IF(G17=\"Alta\",0.8,IF(G17=\"Muy Alta\",1,))))))","v":0.6},"si","si","no","no","si","si","si","no","si","si","no","si","no","si","si","no","si","si","no",{"$f":"IF(X17=\"Si\",\"19\",COUNTIF(I17:AA17,\"si\"))","v":12},{"$f":"VALUE(IF(AB17<=5,5,IF(AND(AB17>5,AB17<=11),10,IF(AB17>11,20,0))))","v":20},"Catastrófico",{"$f":"IF(AD17=\"\",\"\",IF(AD17=\"Leve\",0.2,IF(AD17=\"Menor\",0.4,IF(AD17=\"Moderado\",0.6,IF(AD17=\"Mayor\",0.8,IF(AD17=\"Catastrófico\",1,))))))","v":1},{"$f":"IF(OR(AND(G17=\"Muy Baja\",AD17=\"Leve\"),AND(G17=\"Muy Baja\",AD17=\"Menor\"),AND(G17=\"Baja\",AD17=\"Leve\")),\"Bajo\",IF(OR(AND(G17=\"Muy baja\",AD17=\"Moderado\"),AND(G17=\"Baja\",AD17=\"Menor\"),AND(G17=\"Baja\",AD17=\"Moderado\"),AND(G17=\"Media\",AD17=\"Leve\"),AND(G17=\"Media\",AD17=\"Menor\"),AND(G17=\"Media\",AD17=\"Moderado\"),AND(G17=\"Alta\",AD17=\"Leve\"),AND(G17=\"Alta\",AD17=\"Menor\")),\"Moderado\",IF(OR(AND(G17=\"Muy Baja\",AD17=\"Mayor\"),AND(G17=\"Baja\",AD17=\"Mayor\"),AND(G17=\"Media\",AD17=\"Mayor\"),AND(G17=\"Alta\",AD17=\"Moderado\"),AND(G17=\"Alta\",AD17=\"Mayor\"),AND(G17=\"Muy Alta\",AD17=\"Leve\"),AND(G17=\"Muy Alta\",AD17=\"Menor\"),AND(G17=\"Muy Alta\",AD17=\"Moderado\"),AND(G17=\"Muy Alta\",AD17=\"Mayor\")),\"Alto\",IF(OR(AND(G17=\"Muy Baja\",AD17=\"Catastrófico\"),AND(G17=\"Baja\",AD17=\"Catastrófico\"),AND(G17=\"Media\",AD17=\"Catastrófico\"),AND(G17=\"Alta\",AD17=\"Catastrófico\"),AND(G17=\"Muy Alta\",AD17=\"Catastrófico\")),\"Extremo\",\"\"))))","v":"Extremo"},1,"El  Profesional Downstream - SICOM / Profesional Grupo GAS - SICOM, Realiza seguimiento en las mesas técnicas con el operador SICOM y MME validando la información reportada en BI sea concordante con lo registrado en SICO; en caso de encontrar desviaciones del control se procedera a realizar ajustes"," Profesional Downstream - SICOM / Profesional Grupo GAS - SICOM","Realizar seguimiento en las mesas técnicas con el operador SICOM y MME validando la información reportada en BI sea concordante con lo registrado en SICOM; en caso de encontrar desviaciones del control se procedera a realizar ajustes","actas de seguimiento BI / Acta Seguimiento Cronograma SICOM",{"$f":"IF(OR(AM17=\"Preventivo\",AM17=\"Detectivo\"),\"Probabilidad\",IF(AM17=\"Correctivo\",\"Impacto\",\"\"))","v":"Probabilidad"},"Detectivo","Manual",{"$f":"IF(AND(AM17=\"Preventivo\",AN17=\"Automático\"),\"50%\",IF(AND(AM17=\"Preventivo\",AN17=\"Manual\"),\"40%\",IF(AND(AM17=\"Detectivo\",AN17=\"Automático\"),\"40%\",IF(AND(AM17=\"Detectivo\",AN17=\"Manual\"),\"30%\",IF(AND(AM17=\"Correctivo\",AN17=\"Automático\"),\"35%\",IF(AND(AM17=\"Correctivo\",AN17=\"Manual\"),\"25%\",\"\"))))))","v":"30%"},"Sin Documentar","Continua","Con Registro",{"$f":"IFERROR(IF(AL17=\"Probabilidad\",(H17-(+H17*AO17)),IF(AL17=\"Impacto\",H17,\"\")),\"\")","v":0.42},{"$f":"IFERROR(IF(AS17=\"\",\"\",IF(AS17<=0.2,\"Muy Baja\",IF(AS17<=0.4,\"Baja\",IF(AS17<=0.6,\"Media\",IF(AS17<=0.8,\"Alta\",\"Muy Alta\"))))),\"\")","v":"Media"},{"$f":"+AS17","v":0.42},{"$f":"IFERROR(IF(AW17=\"\",\"\",IF(AW17<=0.2,\"Leve\",IF(AW17<=0.4,\"Menor\",IF(AW17<=0.6,\"Moderado\",IF(AW17<=0.8,\"Mayor\",\"Catastrófico\"))))),\"\")","v":"Catastrófico"},{"$f":"IFERROR(IF(AL17=\"Impacto\",(AE17-(+AE17*AO17)),IF(AL17=\"Probabilidad\",AE17,\"\")),\"\")","v":1},{"$f":"IFERROR(IF(OR(AND(AT17=\"Muy Baja\",AV17=\"Leve\"),AND(AT17=\"Muy Baja\",AV17=\"Menor\"),AND(AT17=\"Baja\",AV17=\"Leve\")),\"Bajo\",IF(OR(AND(AT17=\"Muy baja\",AV17=\"Moderado\"),AND(AT17=\"Baja\",AV17=\"Menor\"),AND(AT17=\"Baja\",AV17=\"Moderado\"),AND(AT17=\"Media\",AV17=\"Leve\"),AND(AT17=\"Media\",AV17=\"Menor\"),AND(AT17=\"Media\",AV17=\"Moderado\"),AND(AT17=\"Alta\",AV17=\"Leve\"),AND(AT17=\"Alta\",AV17=\"Menor\")),\"Moderado\",IF(OR(AND(AT17=\"Muy Baja\",AV17=\"Mayor\"),AND(AT17=\"Baja\",AV17=\"Mayor\"),AND(AT17=\"Media\",AV17=\"Mayor\"),AND(AT17=\"Alta\",AV17=\"Moderado\"),AND(AT17=\"Alta\",AV17=\"Mayor\"),AND(AT17=\"Muy Alta\",AV17=\"Leve\"),AND(AT17=\"Muy Alta\",AV17=\"Menor\"),AND(AT17=\"Muy Alta\",AV17=\"Moderado\"),AND(AT17=\"Muy Alta\",AV17=\"Mayor\")),\"Alto\",IF(OR(AND(AT17=\"Muy Baja\",AV17=\"Catastrófico\"),AND(AT17=\"Baja\",AV17=\"Catastrófico\"),AND(AT17=\"Media\",AV17=\"Catastrófico\"),AND(AT17=\"Alta\",AV17=\"Catastrófico\"),AND(AT17=\"Muy Alta\",AV17=\"Catastrófico\")),\"Extremo\",\"\")))),\"\")","v":"Extremo"},"Evitar",null,null,null,null," Profesional Downstream - SICOM / Profesional Grupo GAS - SICOM","Director de Hidrocarburos ","Jefe del Área del Responsable","2025-02-21","2025-12-31"]
[9,"HIDROCARBUROS",{"$f":"\"Posibilidad de recibir cualquier dádiva o beneficio a nombre propio o de terceros por \"&D18","v":"Posibilidad de recibir cualquier dádiva o beneficio a nombre propio o de terceros por entregar información reservada, sin previa autorización por parte de los usarios externos e internos\n"},"entregar información reservada, sin previa autorización por parte de los usarios externos e internos\n","Fraude Interno",100,{"$f":"IF(F18<=0,\"\",IF(F18<=2,\"Muy Baja\",IF(F18<=24,\"Baja\",IF(F18<=500,\"Media\",IF(F18<=5000,\"Alta\",\"Muy Alta\")))))","v":"Media"},{"$f":"IF(G18=\"\",\"\",IF(G18=\"Muy Baja\",0.2,IF(G18=\"Baja\",0.4,IF(G18=\"Media\",0.6,IF(G18=\"Alta\",0.8,IF(G18=\"Muy Alta\",1,))))))","v":0.6},"si","si","no","no","si","si","si","no","si","si","si","si","no","si","si","no","si","si","no",{"$f":"IF(X18=\"Si\",\"19\",COUNTIF(I18:AA18,\"si\"))","v":13},{"$f":"VALUE(IF(AB18<=5,5,IF(AND(AB18>5,AB18<=11),10,IF(AB18>11,20,0))))","v":20},"Catastrófico",{"$f":"IF(AD18=\"\",\"\",IF(AD18=\"Leve\",0.2,IF(AD18=\"Menor\",0.4,IF(AD18=\"Moderado\",0.6,IF(AD18=\"Mayor\",0.8,IF(AD18=\"Catastrófico\",1,))))))","v":1},{"$f":"IF(OR(AND(G18=\"Muy Baja\",AD18=\"Leve\"),AND(G18=\"Muy Baja\",AD18=\"Menor\"),AND(G18=\"Baja\",AD18=\"Leve\")),\"Bajo\",IF(OR(AND(G18=\"Muy baja\",AD18=\"Moderado\"),AND(G18=\"Baja\",AD18=\"Menor\"),AND(G18=\"Baja\",AD18=\"Moderado\"),AND(G18=\"Media\",AD18=\"Leve\"),AND(G18=\"Media\",AD18=\"Menor\"),AND(G18=\"Media\",AD18=\"Moderado\"),AND(G18=\"Alta\",AD18=\"Leve\"),AND(G18=\"Alta\",AD18=\"Menor\")),\"Moderado\",IF(OR(AND(G18=\"Muy Baja\",AD18=\"Mayor\"),AND(G18=\"Baja\",AD18=\"Mayor\"),AND(G18=\"Media\",AD18=\"Mayor\"),AND(G18=\"Alta\",AD18=\"Moderado\"),AND(G18=\"Alta\",AD18=\"Mayor\"),AND(G18=\"Muy Alta\",AD18=\"Leve\"),AND(G18=\"Muy Alta\",AD18=\"Menor\"),AND(G18=\"Muy Alta\",AD18=\"Moderado\"),AND(G18=\"Muy Alta\",AD18=\"Mayor\")),\"Alto\",IF(OR(AND(G18=\"Muy Baja\",AD18=\"Catastrófico\"),AND(G18=\"Baja\",AD18=\"Catastrófico\"),AND(G18=\"Media\",AD18=\"Catastrófico\"),AND(G18=\"Alta\",AD18=\"Catastrófico\"),AND(G18=\"Muy Alta\",AD18=\"Catastrófico\")),\"Extremo\",\"\"))))","v":"Extremo"},1,"El  Profesional Downstream - SICOM / Profesional Grupo GAS - SICOM, Realizar la validacion de la solicitud de información garanttizando que la justificacion y parametros descritos se cumplan de manera acorde  con la solicitud.\n\nadicionalmente, monitorear los permisos y accesos dados al equipo MME\n\nFinalmente, diligenciar actas de confidencialidad por parte del equipo del MME"," Profesional Downstream - SICOM / Profesional Grupo GAS - SICOM","Realizar la validacion de la solicitud de información garanttizando que la justificacion y parametros descritos se cumplan de manera acorde con la solicitud.\n\nmonitorear los permisos y accesos del equipo MME\n\nDiligenciar actas de confidencialidad por parte de las personas que trabajan en el equipo del MME","Respuesta de solicitud en el aplicativo aranda con información solicitada o denegando solicitud\n\ncontrol de acceso equipo MME en el aplicativo SICOM. A través de log de auditoria\n\nActas de confidencialidad","Probabilidad","Detectivo","Manual","30%","Sin Documentar","Continua","Con Registro",{"$f":"IFERROR(IF(AL18=\"Probabilidad\",(H18-(+H18*AO18)),IF(AL18=\"Impacto\",H18,\"\")),\"\")","v":0.42},{"$f":"IFERROR(IF(AS18=\"\",\"\",IF(AS18<=0.2,\"Muy Baja\",IF(AS18<=0.4,\"Baja\",IF(AS18<=0.6,\"Media\",IF(AS18<=0.8,\"Alta\",\"Muy Alta\"))))),\"\")","v":"Media"},{"$f":"+AS18","v":0.42},{"$f":"IFERROR(IF(AW18=\"\",\"\",IF(AW18<=0.2,\"Leve\",IF(AW18<=0.4,\"Menor\",IF(AW18<=0.6,\"Moderado\",IF(AW18<=0.8,\"Mayor\",\"Catastrófico\"))))),\"\")","v":"Catastrófico"},{"$f":"IFERROR(IF(AL18=\"Impacto\",(AE18-(+AE18*AO18)),IF(AL18=\"Probabilidad\",AE18,\"\")),\"\")","v":1},{"$f":"IFERROR(IF(OR(AND(AT18=\"Muy Baja\",AV18=\"Leve\"),AND(AT18=\"Muy Baja\",AV18=\"Menor\"),AND(AT18=\"Baja\",AV18=\"Leve\")),\"Bajo\",IF(OR(AND(AT18=\"Muy baja\",AV18=\"Moderado\"),AND(AT18=\"Baja\",AV18=\"Menor\"),AND(AT18=\"Baja\",AV18=\"Moderado\"),AND(AT18=\"Media\",AV18=\"Leve\"),AND(AT18=\"Media\",AV18=\"Menor\"),AND(AT18=\"Media\",AV18=\"Moderado\"),AND(AT18=\"Alta\",AV18=\"Leve\"),AND(AT18=\"Alta\",AV18=\"Menor\")),\"Moderado\",IF(OR(AND(AT18=\"Muy Baja\",AV18=\"Mayor\"),AND(AT18=\"Baja\",AV18=\"Mayor\"),AND(AT18=\"Media\",AV18=\"Mayor\"),AND(AT18=\"Alta\",AV18=\"Moderado\"),AND(AT18=\"Alta\",AV18=\"Mayor\"),AND(AT18=\"Muy Alta\",AV18=\"Leve\"),AND(AT18=\"Muy Alta\",AV18=\"Menor\"),AND(AT18=\"Muy Alta\",AV18=\"Moderado\"),AND(AT18=\"Muy Alta\",AV18=\"Mayor\")),\"Alto\",IF(OR(AND(AT18=\"Muy Baja\",AV18=\"Catastrófico\"),AND(AT18=\"Baja\",AV18=\"Catastrófico\"),AND(AT18=\"Media\",AV18=\"Catastrófico\"),AND(AT18=\"Alta\",AV18=\"Catastrófico\"),AND(AT18=\"Muy Alta\",AV18=\"Catastrófico\")),\"Extremo\",\"\")))),\"\")","v":"Extremo"},"Evitar",null,null,null,null," Profesional Downstream - SICOM / Profesional Grupo GAS - SICOM","Director de Hidrocarburos ","Jefe del Área del Responsable","2025-02-21","2025-12-31"]
[10,"ENERGÍA","Posibilidad de recibir cualquier dádiva o beneficio a nombre propio o de terceros por asignación inadecuada de subsidios a una empresa con la complicidad del funcionario del Ministerio","asignación inadecuada de subsidios a una empresa con la complicidad del funcionario del Ministerio","Fraude Interno",40,{"$f":"IF(F19<=0,\"\",IF(F19<=2,\"Muy Baja\",IF(F19<=24,\"Baja\",IF(F19<=500,\"Media\",IF(F19<=5000,\"Alta\",\"Muy Alta\")))))","v":"Media"},{"$f":"IF(G19=\"\",\"\",IF(G19=\"Muy Baja\",0.2,IF(G19=\"Baja\",0.4,IF(G19=\"Media\",0.6,IF(G19=\"Alta\",0.8,IF(G19=\"Muy Alta\",1,))))))","v":0.6},"si","no","no","no","si","si","no","no","no","si","si","si","si","si","no","no","no","si","no",{"$f":"IF(X19=\"Si\",\"19\",COUNTIF(I19:AA19,\"si\"))","v":9},{"$f":"VALUE(IF(AB19<=5,5,IF(AND(AB19>5,AB19<=11),10,IF(AB19>11,20,0))))","v":10},"Mayor",{"$f":"IF(AD19=\"\",\"\",IF(AD19=\"Leve\",0.2,IF(AD19=\"Menor\",0.4,IF(AD19=\"Moderado\",0.6,IF(AD19=\"Mayor\",0.8,IF(AD19=\"Catastrófico\",1,))))))","v":0.8},{"$f":"IF(OR(AND(G19=\"Muy Baja\",AD19=\"Leve\"),AND(G19=\"Muy Baja\",AD19=\"Menor\"),AND(G19=\"Baja\",AD19=\"Leve\")),\"Bajo\",IF(OR(AND(G19=\"Muy baja\",AD19=\"Moderado\"),AND(G19=\"Baja\",AD19=\"Menor\"),AND(G19=\"Baja\",AD19=\"Moderado\"),AND(G19=\"Media\",AD19=\"Leve\"),AND(G19=\"Media\",AD19=\"Menor\"),AND(G19=\"Media\",AD19=\"Moderado\"),AND(G19=\"Alta\",AD19=\"Leve\"),AND(G19=\"Alta\",AD19=\"Menor\")),\"Moderado\",IF(OR(AND(G19=\"Muy Baja\",AD19=\"Mayor\"),AND(G19=\"Baja\",AD19=\"Mayor\"),AND(G19=\"Media\",AD19=\"Mayor\"),AND(G19=\"Alta\",AD19=\"Moderado\"),AND(G19=\"Alta\",AD19=\"Mayor\"),AND(G19=\"Muy Alta\",AD19=\"Leve\"),AND(G19=\"Muy Alta\",AD19=\"Menor\"),AND(G19=\"Muy Alta\",AD19=\"Moderado\"),AND(G19=\"Muy Alta\",AD19=\"Mayor\")),\"Alto\",IF(OR(AND(G19=\"Muy Baja\",AD19=\"Catastrófico\"),AND(G19=\"Baja\",AD19=\"Catastrófico\"),AND(G19=\"Media\",AD19=\"Catastrófico\"),AND(G19=\"Alta\",AD19=\"Catastrófico\"),AND(G19=\"Muy Alta\",AD19=\"Catastrófico\")),\"Extremo\",\"\"))))","v":"Alto"},1,"El profesional asignado del grupo de subsidios, verifica la distribución de los recursos disponibles y con la información reportada por las empresas.","Cordinador del Grupo de Subsidios","Revisar  la información reportada por las empresas del SIN y la distribucion propuesta de resursos de acuerdo a lo establecido en la versión vigente del procedimiento. Posteriormente se realiza revision de la distribucion por parte del Cordinador y los profesionales que manejan las cuentas de las empresas del SIN.","Distribuciones de los recursos con los vistos buenos del  Cordinador y los profesionales.",{"$f":"IF(OR(AM19=\"Preventivo\",AM19=\"Detectivo\"),\"Probabilidad\",IF(AM19=\"Correctivo\",\"Impacto\",\"\"))","v":"Probabilidad"},"Preventivo","Manual",{"$f":"IF(AND(AM19=\"Preventivo\",AN19=\"Automático\"),\"50%\",IF(AND(AM19=\"Preventivo\",AN19=\"Manual\"),\"40%\",IF(AND(AM19=\"Detectivo\",AN19=\"Automático\"),\"40%\",IF(AND(AM19=\"Detectivo\",AN19=\"Manual\"),\"30%\",IF(AND(AM19=\"Correctivo\",AN19=\"Automático\"),\"35%\",IF(AND(AM19=\"Correctivo\",AN19=\"Manual\"),\"25%\",\"\"))))))","v":"40%"},"Sin Documentar","Continua","Con Registro",{"$f":"IFERROR(IF(AL19=\"Probabilidad\",(H19-(+H19*AO19)),IF(AL19=\"Impacto\",H19,\"\")),\"\")","v":0.36},{"$f":"IFERROR(IF(AS19=\"\",\"\",IF(AS19<=0.2,\"Muy Baja\",IF(AS19<=0.4,\"Baja\",IF(AS19<=0.6,\"Media\",IF(AS19<=0.8,\"Alta\",\"Muy Alta\"))))),\"\")","v":"Baja"},{"$f":"+AS19","v":0.36},{"$f":"IFERROR(IF(AW19=\"\",\"\",IF(AW19<=0.2,\"Leve\",IF(AW19<=0.4,\"Menor\",IF(AW19<=0.6,\"Moderado\",IF(AW19<=0.8,\"Mayor\",\"Catastrófico\"))))),\"\")","v":"Mayor"},{"$f":"IFERROR(IF(AL19=\"Impacto\",(AE19-(+AE19*AO19)),IF(AL19=\"Probabilidad\",AE19,\"\")),\"\")","v":0.8},{"$f":"IFERROR(IF(OR(AND(AT19=\"Muy Baja\",AV19=\"Leve\"),AND(AT19=\"Muy Baja\",AV19=\"Menor\"),AND(AT19=\"Baja\",AV19=\"Leve\")),\"Bajo\",IF(OR(AND(AT19=\"Muy baja\",AV19=\"Moderado\"),AND(AT19=\"Baja\",AV19=\"Menor\"),AND(AT19=\"Baja\",AV19=\"Moderado\"),AND(AT19=\"Media\",AV19=\"Leve\"),AND(AT19=\"Media\",AV19=\"Menor\"),AND(AT19=\"Media\",AV19=\"Moderado\"),AND(AT19=\"Alta\",AV19=\"Leve\"),AND(AT19=\"Alta\",AV19=\"Menor\")),\"Moderado\",IF(OR(AND(AT19=\"Muy Baja\",AV19=\"Mayor\"),AND(AT19=\"Baja\",AV19=\"Mayor\"),AND(AT19=\"Media\",AV19=\"Mayor\"),AND(AT19=\"Alta\",AV19=\"Moderado\"),AND(AT19=\"Alta\",AV19=\"Mayor\"),AND(AT19=\"Muy Alta\",AV19=\"Leve\"),AND(AT19=\"Muy Alta\",AV19=\"Menor\"),AND(AT19=\"Muy Alta\",AV19=\"Moderado\"),AND(AT19=\"Muy Alta\",AV19=\"Mayor\")),\"Alto\",IF(OR(AND(AT19=\"Muy Baja\",AV19=\"Catastrófico\"),AND(AT19=\"Baja\",AV19=\"Catastrófico\"),AND(AT19=\"Media\",AV19=\"Catastrófico\"),AND(AT19=\"Alta\",AV19=\"Catastrófico\"),AND(AT19=\"Muy Alta\",AV19=\"Catastrófico\")),\"Extremo\",\"\")))),\"\")","v":"Alto"},"Evitar",null,null,null,null,"Contratista designado para reporte de riesgos","Dirección de Energía","Jefe de Oficina","2025-02-03","2025-12-31"]
[11,"ENERGÍA","Posibilidad de recibir cualquier dádiva o beneficio a nombre propio o de terceros por la emisión del sentido del voto en los procesos de evaluación del proyecto de inversión objeto del mismo, en el marco de los Órganos Colegiados de Administración y Decisión para la Asignación de la Inversión Regional en cabeza de las Regiones (OCAD)","la emisión del sentido del voto en los procesos de evaluación del proyecto de inversión objeto del mismo, en el marco de los Órganos Colegiados de Administración y Decisión para la Asignación de la Inversión Regional en cabeza de las Regiones (OCAD)","Fraude Interno",30,{"$f":"IF(F20<=0,\"\",IF(F20<=2,\"Muy Baja\",IF(F20<=24,\"Baja\",IF(F20<=500,\"Media\",IF(F20<=5000,\"Alta\",\"Muy Alta\")))))","v":"Media"},{"$f":"IF(G20=\"\",\"\",IF(G20=\"Muy Baja\",0.2,IF(G20=\"Baja\",0.4,IF(G20=\"Media\",0.6,IF(G20=\"Alta\",0.8,IF(G20=\"Muy Alta\",1,))))))","v":0.6},"Si","Si","Si","Si","Si","No","Si","Si","No","Si","Si","Si","Si","Si","Si","No","Si","Si","No",{"$f":"IF(X20=\"Si\",\"19\",COUNTIF(I20:AA20,\"si\"))","v":15},{"$f":"VALUE(IF(AB20<=5,5,IF(AND(AB20>5,AB20<=11),10,IF(AB20>11,20,0))))","v":20},"Catastrófico",{"$f":"IF(AD20=\"\",\"\",IF(AD20=\"Leve\",0.2,IF(AD20=\"Menor\",0.4,IF(AD20=\"Moderado\",0.6,IF(AD20=\"Mayor\",0.8,IF(AD20=\"Catastrófico\",1,))))))","v":1},{"$f":"IF(OR(AND(G20=\"Muy Baja\",AD20=\"Leve\"),AND(G20=\"Muy Baja\",AD20=\"Menor\"),AND(G20=\"Baja\",AD20=\"Leve\")),\"Bajo\",IF(OR(AND(G20=\"Muy baja\",AD20=\"Moderado\"),AND(G20=\"Baja\",AD20=\"Menor\"),AND(G20=\"Baja\",AD20=\"Moderado\"),AND(G20=\"Media\",AD20=\"Leve\"),AND(G20=\"Media\",AD20=\"Menor\"),AND(G20=\"Media\",AD20=\"Moderado\"),AND(G20=\"Alta\",AD20=\"Leve\"),AND(G20=\"Alta\",AD20=\"Menor\")),\"Moderado\",IF(OR(AND(G20=\"Muy Baja\",AD20=\"Mayor\"),AND(G20=\"Baja\",AD20=\"Mayor\"),AND(G20=\"Media\",AD20=\"Mayor\"),AND(G20=\"Alta\",AD20=\"Moderado\"),AND(G20=\"Alta\",AD20=\"Mayor\"),AND(G20=\"Muy Alta\",AD20=\"Leve\"),AND(G20=\"Muy Alta\",AD20=\"Menor\"),AND(G20=\"Muy Alta\",AD20=\"Moderado\"),AND(G20=\"Muy Alta\",AD20=\"Mayor\")),\"Alto\",IF(OR(AND(G20=\"Muy Baja\",AD20=\"Catastrófico\"),AND(G20=\"Baja\",AD20=\"Catastrófico\"),AND(G20=\"Media\",AD20=\"Catastrófico\"),AND(G20=\"Alta\",AD20=\"Catastrófico\"),AND(G20=\"Muy Alta\",AD20=\"Catastrófico\")),\"Extremo\",\"\"))))","v":"Extremo"},1,"1. Los profesionales del Grupo de Regalías, realizarán la evaluación de los documentos presentados por la Entidad Territorial, cargados en el aplicativo dispuesto para este fin según los criterios establecidos en la normativa vigente; a traves de una ficha de verificación  y una matriz de seguimiento de la evaluación.\n\n2. Los profesionales del Grupo de Regalías, realizará seguimiento a las sesiones de OCAD en las que participa el MME y reportará las desiciones tomadas durante la sesión registrandolo en una matriz de seguimiento dispuesta para tal fin.","Coordinador","realizarán la evaluación de los documentos presentados por la Entidad Territorial, cargados en el aplicativo dispuesto para este fin según los criterios establecidos en la normativa vigente; ","1. Una ficha de verificación  y una matriz de seguimiento de la evaluación.\n\n2. Los profesionales del Grupo de Regalías, realizará seguimiento a las sesiones de OCAD en las que participa el MME y reportará las desiciones tomadas durante la sesión registrandolo en una matriz de seguimiento dispuesta para tal fin.",{"$f":"IF(OR(AM20=\"Preventivo\",AM20=\"Detectivo\"),\"Probabilidad\",IF(AM20=\"Correctivo\",\"Impacto\",\"\"))","v":"Probabilidad"},"Preventivo","Manual",{"$f":"IF(AND(AM20=\"Preventivo\",AN20=\"Automático\"),\"50%\",IF(AND(AM20=\"Preventivo\",AN20=\"Manual\"),\"40%\",IF(AND(AM20=\"Detectivo\",AN20=\"Automático\"),\"40%\",IF(AND(AM20=\"Detectivo\",AN20=\"Manual\"),\"30%\",IF(AND(AM20=\"Correctivo\",AN20=\"Automático\"),\"35%\",IF(AND(AM20=\"Correctivo\",AN20=\"Manual\"),\"25%\",\"\"))))))","v":"40%"},"Documentado","Continua","Con Registro",{"$f":"IFERROR(IF(AL20=\"Probabilidad\",(H20-(+H20*AO20)),IF(AL20=\"Impacto\",H20,\"\")),\"\")","v":0.36},{"$f":"IFERROR(IF(AS20=\"\",\"\",IF(AS20<=0.2,\"Muy Baja\",IF(AS20<=0.4,\"Baja\",IF(AS20<=0.6,\"Media\",IF(AS20<=0.8,\"Alta\",\"Muy Alta\"))))),\"\")","v":"Baja"},{"$f":"+AS20","v":0.36},{"$f":"IFERROR(IF(AW20=\"\",\"\",IF(AW20<=0.2,\"Leve\",IF(AW20<=0.4,\"Menor\",IF(AW20<=0.6,\"Moderado\",IF(AW20<=0.8,\"Mayor\",\"Catastrófico\"))))),\"\")","v":"Catastrófico"},{"$f":"IFERROR(IF(AL20=\"Impacto\",(AE20-(+AE20*AO20)),IF(AL20=\"Probabilidad\",AE20,\"\")),\"\")","v":1},{"$f":"IFERROR(IF(OR(AND(AT20=\"Muy Baja\",AV20=\"Leve\"),AND(AT20=\"Muy Baja\",AV20=\"Menor\"),AND(AT20=\"Baja\",AV20=\"Leve\")),\"Bajo\",IF(OR(AND(AT20=\"Muy baja\",AV20=\"Moderado\"),AND(AT20=\"Baja\",AV20=\"Menor\"),AND(AT20=\"Baja\",AV20=\"Moderado\"),AND(AT20=\"Media\",AV20=\"Leve\"),AND(AT20=\"Media\",AV20=\"Menor\"),AND(AT20=\"Media\",AV20=\"Moderado\"),AND(AT20=\"Alta\",AV20=\"Leve\"),AND(AT20=\"Alta\",AV20=\"Menor\")),\"Moderado\",IF(OR(AND(AT20=\"Muy Baja\",AV20=\"Mayor\"),AND(AT20=\"Baja\",AV20=\"Mayor\"),AND(AT20=\"Media\",AV20=\"Mayor\"),AND(AT20=\"Alta\",AV20=\"Moderado\"),AND(AT20=\"Alta\",AV20=\"Mayor\"),AND(AT20=\"Muy Alta\",AV20=\"Leve\"),AND(AT20=\"Muy Alta\",AV20=\"Menor\"),AND(AT20=\"Muy Alta\",AV20=\"Moderado\"),AND(AT20=\"Muy Alta\",AV20=\"Mayor\")),\"Alto\",IF(OR(AND(AT20=\"Muy Baja\",AV20=\"Catastrófico\"),AND(AT20=\"Baja\",AV20=\"Catastrófico\"),AND(AT20=\"Media\",AV20=\"Catastrófico\"),AND(AT20=\"Alta\",AV20=\"Catastrófico\"),AND(AT20=\"Muy Alta\",AV20=\"Catastrófico\")),\"Extremo\",\"\")))),\"\")","v":"Extremo"},"Evitar",null,null,null,null,"Coordinador","Gupo de Regalías","Jefe de Grupo","2025-02-03","2025-12-31"]
[12,"ENERGÍA","Posibilidad de recibir cualquier dádiva o beneficio a nombre propio o de terceros por formular y/o estructurar proyectos ","formular y/o estructurar proyectos ","Fraude Interno",30,{"$f":"IF(F21<=0,\"\",IF(F21<=2,\"Muy Baja\",IF(F21<=24,\"Baja\",IF(F21<=500,\"Media\",IF(F21<=5000,\"Alta\",\"Muy Alta\")))))","v":"Media"},{"$f":"IF(G21=\"\",\"\",IF(G21=\"Muy Baja\",0.2,IF(G21=\"Baja\",0.4,IF(G21=\"Media\",0.6,IF(G21=\"Alta\",0.8,IF(G21=\"Muy Alta\",1,))))))","v":0.6},"Si","Si","Si","Si","Si","No","Si","Si","No","Si","Si","Si","Si","Si","Si","No","Si","Si","No",{"$f":"IF(X21=\"Si\",\"19\",COUNTIF(I21:AA21,\"si\"))","v":15},{"$f":"VALUE(IF(AB21<=5,5,IF(AND(AB21>5,AB21<=11),10,IF(AB21>11,20,0))))","v":20},"Catastrófico",{"$f":"IF(AD21=\"\",\"\",IF(AD21=\"Leve\",0.2,IF(AD21=\"Menor\",0.4,IF(AD21=\"Moderado\",0.6,IF(AD21=\"Mayor\",0.8,IF(AD21=\"Catastrófico\",1,))))))","v":1},{"$f":"IF(OR(AND(G21=\"Muy Baja\",AD21=\"Leve\"),AND(G21=\"Muy Baja\",AD21=\"Menor\"),AND(G21=\"Baja\",AD21=\"Leve\")),\"Bajo\",IF(OR(AND(G21=\"Muy baja\",AD21=\"Moderado\"),AND(G21=\"Baja\",AD21=\"Menor\"),AND(G21=\"Baja\",AD21=\"Moderado\"),AND(G21=\"Media\",AD21=\"Leve\"),AND(G21=\"Media\",AD21=\"Menor\"),AND(G21=\"Media\",AD21=\"Moderado\"),AND(G21=\"Alta\",AD21=\"Leve\"),AND(G21=\"Alta\",AD21=\"Menor\")),\"Moderado\",IF(OR(AND(G21=\"Muy Baja\",AD21=\"Mayor\"),AND(G21=\"Baja\",AD21=\"Mayor\"),AND(G21=\"Media\",AD21=\"Mayor\"),AND(G21=\"Alta\",AD21=\"Moderado\"),AND(G21=\"Alta\",AD21=\"Mayor\"),AND(G21=\"Muy Alta\",AD21=\"Leve\"),AND(G21=\"Muy Alta\",AD21=\"Menor\"),AND(G21=\"Muy Alta\",AD21=\"Moderado\"),AND(G21=\"Muy Alta\",AD21=\"Mayor\")),\"Alto\",IF(OR(AND(G21=\"Muy Baja\",AD21=\"Catastrófico\"),AND(G21=\"Baja\",AD21=\"Catastrófico\"),AND(G21=\"Media\",AD21=\"Catastrófico\"),AND(G21=\"Alta\",AD21=\"Catastrófico\"),AND(G21=\"Muy Alta\",AD21=\"Catastrófico\")),\"Extremo\",\"\"))))","v":"Extremo"},1,"El Grupo de Regalías, realizará el acompañamiento técnico a los municipios beneficiarios de los recursos de inversión distribuidos y asignados por el Ministerio de Minas y Energía de conformidad con la normativa vigente y a aquellos que con otras fuentes del SGR pretendan financiar o cofinanciar proyectos de inversión del sector minero energético a traves de los equipos de apoyo técnico a los proyectos de inversión. El registro del acompañamiento a los proyectos de inversión se realizará en una matriz de seguimiento. ","Coordinador","realizará el acompañamiento técnico a los municipios beneficiarios de los recursos de inversión distribuidos y asignados por el Ministerio de Minas y Energía de conformidad con la normativa vigente y a aquellos que con otras fuentes del SGR pretendan financiar o cofinanciar proyectos de inversión del sector minero energético ","los equipos de apoyo técnico a los proyectos de inversión. El registro del acompañamiento a los proyectos de inversión se realizará en una matriz de seguimiento. ","Probabilidad","Preventivo","Manual","40%","Documentado","Continua","Con Registro",{"$f":"IFERROR(IF(AL21=\"Probabilidad\",(H21-(+H21*AO21)),IF(AL21=\"Impacto\",H21,\"\")),\"\")","v":0.36},{"$f":"IFERROR(IF(AS21=\"\",\"\",IF(AS21<=0.2,\"Muy Baja\",IF(AS21<=0.4,\"Baja\",IF(AS21<=0.6,\"Media\",IF(AS21<=0.8,\"Alta\",\"Muy Alta\"))))),\"\")","v":"Baja"},{"$f":"+AS21","v":0.36},{"$f":"IFERROR(IF(AW21=\"\",\"\",IF(AW21<=0.2,\"Leve\",IF(AW21<=0.4,\"Menor\",IF(AW21<=0.6,\"Moderado\",IF(AW21<=0.8,\"Mayor\",\"Catastrófico\"))))),\"\")","v":"Catastrófico"},{"$f":"IFERROR(IF(AL21=\"Impacto\",(AE21-(+AE21*AO21)),IF(AL21=\"Probabilidad\",AE21,\"\")),\"\")","v":1},{"$f":"IFERROR(IF(OR(AND(AT21=\"Muy Baja\",AV21=\"Leve\"),AND(AT21=\"Muy Baja\",AV21=\"Menor\"),AND(AT21=\"Baja\",AV21=\"Leve\")),\"Bajo\",IF(OR(AND(AT21=\"Muy baja\",AV21=\"Moderado\"),AND(AT21=\"Baja\",AV21=\"Menor\"),AND(AT21=\"Baja\",AV21=\"Moderado\"),AND(AT21=\"Media\",AV21=\"Leve\"),AND(AT21=\"Media\",AV21=\"Menor\"),AND(AT21=\"Media\",AV21=\"Moderado\"),AND(AT21=\"Alta\",AV21=\"Leve\"),AND(AT21=\"Alta\",AV21=\"Menor\")),\"Moderado\",IF(OR(AND(AT21=\"Muy Baja\",AV21=\"Mayor\"),AND(AT21=\"Baja\",AV21=\"Mayor\"),AND(AT21=\"Media\",AV21=\"Mayor\"),AND(AT21=\"Alta\",AV21=\"Moderado\"),AND(AT21=\"Alta\",AV21=\"Mayor\"),AND(AT21=\"Muy Alta\",AV21=\"Leve\"),AND(AT21=\"Muy Alta\",AV21=\"Menor\"),AND(AT21=\"Muy Alta\",AV21=\"Moderado\"),AND(AT21=\"Muy Alta\",AV21=\"Mayor\")),\"Alto\",IF(OR(AND(AT21=\"Muy Baja\",AV21=\"Catastrófico\"),AND(AT21=\"Baja\",AV21=\"Catastrófico\"),AND(AT21=\"Media\",AV21=\"Catastrófico\"),AND(AT21=\"Alta\",AV21=\"Catastrófico\"),AND(AT21=\"Muy Alta\",AV21=\"Catastrófico\")),\"Extremo\",\"\")))),\"\")","v":"Extremo"},"Evitar",null,null,null,null,"Coordinador","Gupo de Regalías","Jefe de Grupo","2025-02-03","2025-12-31"]
[13,"GESTIÓN CONTRACTUAL","Posibilidad de recibir cualquier dádiva o beneficio a nombre propio o de terceros por ausencia de medidas y/o políticas de conflicto de interés","ausencia de medidas y/o políticas de conflicto de interés","Fraude Interno",1200,{"$f":"IF(F22<=0,\"\",IF(F22<=2,\"Muy Baja\",IF(F22<=24,\"Baja\",IF(F22<=500,\"Media\",IF(F22<=5000,\"Alta\",\"Muy Alta\")))))","v":"Alta"},{"$f":"IF(G22=\"\",\"\",IF(G22=\"Muy Baja\",0.2,IF(G22=\"Baja\",0.4,IF(G22=\"Media\",0.6,IF(G22=\"Alta\",0.8,IF(G22=\"Muy Alta\",1,))))))","v":0.8},"si  ","si","si","si","si","si","si","si","si","si","si","si","si","si","si","no","si","si","no",{"$f":"IF(X22=\"Si\",\"19\",COUNTIF(I22:AA22,\"si\"))","v":16},{"$f":"VALUE(IF(AB22<=5,5,IF(AND(AB22>5,AB22<=11),10,IF(AB22>11,20,0))))","v":20},{"$f":"IF(AC22=5,\"Moderado\",IF(AC22=10,\"Mayor\",IF(AC22=20,\"Catastrófico\",0)))","v":"Catastrófico"},{"$f":"IF(AD22=\"\",\"\",IF(AD22=\"Leve\",0.2,IF(AD22=\"Menor\",0.4,IF(AD22=\"Moderado\",0.6,IF(AD22=\"Mayor\",0.8,IF(AD22=\"Catastrófico\",1,))))))","v":1},{"$f":"IF(OR(AND(G22=\"Muy Baja\",AD22=\"Leve\"),AND(G22=\"Muy Baja\",AD22=\"Menor\"),AND(G22=\"Baja\",AD22=\"Leve\")),\"Bajo\",IF(OR(AND(G22=\"Muy baja\",AD22=\"Moderado\"),AND(G22=\"Baja\",AD22=\"Menor\"),AND(G22=\"Baja\",AD22=\"Moderado\"),AND(G22=\"Media\",AD22=\"Leve\"),AND(G22=\"Media\",AD22=\"Menor\"),AND(G22=\"Media\",AD22=\"Moderado\"),AND(G22=\"Alta\",AD22=\"Leve\"),AND(G22=\"Alta\",AD22=\"Menor\")),\"Moderado\",IF(OR(AND(G22=\"Muy Baja\",AD22=\"Mayor\"),AND(G22=\"Baja\",AD22=\"Mayor\"),AND(G22=\"Media\",AD22=\"Mayor\"),AND(G22=\"Alta\",AD22=\"Moderado\"),AND(G22=\"Alta\",AD22=\"Mayor\"),AND(G22=\"Muy Alta\",AD22=\"Leve\"),AND(G22=\"Muy Alta\",AD22=\"Menor\"),AND(G22=\"Muy Alta\",AD22=\"Moderado\"),AND(G22=\"Muy Alta\",AD22=\"Mayor\")),\"Alto\",IF(OR(AND(G22=\"Muy Baja\",AD22=\"Catastrófico\"),AND(G22=\"Baja\",AD22=\"Catastrófico\"),AND(G22=\"Media\",AD22=\"Catastrófico\"),AND(G22=\"Alta\",AD22=\"Catastrófico\"),AND(G22=\"Muy Alta\",AD22=\"Catastrófico\")),\"Extremo\",\"\"))))","v":"Extremo"},1,"El (la) Coordinador (a) del Grupo de Gestión Contractual, liderará la creación e implementación del formato de declaración de conflicto de intereses como requisito para inicio de ejecución para todos los contratos suscritos por el Ministerio de Minas y Energía ","Coordinador(a) Grupo de Gestión Contractual","Diseñar, implementar, socializar y requerir la suscripción del formato de declaración de conflicto de intereses para la totalida de los contratos que suscriba el Ministerio de Minas y Energía","Formato declaración de conflicto de intereses formalizado en el sistema integrado de gestión, formatos  suscritos, ",{"$f":"IF(OR(AM22=\"Preventivo\",AM22=\"Detectivo\"),\"Probabilidad\",IF(AM22=\"Correctivo\",\"Impacto\",\"\"))","v":"Probabilidad"},"Preventivo","Manual",{"$f":"IF(AND(AM22=\"Preventivo\",AN22=\"Automático\"),\"50%\",IF(AND(AM22=\"Preventivo\",AN22=\"Manual\"),\"40%\",IF(AND(AM22=\"Detectivo\",AN22=\"Automático\"),\"40%\",IF(AND(AM22=\"Detectivo\",AN22=\"Manual\"),\"30%\",IF(AND(AM22=\"Correctivo\",AN22=\"Automático\"),\"35%\",IF(AND(AM22=\"Correctivo\",AN22=\"Manual\"),\"25%\",\"\"))))))","v":"40%"},"Documentado","Continua","Con Registro",{"$f":"IFERROR(IF(AL22=\"Probabilidad\",(H22-(+H22*AO22)),IF(AL22=\"Impacto\",H22,\"\")),\"\")","v":0.48},{"$f":"IFERROR(IF(AS22=\"\",\"\",IF(AS22<=0.2,\"Muy Baja\",IF(AS22<=0.4,\"Baja\",IF(AS22<=0.6,\"Media\",IF(AS22<=0.8,\"Alta\",\"Muy Alta\"))))),\"\")","v":"Media"},{"$f":"+AS22","v":0.48},{"$f":"IFERROR(IF(AW22=\"\",\"\",IF(AW22<=0.2,\"Leve\",IF(AW22<=0.4,\"Menor\",IF(AW22<=0.6,\"Moderado\",IF(AW22<=0.8,\"Mayor\",\"Catastrófico\"))))),\"\")","v":"Catastrófico"},{"$f":"IFERROR(IF(AL22=\"Impacto\",(AE22-(+AE22*AO22)),IF(AL22=\"Probabilidad\",AE22,\"\")),\"\")","v":1},{"$f":"IFERROR(IF(OR(AND(AT22=\"Muy Baja\",AV22=\"Leve\"),AND(AT22=\"Muy Baja\",AV22=\"Menor\"),AND(AT22=\"Baja\",AV22=\"Leve\")),\"Bajo\",IF(OR(AND(AT22=\"Muy baja\",AV22=\"Moderado\"),AND(AT22=\"Baja\",AV22=\"Menor\"),AND(AT22=\"Baja\",AV22=\"Moderado\"),AND(AT22=\"Media\",AV22=\"Leve\"),AND(AT22=\"Media\",AV22=\"Menor\"),AND(AT22=\"Media\",AV22=\"Moderado\"),AND(AT22=\"Alta\",AV22=\"Leve\"),AND(AT22=\"Alta\",AV22=\"Menor\")),\"Moderado\",IF(OR(AND(AT22=\"Muy Baja\",AV22=\"Mayor\"),AND(AT22=\"Baja\",AV22=\"Mayor\"),AND(AT22=\"Media\",AV22=\"Mayor\"),AND(AT22=\"Alta\",AV22=\"Moderado\"),AND(AT22=\"Alta\",AV22=\"Mayor\"),AND(AT22=\"Muy Alta\",AV22=\"Leve\"),AND(AT22=\"Muy Alta\",AV22=\"Menor\"),AND(AT22=\"Muy Alta\",AV22=\"Moderado\"),AND(AT22=\"Muy Alta\",AV22=\"Mayor\")),\"Alto\",IF(OR(AND(AT22=\"Muy Baja\",AV22=\"Catastrófico\"),AND(AT22=\"Baja\",AV22=\"Catastrófico\"),AND(AT22=\"Media\",AV22=\"Catastrófico\"),AND(AT22=\"Alta\",AV22=\"Catastrófico\"),AND(AT22=\"Muy Alta\",AV22=\"Catastrófico\")),\"Extremo\",\"\")))),\"\")","v":"Extremo"},"Evitar",null,null,null,null,"Coordinador del Grupo Gestión Contractual","Subdirección Administrativa y Financiera \n\nGrupo Gestión Contractual","Pablo César Pacheco Rodríguez","2025-03-03","2025-12-31"]
[14,"GESTIÓN FINANCIERA","Posibilidad de recibir cualquier dádiva o beneficio a nombre propio o de terceros por Por multa y/o sanción ante el ente regulador debido a que no se efectuen la totalidad de los pagos o se generen pagos de lo no debido","Por multa y/o sanción ante el ente regulador debido a que no se efectuen la totalidad de los pagos o se generen pagos de lo no debido","Fraude Interno",360,"Media",0.6,"si","si","si","si","si","si","si","si","si","si","si","si","si","si","si","no","si","si","no",17,20,"Catastrófico",1,"Extremo",1,"El profesional designado del Grupo de Tesorería, registra de manera diaria todas las transacciones de los pagos realizados y procede a totalizar los recursos por cada una de las fuentes de financiación a través del diligenciamiento del formato de movimiento diario de Tesorería.","El profesional designado del Grupo de Tesorería","Registrar de manera diaria en el formato movimiento diario de tesorería todas las transacciones de los pagos realizados y se procede a totalizar los recursos por cada una de las fuentes de financiación.","Registro Movimiento Diario de Tesorería ","Probabilidad","Preventivo","Manual",{"$f":"IF(AND(AM23=\"Preventivo\",AN23=\"Automático\"),\"50%\",IF(AND(AM23=\"Preventivo\",AN23=\"Manual\"),\"40%\",IF(AND(AM23=\"Detectivo\",AN23=\"Automático\"),\"40%\",IF(AND(AM23=\"Detectivo\",AN23=\"Manual\"),\"30%\",IF(AND(AM23=\"Correctivo\",AN23=\"Automático\"),\"35%\",IF(AND(AM23=\"Correctivo\",AN23=\"Manual\"),\"25%\",\"\"))))))","v":"40%"},"Documentado","Continua","Con Registro",0.36,"Baja",0.36,"Catastrófico",1,"Extremo","Evitar",null,null,null,null,"Coordinador del Grupo de Tesorería","Subdirección Administrativa y Financiera \n\nGrupo de Tesorería","Pablo César Pacheco Rodríguez","2025-01-01","12/31/2025"]
[15,"GESTIÓN FINANCIERA","Posibilidad de recibir cualquier dádiva o beneficio a nombre propio o de terceros por afectaciones legales, financieras y reputacionales por realizar registros presupuestales con una destinación errónea","afectaciones legales, financieras y reputacionales por realizar registros presupuestales con una destinación errónea","Fraude Interno",5000,{"$f":"IF(F24<=0,\"\",IF(F24<=2,\"Muy Baja\",IF(F24<=24,\"Baja\",IF(F24<=500,\"Media\",IF(F24<=5000,\"Alta\",\"Muy Alta\")))))","v":"Alta"},{"$f":"IF(G24=\"\",\"\",IF(G24=\"Muy Baja\",0.2,IF(G24=\"Baja\",0.4,IF(G24=\"Media\",0.6,IF(G24=\"Alta\",0.8,IF(G24=\"Muy Alta\",1,))))))","v":0.8},"si","si","si","si","si","si","si","si","no","si","si","si","si","si","si","no","si","si","no",{"$f":"IF(X24=\"Si\",\"19\",COUNTIF(I24:AA24,\"si\"))","v":16},{"$f":"VALUE(IF(AB24<=5,5,IF(AND(AB24>5,AB24<=11),10,IF(AB24>11,20,0))))","v":20},{"$f":"IF(AC24=5,\"Moderado\",IF(AC24=10,\"Mayor\",IF(AC24=20,\"Catastrófico\",0)))","v":"Catastrófico"},{"$f":"IF(AD24=\"\",\"\",IF(AD24=\"Leve\",0.2,IF(AD24=\"Menor\",0.4,IF(AD24=\"Moderado\",0.6,IF(AD24=\"Mayor\",0.8,IF(AD24=\"Catastrófico\",1,))))))","v":1},{"$f":"IF(OR(AND(G24=\"Muy Baja\",AD24=\"Leve\"),AND(G24=\"Muy Baja\",AD24=\"Menor\"),AND(G24=\"Baja\",AD24=\"Leve\")),\"Bajo\",IF(OR(AND(G24=\"Muy baja\",AD24=\"Moderado\"),AND(G24=\"Baja\",AD24=\"Menor\"),AND(G24=\"Baja\",AD24=\"Moderado\"),AND(G24=\"Media\",AD24=\"Leve\"),AND(G24=\"Media\",AD24=\"Menor\"),AND(G24=\"Media\",AD24=\"Moderado\"),AND(G24=\"Alta\",AD24=\"Leve\"),AND(G24=\"Alta\",AD24=\"Menor\")),\"Moderado\",IF(OR(AND(G24=\"Muy Baja\",AD24=\"Mayor\"),AND(G24=\"Baja\",AD24=\"Mayor\"),AND(G24=\"Media\",AD24=\"Mayor\"),AND(G24=\"Alta\",AD24=\"Moderado\"),AND(G24=\"Alta\",AD24=\"Mayor\"),AND(G24=\"Muy Alta\",AD24=\"Leve\"),AND(G24=\"Muy Alta\",AD24=\"Menor\"),AND(G24=\"Muy Alta\",AD24=\"Moderado\"),AND(G24=\"Muy Alta\",AD24=\"Mayor\")),\"Alto\",IF(OR(AND(G24=\"Muy Baja\",AD24=\"Catastrófico\"),AND(G24=\"Baja\",AD24=\"Catastrófico\"),AND(G24=\"Media\",AD24=\"Catastrófico\"),AND(G24=\"Alta\",AD24=\"Catastrófico\"),AND(G24=\"Muy Alta\",AD24=\"Catastrófico\")),\"Extremo\",\"\"))))","v":"Extremo"},1,"Revisión del reporte de cumplimiento de pasos (trazabilidad del rp) , en el cual se registra quién realizó el registro presupuestal, la fecha en que se efectuó y quién llevó a cabo la revisión, garantizando trazabilidad y control sobre la correcta asignación de los recursos, en caso de encontrar una desviacion del control se rechaza para su corrección al profesional asignado y si es reiterativo se toman medidas con control interno disciplinario.","El profesional del Grupo de Presupuesto ","Se lleva a cabo una revisión periódica del reporte de cumplimiento de pasos (trazabilidad del rp) para verificar la correcta asignación de los registros presupuestales, asegurando que cada transacción cuente con la debida aprobación y supervisión.","Registro documentado en el reporte de cumplimiento de pasos (trazabilidad el rp), donde se detalla la fecha del registro, el responsable de la operación y el revisor asignado, garantizando trazabilidad y control sobre la ejecución presupuestal.",{"$f":"IF(OR(AM24=\"Preventivo\",AM24=\"Detectivo\"),\"Probabilidad\",IF(AM24=\"Correctivo\",\"Impacto\",\"\"))","v":"Probabilidad"},"Preventivo","Manual","40%","Documentado","Continua","Con Registro",{"$f":"IFERROR(IF(AL24=\"Probabilidad\",(H24-(+H24*AO24)),IF(AL24=\"Impacto\",H24,\"\")),\"\")","v":0.48},{"$f":"IFERROR(IF(AS24=\"\",\"\",IF(AS24<=0.2,\"Muy Baja\",IF(AS24<=0.4,\"Baja\",IF(AS24<=0.6,\"Media\",IF(AS24<=0.8,\"Alta\",\"Muy Alta\"))))),\"\")","v":"Media"},{"$f":"+AS24","v":0.48},{"$f":"IFERROR(IF(AW24=\"\",\"\",IF(AW24<=0.2,\"Leve\",IF(AW24<=0.4,\"Menor\",IF(AW24<=0.6,\"Moderado\",IF(AW24<=0.8,\"Mayor\",\"Catastrófico\"))))),\"\")","v":"Catastrófico"},{"$f":"IFERROR(IF(AL24=\"Impacto\",(AE24-(+AE24*AO24)),IF(AL24=\"Probabilidad\",AE24,\"\")),\"\")","v":1},{"$f":"IFERROR(IF(OR(AND(AT24=\"Muy Baja\",AV24=\"Leve\"),AND(AT24=\"Muy Baja\",AV24=\"Menor\"),AND(AT24=\"Baja\",AV24=\"Leve\")),\"Bajo\",IF(OR(AND(AT24=\"Muy baja\",AV24=\"Moderado\"),AND(AT24=\"Baja\",AV24=\"Menor\"),AND(AT24=\"Baja\",AV24=\"Moderado\"),AND(AT24=\"Media\",AV24=\"Leve\"),AND(AT24=\"Media\",AV24=\"Menor\"),AND(AT24=\"Media\",AV24=\"Moderado\"),AND(AT24=\"Alta\",AV24=\"Leve\"),AND(AT24=\"Alta\",AV24=\"Menor\")),\"Moderado\",IF(OR(AND(AT24=\"Muy Baja\",AV24=\"Mayor\"),AND(AT24=\"Baja\",AV24=\"Mayor\"),AND(AT24=\"Media\",AV24=\"Mayor\"),AND(AT24=\"Alta\",AV24=\"Moderado\"),AND(AT24=\"Alta\",AV24=\"Mayor\"),AND(AT24=\"Muy Alta\",AV24=\"Leve\"),AND(AT24=\"Muy Alta\",AV24=\"Menor\"),AND(AT24=\"Muy Alta\",AV24=\"Moderado\"),AND(AT24=\"Muy Alta\",AV24=\"Mayor\")),\"Alto\",IF(OR(AND(AT24=\"Muy Baja\",AV24=\"Catastrófico\"),AND(AT24=\"Baja\",AV24=\"Catastrófico\"),AND(AT24=\"Media\",AV24=\"Catastrófico\"),AND(AT24=\"Alta\",AV24=\"Catastrófico\"),AND(AT24=\"Muy Alta\",AV24=\"Catastrófico\")),\"Extremo\",\"\")))),\"\")","v":"Extremo"},"Evitar",null,null,null,null,"Coordinador Grupo Presupuesto","Subdirección Administrativa y Financiera \n\nGrupo Presupuesto","Pablo César Pacheco Rodríguez","2025-02-21","2025-12-31"]
[16,"GESTIÓN DE RECURSOS FÍSICOS","Posibilidad de recibir cualquier dádiva o beneficio a nombre propio o de terceros por perdida de los bienes y/o recursos del Ministerio en razón a inconsistencia en los inventarios","perdida de los bienes y/o recursos del Ministerio en razón a inconsistencia en los inventarios","Fraude Interno",120,"Media",0.6,"si","si","no","si","si","si","no","si","si","si","si","si","si","si","si","no","si","si","no",15,20,"Catastrófico",1,"Extremo",1,"El profesional del Grupo de Gestion Administrativa, realiza pruebas de inventario aleatorias en las áreas del Ministerio, en caso de encontrar inconsistencias se realizan los ajustes respectivos y obtiene la firma del documento por parte del servidor público que tiene asignado los activos.  ","Profesional del Grupo de Gestion Administrativa","Realizar pruebas de inventario aleatorias en las áreas del Ministerio, en caso de encontrar inconsistencias se realizan los ajustes respectivos","comprobante de inventario del aplicativo NEON y obtiene la firma del documento por parte del servidor público que tiene asignado los activos.  ","Probabilidad","Detectivo","Manual",{"$f":"IF(AND(AM25=\"Preventivo\",AN25=\"Automático\"),\"50%\",IF(AND(AM25=\"Preventivo\",AN25=\"Manual\"),\"40%\",IF(AND(AM25=\"Detectivo\",AN25=\"Automático\"),\"40%\",IF(AND(AM25=\"Detectivo\",AN25=\"Manual\"),\"30%\",IF(AND(AM25=\"Correctivo\",AN25=\"Automático\"),\"35%\",IF(AND(AM25=\"Correctivo\",AN25=\"Manual\"),\"25%\",\"\"))))))","v":"30%"},"Documentado","Aleatoria","Con Registro",0.42,"Media",0.42,"Catastrófico",1,"Extremo","Evitar",null,null,null,null,"Coordinador","Grupo de Gestión Administrativa","Jeyce Liliana Maria Parra Sierra","2025-01-01","2025-12-31"]
[17,"GESTIÓN DE RECURSOS FÍSICOS","Posibilidad de recibir cualquier dádiva o beneficio a nombre propio o de terceros por iniciativas de contratación para ejecutar el presupuesto de funcionamiento con requisitos hechos a la medida ","iniciativas de contratación para ejecutar el presupuesto de funcionamiento con requisitos hechos a la medida ","Fraude Interno",12,"Baja",0.4,"si","si","no","no","si","no","no","no","no","si","si","si","si","si","si","no","si","si","no",11,10,"Mayor",0.8,"Alto",1,"El profesional del Grupo de Gestion Administrativa, verifica los requisitos de la etapa precontractual que estén ajustados con las necesidades de contratación y cumplir con los requerimientos normativos, en caso de encontrar inconsistencias ajustar el proceso, previa etapa contractual","Profesional del Grupo de Gestion Administrativa","Verificar los requisitos de la etapa precontractual que estén ajustados con las necesidades de contratación y cumplir con los requerimientos normativos.","validación de estudios previos ajustados a la necesidad de contratación del MME y normativa vigente.","Probabilidad","Preventivo","Manual","40%","Documentado","Continua","Con Registro",0.24,"Baja",0.24,"Mayor",0.8,"Alto","Evitar",null,null,null,null,"Coordinador","Subdirección Administrativa y Financiera\n\nGrupo de Gestión Administrativa","Jeyce Liliana Maria Parra Sierra","2025-03-01","31/12/2025"]
[18,"GESTIÓN DE RECURSOS FÍSICOS","Posibilidad de recibir cualquier dádiva o beneficio a nombre propio o de terceros por manejo inadecuado o pérdida de recursos de Caja Menor","manejo inadecuado o pérdida de recursos de Caja Menor","Fraude Interno",12,"Baja",0.4,"si","si","no","no","si","si","si","no","no","si","si","si","si","si","no","no","no","no","no",10,10,"Mayor",0.8,"Alto",1,"El profesional del Grupo de Gestion Administrativa, realiza verificacion al correcto funcionamiento de la caja menor a traves de arqueos trimestrales, conciliaciones bancarias  y resoluciones de legalizacion y reembolso mensuales","profesional del Grupo de Gestion Administrativa","Realizar arqueos trimestrales, conciliaciones bancarias  y resoluciones de legalizacion y reembolso mensuales","Soportes contables de la caja menor\nArchivo de verificación","Probabilidad","Preventivo","Manual","40%","Documentado","Continua","Con Registro",0.24,"Baja",0.24,"Mayor",0.8,"Alto",null,null,null,null,null,"Coordinador","Grupo de Gestión Administrativa","Jeyce Liliana Maria Parra Sierra","2025-01-01","2025-12-31"]
[null,null,"Posibilidad de recibir cualquier dádiva o beneficio a nombre propio o de terceros por ",null,null,null,"","",null,null,null,null,null,null,null,null,null,null,null,null,null,null,null,null,null,null,null,0,5,"Moderado",0.6,"",1,null,null,null,null,"",null,null,"",null,null,null,"","","","","",""]
[null,null,"Posibilidad de recibir cualquier dádiva o beneficio a nombre propio o de terceros por ",null,null,null,"","",null,null,null,null,null,null,null,null,null,null,null,null,null,null,null,null,null,null,null,0,5,"Moderado",0.6,"",1,null,null,null,null,"",null,null,"",null,null,null,"","","","","",""]

{"sheet":"Matriz_RiesgosSPI","index":4,"n_rows":12,"n_cols":56,"rows_kept":12,"cut":false,"hidden":false,"merged":[[5,28,5,34],[1,2,3,4],[1,0,3,1],[5,35,5,38],[5,39,5,43],[1,5,1,6],[2,5,2,6],[4,0,4,1],[4,2,4,43],[5,0,5,8],[5,9,5,15],[5,16,5,21],[5,22,5,27]]}
[]
[null,null,"FORMATO PARA LA FORMULACIÓN Y TRATAMIENTOS DE RIESGOS"]
[null,null,null,null,null,"E-ME-F-08"]
[null,null,null,null,null,"2024-12-26","V-4"]
["Proceso:",null,"TODOS LOS PROCESOS"]
["Identificación del riesgo",null,null,null,null,null,null,null,null,"Análisis del riesgo inherente",null,null,null,null,null,null,"Evaluación del riesgo - Valoración de los controles",null,null,null,null,null,"Atributos",null,null,null,null,null,"Evaluación del riesgo - Nivel del riesgo residual",null,null,null,null,null,null,"Plan de acción",null,null,null,"Responsable de Tratamiento"]
["Referencia ","Proceso","Tipo de Riesgo","Descripción del Riesgo ","Impacto","Causa o circunstancia Inmediata ¿Cómo?","Causa Raíz ¿Por a que?","Clasificación del Riesgo","Frecuencia con la cual se realiza la actividad anual","Probabilidad Inherente","%","Impacto","Observación de criterio","Impacto \nInherente","%","Zona de Riesgo Inherente","No. Control","Descripción del Control","Cargo del responsable del control ","Acción que realiza","Evidencia esperada del control","Afectación","Tipo","Implementación","Calificación","Documentación","Frecuencia","Evidencia","Probabilidad Residual","Probabilidad Residual Final","%","Impacto Residual Final","%","Zona de Riesgo Final","Tratamiento","Acción a realizar","Cargo del Responsable","Fecha de implementación","Fecha de seguimiento","Cargo del responsable","Área del Responsable","Jefe del Área del Responsable","Fecha Implementación\n(Inicio)","Fecha de Implementación\n(Fin)","Reporte primer Trimestre","¿se materializó?\nSi/No","Seguimiento segunda línea de defensa","Reporte segundo Trimestre","¿se materializó?\nSi/No","Seguimiento segunda línea de defensa","Reporte tercer Trimestre","¿se materializó?\nSi/No","Seguimiento segunda línea de defensa","Reporte cuarto Trimestre","¿se materializó?\nSi/No","Seguimiento segunda línea de defensa"]
[1,"GESTIÓN TECNOLÓGICA","Gestión",{"$f":"IF(C8=\"Fiscal\",_xlfn.CONCAT(\"Posibilidad de efectos dañosos sobre bienes públicos \",E8,\" por o para \",F8,\" debido a \",G8),IF(C8=\"Gestión\",_xlfn.CONCAT(\"Posibilidad de afectacion\",E8,\" por o para \",F8,\" debido a \",G8),IF(C8=\"Ambiental\",_xlfn.CONCAT(\"Posibilidad de afectación\",E8,\" por o para \",F8,\" debido a \",G8),\"\")))","v":"Posibilidad de afectacioneconómico y reputacional por o para Desarrollo de aplicaciones y sistemas sin cumplir con estándares de seguridad, permitiendo la introducción de vulnerabilidades explotables. debido a Falta de implementación de la metodología de desarrollo seguro y ausencia de mecanismos estrictos de control en la fase de codificación."},"económico y reputacional","Desarrollo de aplicaciones y sistemas sin cumplir con estándares de seguridad, permitiendo la introducción de vulnerabilidades explotables.","Falta de implementación de la metodología de desarrollo seguro y ausencia de mecanismos estrictos de control en la fase de codificación.","Fallas Tecnologicas",4,{"$f":"IF(I8<=0,\"\",IF(I8<=2,\"Muy Baja\",IF(I8<=5,\"Baja\",IF(I8<=19,\"Media\",IF(I8<=50,\"Alta\",\"Muy Alta\")))))","v":"Baja"},{"$f":"IF(J8=\"\",\"\",IF(J8=\"Muy Baja\",0.2,IF(J8=\"Baja\",0.4,IF(J8=\"Media\",0.6,IF(J8=\"Alta\",0.8,IF(J8=\"Muy Alta\",1,))))))","v":0.4},"     Entre 50 y 100 SMLMV ",{"$f":"IF(NOT(ISERROR(MATCH(L8,'[8]Tabla Impacto'!B227:B229,0))),'[8]Tabla Impacto'!$F$229&\"Por favor no seleccionar los criterios de impacto(Afectación Económica o presupuestal, Pérdida Reputacional o Impacto Ambiental)\",L8)","v":"     Entre 50 y 100 SMLMV "},{"$f":"IF(OR(M8='[8]Tabla Impacto'!$C$11,M8='[8]Tabla Impacto'!$D$11,M8='[8]Tabla Impacto'!$E$11),\"Leve\",IF(OR(M8='[8]Tabla Impacto'!$C$12,M8='[8]Tabla Impacto'!$D$12,M8='[8]Tabla Impacto'!$E$12),\"Menor\",IF(OR(M8='[8]Tabla Impacto'!$C$13,M8='[8]Tabla Impacto'!$D$13,M8='[8]Tabla Impacto'!$E$13),\"Moderado\",IF(OR(M8='[8]Tabla Impacto'!$C$14,M8='[8]Tabla Impacto'!$D$14,M8='[8]Tabla Impacto'!$E$14),\"Mayor\",IF(OR(M8='[8]Tabla Impacto'!$C$15,M8='[8]Tabla Impacto'!$D$15,M8='[8]Tabla Impacto'!$E$15),\"Catastrófico\",\"\")))))","v":"Moderado"},{"$f":"IF(N8=\"\",\"\",IF(N8=\"Leve\",0.2,IF(N8=\"Menor\",0.4,IF(N8=\"Moderado\",0.6,IF(N8=\"Mayor\",0.8,IF(N8=\"Catastrófico\",1,))))))","v":0.6},{"$f":"IF(OR(AND(J8=\"Muy Baja\",N8=\"Leve\"),AND(J8=\"Muy Baja\",N8=\"Menor\"),AND(J8=\"Baja\",N8=\"Leve\")),\"Bajo\",IF(OR(AND(J8=\"Muy baja\",N8=\"Moderado\"),AND(J8=\"Baja\",N8=\"Menor\"),AND(J8=\"Baja\",N8=\"Moderado\"),AND(J8=\"Media\",N8=\"Leve\"),AND(J8=\"Media\",N8=\"Menor\"),AND(J8=\"Media\",N8=\"Moderado\"),AND(J8=\"Alta\",N8=\"Leve\"),AND(J8=\"Alta\",N8=\"Menor\")),\"Moderado\",IF(OR(AND(J8=\"Muy Baja\",N8=\"Mayor\"),AND(J8=\"Baja\",N8=\"Mayor\"),AND(J8=\"Media\",N8=\"Mayor\"),AND(J8=\"Alta\",N8=\"Moderado\"),AND(J8=\"Alta\",N8=\"Mayor\"),AND(J8=\"Muy Alta\",N8=\"Leve\"),AND(J8=\"Muy Alta\",N8=\"Menor\"),AND(J8=\"Muy Alta\",N8=\"Moderado\"),AND(J8=\"Muy Alta\",N8=\"Mayor\")),\"Alto\",IF(OR(AND(J8=\"Muy Baja\",N8=\"Catastrófico\"),AND(J8=\"Baja\",N8=\"Catastrófico\"),AND(J8=\"Media\",N8=\"Catastrófico\"),AND(J8=\"Alta\",N8=\"Catastrófico\"),AND(J8=\"Muy Alta\",N8=\"Catastrófico\")),\"Extremo\",\"\"))))","v":"Moderado"},1,"El funcionario del grupo TICs designado para la seguridad y privacidad aplica el checklist de seguridad definido en la metodología de desarrollo del ministerio, basado en estándares internacionales como OWASP y PCI DSS, adicionalmente, programa auditorías trimestrales en los sistemas de información para evaluar la correcta implementación de los lineamientos de código seguro, si encuentra inconsistencias en la auditoría solicita ajustes; adicionalmente, realiza pruebas de penetración (pentesting) y análisis de vulnerabilidades en entornos controlados, asegurando la detección y mitigación de riesgos antes de la puesta en producción.","Funcionario","1. Aplicar el checklist de seguridad definido en la metodología de desarrollo del ministerio, basado en estándares internacionales como OWASP y PCI DSS.\n2. Programar auditorías trimestrales en los sistemas de información para evaluar la correcta implementación de los lineamientos de código seguro.\n3. Realizar pruebas de penetración (pentesting) y análisis de vulnerabilidades en entornos controlados, asegurando la detección y mitigación de riesgos antes de la puesta en producción.","1. Reportes de auditoría de código seguro, documentando el cumplimiento del checklist de seguridad.\n2. Registros de pruebas de penetración y análisis de vulnerabilidades, asegurando que las fallas detectadas sean corregidas antes del despliegue.\n3. Actas de revisión técnica del software desarrollado, validando que cumple con los estándares de seguridad antes de ser implementado en producción.",{"$f":"IF(OR(W8=\"Preventivo\",W8=\"Detectivo\"),\"Probabilidad\",IF(W8=\"Correctivo\",\"Impacto\",\"\"))","v":"Impacto"},"Correctivo","Manual",{"$f":"IF(AND(W8=\"Preventivo\",X8=\"Automático\"),\"50%\",IF(AND(W8=\"Preventivo\",X8=\"Manual\"),\"40%\",IF(AND(W8=\"Detectivo\",X8=\"Automático\"),\"40%\",IF(AND(W8=\"Detectivo\",X8=\"Manual\"),\"30%\",IF(AND(W8=\"Correctivo\",X8=\"Automático\"),\"35%\",IF(AND(W8=\"Correctivo\",X8=\"Manual\"),\"25%\",\"\"))))))","v":"25%"},"Documentado","Continua","Con Registro",{"$f":"IFERROR(IF(V8=\"Probabilidad\",(K8-(+K8*Y8)),IF(V8=\"Impacto\",K8,\"\")),\"\")","v":0.4},{"$f":"IFERROR(IF(AC8=\"\",\"\",IF(AC8<=0.2,\"Muy Baja\",IF(AC8<=0.4,\"Baja\",IF(AC8<=0.6,\"Media\",IF(AC8<=0.8,\"Alta\",\"Muy Alta\"))))),\"\")","v":"Baja"},{"$f":"+AC8","v":0.4},{"$f":"IFERROR(IF(AG8=\"\",\"\",IF(AG8<=0.2,\"Leve\",IF(AG8<=0.4,\"Menor\",IF(AG8<=0.6,\"Moderado\",IF(AG8<=0.8,\"Mayor\",\"Catastrófico\"))))),\"\")","v":"Moderado"},{"$f":"IFERROR(IF(V8=\"Impacto\",(O8-(+O8*Y8)),IF(V8=\"Probabilidad\",O8,\"\")),\"\")","v":0.44999999999999996},{"$f":"IFERROR(IF(OR(AND(AD8=\"Muy Baja\",AF8=\"Leve\"),AND(AD8=\"Muy Baja\",AF8=\"Menor\"),AND(AD8=\"Baja\",AF8=\"Leve\")),\"Bajo\",IF(OR(AND(AD8=\"Muy baja\",AF8=\"Moderado\"),AND(AD8=\"Baja\",AF8=\"Menor\"),AND(AD8=\"Baja\",AF8=\"Moderado\"),AND(AD8=\"Media\",AF8=\"Leve\"),AND(AD8=\"Media\",AF8=\"Menor\"),AND(AD8=\"Media\",AF8=\"Moderado\"),AND(AD8=\"Alta\",AF8=\"Leve\"),AND(AD8=\"Alta\",AF8=\"Menor\")),\"Moderado\",IF(OR(AND(AD8=\"Muy Baja\",AF8=\"Mayor\"),AND(AD8=\"Baja\",AF8=\"Mayor\"),AND(AD8=\"Media\",AF8=\"Mayor\"),AND(AD8=\"Alta\",AF8=\"Moderado\"),AND(AD8=\"Alta\",AF8=\"Mayor\"),AND(AD8=\"Muy Alta\",AF8=\"Leve\"),AND(AD8=\"Muy Alta\",AF8=\"Menor\"),AND(AD8=\"Muy Alta\",AF8=\"Moderado\"),AND(AD8=\"Muy Alta\",AF8=\"Mayor\")),\"Alto\",IF(OR(AND(AD8=\"Muy Baja\",AF8=\"Catastrófico\"),AND(AD8=\"Baja\",AF8=\"Catastrófico\"),AND(AD8=\"Media\",AF8=\"Catastrófico\"),AND(AD8=\"Alta\",AF8=\"Catastrófico\"),AND(AD8=\"Muy Alta\",AF8=\"Catastrófico\")),\"Extremo\",\"\")))),\"\")","v":"Moderado"},"Evitar",null,null,null,null,"Funcionario","Grupo de Tecnologías de la Información y las Comunicaciones TICS.","Andrés Alejandro Ayure- Coordinador Grupo TICS","2025-02-21","2025-12-31"]
[2,"GESTIÓN TECNOLÓGICA","Gestión",{"$f":"IF(C9=\"Fiscal\",_xlfn.CONCAT(\"Posibilidad de efectos dañosos sobre bienes públicos \",E9,\" por o para \",F9,\" debido a \",G9),IF(C9=\"Gestión\",_xlfn.CONCAT(\"Posibilidad de afectacion\",E9,\" por o para \",F9,\" debido a \",G9),IF(C9=\"Ambiental\",_xlfn.CONCAT(\"Posibilidad de afectación\",E9,\" por o para \",F9,\" debido a \",G9),\"\")))","v":"Posibilidad de afectacioneconómico y reputacional por o para Ausencia de supervisión continua de registros de actividad en los sistemas de información, permitiendo que incidentes de seguridad pasen desapercibidos. debido a Falta de un procedimiento estandarizado para la gestión y análisis de logs de seguridad, junto con la ausencia de herramientas automatizadas de monitoreo y alerta."},"económico y reputacional","Ausencia de supervisión continua de registros de actividad en los sistemas de información, permitiendo que incidentes de seguridad pasen desapercibidos.","Falta de un procedimiento estandarizado para la gestión y análisis de logs de seguridad, junto con la ausencia de herramientas automatizadas de monitoreo y alerta.","Ejecucion y Administracion de procesos",4,{"$f":"IF(I9<=0,\"\",IF(I9<=2,\"Muy Baja\",IF(I9<=5,\"Baja\",IF(I9<=19,\"Media\",IF(I9<=50,\"Alta\",\"Muy Alta\")))))","v":"Baja"},{"$f":"IF(J9=\"\",\"\",IF(J9=\"Muy Baja\",0.2,IF(J9=\"Baja\",0.4,IF(J9=\"Media\",0.6,IF(J9=\"Alta\",0.8,IF(J9=\"Muy Alta\",1,))))))","v":0.4},"     Entre 100 y 500 SMLMV ",{"$f":"IF(NOT(ISERROR(MATCH(L9,'[8]Tabla Impacto'!B228:B230,0))),'[8]Tabla Impacto'!$F$229&\"Por favor no seleccionar los criterios de impacto(Afectación Económica o presupuestal, Pérdida Reputacional o Impacto Ambiental)\",L9)","v":"     Entre 100 y 500 SMLMV "},{"$f":"IF(OR(M9='[8]Tabla Impacto'!$C$11,M9='[8]Tabla Impacto'!$D$11,M9='[8]Tabla Impacto'!$E$11),\"Leve\",IF(OR(M9='[8]Tabla Impacto'!$C$12,M9='[8]Tabla Impacto'!$D$12,M9='[8]Tabla Impacto'!$E$12),\"Menor\",IF(OR(M9='[8]Tabla Impacto'!$C$13,M9='[8]Tabla Impacto'!$D$13,M9='[8]Tabla Impacto'!$E$13),\"Moderado\",IF(OR(M9='[8]Tabla Impacto'!$C$14,M9='[8]Tabla Impacto'!$D$14,M9='[8]Tabla Impacto'!$E$14),\"Mayor\",IF(OR(M9='[8]Tabla Impacto'!$C$15,M9='[8]Tabla Impacto'!$D$15,M9='[8]Tabla Impacto'!$E$15),\"Catastrófico\",\"\")))))","v":"Mayor"},{"$f":"IF(N9=\"\",\"\",IF(N9=\"Leve\",0.2,IF(N9=\"Menor\",0.4,IF(N9=\"Moderado\",0.6,IF(N9=\"Mayor\",0.8,IF(N9=\"Catastrófico\",1,))))))","v":0.8},{"$f":"IF(OR(AND(J9=\"Muy Baja\",N9=\"Leve\"),AND(J9=\"Muy Baja\",N9=\"Menor\"),AND(J9=\"Baja\",N9=\"Leve\")),\"Bajo\",IF(OR(AND(J9=\"Muy baja\",N9=\"Moderado\"),AND(J9=\"Baja\",N9=\"Menor\"),AND(J9=\"Baja\",N9=\"Moderado\"),AND(J9=\"Media\",N9=\"Leve\"),AND(J9=\"Media\",N9=\"Menor\"),AND(J9=\"Media\",N9=\"Moderado\"),AND(J9=\"Alta\",N9=\"Leve\"),AND(J9=\"Alta\",N9=\"Menor\")),\"Moderado\",IF(OR(AND(J9=\"Muy Baja\",N9=\"Mayor\"),AND(J9=\"Baja\",N9=\"Mayor\"),AND(J9=\"Media\",N9=\"Mayor\"),AND(J9=\"Alta\",N9=\"Moderado\"),AND(J9=\"Alta\",N9=\"Mayor\"),AND(J9=\"Muy Alta\",N9=\"Leve\"),AND(J9=\"Muy Alta\",N9=\"Menor\"),AND(J9=\"Muy Alta\",N9=\"Moderado\"),AND(J9=\"Muy Alta\",N9=\"Mayor\")),\"Alto\",IF(OR(AND(J9=\"Muy Baja\",N9=\"Catastrófico\"),AND(J9=\"Baja\",N9=\"Catastrófico\"),AND(J9=\"Media\",N9=\"Catastrófico\"),AND(J9=\"Alta\",N9=\"Catastrófico\"),AND(J9=\"Muy Alta\",N9=\"Catastrófico\")),\"Extremo\",\"\"))))","v":"Alto"},2,"El funcionario del grupo TICs designado para la seguridad y privacidad revisa que los sistemas de información críticos del Ministerio.tengan módulos de auditoría, adicionalmente, configura alertas automáticas para detectar comportamientos sospechosos en aplicaciones, bases de datos y redes, asegurando una respuesta oportuna ante posibles incidentes.","Funcionario","\n1.\tDesarrollar y documentar un procedimiento estandarizado para la implementación de módulos de auditoría en todos los sistemas de información críticos del Ministerio.\n2.\tImplementar soluciones de monitoreo centralizado que permitan la recolección, análisis y correlación de eventos de seguridad en tiempo real.\n3.\tConfigurar alertas automáticas para detectar comportamientos sospechosos en aplicaciones, bases de datos y redes, asegurando una respuesta oportuna ante posibles incidentes.","1. Registro de eventos de seguridad en una plataforma centralizada de monitoreo.\n2. Reportes de auditoría periódica, evidenciando la detección y mitigación de incidentes con base en los registros de actividad.\n3. Historial de alertas automáticas configuradas para detectar accesos sospechosos y cambios no autorizados en la infraestructura tecnológica.",{"$f":"IF(OR(W9=\"Preventivo\",W9=\"Detectivo\"),\"Probabilidad\",IF(W9=\"Correctivo\",\"Impacto\",\"\"))","v":"Impacto"},"Correctivo","Manual",{"$f":"IF(AND(W9=\"Preventivo\",X9=\"Automático\"),\"50%\",IF(AND(W9=\"Preventivo\",X9=\"Manual\"),\"40%\",IF(AND(W9=\"Detectivo\",X9=\"Automático\"),\"40%\",IF(AND(W9=\"Detectivo\",X9=\"Manual\"),\"30%\",IF(AND(W9=\"Correctivo\",X9=\"Automático\"),\"35%\",IF(AND(W9=\"Correctivo\",X9=\"Manual\"),\"25%\",\"\"))))))","v":"25%"},"Documentado","Continua","Con Registro",{"$f":"IFERROR(IF(V9=\"Probabilidad\",(K9-(+K9*Y9)),IF(V9=\"Impacto\",K9,\"\")),\"\")","v":0.4},{"$f":"IFERROR(IF(AC9=\"\",\"\",IF(AC9<=0.2,\"Muy Baja\",IF(AC9<=0.4,\"Baja\",IF(AC9<=0.6,\"Media\",IF(AC9<=0.8,\"Alta\",\"Muy Alta\"))))),\"\")","v":"Baja"},{"$f":"+AC9","v":0.4},{"$f":"IFERROR(IF(AG9=\"\",\"\",IF(AG9<=0.2,\"Leve\",IF(AG9<=0.4,\"Menor\",IF(AG9<=0.6,\"Moderado\",IF(AG9<=0.8,\"Mayor\",\"Catastrófico\"))))),\"\")","v":"Moderado"},{"$f":"IFERROR(IF(V9=\"Impacto\",(O9-(+O9*Y9)),IF(V9=\"Probabilidad\",O9,\"\")),\"\")","v":0.60000000000000009},{"$f":"IFERROR(IF(OR(AND(AD9=\"Muy Baja\",AF9=\"Leve\"),AND(AD9=\"Muy Baja\",AF9=\"Menor\"),AND(AD9=\"Baja\",AF9=\"Leve\")),\"Bajo\",IF(OR(AND(AD9=\"Muy baja\",AF9=\"Moderado\"),AND(AD9=\"Baja\",AF9=\"Menor\"),AND(AD9=\"Baja\",AF9=\"Moderado\"),AND(AD9=\"Media\",AF9=\"Leve\"),AND(AD9=\"Media\",AF9=\"Menor\"),AND(AD9=\"Media\",AF9=\"Moderado\"),AND(AD9=\"Alta\",AF9=\"Leve\"),AND(AD9=\"Alta\",AF9=\"Menor\")),\"Moderado\",IF(OR(AND(AD9=\"Muy Baja\",AF9=\"Mayor\"),AND(AD9=\"Baja\",AF9=\"Mayor\"),AND(AD9=\"Media\",AF9=\"Mayor\"),AND(AD9=\"Alta\",AF9=\"Moderado\"),AND(AD9=\"Alta\",AF9=\"Mayor\"),AND(AD9=\"Muy Alta\",AF9=\"Leve\"),AND(AD9=\"Muy Alta\",AF9=\"Menor\"),AND(AD9=\"Muy Alta\",AF9=\"Moderado\"),AND(AD9=\"Muy Alta\",AF9=\"Mayor\")),\"Alto\",IF(OR(AND(AD9=\"Muy Baja\",AF9=\"Catastrófico\"),AND(AD9=\"Baja\",AF9=\"Catastrófico\"),AND(AD9=\"Media\",AF9=\"Catastrófico\"),AND(AD9=\"Alta\",AF9=\"Catastrófico\"),AND(AD9=\"Muy Alta\",AF9=\"Catastrófico\")),\"Extremo\",\"\")))),\"\")","v":"Moderado"},"Evitar",null,null,null,null,"Funcionario","Grupo de Tecnologías de la Información y las Comunicaciones TICS.","Andrés Alejandro Ayure- Coordinador Grupo TICS","2025-02-21","2025-12-31"]
[3,"GESTIÓN TECNOLÓGICA","Gestión",{"$f":"IF(C10=\"Fiscal\",_xlfn.CONCAT(\"Posibilidad de efectos dañosos sobre bienes públicos \",E10,\" por o para \",F10,\" debido a \",G10),IF(C10=\"Gestión\",_xlfn.CONCAT(\"Posibilidad de afectacion\",E10,\" por o para \",F10,\" debido a \",G10),IF(C10=\"Ambiental\",_xlfn.CONCAT(\"Posibilidad de afectación\",E10,\" por o para \",F10,\" debido a \",G10),\"\")))","v":"Posibilidad de afectacioneconómico y reputacional por o para Acceso no regulado a información sensible por parte de funcionarios, contratistas y proveedores sin compromisos formales de confidencialidad, lo que incrementa el riesgo de filtraciones de datos debido a Ausencia de políticas obligatorias de confidencialidad y falta de control sobre la gestión documental de estos compromisos."},"económico y reputacional","Acceso no regulado a información sensible por parte de funcionarios, contratistas y proveedores sin compromisos formales de confidencialidad, lo que incrementa el riesgo de filtraciones de datos","Ausencia de políticas obligatorias de confidencialidad y falta de control sobre la gestión documental de estos compromisos.","Relaciones Laborales",4,{"$f":"IF(I10<=0,\"\",IF(I10<=2,\"Muy Baja\",IF(I10<=5,\"Baja\",IF(I10<=19,\"Media\",IF(I10<=50,\"Alta\",\"Muy Alta\")))))","v":"Baja"},{"$f":"IF(J10=\"\",\"\",IF(J10=\"Muy Baja\",0.2,IF(J10=\"Baja\",0.4,IF(J10=\"Media\",0.6,IF(J10=\"Alta\",0.8,IF(J10=\"Muy Alta\",1,))))))","v":0.4},"     Entre 100 y 500 SMLMV ",{"$f":"IF(NOT(ISERROR(MATCH(L10,'[8]Tabla Impacto'!B229:B231,0))),'[8]Tabla Impacto'!$F$229&\"Por favor no seleccionar los criterios de impacto(Afectación Económica o presupuestal, Pérdida Reputacional o Impacto Ambiental)\",L10)","v":"     Entre 100 y 500 SMLMV "},{"$f":"IF(OR(M10='[8]Tabla Impacto'!$C$11,M10='[8]Tabla Impacto'!$D$11,M10='[8]Tabla Impacto'!$E$11),\"Leve\",IF(OR(M10='[8]Tabla Impacto'!$C$12,M10='[8]Tabla Impacto'!$D$12,M10='[8]Tabla Impacto'!$E$12),\"Menor\",IF(OR(M10='[8]Tabla Impacto'!$C$13,M10='[8]Tabla Impacto'!$D$13,M10='[8]Tabla Impacto'!$E$13),\"Moderado\",IF(OR(M10='[8]Tabla Impacto'!$C$14,M10='[8]Tabla Impacto'!$D$14,M10='[8]Tabla Impacto'!$E$14),\"Mayor\",IF(OR(M10='[8]Tabla Impacto'!$C$15,M10='[8]Tabla Impacto'!$D$15,M10='[8]Tabla Impacto'!$E$15),\"Catastrófico\",\"\")))))","v":"Mayor"},{"$f":"IF(N10=\"\",\"\",IF(N10=\"Leve\",0.2,IF(N10=\"Menor\",0.4,IF(N10=\"Moderado\",0.6,IF(N10=\"Mayor\",0.8,IF(N10=\"Catastrófico\",1,))))))","v":0.8},{"$f":"IF(OR(AND(J10=\"Muy Baja\",N10=\"Leve\"),AND(J10=\"Muy Baja\",N10=\"Menor\"),AND(J10=\"Baja\",N10=\"Leve\")),\"Bajo\",IF(OR(AND(J10=\"Muy baja\",N10=\"Moderado\"),AND(J10=\"Baja\",N10=\"Menor\"),AND(J10=\"Baja\",N10=\"Moderado\"),AND(J10=\"Media\",N10=\"Leve\"),AND(J10=\"Media\",N10=\"Menor\"),AND(J10=\"Media\",N10=\"Moderado\"),AND(J10=\"Alta\",N10=\"Leve\"),AND(J10=\"Alta\",N10=\"Menor\")),\"Moderado\",IF(OR(AND(J10=\"Muy Baja\",N10=\"Mayor\"),AND(J10=\"Baja\",N10=\"Mayor\"),AND(J10=\"Media\",N10=\"Mayor\"),AND(J10=\"Alta\",N10=\"Moderado\"),AND(J10=\"Alta\",N10=\"Mayor\"),AND(J10=\"Muy Alta\",N10=\"Leve\"),AND(J10=\"Muy Alta\",N10=\"Menor\"),AND(J10=\"Muy Alta\",N10=\"Moderado\"),AND(J10=\"Muy Alta\",N10=\"Mayor\")),\"Alto\",IF(OR(AND(J10=\"Muy Baja\",N10=\"Catastrófico\"),AND(J10=\"Baja\",N10=\"Catastrófico\"),AND(J10=\"Media\",N10=\"Catastrófico\"),AND(J10=\"Alta\",N10=\"Catastrófico\"),AND(J10=\"Muy Alta\",N10=\"Catastrófico\")),\"Extremo\",\"\"))))","v":"Alto"},3,"El funcionario del grupo TICs designado para la seguridad y privacidad valida el desarrollo de un modelo estándar de acuerdo de confidencialidad alineado con las normativas de seguridad de la información y políticas internas del ministerio; adicionalmente verifica que se encuentren almacenados y firmados los acuerdos de confidencialidad","Funcionario","1. Desarrollar un modelo estándar de acuerdo de confidencialidad alineado con las normativas de seguridad de la información y políticas internas del ministerio.\n2. Crear un repositorio digital seguro para el almacenamiento y gestión de los acuerdos firmados, garantizando su disponibilidad para auditorías y controles internos.\n3. Incorporar cláusulas específicas de confidencialidad en los contratos de prestación de servicios, términos de referencia y convenios suscritos con terceros.\n4. Definir penalizaciones y medidas correctivas en caso de incumplimiento de las cláusulas de confidencialidad, fortaleciendo el compromiso con la seguridad de la información.","1. Repositorio centralizado de acuerdos de confidencialidad firmados, con control de acceso y trazabilidad.\n2. Cláusulas de confidencialidad en contratos y documentos administrativos, asegurando su cumplimiento legal.\n3. Registros de auditoría y control sobre el cumplimiento de compromisos de confidencialidad, permitiendo la detección de incumplimientos.",{"$f":"IF(OR(W10=\"Preventivo\",W10=\"Detectivo\"),\"Probabilidad\",IF(W10=\"Correctivo\",\"Impacto\",\"\"))","v":"Probabilidad"},"Preventivo","Manual",{"$f":"IF(AND(W10=\"Preventivo\",X10=\"Automático\"),\"50%\",IF(AND(W10=\"Preventivo\",X10=\"Manual\"),\"40%\",IF(AND(W10=\"Detectivo\",X10=\"Automático\"),\"40%\",IF(AND(W10=\"Detectivo\",X10=\"Manual\"),\"30%\",IF(AND(W10=\"Correctivo\",X10=\"Automático\"),\"35%\",IF(AND(W10=\"Correctivo\",X10=\"Manual\"),\"25%\",\"\"))))))","v":"40%"},"Documentado","Continua","Con Registro",{"$f":"IFERROR(IF(V10=\"Probabilidad\",(K10-(+K10*Y10)),IF(V10=\"Impacto\",K10,\"\")),\"\")","v":0.24},{"$f":"IFERROR(IF(AC10=\"\",\"\",IF(AC10<=0.2,\"Muy Baja\",IF(AC10<=0.4,\"Baja\",IF(AC10<=0.6,\"Media\",IF(AC10<=0.8,\"Alta\",\"Muy Alta\"))))),\"\")","v":"Baja"},{"$f":"+AC10","v":0.24},{"$f":"IFERROR(IF(AG10=\"\",\"\",IF(AG10<=0.2,\"Leve\",IF(AG10<=0.4,\"Menor\",IF(AG10<=0.6,\"Moderado\",IF(AG10<=0.8,\"Mayor\",\"Catastrófico\"))))),\"\")","v":"Mayor"},{"$f":"IFERROR(IF(V10=\"Impacto\",(O10-(+O10*Y10)),IF(V10=\"Probabilidad\",O10,\"\")),\"\")","v":0.8},{"$f":"IFERROR(IF(OR(AND(AD10=\"Muy Baja\",AF10=\"Leve\"),AND(AD10=\"Muy Baja\",AF10=\"Menor\"),AND(AD10=\"Baja\",AF10=\"Leve\")),\"Bajo\",IF(OR(AND(AD10=\"Muy baja\",AF10=\"Moderado\"),AND(AD10=\"Baja\",AF10=\"Menor\"),AND(AD10=\"Baja\",AF10=\"Moderado\"),AND(AD10=\"Media\",AF10=\"Leve\"),AND(AD10=\"Media\",AF10=\"Menor\"),AND(AD10=\"Media\",AF10=\"Moderado\"),AND(AD10=\"Alta\",AF10=\"Leve\"),AND(AD10=\"Alta\",AF10=\"Menor\")),\"Moderado\",IF(OR(AND(AD10=\"Muy Baja\",AF10=\"Mayor\"),AND(AD10=\"Baja\",AF10=\"Mayor\"),AND(AD10=\"Media\",AF10=\"Mayor\"),AND(AD10=\"Alta\",AF10=\"Moderado\"),AND(AD10=\"Alta\",AF10=\"Mayor\"),AND(AD10=\"Muy Alta\",AF10=\"Leve\"),AND(AD10=\"Muy Alta\",AF10=\"Menor\"),AND(AD10=\"Muy Alta\",AF10=\"Moderado\"),AND(AD10=\"Muy Alta\",AF10=\"Mayor\")),\"Alto\",IF(OR(AND(AD10=\"Muy Baja\",AF10=\"Catastrófico\"),AND(AD10=\"Baja\",AF10=\"Catastrófico\"),AND(AD10=\"Media\",AF10=\"Catastrófico\"),AND(AD10=\"Alta\",AF10=\"Catastrófico\"),AND(AD10=\"Muy Alta\",AF10=\"Catastrófico\")),\"Extremo\",\"\")))),\"\")","v":"Alto"},"Evitar",null,null,null,null,"Funcionario","Grupo de Tecnologías de la Información y las Comunicaciones TICS.","Andrés Alejandro Ayure- Coordinador Grupo TICS","2025-02-21","2025-12-31"]
[4,"GESTIÓN TECNOLÓGICA","Gestión",{"$f":"IF(C11=\"Fiscal\",_xlfn.CONCAT(\"Posibilidad de efectos dañosos sobre bienes públicos \",E11,\" por o para \",F11,\" debido a \",G11),IF(C11=\"Gestión\",_xlfn.CONCAT(\"Posibilidad de afectacion\",E11,\" por o para \",F11,\" debido a \",G11),IF(C11=\"Ambiental\",_xlfn.CONCAT(\"Posibilidad de afectación\",E11,\" por o para \",F11,\" debido a \",G11),\"\")))","v":"Posibilidad de afectacioneconómico y reputacional por o para Pérdida de información crítica debido a fallos en los procesos de respaldo, almacenamiento y recuperación de datos, afectando la continuidad operativa del ministerio. debido a Ausencia de un proceso estructurado de respaldo de información y monitoreo de la efectividad de los backups."},"económico y reputacional","Pérdida de información crítica debido a fallos en los procesos de respaldo, almacenamiento y recuperación de datos, afectando la continuidad operativa del ministerio.","Ausencia de un proceso estructurado de respaldo de información y monitoreo de la efectividad de los backups.","Fallas Tecnologicas",4,{"$f":"IF(I11<=0,\"\",IF(I11<=2,\"Muy Baja\",IF(I11<=5,\"Baja\",IF(I11<=19,\"Media\",IF(I11<=50,\"Alta\",\"Muy Alta\")))))","v":"Baja"},{"$f":"IF(J11=\"\",\"\",IF(J11=\"Muy Baja\",0.2,IF(J11=\"Baja\",0.4,IF(J11=\"Media\",0.6,IF(J11=\"Alta\",0.8,IF(J11=\"Muy Alta\",1,))))))","v":0.4},"     Entre 100 y 500 SMLMV ",{"$f":"IF(NOT(ISERROR(MATCH(L11,'[8]Tabla Impacto'!B230:B232,0))),'[8]Tabla Impacto'!$F$229&\"Por favor no seleccionar los criterios de impacto(Afectación Económica o presupuestal, Pérdida Reputacional o Impacto Ambiental)\",L11)","v":"     Entre 100 y 500 SMLMV "},{"$f":"IF(OR(M11='[8]Tabla Impacto'!$C$11,M11='[8]Tabla Impacto'!$D$11,M11='[8]Tabla Impacto'!$E$11),\"Leve\",IF(OR(M11='[8]Tabla Impacto'!$C$12,M11='[8]Tabla Impacto'!$D$12,M11='[8]Tabla Impacto'!$E$12),\"Menor\",IF(OR(M11='[8]Tabla Impacto'!$C$13,M11='[8]Tabla Impacto'!$D$13,M11='[8]Tabla Impacto'!$E$13),\"Moderado\",IF(OR(M11='[8]Tabla Impacto'!$C$14,M11='[8]Tabla Impacto'!$D$14,M11='[8]Tabla Impacto'!$E$14),\"Mayor\",IF(OR(M11='[8]Tabla Impacto'!$C$15,M11='[8]Tabla Impacto'!$D$15,M11='[8]Tabla Impacto'!$E$15),\"Catastrófico\",\"\")))))","v":"Mayor"},{"$f":"IF(N11=\"\",\"\",IF(N11=\"Leve\",0.2,IF(N11=\"Menor\",0.4,IF(N11=\"Moderado\",0.6,IF(N11=\"Mayor\",0.8,IF(N11=\"Catastrófico\",1,))))))","v":0.8},{"$f":"IF(OR(AND(J11=\"Muy Baja\",N11=\"Leve\"),AND(J11=\"Muy Baja\",N11=\"Menor\"),AND(J11=\"Baja\",N11=\"Leve\")),\"Bajo\",IF(OR(AND(J11=\"Muy baja\",N11=\"Moderado\"),AND(J11=\"Baja\",N11=\"Menor\"),AND(J11=\"Baja\",N11=\"Moderado\"),AND(J11=\"Media\",N11=\"Leve\"),AND(J11=\"Media\",N11=\"Menor\"),AND(J11=\"Media\",N11=\"Moderado\"),AND(J11=\"Alta\",N11=\"Leve\"),AND(J11=\"Alta\",N11=\"Menor\")),\"Moderado\",IF(OR(AND(J11=\"Muy Baja\",N11=\"Mayor\"),AND(J11=\"Baja\",N11=\"Mayor\"),AND(J11=\"Media\",N11=\"Mayor\"),AND(J11=\"Alta\",N11=\"Moderado\"),AND(J11=\"Alta\",N11=\"Mayor\"),AND(J11=\"Muy Alta\",N11=\"Leve\"),AND(J11=\"Muy Alta\",N11=\"Menor\"),AND(J11=\"Muy Alta\",N11=\"Moderado\"),AND(J11=\"Muy Alta\",N11=\"Mayor\")),\"Alto\",IF(OR(AND(J11=\"Muy Baja\",N11=\"Catastrófico\"),AND(J11=\"Baja\",N11=\"Catastrófico\"),AND(J11=\"Media\",N11=\"Catastrófico\"),AND(J11=\"Alta\",N11=\"Catastrófico\"),AND(J11=\"Muy Alta\",N11=\"Catastrófico\")),\"Extremo\",\"\"))))","v":"Alto"},4,"El funcionario del grupo TICs designado para la seguridad y privacidad realiza monitoreo de backups, con métricas sobre tasas de éxito/falla y capacidad de almacenamiento, adicionalmente, realiza alertas automáticas de incidentes de fallos de respaldo y las acciones correctivas aplicadas.","Funcionario","1. Implementar métricas clave como tasas de éxito/falla, capacidad de almacenamiento disponible y tiempos de recuperación, asegurando que el sistema no se sature y opere de manera óptima.\n2. Establecer una política formal de respaldo de información definiendo la frecuencia de backups (diaria, semanal, mensual), los tipos de copias (completas, incrementales, diferenciales) y los tiempos de retención de datos.\n3. Configurar alertas automáticas para la detección de fallos en los procesos de copia de seguridad, asegurando respuestas rápidas ante incidentes de fallos de respaldo o almacenamiento.\n4. Ejecutar pruebas de restauración de datos de manera regular, bajo diferentes escenarios, para garantizar que los procedimientos de recuperación sean efectivos y se realicen dentro de los tiempos de recuperación establecidos (RTO y RPO).","1. Reportes de monitoreo de backups, con métricas sobre tasas de éxito/falla y capacidad de almacenamiento.\n2. Registros de alertas automáticas, documentando incidentes de fallos de respaldo y las acciones correctivas aplicadas.\n3. Actas de pruebas de restauración, demostrando que los backups pueden ser recuperados en los tiempos establecidos.",{"$f":"IF(OR(W11=\"Preventivo\",W11=\"Detectivo\"),\"Probabilidad\",IF(W11=\"Correctivo\",\"Impacto\",\"\"))","v":"Probabilidad"},"Preventivo","Manual",{"$f":"IF(AND(W11=\"Preventivo\",X11=\"Automático\"),\"50%\",IF(AND(W11=\"Preventivo\",X11=\"Manual\"),\"40%\",IF(AND(W11=\"Detectivo\",X11=\"Automático\"),\"40%\",IF(AND(W11=\"Detectivo\",X11=\"Manual\"),\"30%\",IF(AND(W11=\"Correctivo\",X11=\"Automático\"),\"35%\",IF(AND(W11=\"Correctivo\",X11=\"Manual\"),\"25%\",\"\"))))))","v":"40%"},"Documentado","Continua","Con Registro",{"$f":"IFERROR(IF(V11=\"Probabilidad\",(K11-(+K11*Y11)),IF(V11=\"Impacto\",K11,\"\")),\"\")","v":0.24},{"$f":"IFERROR(IF(AC11=\"\",\"\",IF(AC11<=0.2,\"Muy Baja\",IF(AC11<=0.4,\"Baja\",IF(AC11<=0.6,\"Media\",IF(AC11<=0.8,\"Alta\",\"Muy Alta\"))))),\"\")","v":"Baja"},{"$f":"+AC11","v":0.24},{"$f":"IFERROR(IF(AG11=\"\",\"\",IF(AG11<=0.2,\"Leve\",IF(AG11<=0.4,\"Menor\",IF(AG11<=0.6,\"Moderado\",IF(AG11<=0.8,\"Mayor\",\"Catastrófico\"))))),\"\")","v":"Mayor"},{"$f":"IFERROR(IF(V11=\"Impacto\",(O11-(+O11*Y11)),IF(V11=\"Probabilidad\",O11,\"\")),\"\")","v":0.8},{"$f":"IFERROR(IF(OR(AND(AD11=\"Muy Baja\",AF11=\"Leve\"),AND(AD11=\"Muy Baja\",AF11=\"Menor\"),AND(AD11=\"Baja\",AF11=\"Leve\")),\"Bajo\",IF(OR(AND(AD11=\"Muy baja\",AF11=\"Moderado\"),AND(AD11=\"Baja\",AF11=\"Menor\"),AND(AD11=\"Baja\",AF11=\"Moderado\"),AND(AD11=\"Media\",AF11=\"Leve\"),AND(AD11=\"Media\",AF11=\"Menor\"),AND(AD11=\"Media\",AF11=\"Moderado\"),AND(AD11=\"Alta\",AF11=\"Leve\"),AND(AD11=\"Alta\",AF11=\"Menor\")),\"Moderado\",IF(OR(AND(AD11=\"Muy Baja\",AF11=\"Mayor\"),AND(AD11=\"Baja\",AF11=\"Mayor\"),AND(AD11=\"Media\",AF11=\"Mayor\"),AND(AD11=\"Alta\",AF11=\"Moderado\"),AND(AD11=\"Alta\",AF11=\"Mayor\"),AND(AD11=\"Muy Alta\",AF11=\"Leve\"),AND(AD11=\"Muy Alta\",AF11=\"Menor\"),AND(AD11=\"Muy Alta\",AF11=\"Moderado\"),AND(AD11=\"Muy Alta\",AF11=\"Mayor\")),\"Alto\",IF(OR(AND(AD11=\"Muy Baja\",AF11=\"Catastrófico\"),AND(AD11=\"Baja\",AF11=\"Catastrófico\"),AND(AD11=\"Media\",AF11=\"Catastrófico\"),AND(AD11=\"Alta\",AF11=\"Catastrófico\"),AND(AD11=\"Muy Alta\",AF11=\"Catastrófico\")),\"Extremo\",\"\")))),\"\")","v":"Alto"},"Evitar",null,null,null,null,"Funcionario","Grupo de Tecnologías de la Información y las Comunicaciones TICS.","Andrés Alejandro Ayure- Coordinador Grupo TICS","2025-02-21","2025-12-31"]
[5,"GESTIÓN TECNOLÓGICA","Gestión",{"$f":"IF(C12=\"Fiscal\",_xlfn.CONCAT(\"Posibilidad de efectos dañosos sobre bienes públicos \",E12,\" por o para \",F12,\" debido a \",G12),IF(C12=\"Gestión\",_xlfn.CONCAT(\"Posibilidad de afectacion\",E12,\" por o para \",F12,\" debido a \",G12),IF(C12=\"Ambiental\",_xlfn.CONCAT(\"Posibilidad de afectación\",E12,\" por o para \",F12,\" debido a \",G12),\"\")))","v":"Posibilidad de afectacioneconómico y reputacional por o para Desactualización en la clasificación de activos de información, lo que impide definir estrategias efectivas de continuidad del negocio y recuperación ante incidentes. debido a Falta de un proceso de actualización periódica de la clasificación de información y de integración con la gestión de continuidad del negocio."},"económico y reputacional","Desactualización en la clasificación de activos de información, lo que impide definir estrategias efectivas de continuidad del negocio y recuperación ante incidentes.","Falta de un proceso de actualización periódica de la clasificación de información y de integración con la gestión de continuidad del negocio.","Ejecucion y Administracion de procesos",4,{"$f":"IF(I12<=0,\"\",IF(I12<=2,\"Muy Baja\",IF(I12<=5,\"Baja\",IF(I12<=19,\"Media\",IF(I12<=50,\"Alta\",\"Muy Alta\")))))","v":"Baja"},{"$f":"IF(J12=\"\",\"\",IF(J12=\"Muy Baja\",0.2,IF(J12=\"Baja\",0.4,IF(J12=\"Media\",0.6,IF(J12=\"Alta\",0.8,IF(J12=\"Muy Alta\",1,))))))","v":0.4},"     Mayor a 500 SMLMV ",{"$f":"IF(NOT(ISERROR(MATCH(L12,'[8]Tabla Impacto'!B231:B233,0))),'[8]Tabla Impacto'!$F$229&\"Por favor no seleccionar los criterios de impacto(Afectación Económica o presupuestal, Pérdida Reputacional o Impacto Ambiental)\",L12)","v":"     Mayor a 500 SMLMV "},{"$f":"IF(OR(M12='[8]Tabla Impacto'!$C$11,M12='[8]Tabla Impacto'!$D$11,M12='[8]Tabla Impacto'!$E$11),\"Leve\",IF(OR(M12='[8]Tabla Impacto'!$C$12,M12='[8]Tabla Impacto'!$D$12,M12='[8]Tabla Impacto'!$E$12),\"Menor\",IF(OR(M12='[8]Tabla Impacto'!$C$13,M12='[8]Tabla Impacto'!$D$13,M12='[8]Tabla Impacto'!$E$13),\"Moderado\",IF(OR(M12='[8]Tabla Impacto'!$C$14,M12='[8]Tabla Impacto'!$D$14,M12='[8]Tabla Impacto'!$E$14),\"Mayor\",IF(OR(M12='[8]Tabla Impacto'!$C$15,M12='[8]Tabla Impacto'!$D$15,M12='[8]Tabla Impacto'!$E$15),\"Catastrófico\",\"\")))))","v":"Catastrófico"},{"$f":"IF(N12=\"\",\"\",IF(N12=\"Leve\",0.2,IF(N12=\"Menor\",0.4,IF(N12=\"Moderado\",0.6,IF(N12=\"Mayor\",0.8,IF(N12=\"Catastrófico\",1,))))))","v":1},{"$f":"IF(OR(AND(J12=\"Muy Baja\",N12=\"Leve\"),AND(J12=\"Muy Baja\",N12=\"Menor\"),AND(J12=\"Baja\",N12=\"Leve\")),\"Bajo\",IF(OR(AND(J12=\"Muy baja\",N12=\"Moderado\"),AND(J12=\"Baja\",N12=\"Menor\"),AND(J12=\"Baja\",N12=\"Moderado\"),AND(J12=\"Media\",N12=\"Leve\"),AND(J12=\"Media\",N12=\"Menor\"),AND(J12=\"Media\",N12=\"Moderado\"),AND(J12=\"Alta\",N12=\"Leve\"),AND(J12=\"Alta\",N12=\"Menor\")),\"Moderado\",IF(OR(AND(J12=\"Muy Baja\",N12=\"Mayor\"),AND(J12=\"Baja\",N12=\"Mayor\"),AND(J12=\"Media\",N12=\"Mayor\"),AND(J12=\"Alta\",N12=\"Moderado\"),AND(J12=\"Alta\",N12=\"Mayor\"),AND(J12=\"Muy Alta\",N12=\"Leve\"),AND(J12=\"Muy Alta\",N12=\"Menor\"),AND(J12=\"Muy Alta\",N12=\"Moderado\"),AND(J12=\"Muy Alta\",N12=\"Mayor\")),\"Alto\",IF(OR(AND(J12=\"Muy Baja\",N12=\"Catastrófico\"),AND(J12=\"Baja\",N12=\"Catastrófico\"),AND(J12=\"Media\",N12=\"Catastrófico\"),AND(J12=\"Alta\",N12=\"Catastrófico\"),AND(J12=\"Muy Alta\",N12=\"Catastrófico\")),\"Extremo\",\"\"))))","v":"Extremo"},5,"El funcionario del grupo TICs designado para la seguridad y privacidad valida que el inventario de activos de información se encuentra actualizado,en caso de encontrar activos sin actualizar solicita la actualización delos mismos.","Funcionario","1. Identificar y documentar todos los activos de información críticos del ministerio, asegurando su clasificación de acuerdo con criterios de confidencialidad, integridad y disponibilidad.\n2. Realizar sesiones con las diferentes áreas del ministerio para identificar y priorizar los procesos de negocio más relevantes que dependen de los activos de información.\n3. Analizar las consecuencias de una interrupción de los procesos críticos, estableciendo tiempos máximos de recuperación (RTO) y puntos de recuperación aceptables (RPO).\n4. Generar el documento actualizado del BIA y validarlo con las áreas clave para asegurar su precisión y aplicabilidad en escenarios de contingencia.\n5. Establecer planes específicos de recuperación para cada proceso crítico, alineados con la infraestructura tecnológica disponible y los objetivos estratégicos del ministerio.","1. Inventario actualizado de activos de información, asegurando su correcta clasificación según confidencialidad, integridad y disponibilidad.\n2. Documentos actualizados del BIA y BCP, evidenciando la alineación con los procesos críticos del ministerio.\n3. Reportes de auditoría y pruebas de recuperación, verificando la efectividad de los planes de continuidad implementados.",{"$f":"IF(OR(W12=\"Preventivo\",W12=\"Detectivo\"),\"Probabilidad\",IF(W12=\"Correctivo\",\"Impacto\",\"\"))","v":"Probabilidad"},"Preventivo","Manual",{"$f":"IF(AND(W12=\"Preventivo\",X12=\"Automático\"),\"50%\",IF(AND(W12=\"Preventivo\",X12=\"Manual\"),\"40%\",IF(AND(W12=\"Detectivo\",X12=\"Automático\"),\"40%\",IF(AND(W12=\"Detectivo\",X12=\"Manual\"),\"30%\",IF(AND(W12=\"Correctivo\",X12=\"Automático\"),\"35%\",IF(AND(W12=\"Correctivo\",X12=\"Manual\"),\"25%\",\"\"))))))","v":"40%"},"Documentado","Continua","Con Registro",{"$f":"IFERROR(IF(V12=\"Probabilidad\",(K12-(+K12*Y12)),IF(V12=\"Impacto\",K12,\"\")),\"\")","v":0.24},{"$f":"IFERROR(IF(AC12=\"\",\"\",IF(AC12<=0.2,\"Muy Baja\",IF(AC12<=0.4,\"Baja\",IF(AC12<=0.6,\"Media\",IF(AC12<=0.8,\"Alta\",\"Muy Alta\"))))),\"\")","v":"Baja"},{"$f":"+AC12","v":0.24},{"$f":"IFERROR(IF(AG12=\"\",\"\",IF(AG12<=0.2,\"Leve\",IF(AG12<=0.4,\"Menor\",IF(AG12<=0.6,\"Moderado\",IF(AG12<=0.8,\"Mayor\",\"Catastrófico\"))))),\"\")","v":"Catastrófico"},{"$f":"IFERROR(IF(V12=\"Impacto\",(O12-(+O12*Y12)),IF(V12=\"Probabilidad\",O12,\"\")),\"\")","v":1},{"$f":"IFERROR(IF(OR(AND(AD12=\"Muy Baja\",AF12=\"Leve\"),AND(AD12=\"Muy Baja\",AF12=\"Menor\"),AND(AD12=\"Baja\",AF12=\"Leve\")),\"Bajo\",IF(OR(AND(AD12=\"Muy baja\",AF12=\"Moderado\"),AND(AD12=\"Baja\",AF12=\"Menor\"),AND(AD12=\"Baja\",AF12=\"Moderado\"),AND(AD12=\"Media\",AF12=\"Leve\"),AND(AD12=\"Media\",AF12=\"Menor\"),AND(AD12=\"Media\",AF12=\"Moderado\"),AND(AD12=\"Alta\",AF12=\"Leve\"),AND(AD12=\"Alta\",AF12=\"Menor\")),\"Moderado\",IF(OR(AND(AD12=\"Muy Baja\",AF12=\"Mayor\"),AND(AD12=\"Baja\",AF12=\"Mayor\"),AND(AD12=\"Media\",AF12=\"Mayor\"),AND(AD12=\"Alta\",AF12=\"Moderado\"),AND(AD12=\"Alta\",AF12=\"Mayor\"),AND(AD12=\"Muy Alta\",AF12=\"Leve\"),AND(AD12=\"Muy Alta\",AF12=\"Menor\"),AND(AD12=\"Muy Alta\",AF12=\"Moderado\"),AND(AD12=\"Muy Alta\",AF12=\"Mayor\")),\"Alto\",IF(OR(AND(AD12=\"Muy Baja\",AF12=\"Catastrófico\"),AND(AD12=\"Baja\",AF12=\"Catastrófico\"),AND(AD12=\"Media\",AF12=\"Catastrófico\"),AND(AD12=\"Alta\",AF12=\"Catastrófico\"),AND(AD12=\"Muy Alta\",AF12=\"Catastrófico\")),\"Extremo\",\"\")))),\"\")","v":"Extremo"},"Evitar",null,null,null,null,"Funcionario","Grupo de Tecnologías de la Información y las Comunicaciones TICS.","Andrés Alejandro Ayure- Coordinador Grupo TICS","2025-02-21","2025-12-31"]

{"sheet":"Matriz_RiesgosAmbientales","index":5,"n_rows":8,"n_cols":56,"rows_kept":8,"cut":false,"hidden":false,"merged":[[5,35,5,38],[5,39,5,43],[1,5,1,6],[2,5,2,6],[4,0,4,1],[4,2,4,43],[5,0,5,8],[5,9,5,15],[5,16,5,21],[5,22,5,27],[5,28,5,34],[1,2,3,4],[1,0,3,1]]}
[]
[null,null,"FORMATO PARA LA FORMULACIÓN Y TRATAMIENTOS DE RIESGOS"]
[null,null,null,null,null,"E-ME-F-08"]
[null,null,null,null,null,"2024-12-26","V-4"]
["Proceso:",null,"TODOS LOS PROCESOS"]
["Identificación del riesgo",null,null,null,null,null,null,null,null,"Análisis del riesgo inherente",null,null,null,null,null,null,"Evaluación del riesgo - Valoración de los controles",null,null,null,null,null,"Atributos",null,null,null,null,null,"Evaluación del riesgo - Nivel del riesgo residual",null,null,null,null,null,null,"Plan de acción",null,null,null,"Responsable de Tratamiento"]
["Referencia ","Proceso","Tipo de Riesgo","Descripción del Riesgo ","Impacto","Causa o circunstancia Inmediata ¿Cómo?","Causa Raíz ¿Por a que?","Clasificación del Riesgo","Frecuencia con la cual se realiza la actividad anual","Probabilidad Inherente","%","Impacto","Observación de criterio","Impacto \nInherente","%","Zona de Riesgo Inherente","No. Control","Descripción del Control","Cargo del responsable del control ","Acción que realiza","Evidencia esperada del control","Afectación","Tipo","Implementación","Calificación","Documentación","Frecuencia","Evidencia","Probabilidad Residual","Probabilidad Residual Final","%","Impacto Residual Final","%","Zona de Riesgo Final","Tratamiento","Acción a realizar","Cargo del Responsable","Fecha de implementación","Fecha de seguimiento","Cargo del responsable","Área del Responsable","Jefe del Área del Responsable","Fecha Implementación\n(Inicio)","Fecha de Implementación\n(Fin)","Reporte primer Trimestre","¿se materializó?\nSi/No","Seguimiento segunda línea de defensa","Reporte segundo Trimestre","¿se materializó?\nSi/No","Seguimiento segunda línea de defensa","Reporte tercer Trimestre","¿se materializó?\nSi/No","Seguimiento segunda línea de defensa","Reporte cuarto Trimestre","¿se materializó?\nSi/No","Seguimiento segunda línea de defensa"]
[1,null,null,null,null,null,null,null,null,{"$f":"IF(I8<=0,\"\",IF(I8<=2,\"Muy Baja\",IF(I8<=24,\"Baja\",IF(I8<=500,\"Media\",IF(I8<=5000,\"Alta\",\"Muy Alta\")))))","v":""},{"$f":"IF(J8=\"\",\"\",IF(J8=\"Muy Baja\",0.2,IF(J8=\"Baja\",0.4,IF(J8=\"Media\",0.6,IF(J8=\"Alta\",0.8,IF(J8=\"Muy Alta\",1,))))))","v":""},null,{"$f":"IF(NOT(ISERROR(MATCH(L8,'Tabla Impacto'!B228:B230,0))),'Tabla Impacto'!$F$229&\"Por favor no seleccionar los criterios de impacto(Afectación Económica o presupuestal, Pérdida Reputacional o Impacto Ambiental)\",L8)","v":0},{"$f":"IF(OR(M8='Tabla Impacto'!$C$11,M8='Tabla Impacto'!$D$11,M8='Tabla Impacto'!$E$11),\"Leve\",IF(OR(M8='Tabla Impacto'!$C$12,M8='Tabla Impacto'!$D$12,M8='Tabla Impacto'!$E$12),\"Menor\",IF(OR(M8='Tabla Impacto'!$C$13,M8='Tabla Impacto'!$D$13,M8='Tabla Impacto'!$E$13),\"Moderado\",IF(OR(M8='Tabla Impacto'!$C$14,M8='Tabla Impacto'!$D$14,M8='Tabla Impacto'!$E$14),\"Mayor\",IF(OR(M8='Tabla Impacto'!$C$15,M8='Tabla Impacto'!$D$15,M8='Tabla Impacto'!$E$15),\"Catastrófico\",\"\")))))","v":""},{"$f":"IF(N8=\"\",\"\",IF(N8=\"Leve\",0.2,IF(N8=\"Menor\",0.4,IF(N8=\"Moderado\",0.6,IF(N8=\"Mayor\",0.8,IF(N8=\"Catastrófico\",1,))))))","v":""},{"$f":"IF(OR(AND(J8=\"Muy Baja\",N8=\"Leve\"),AND(J8=\"Muy Baja\",N8=\"Menor\"),AND(J8=\"Baja\",N8=\"Leve\")),\"Bajo\",IF(OR(AND(J8=\"Muy baja\",N8=\"Moderado\"),AND(J8=\"Baja\",N8=\"Menor\"),AND(J8=\"Baja\",N8=\"Moderado\"),AND(J8=\"Media\",N8=\"Leve\"),AND(J8=\"Media\",N8=\"Menor\"),AND(J8=\"Media\",N8=\"Moderado\"),AND(J8=\"Alta\",N8=\"Leve\"),AND(J8=\"Alta\",N8=\"Menor\")),\"Moderado\",IF(OR(AND(J8=\"Muy Baja\",N8=\"Mayor\"),AND(J8=\"Baja\",N8=\"Mayor\"),AND(J8=\"Media\",N8=\"Mayor\"),AND(J8=\"Alta\",N8=\"Moderado\"),AND(J8=\"Alta\",N8=\"Mayor\"),AND(J8=\"Muy Alta\",N8=\"Leve\"),AND(J8=\"Muy Alta\",N8=\"Menor\"),AND(J8=\"Muy Alta\",N8=\"Moderado\"),AND(J8=\"Muy Alta\",N8=\"Mayor\")),\"Alto\",IF(OR(AND(J8=\"Muy Baja\",N8=\"Catastrófico\"),AND(J8=\"Baja\",N8=\"Catastrófico\"),AND(J8=\"Media\",N8=\"Catastrófico\"),AND(J8=\"Alta\",N8=\"Catastrófico\"),AND(J8=\"Muy Alta\",N8=\"Catastrófico\")),\"Extremo\",\"\"))))","v":""},null,null,null,null,null,{"$f":"IF(OR(W8=\"Preventivo\",W8=\"Detectivo\"),\"Probabilidad\",IF(W8=\"Correctivo\",\"Impacto\",\"\"))","v":""},null,null,{"$f":"IF(AND(W8=\"Preventivo\",X8=\"Automático\"),\"50%\",IF(AND(W8=\"Preventivo\",X8=\"Manual\"),\"40%\",IF(AND(W8=\"Detectivo\",X8=\"Automático\"),\"40%\",IF(AND(W8=\"Detectivo\",X8=\"Manual\"),\"30%\",IF(AND(W8=\"Correctivo\",X8=\"Automático\"),\"35%\",IF(AND(W8=\"Correctivo\",X8=\"Manual\"),\"25%\",\"\"))))))","v":""},null,null,null,{"$f":"IFERROR(IF(V8=\"Probabilidad\",(K8-(+K8*Y8)),IF(V8=\"Impacto\",K8,\"\")),\"\")","v":""},{"$f":"IFERROR(IF(AC8=\"\",\"\",IF(AC8<=0.2,\"Muy Baja\",IF(AC8<=0.4,\"Baja\",IF(AC8<=0.6,\"Media\",IF(AC8<=0.8,\"Alta\",\"Muy Alta\"))))),\"\")","v":""},{"$f":"+AC8","v":""},{"$f":"IFERROR(IF(AG8=\"\",\"\",IF(AG8<=0.2,\"Leve\",IF(AG8<=0.4,\"Menor\",IF(AG8<=0.6,\"Moderado\",IF(AG8<=0.8,\"Mayor\",\"Catastrófico\"))))),\"\")","v":""},{"$f":"IFERROR(IF(V8=\"Impacto\",(O8-(+O8*Y8)),IF(V8=\"Probabilidad\",O8,\"\")),\"\")","v":""},{"$f":"IFERROR(IF(OR(AND(AD8=\"Muy Baja\",AF8=\"Leve\"),AND(AD8=\"Muy Baja\",AF8=\"Menor\"),AND(AD8=\"Baja\",AF8=\"Leve\")),\"Bajo\",IF(OR(AND(AD8=\"Muy baja\",AF8=\"Moderado\"),AND(AD8=\"Baja\",AF8=\"Menor\"),AND(AD8=\"Baja\",AF8=\"Moderado\"),AND(AD8=\"Media\",AF8=\"Leve\"),AND(AD8=\"Media\",AF8=\"Menor\"),AND(AD8=\"Media\",AF8=\"Moderado\"),AND(AD8=\"Alta\",AF8=\"Leve\"),AND(AD8=\"Alta\",AF8=\"Menor\")),\"Moderado\",IF(OR(AND(AD8=\"Muy Baja\",AF8=\"Mayor\"),AND(AD8=\"Baja\",AF8=\"Mayor\"),AND(AD8=\"Media\",AF8=\"Mayor\"),AND(AD8=\"Alta\",AF8=\"Moderado\"),AND(AD8=\"Alta\",AF8=\"Mayor\"),AND(AD8=\"Muy Alta\",AF8=\"Leve\"),AND(AD8=\"Muy Alta\",AF8=\"Menor\"),AND(AD8=\"Muy Alta\",AF8=\"Moderado\"),AND(AD8=\"Muy Alta\",AF8=\"Mayor\")),\"Alto\",IF(OR(AND(AD8=\"Muy Baja\",AF8=\"Catastrófico\"),AND(AD8=\"Baja\",AF8=\"Catastrófico\"),AND(AD8=\"Media\",AF8=\"Catastrófico\"),AND(AD8=\"Alta\",AF8=\"Catastrófico\"),AND(AD8=\"Muy Alta\",AF8=\"Catastrófico\")),\"Extremo\",\"\")))),\"\")","v":""}]

{"sheet":"Tabla probabilidad","index":6,"n_rows":8,"n_cols":4,"rows_kept":8,"cut":false,"hidden":true,"merged":[[0,1,0,3]]}
[null,"Tabla Criterios para definir el nivel de probabilidad"]
[]
[null,null,"Frecuencia de la Actividad","Probabilidad"]
[null,"Muy Baja","La actividad que conlleva el riesgo se ejecuta como máximos 2 veces por año",0.2]
[null,"Baja","La actividad que conlleva el riesgo se ejecuta de 3 a 24 veces por año",0.4]
[null,"Media","La actividad que conlleva el riesgo se ejecuta de 24 a 500 veces por año",0.6]
[null,"Alta","La actividad que conlleva el riesgo se ejecuta mínimo 500 veces al año y máximo 5000 veces por año",0.8]
[null,"Muy Alta","La actividad que conlleva el riesgo se ejecuta más de 5000 veces por año",1]

{"sheet":"Hoja3","index":7,"n_rows":0,"n_cols":0,"rows_kept":0,"cut":false,"hidden":true,"merged":[]}

{"sheet":"Tabla Valoración controles","index":8,"n_rows":15,"n_cols":6,"rows_kept":15,"cut":false,"hidden":true,"merged":[[0,1,0,5],[14,1,14,5],[2,1,2,3],[3,1,7,1],[3,2,5,2],[6,2,7,2],[8,1,13,1],[8,2,9,2],[10,2,11,2],[12,2,13,2]]}
[null,"Tabla Atributos de para el diseño del control"]
[]
[null,"Características",null,null,"Descripción","Peso"]
[null,"Atributos de Eficiencia","Tipo","Preventivo","Va hacia las causas del riesgo, aseguran el resultado final esperado.",0.25]
[null,null,null,"Detectivo","Detecta que algo ocurre y devuelve el proceso a los controles preventivos.\nSe pueden generar reprocesos.",0.15]
[null,null,null,"Correctivo","Dado que permiten reducir el impacto de la materialización del riesgo, tienen un costo en su implementación.",0.1]
[null,null,"Implementación","Automático","Son actividades de procesamiento o validación de información que se ejecutan por un sistema y/o aplicativo de manera automática sin la intervención de personas para su realización.",0.25]
[null,null,null,"Manual","Controles que son ejecutados por una persona., tiene implícito el error humano.",0.15]
[null,"*Atributos de Formalización","Documentación","Documentado","Controles que están documentados en el proceso, ya sea en manuales, procedimientos, flujogramas o cualquier otro documento propio del proceso.","-"]
[null,null,null,"Sin Documentar","Identifica a los controles que pese a que se ejecutan en el proceso no se encuentran documentados en ningún documento propio del proceso","-"]
[null,null,"Frecuencia","Continua","Este atributo identifica a los controles que se ejecutan siempre que se realiza la actividad originadora del riesgo.","-"]
[null,null,null,"Aleatoria","Este atributo identifica a los controles que no siempre se ejecutan cuando se realiza la actividad originadora del riesgo","-"]
[null,null,"Evidencia","Con Registro","El control deja un registro que permite evidenciar la ejecución del control","-"]
[null,null,null,"Sin Registro","El control no deja registro de la ejecución del control","-"]
[null,"*Nota 1: Los atributos de formalización se recogerán de manera informativa, con el fin de conocer el entorno del control y complementar el análisis con elementos cualitativos; éstos no tienen una incidencia directa en su efectividad. "]

{"sheet":"Hoja1","index":9,"n_rows":21,"n_cols":1,"rows_kept":21,"cut":false,"hidden":true,"merged":[]}
[]
[]
["Preventivo"]
["Detectivo"]
["Correctivo"]
["Automático"]
["Manual"]
["Documentado"]
["Sin Documentar"]
["Continua"]
["Aleatoria"]
["Registro Sustancial"]
["Registro Material"]
["Sin registro"]
[]
["Reducir"]
["Aceptar"]
["Evitar"]
[]
["Finalizado"]
["En curso"]

{"sheet":"Tabla Impacto","index":10,"n_rows":230,"n_cols":13,"rows_kept":230,"cut":false,"hidden":true,"merged":[[0,1,0,3]]}
[null,"Tabla Criterios para definir el nivel de impacto"]
[]
[null,null,"Afectación Económica (o presupuestal)","Pérdida Reputacional","IMPACTO AMBIENTAL"]
["Insignificante","Leve 20%","Afectación menor a 10 SMLMV","No se afecta la imagen institucional de alguna área de forma significativa.","Sin lesiones, impacto ambiental insignificante."]
["Menor","Menor-40% ","Entre 10 y 50 SMLMV","Afecta la imagen de la entidad internamente, de conocimiento general, nivel interno, de junta directiva y accionistas y/o de proveedores. \n\nImagen institucional afectada localmente por retrasos en la prestación del servicio a los usuarios o ciudadanos.\n","Tratamiento de primero auxilios, liberación en el sitio contenida inmediatamente. "]
["Moderado","Moderado 60%","Entre 50 y 100 SMLMV","Afecta la imagen de la entidad con algunos usuarios de relevancia frente al logro de los objetivos. \n\nImagen institucional afectada en el orden nacional o regional por retrasos en la prestación del servicio a los usuarios o ciudadanos.\n","Exige tratamiento médico, liberación en el lugar contenida con asistencia externa. "]
["Mayor","Mayor 80%","Entre 100 y 500 SMLMV","Afecta la imagen de la entidad con efecto publicitario sostenido a nivel de sector administrativo, departamental o municipal. \n\nImagen institucional afectada en el orden nacional o regional por incumplimientos en la prestación del servicio a los usuarios o ciudadanos\n","Lesiones extensas, pérdida de la capacidad productiva, liberación en lares alejados contenida con asistencia externa y poco impacto nocivo."]
["Catastrófico","Catastrófico 100%","Mayor a 500 SMLMV","Afecta la imagen de la entidad a nivel nacional, con efecto publicitario sostenible a nivel país. \n\nImagen institucional afectada en el orden nacional o regional por actos o hechos de corrupción comprobados.\n","Muerte, liberación de tóxicos en lugares alejados con efecto nocivo.",null,null,null,null,null,null,null,{"$f":"IF(NOT(ISERROR(MATCH(L8,'Tabla Impacto'!B228:B230,0))),'Tabla Impacto'!$F$223&\"Por favor no seleccionar los criterios de impacto(Afectación Económica o presupuestal y Pérdida Reputacional)\",L8)","v":0}]
[]
[]
[null,"Afectación_Económica_o_presupuestal","     Afectación menor a 10 SMLMV .","     El riesgo afecta la imagen de alguna área de la organización","     Sin lesiones, impacto ambiental insignificante."]
[null,"Pérdida_Reputacional","     Entre 10 y 50 SMLMV ","     El riesgo afecta la imagen de la entidad internamente, de conocimiento general, nivel interno, de junta dircetiva y accionistas y/o de provedores","     Tratamiento de primero auxilios, liberación en el sitio contenida inmediatamente. "]
[null,"Impacto_ Ambiental","     Entre 50 y 100 SMLMV ","     El riesgo afecta la imagen de la entidad con algunos usuarios de relevancia frente al logro de los objetivos","     Exige tratamiento médico, liberación en el lugar contenida con asistencia externa. "]
[null,null,"     Entre 100 y 500 SMLMV ","     El riesgo afecta la imagen de de la entidad con efecto publicitario sostenido a nivel de sector administrativo, nivel departamental o municipal","     Lesiones extensas, pérdida de la capacidad productiva, liberación en lares alejados contenida con asistencia externa y poco impacto nocivo."]
[null,null,"     Mayor a 500 SMLMV ","     El riesgo afecta la imagen de la entidad a nivel nacional, con efecto publicitarios sostenible a nivel país","     Muerte, liberación de tóxicos en lugares alejados con efecto nocivo."]
[]
[]
[]
[]
[]
[]
[]
[]
[]
[]
[]
[]
[]
[]
[]
[]
[]
[]
[]
[]
[]
[]
[]
[]
[]
[]
[]
[]
[]
[]
[]
[]
[]
[]
[]
[]
[]
[]
[]
[]
[]
[]
[]
[]
[]
[]
[]
[]
[]
[]
[]
[]
[]
[]
[]
[]
[]
[]
[]
[]
[]
[]
[]
[]
[]
[]
[]
[]
[]
[]
[]
[]
[]
[]
[]
[]
[]
[]
[]
[]
[]
[]
[]
[]
[]
[]
[]
[]
[]
[]
[]
[]
[]
[]
[]
[]
[]
[]
[]
[]
[]
[]
[]
[]
[]
[]
[]
[]
[]
[]
[]
[]
[]
[]
[]
[]
[]
[]
[]
[]
[]
[]
[]
[]
[]
[]
[]
[]
[]
[]
[]
[]
[]
[]
[]
[]
[]
[]
[]
[]
[]
[]
[]
[]
[]
[]
[]
[]
[]
[]
[]
[]
[]
[]
[]
[]
[]
[]
[]
[]
[]
[]
[]
[]
[]
[]
[]
[]
[]
[]
[]
[]
[]
[]
[]
[]
[]
[]
[]
[]
[]
[]
[]
[]
[]
[]
[]
[]
[]
[]
[]
[]
[]
[null,"Criterios","Subcriterios","Criterios","Subcriterios"]
[null,"Afectación Económica o presupuestal","Afectación menor a 10 SMLMV .","Afectación Económica o presupuestal",null,{"$f":"IF(NOT(ISBLANK(D210)),D210,IF(NOT(ISBLANK(E210)),\"     \"&E210,FALSE))","v":"Afectación Económica o presupuestal"},"Afectación Económica o presupuestal",{"$f":"IF(NOT(ISERROR(MATCH(G210,_xlfn.ANCHORARRAY(B227),0))),F229&\"Por favor no seleccionar los criterios de impacto\",G210)","v":"❌Por favor no seleccionar los criterios de impacto"}]
[null,"Afectación Económica o presupuestal","Entre 10 y 50 SMLMV ",null,"Afectación menor a 10 SMLMV .",{"$f":"IF(NOT(ISBLANK(D211)),D211,IF(NOT(ISBLANK(E211)),\"     \"&E211,FALSE))","v":"     Afectación menor a 10 SMLMV ."}]
[null,"Afectación Económica o presupuestal","Entre 50 y 100 SMLMV ",null,"Entre 10 y 50 SMLMV ","     Entre 10 y 50 SMLMV "]
[null,"Afectación Económica o presupuestal","Entre 100 y 500 SMLMV ",null,"Entre 50 y 100 SMLMV ","     Entre 50 y 100 SMLMV "]
[null,"Afectación Económica o presupuestal","Mayor a 500 SMLMV ",null,"Entre 100 y 500 SMLMV ","     Entre 100 y 500 SMLMV "]
[null,"Pérdida Reputacional","El riesgo afecta la imagen de alguna área de la organización",null,"Mayor a 500 SMLMV ","     Mayor a 500 SMLMV "]
[null,"Pérdida Reputacional","El riesgo afecta la imagen de la entidad internamente, de conocimiento general, nivel interno, de junta dircetiva y accionistas y/o de provedores","Pérdida Reputacional",null,"Pérdida Reputacional"]
[null,"Pérdida Reputacional","El riesgo afecta la imagen de la entidad con algunos usuarios de relevancia frente al logro de los objetivos",null,"El riesgo afecta la imagen de alguna área de la organización","     El riesgo afecta la imagen de alguna área de la organización"]
[null,"Pérdida Reputacional","El riesgo afecta la imagen de de la entidad con efecto publicitario sostenido a nivel de sector administrativo, nivel departamental o municipal",null,"El riesgo afecta la imagen de la entidad internamente, de conocimiento general, nivel interno, de junta dircetiva y accionistas y/o de provedores","     El riesgo afecta la imagen de la entidad internamente, de conocimiento general, nivel interno, de junta dircetiva y accionistas y/o de provedores"]
[null,"Pérdida Reputacional","El riesgo afecta la imagen de la entidad a nivel nacional, con efecto publicitarios sostenible a nivel país",null,"El riesgo afecta la imagen de la entidad con algunos usuarios de relevancia frente al logro de los objetivos","     El riesgo afecta la imagen de la entidad con algunos usuarios de relevancia frente al logro de los objetivos"]
[null,"Impacto ambiental","Sin lesiones, impacto ambiental insignificante.",null,"El riesgo afecta la imagen de de la entidad con efecto publicitario sostenido a nivel de sector administrativo, nivel departamental o municipal","     El riesgo afecta la imagen de de la entidad con efecto publicitario sostenido a nivel de sector administrativo, nivel departamental o municipal"]
[null,"Impacto ambiental","Tratamiento de primero auxilios, liberación en el sitio contenida inmediatamente. ",null,"El riesgo afecta la imagen de la entidad a nivel nacional, con efecto publicitarios sostenible a nivel país","     El riesgo afecta la imagen de la entidad a nivel nacional, con efecto publicitarios sostenible a nivel país"]
[null,"Impacto ambiental","Exige tratamiento médico, liberación en el lugar contenida con asistencia externa. ","Impacto ambiental",null,"Impacto ambiental"]
[null,"Impacto ambiental","Lesiones extensas, pérdida de la capacidad productiva, liberación en lares alejados contenida con asistencia externa y poco impacto nocivo.",null,"Sin lesiones, impacto ambiental insignificante.","     Sin lesiones, impacto ambiental insignificante."]
[null,"Impacto ambiental","Muerte, liberación de tóxicos en lugares alejados con efecto nocivo.",null,"Tratamiento de primero auxilios, liberación en el sitio contenida inmediatamente. ","     Tratamiento de primero auxilios, liberación en el sitio contenida inmediatamente. "]
[null,null,null,null,"Exige tratamiento médico, liberación en el lugar contenida con asistencia externa. ","     Exige tratamiento médico, liberación en el lugar contenida con asistencia externa. "]
[null,null,null,null,"Lesiones extensas, pérdida de la capacidad productiva, liberación en lares alejados contenida con asistencia externa y poco impacto nocivo.","     Lesiones extensas, pérdida de la capacidad productiva, liberación en lares alejados contenida con asistencia externa y poco impacto nocivo."]
[null,{"$f":"_xlfn.UNIQUE(Tabla1[[#All],[Criterios]])","v":"Criterios"},null,null,"Muerte, liberación de tóxicos en lugares alejados con efecto nocivo.","     Muerte, liberación de tóxicos en lugares alejados con efecto nocivo."]
[null,"Afectación Económica o presupuestal"]
[null,"Pérdida Reputacional",null,null,null,"❌"]
[null,"Impacto ambiental",null,null,null,"✔"]

{"sheet":"Opciones Tratamiento (Listas)","index":11,"n_rows":22,"n_cols":13,"rows_kept":22,"cut":false,"hidden":true,"merged":[[14,12,14,15],[1,6,1,10],[2,3,2,4],[3,3,3,4],[4,3,4,4],[8,12,8,15],[5,3,5,4],[1,12,1,15],[2,12,2,15],[3,12,3,15],[6,3,6,4]]}
[]
[null,"Tratamiento",null,null,null,null,"PROCESOS ",null,null,null,null,null,"Plan de accion (solo para la opción reducir)"]
[null,"Aceptar",null,"IMPACTO",null,null,"DIRECCIONAMIENTO ESTRATÉGICO",null,null,null,null,null,"Finalizado"]
[null,"Evitar",null,"económico",null,null,"MEJORAMIENTO",null,null,null,null,null,"En curso"]
[null,"Reducir (compartir)",null,"reputacional",null,null,"GESTIÓN TALENTO HUMANO"]
[null,"Reducir (mitigar)",null,"económico y reputacional",null,null,"GESTIÓN DE COMUNICACIONES"]
[null,null,null,"Ambiental",null,null,"GESTIÓN TECNOLÓGICA"]
[null,null,null,null,null,null,"GESTIÓN JURÍDICA"]
[null,null,null,null,null,null,"GESTIÓN DEL CONOCIMIENTO, LA INFORMACIÓN Y LA INNOVACIÓN"]
[null,null,null,null,null,null,"GESTIÓN DOCUMENTAL"]
[null,null,null,null,null,null,"GESTIÓN CONTRACTUAL"]
[null,"Clasificación del Riesgo",null,null,null,null,"GESTIÓN DE RECURSOS FÍSICOS"]
[null,"Daños Activos Fisicos",null,null,null,null,"GESTIÓN FINANCIERA"]
[null,"Ejecucion y Administracion de procesos",null,null,null,null,"GESTIÓN DEL RELACIONAMIENTO CON LOS GRUPOS DE VALOR"]
[null,"Fallas Tecnologicas",null,null,null,null,"CONTROL DISCIPLINARIO",null,null,null,null,null,"Tipo de Riesgo"]
[null,"Fraude Externo",null,null,null,null,"CONTROL INDEPENDIENTE",null,null,null,null,null,"Fiscal"]
[null,"Fraude Interno",null,null,null,null,"SOCIAMBIENTAL",null,null,null,null,null,"Gestión"]
[null,"Relaciones Laborales",null,null,null,null,"MINERIA",null,null,null,null,null,"Ambiental"]
[null,"Usuarios, productos y practicas , organizacionales",null,null,null,null,"HIDROCARBUROS"]
[null,"Ambiental",null,null,null,null,"ASUNTOS NUCLEARES"]
[null,null,null,null,null,null,"ENERGÍA"]
[null,null,null,null,null,null,"TODOS LOS PROCESOS"]